Workbook

Sheet ACS_Notes (hidden)
A1: NOTES:
A4: Data are based on a sample and are subject to sampling variability. The degree of uncertainty for an estimate arising from sampling variability is represented through the use of a margin of error. The value shown here is the 90 percent margin of error. The margin of error can be interpreted roughly as providing a 90 percent probability that the interval defined by the estimate minus the margin of error and the estimate plus the margin of error (the lower and upper confidence bounds) contains the true value. In addition to sampling variability, the ACS estimates are subject to nonsampling error (for a discussion of nonsampling variability, see Accuracy of the Data). The effect of nonsampling error is not represented in these tables.
A8: In addition to sampling variability, the ACS estimates are subject to nonsampling error (for a discussion of nonsampling variability, see Accuracy of the Data. The link is located at the end of this worksheet.). The effect of nonsampling error is not represented in these tables.
A11: While the 2005-2009 American Community Survey (ACS) data generally reflect the November 2008 Office of Management and Budget (OMB) definitions of metropolitan and micropolitan statistical areas; in certain instances the names, codes, and boundaries of the principal cities shown in ACS tables may differ from the OMB definitions due to differences in the effective dates of the geographic entities.
A15: Estimates of urban and rural population, housing units, and characteristics reflect boundaries of urban areas defined based on Census 2000 data. Boundaries for urban areas have not been updated since Census 2000. As a result, data for urban and rural areas from the ACS do not necessarily reflect the results of ongoing urbanization.
A17: Explanation of Symbols:
A19: 1. An '**' entry in the margin of error column indicates that either no sample observations or too few sample observations were available to compute a standard error and thus the margin of error. A statistical test is not appropriate.
A21: 2. An '-' entry in the estimate column indicates that either no sample observations or too few sample observations were available to compute an estimate, or a ratio of medians cannot be calculated because one or both of the median estimates falls in the lowest interval or upper interval of an open-ended distribution.
A23: 3. An '-' following a median estimate means the median falls in the lowest interval of an open-ended distribution.
A24: 4. An '+' following a median estimate means the median falls in the upper interval of an open-ended distribution.
A25: 5. An '***' entry in the margin of error column indicates that the median falls in the lowest interval or upper interval of an open-ended distribution. A statistical test is not appropriate.
A26: 6. An '*****' entry in the margin of error column indicates that the estimate is controlled. A statistical test for sampling variability is not appropriate.
A28: Accuracy of Data

Sheet StartInstruction
A1: Demographic Profiles for Municipalities in Belknap County
A3: To view or print a Demographic Profile follow the steps below
A6: Step 1. | C6: Select the municipality you wish to
C7: Profile from the drop down box below.
A12: Step 2. | C12: Click one of the profile topic buttons below to review or print
C13: the information for the selected geography. | E13: .
C14: Don't forget to adjust the axis on charts as necessary.
O28: Updated: | Q28: 2020-12-18
O30: Next Update: | Q30: Fall 2021 - Annual Employment and Wage data

Sheet ACS_Table_B08303 (hidden)
B1: B08303: TRAVEL TIME TO WORK
B2: Universe: Workers 16 years and over who did not work at home
B3: Data Set: 2006-2010 American Community Survey 3-Year Estimates
E5: Alton | G5: Barnstead | I5: Belmont | K5: Center Harbor | M5: Gilford | O5: Gilmanton | Q5: Laconia | S5: Meredith | U5: New Hampton | W5: Sanbornton | Y5: Tilton
C6: Estimates | D6: Margin Of Error | E6: Estimates | F6: Margin Of Error | G6: Estimates | H6: Margin Of Error | I6: Estimates | J6: Margin Of Error | K6: Estimates | L6: Margin Of Error | M6: Estimates | N6: Margin Of Error | O6: Estimates | P6: Margin Of Error | Q6: Estimates | R6: Margin Of Error | S6: Estimates | T6: Margin Of Error | U6: Estimates | V6: Margin Of Error | W6: Estimates | X6: Margin Of Error
B7: Population Older than 16 not working at hom | C7: 2047 | D7: 403 | E7: 2446 | F7: 180 | G7: 3828 | H7: 335 | I7: 458 | J7: 99 | K7: 3453 | L7: 295 | M7: 1875 | N7: 169 | O7: 8023 | P7: 459 | Q7: 2504 | R7: 205 | S7: 1068 | T7: 134 | U7: 1592 | V7: 164 | W7: 1694 | X7: 149
B8: Less than 5 minutes | C8: 37 | D8: 56 | E8: 43 | F8: 51 | G8: 143 | H8: 84 | I8: 12 | J8: 15 | K8: 7 | L8: 11 | M8: 58 | N8: 60 | O8: 547 | P8: 210 | Q8: 137 | R8: 92 | S8: 52 | T8: 51 | U8: 99 | V8: 65 | W8: 72 | X8: 55
B9: 5 to 9 minutes | C9: 212 | D9: 145 | E9: 40 | F9: 34 | G9: 341 | H9: 131 | I9: 89 | J9: 44 | K9: 457 | L9: 162 | M9: 59 | N9: 59 | O9: 1607 | P9: 300 | Q9: 401 | R9: 142 | S9: 111 | T9: 60 | U9: 119 | V9: 70 | W9: 283 | X9: 143
B10: 10 to 14 minutes | C10: 267 | D10: 140 | E10: 216 | F10: 106 | G10: 842 | H10: 227 | I10: 74 | J10: 34 | K10: 834 | L10: 213 | M10: 59 | N10: 37 | O10: 1792 | P10: 333 | Q10: 327 | R10: 128 | S10: 111 | T10: 62 | U10: 218 | V10: 96 | W10: 194 | X10: 91
B11: 15 to 19 minutes | C11: 327 | D11: 251 | E11: 168 | F11: 85 | G11: 535 | H11: 244 | I11: 27 | J11: 23 | K11: 536 | L11: 160 | M11: 159 | N11: 69 | O11: 1129 | P11: 235 | Q11: 305 | R11: 122 | S11: 78 | T11: 36 | U11: 212 | V11: 83 | W11: 159 | X11: 75
B12: 20 to 24 minutes | C12: 120 | D12: 79 | E12: 126 | F12: 80 | G12: 550 | H12: 197 | I12: 89 | J12: 52 | K12: 366 | L12: 180 | M12: 366 | N12: 134 | O12: 692 | P12: 200 | Q12: 309 | R12: 99 | S12: 254 | T12: 79 | U12: 216 | V12: 88 | W12: 299 | X12: 107
B13: 25 to 29 minutes | C13: 53 | D13: 62 | E13: 99 | F13: 61 | G13: 227 | H13: 157 | I13: 26 | J13: 19 | K13: 54 | L13: 49 | M13: 194 | N13: 73 | O13: 368 | P13: 155 | Q13: 70 | R13: 56 | S13: 57 | T13: 33 | U13: 106 | V13: 70 | W13: 75 | X13: 59
B14: 30 to 34 minutes | C14: 216 | D14: 123 | E14: 296 | F14: 122 | G14: 578 | H14: 272 | I14: 64 | J14: 38 | K14: 210 | L14: 99 | M14: 308 | N14: 113 | O14: 435 | P14: 130 | Q14: 480 | R14: 201 | S14: 146 | T14: 57 | U14: 243 | V14: 96 | W14: 301 | X14: 112
B15: 35 to 39 minutes | C15: 119 | D15: 78 | E15: 221 | F15: 81 | G15: 28 | H15: 33 | I15: 6 | J15: 10 | K15: 109 | L15: 66 | M15: 136 | N15: 82 | O15: 210 | P15: 113 | Q15: 89 | R15: 74 | S15: 33 | T15: 22 | U15: 36 | V15: 32 | W15: 0 | X15: 11
B16: 40 to 44 minutes | C16: 106 | D16: 79 | E16: 370 | F16: 112 | G16: 144 | H16: 97 | I16: 3 | J16: 4 | K16: 173 | L16: 107 | M16: 222 | N16: 81 | O16: 295 | P16: 120 | Q16: 52 | R16: 48 | S16: 13 | T16: 13 | U16: 39 | V16: 29 | W16: 63 | X16: 53
B17: 45 to 59 minutes | C17: 387 | D17: 164 | E17: 520 | F17: 131 | G17: 220 | H17: 104 | I17: 35 | J17: 20 | K17: 258 | L17: 113 | M17: 154 | N17: 98 | O17: 386 | P17: 115 | Q17: 110 | R17: 64 | S17: 93 | T17: 50 | U17: 185 | V17: 68 | W17: 115 | X17: 67
B18: 60 to 89 minutes | C18: 126 | D18: 80 | E18: 263 | F18: 88 | G18: 177 | H18: 101 | I18: 9 | J18: 8 | K18: 302 | L18: 126 | M18: 95 | N18: 64 | O18: 421 | P18: 165 | Q18: 152 | R18: 67 | S18: 88 | T18: 40 | U18: 49 | V18: 33 | W18: 52 | X18: 38
B19: 90 or more minutes | C19: 77 | D19: 73 | E19: 84 | F19: 57 | G19: 43 | H19: 41 | I19: 24 | J19: 21 | K19: 147 | L19: 100 | M19: 65 | N19: 52 | O19: 141 | P19: 76 | Q19: 72 | R19: 52 | S19: 32 | T19: 28 | U19: 70 | V19: 41 | W19: 81 | X19: 46

Sheet PopulationCharacteristics (hidden)
B2: =CntyDataLink!A35 -> Alton
G3: Land Area: | I3: =((CntyDataLink!F35*10.764)/43560)/640 -> 63.13528284 | N3: Water Area: | O3: =((CntyDataLink!G35*10.764)/43560)/640 -> 19.05063133
B4: POPULATION CHARACTERISTICS
B19: Population | C19: ="Source: US Census; New Hampshire Office of Strategic Initiatives; "& L20&", "&P20&", and "&S20&" American Community Survey Table B01001" -> Source: US Census; New Hampshire Office of Strategic Initiatives; 2005-2009, 2010-2014, and 2015-2019 American Community Survey Table B01001 | N19: Population by Age | P19: ="Source: "& L20&", "&P20&", and "&S20&" American Community Survey Tables B01001 and B01002" -> Source: 2005-2009, 2010-2014, and 2015-2019 American Community Survey Tables B01001 and B01002
L20: 2005-2009 | P20: 2010-2014 | S20: 2015-2019
C21: 1980 | D21: 1990 | E21: 2000 | F21: 2015-2019 | G21: 2025 | H21: 2030 | L21: Estimate | N21: Margin of Error | O21: Percent of Population | P21: Estimate | Q21: Margin of Error | R21: Percent of Population | S21: Estimate | T21: Margin of Error | U21: Percent of Population | V21: Percent Change | W21: Statistically Significant Change
C22: =CntyDataLink!$E$20 -> 2440 | D22: =CntyDataLink!$F$20 -> 3286 | E22: =CntyDataLink!$G$20 -> 4502 | F22: =CntyDataLink!$B$132 -> 5303 | G22: =CntyDataLink!$I$20 -> 6112 | H22: =CntyDataLink!$K$20 -> 6378 | K22: Under 15 yrs. | L22: =CntyDataLinkPrior10YearEstimate!$D$132 -> 968 | N22: =CntyDataLinkPrior10YearEstimate!$E$132 -> 225.9889378 | O22: =L22/SUM($L$22:$L$29) -> 0.1911154985 | P22: =CntyDataLinkPrior5YearEstimates!$D$132 -> 713 | Q22: =CntyDataLinkPrior5YearEstimates!$E$132 -> 225.3242109 | R22: =P22/SUM($P$22:$P$29) -> 0.1352941176 | S22: =CntyDataLink!$D$132 -> 853 | T22: =CntyDataLink!$E$132 -> 245.1999184 | U22: =S22/SUM($S$22:$S$29) -> 0.1608523477 | V22: =(S22-P22)/P22 -> 0.1963534362 | W22: =StatisticallySignificantCalcs!$A3 -> Y
K23: 15 to 24 yrs. | L23: =CntyDataLinkPrior10YearEstimate!$F$132 -> 439 | N23: =CntyDataLinkPrior10YearEstimate!$G$132 -> 246.018292 | O23: =L23/SUM($L$22:$L$29) -> 0.08667324778 | P23: =CntyDataLinkPrior5YearEstimates!$F$132 -> 760 | Q23: =CntyDataLinkPrior5YearEstimates!$G$132 -> 227.0770794 | R23: 0.1442125237 | S23: =CntyDataLink!$F$132 -> 559 | T23: =CntyDataLink!$G$132 -> 203.152652 | U23: =S23/SUM($S$22:$S$29) -> 0.1054120309 | V23: =(S23-P23)/P23 -> -0.2644736842 | W23: =StatisticallySignificantCalcs!$A4 -> Y
B24: Percent Change | K24: 25 to 34 yrs. | L24: =CntyDataLinkPrior10YearEstimate!$H$132 -> 591 | N24: =CntyDataLinkPrior10YearEstimate!$I$132 -> 173.9281461 | O24: =L24/SUM($L$22:$L$29) -> 0.1166831194 | P24: =CntyDataLinkPrior5YearEstimates!$H$132 -> 434 | Q24: =CntyDataLinkPrior5YearEstimates!$I$132 -> 153.8700751 | R24: 0.08235294118 | S24: =CntyDataLink!$H$132 -> 234 | T24: =CntyDataLink!$I$132 -> 139.4058822 | U24: 0.04412596643 | V24: -0.4608294931 | W24: =StatisticallySignificantCalcs!$A5 -> Y
D25: =C21&"-"&(D21-1900) -> 1980-90 | E25: 1990-2000 | F25: =E21&"-19" -> 2000-19 | G25: =2019&"-"&(G21) -> 2019-2025 | H25: =G21&"-"&(H21) -> 2025-2030 | K25: 35 to 44 yrs. | L25: =CntyDataLinkPrior10YearEstimate!$J$132 -> 623 | N25: =CntyDataLinkPrior10YearEstimate!$K$132 -> 158.0253144 | O25: 0.1230009872 | P25: =CntyDataLinkPrior5YearEstimates!$J$132 -> 735 | Q25: =CntyDataLinkPrior5YearEstimates!$K$132 -> 182.8523995 | R25: 0.1394686907 | S25: =CntyDataLink!$J$132 -> 626 | T25: =CntyDataLink!$K$132 -> 185.0162155 | U25: 0.1180463888 | V25: -0.1482993197 | W25: =StatisticallySignificantCalcs!$A6 -> Y
D26: =(D22-C22)/C22 -> 0.3467213115 | E26: =(E22-D22)/D22 -> 0.3700547778 | F26: =(F22-E22)/E22 -> 0.177920924 | G26: =(G22-F22)/F22 -> 0.1525551575 | H26: =(H22-G22)/G22 -> 0.04352094241 | K26: 45 to 54 yrs. | L26: =CntyDataLinkPrior10YearEstimate!$L$132 -> 727 | N26: =CntyDataLinkPrior10YearEstimate!$M$132 -> 171.1753487 | O26: 0.1435340573 | P26: =CntyDataLinkPrior5YearEstimates!$L$132 -> 795 | Q26: =CntyDataLinkPrior5YearEstimates!$M$132 -> 209.7212436 | R26: 0.1508538899 | S26: =CntyDataLink!$L$132 -> 666 | T26: =CntyDataLink!$M$132 -> 190.3680645 | U26: 0.1255892891 | V26: -0.1622641509 | W26: =StatisticallySignificantCalcs!$A7 -> Y
K27: 55 to 64 yrs. | L27: =CntyDataLinkPrior10YearEstimate!$N$132 -> 836 | N27: =CntyDataLinkPrior10YearEstimate!$O$132 -> 208.6743875 | O27: 0.1650542942 | P27: =CntyDataLinkPrior5YearEstimates!$N$132 -> 917 | Q27: =CntyDataLinkPrior5YearEstimates!$O$132 -> 253.0276665 | R27: 0.1740037951 | S27: =CntyDataLink!$N$132 -> 883 | T27: =CntyDataLink!$O$132 -> 212.8661551 | U27: 0.1665095229 | V27: -0.03707742639 | W27: =StatisticallySignificantCalcs!$A8 -> Y
K28: 65 to 74 yrs. | L28: =CntyDataLinkPrior10YearEstimate!$P$132 -> 517 | N28: =CntyDataLinkPrior10YearEstimate!$Q$132 -> 141.3541651 | O28: 0.1020730503 | P28: =CntyDataLinkPrior5YearEstimates!$P$132 -> 556 | Q28: =CntyDataLinkPrior5YearEstimates!$Q$132 -> 178.2526297 | R28: 0.1055028463 | S28: =CntyDataLink!$P$132 -> 895 | T28: =CntyDataLink!$Q$132 -> 231.790854 | U28: 0.168772393 | V28: 0.6097122302 | W28: =StatisticallySignificantCalcs!$A9 -> Y
K29: Over 74 yrs. | L29: =CntyDataLinkPrior10YearEstimate!$R$132 -> 364 | N29: =CntyDataLinkPrior10YearEstimate!$S$132 -> 147.2107333 | O29: 0.07186574531 | P29: =CntyDataLinkPrior5YearEstimates!$R$132 -> 360 | Q29: =CntyDataLinkPrior5YearEstimates!$S$132 -> 124.0322539 | R29: 0.06831119545 | S29: =CntyDataLink!$R$132 -> 587 | T29: =CntyDataLink!$S$132 -> 169.1271711 | U29: 0.1106920611 | V29: 0.6305555556 | W29: =StatisticallySignificantCalcs!$A10 -> Y
K30: Median Age (years) | L30: =CntyDataLinkPrior10YearEstimate!$AX$132 -> 43.9 | N30: =CntyDataLinkPrior10YearEstimate!$AY$132 -> 3.2 | P30: =CntyDataLinkPrior5YearEstimates!$AX132 -> 44.8 | Q30: =CntyDataLinkPrior5YearEstimates!$AY$132 -> 4.3 | S30: =CntyDataLink!$AX$132 -> 49.6 | T30: =CntyDataLink!$AY$132 -> 4.1
B32: Population By Race | M32: Statistically Significant Change
M33: =IF(L36="","-",StatisticallySignificantCalcs!A20) -> Y
C34: 2005-2009 | F34: 2010-2014 | I34: 2015-2019 | L34: Statistically Significant Change
C35: Estimate | D35: Margin of Error | F35: Estimate | G35: Margin of Error | I35: Estimate | J35: Margin of Error | L35: 2009-2019 | M35: 2014-2019
B36: White | C36: =CntyDataLinkPrior10YearEstimate!$AL$132 -> 4940 | D36: =CntyDataLinkPrior10YearEstimate!$AM$132 -> 78 | E36: =IF(C$36="-","-",VALUE(C36/$C$41)) -> 0.9753208292 | F36: =CntyDataLinkPrior5YearEstimates!$AL$132 -> 4930 | G36: =CntyDataLinkPrior5YearEstimates!$AM$132 -> 200 | H36: =IF(F$36="-","-",VALUE(F36/$F$41)) -> 0.935483871 | I36: =CntyDataLink!$AL$132 -> 5170 | J36: =CntyDataLink!$AM$132 -> 109 | K36: =IF(I$36="-","-",VALUE(I36/$I$41)) -> 0.9749198567 | L36: =StatisticallySignificantCalcs!A20 -> Y | M36: =StatisticallySignificantCalcs!J20 -> Y
B37: Black | C37: =CntyDataLinkPrior10YearEstimate!$AN132 -> 0 | D37: =CntyDataLinkPrior10YearEstimate!$AO$132 -> 114 | E37: =IF(C$37="-","-",VALUE(C37/$C$41)) -> 0 | F37: =CntyDataLinkPrior5YearEstimates!$AN132 -> 94 | G37: =CntyDataLinkPrior5YearEstimates!$AO$132 -> 123 | H37: =IF(F$37="-","-",VALUE(F37/$F$41)) -> 0.01783681214 | I37: =CntyDataLink!$AN$132 -> 0 | J37: =CntyDataLink!$AO$132 -> 16 | K37: =IF(I$37="-","-",VALUE(I37/$I$41)) -> 0 | L37: =StatisticallySignificantCalcs!A21 -> N | M37: =StatisticallySignificantCalcs!J21 -> N
B38: American Indian | C38: =CntyDataLinkPrior10YearEstimate!$AP$132 -> 0 | D38: =CntyDataLinkPrior10YearEstimate!$AQ$132 -> 114 | E38: =IF(C$38="-","-",VALUE(C38/$C$41)) -> 0 | F38: =CntyDataLinkPrior5YearEstimates!$AP$132 -> 76 | G38: =CntyDataLinkPrior5YearEstimates!$AQ$132 -> 104 | H38: =IF(F$38="-","-",VALUE(F38/$F$41)) -> 0.01442125237 | I38: =CntyDataLink!$AP$132 -> 0 | J38: =CntyDataLink!$AQ$132 -> 16 | K38: =IF(I$38="-","-",VALUE(I38/$I$41)) -> 0 | L38: =StatisticallySignificantCalcs!A22 -> N | M38: =StatisticallySignificantCalcs!J22 -> N
B39: Asian &Pacific Is. | C39: =CntyDataLinkPrior10YearEstimate!$AR$132 -> 75 | D39: =CntyDataLinkPrior10YearEstimate!$AS$132 -> 126.574089 | E39: =IF(C$39="-","-",VALUE(C39/$C$41)) -> 0.01480750247 | F39: =CntyDataLinkPrior5YearEstimates!$AR$132 -> 94 | G39: =CntyDataLinkPrior5YearEstimates!$AS$132 -> 110.0272693 | H39: =IF(F$39="-","-",VALUE(F39/$F$41)) -> 0.01783681214 | I39: =CntyDataLink!$AR$132 -> 30 | J39: =CntyDataLink!$AS$132 -> 45.88027899 | K39: =IF(I$39="-","-",VALUE(I39/$I$41)) -> 0.005657175184 | L39: =StatisticallySignificantCalcs!A23 -> N | M39: =StatisticallySignificantCalcs!J23 -> N
B40: Other* | C40: =CntyDataLinkPrior10YearEstimate!$AT$132 -> 27 | D40: =CntyDataLinkPrior10YearEstimate!$AU$132 -> 116.7090399 | E40: =IF(C$40="-","-",VALUE(C40/$C$41)) -> 0.005330700888 | F40: =CntyDataLinkPrior5YearEstimates!$AT$132 -> 60 | G40: =CntyDataLinkPrior5YearEstimates!$AU$132 -> 61.84658438 | H40: =IF(F$40="-","-",VALUE(F40/$F$41)) -> 0.01138519924 | I40: =CntyDataLink!$AT$132 -> 18 | J40: =CntyDataLink!$AU$132 -> 29.12043956 | K40: =IF(I$40="-","-",VALUE(I40/$I$41)) -> 0.00339430511 | L40: =StatisticallySignificantCalcs!A24 -> N | M40: =StatisticallySignificantCalcs!J24 -> N
B41: Total Population | C41: =CntyDataLinkPrior10YearEstimate!$B$132 -> 5065 | D41: =CntyDataLinkPrior10YearEstimate!$C$132 -> 16 | F41: =CntyDataLinkPrior5YearEstimates!$B$132 -> 5270 | G41: =CntyDataLinkPrior5YearEstimates!$C$132 -> 21 | I41: =CntyDataLink!$B$132 -> 5303 | J41: =CntyDataLink!$C$132 -> 23
B42: Hispanic | C42: =CntyDataLinkPrior10YearEstimate!$AV$132 -> 23 | D42: =CntyDataLinkPrior10YearEstimate!$AW$132 -> 28 | E42: =IF(C$42="-","-",VALUE(C42/$C$41)) -> 0.004540967423 | F42: =CntyDataLinkPrior5YearEstimates!$AV132 -> 16 | G42: =CntyDataLinkPrior5YearEstimates!$AW$132 -> 29 | H42: =IF(F$42="-","-",VALUE(F42/$F$41)) -> 0.003036053131 | I42: =CntyDataLink!$AV$132 -> 85 | J42: =CntyDataLink!$AW$132 -> 79 | K42: =IF(I$42="-","-",VALUE(I42/$I$41)) -> 0.01602866302 | L42: =StatisticallySignificantCalcs!A26 -> Y | M42: =StatisticallySignificantCalcs!J26 -> Y
B44: * | C44: Other includes population of 2 or more races
B46: ="Source: "& L20&", "&P20&", and "&S20&" American Community Survey Table B03002" -> Source: 2005-2009, 2010-2014, and 2015-2019 American Community Survey Table B03002
C48: Households and Families
D49: 2005-2009 | G49: 2010-2014 | J49: 2015-2019 | N49: Percent Change 2009-2019 | P49: Percent Change 2010-2019
D50: Estimate | E50: Margin of Error | G50: Estimate | H50: Margin of Error | J50: Estimate | K50: Margin of Error
C51: Total Households | D51: =CntyDataLinkPrior10YearEstimate!$T$132 -> 2042 | E51: =CntyDataLinkPrior10YearEstimate!$U$132 -> 117 | G51: =CntyDataLinkPrior5YearEstimates!$T$132 -> 2193 | H51: =CntyDataLinkPrior5YearEstimates!$U$132 -> 185 | J51: =CntyDataLink!$T$132 -> 2075 | K51: =CntyDataLink!$U$132 -> 179 | N51: =(J51-D51)/D51 -> 0.01616062684 | P51: =(J51-G51)/G51 -> -0.05380756954
C52: Persons per Household | D52: =CntyDataLinkPrior10YearEstimate!$BD$132 -> 2.480411361 | E52: =CntyDataLinkPrior10YearEstimate!$BE$132 -> 0.14 | G52: =CntyDataLinkPrior5YearEstimates!$BD$132 -> 2.400364797 | H52: =CntyDataLinkPrior5YearEstimates!$BE$132 -> 0.2 | J52: =CntyDataLink!$BD$132 -> 2.553253012 | K52: =CntyDataLink!$BE$132 -> 0.22 | N52: =(J52-D52)/D52 -> 0.02936676221 | P52: =(J52-G52)/G52 -> 0.06369374153
C53: Family Households | D53: =CntyDataLinkPrior10YearEstimate!$V$132 -> 1502 | E53: =CntyDataLinkPrior10YearEstimate!$U$132 -> 117 | G53: =CntyDataLinkPrior5YearEstimates!$V$132 -> 1469 | H53: =CntyDataLinkPrior5YearEstimates!$U$132 -> 185 | J53: =CntyDataLink!$V$132 -> 1661 | K53: =CntyDataLink!$U$132 -> 179 | N53: 0.1058588549 | P53: 0.1307011572
C54: Persons per Family Household | D54: =CntyDataLinkPrior10YearEstimate!$BF$132 -> 2.968708389 | E54: =CntyDataLinkPrior10YearEstimate!$BG$132 -> 0.2395543245 | G54: =CntyDataLinkPrior5YearEstimates!$BF$132 -> 2.976174268 | H54: =CntyDataLinkPrior5YearEstimates!$BG$132 -> 0.3065264195 | J54: =CntyDataLink!$BF$132 -> 2.901866346 | K54: =CntyDataLink!$BG$132 -> 0.2511308099 | N54: -0.02251553015 | P54: -0.02496759798
C55: Married-Couple Family Hh | D55: =CntyDataLinkPrior10YearEstimate!$X$132 -> 1357 | E55: =CntyDataLinkPrior10YearEstimate!$Y$132 -> 128 | G55: =CntyDataLinkPrior5YearEstimates!$X$132 -> 1148 | H55: =CntyDataLinkPrior5YearEstimates!$Y$132 -> 173 | J55: =CntyDataLink!$X$132 -> 1435 | K55: =CntyDataLink!$Y$132 -> 149 | N55: 0.05747973471 | P55: 0.25
C56: Single-Parent Family Hh | D56: =CntyDataLinkPrior10YearEstimate!$Z$132 -> 145 | E56: =CntyDataLinkPrior10YearEstimate!$AA$132 -> 78 | G56: =CntyDataLinkPrior5YearEstimates!$Z$132 -> 321 | H56: =CntyDataLinkPrior5YearEstimates!$AA$132 -> 145 | J56: =CntyDataLink!$Z$132 -> 226 | K56: =CntyDataLink!$AA$132 -> 136 | N56: 0.5586206897 | P56: -0.2959501558
C57: Non-Family Households | D57: =CntyDataLinkPrior10YearEstimate!$AF$132 -> 540 | E57: =CntyDataLinkPrior10YearEstimate!$AG$132 -> 146 | G57: =CntyDataLinkPrior5YearEstimates!$AF$132 -> 724 | H57: =CntyDataLinkPrior5YearEstimates!$AG$132 -> 218 | J57: =CntyDataLink!$AF$132 -> 414 | K57: =CntyDataLink!$AG$132 -> 155 | N57: -0.2333333333 | P57: -0.4281767956
C58: Persons per Non-Family Hh | D58: =CntyDataLinkPrior10YearEstimate!$BH$132 -> 1.122222222 | E58: =CntyDataLinkPrior10YearEstimate!$BI$132 -> 0.4332462795 | G58: =CntyDataLinkPrior5YearEstimates!$BH$132 -> 1.232044199 | H58: =CntyDataLinkPrior5YearEstimates!$BI$132 -> 0.5134467518 | J58: =CntyDataLink!$BH$132 -> 1.154589372 | K58: =CntyDataLink!$BI$132 -> 0.6096877016 | N58: 0.02884201464 | P58: -0.06286692229
B61: As a result of changes in the American Community Survey, direct comparisons between the data should be made with caution.
B63: Source: 2005-2009, 2010-2014, and 2015-2019 American Community Survey Table B11001
B64: POPULATION CHARACTERISTICS

Sheet SchoolEnrolEduAttain (hidden)
C2: =CntyDataLink!A50 -> Alton
C3: SOCIAL CHARACTERISTICS
C21: School Enrollment | F21: 2005-2009 | I21: 2010-2014 | L21: 2015-2019 | P21: Statistically Significant Change
F22: Estimate | G22: Margin of Error | H22: Percent of Population | I22: Estimate | J22: Margin of Error | K22: Percent of Population | L22: Estimate | M22: Margin of Error | N22: Percent of Population | P22: 2009-2019 | Q22: 2014-2019
C23: Population 3 years and over | F23: =CntyDataLinkPrior10YearEstimate!$B$140 -> 4905 | G23: =CntyDataLinkPrior10YearEstimate!$C$140 -> 88 | I23: =CntyDataLinkPrior5YearEstimates!$B$140 -> 5209 | J23: =CntyDataLinkPrior5YearEstimates!$C$140 -> 54 | L23: =CntyDataLink!$B$140 -> 5303 | M23: =CntyDataLink!$C$140 -> 23 | P23: =StatisticallySignificantCalcs!$A$45 -> Y | Q23: =StatisticallySignificantCalcs!$J$45 -> Y
C24: Population 3 years & over enrolled in school | F24: =CntyDataLinkPrior10YearEstimate!$D$140 -> 1151 | G24: =CntyDataLinkPrior10YearEstimate!$E$140 -> 231 | H24: =F24/$F$23 -> 0.2346585117 | I24: =CntyDataLinkPrior5YearEstimates!$D$140 -> 1046 | J24: =CntyDataLinkPrior5YearEstimates!$E$140 -> 228 | K24: =I24/$I$23 -> 0.2008062968 | L24: =CntyDataLink!$D$140 -> 1338 | M24: =CntyDataLink!$E$140 -> 223 | N24: =L24/$L$23 -> 0.2523100132 | P24: =StatisticallySignificantCalcs!$A$46 -> N | Q24: =StatisticallySignificantCalcs!$J$46 -> N
C25: Preprimary (Nursery, Preschool, Kindergarten) | F25: =CntyDataLinkPrior10YearEstimate!$F$140 -> 101 | G25: =CntyDataLinkPrior10YearEstimate!$G$140 -> 70 | H25: 0.02059123344 | I25: =CntyDataLinkPrior5YearEstimates!$F$140 -> 58 | J25: =CntyDataLinkPrior5YearEstimates!$G$140 -> 45.54119015 | K25: =I25/$I$23 -> 0.01113457477 | L25: =CntyDataLink!$F$140 -> 28 | M25: =CntyDataLink!$G$140 -> 49.64876635 | N25: 0.005280030172 | P25: =StatisticallySignificantCalcs!$A$47 -> N | Q25: =StatisticallySignificantCalcs!$J$47 -> N
C26: Nursery school and Preschool | F26: =CntyDataLinkPrior10YearEstimate!$H$140 -> 72 | G26: =CntyDataLinkPrior10YearEstimate!$I$140 -> 56 | H26: 0.01467889908 | I26: =CntyDataLinkPrior5YearEstimates!$H$140 -> 58 | J26: =CntyDataLinkPrior5YearEstimates!$I$140 -> 43 | K26: 0.01113457477 | L26: =CntyDataLink!$H$140 -> 28 | M26: =CntyDataLink!$I$140 -> 47 | N26: 0.005280030172 | P26: =StatisticallySignificantCalcs!$A$48 -> N | Q26: =StatisticallySignificantCalcs!$J$48 -> N
C27: Kindergarten | F27: =CntyDataLinkPrior10YearEstimate!$J$140 -> 29 | G27: =CntyDataLinkPrior10YearEstimate!$K$140 -> 42 | H27: 0.005912334353 | I27: =CntyDataLinkPrior5YearEstimates!$J$140 -> 0 | J27: =CntyDataLinkPrior5YearEstimates!$K$140 -> 15 | K27: 0 | L27: =CntyDataLink!$J$140 -> 0 | M27: =CntyDataLink!$K$140 -> 16 | N27: 0 | P27: =StatisticallySignificantCalcs!$A$49 -> N | Q27: =StatisticallySignificantCalcs!$J$49 -> N
C28: Elementary through High school | F28: =CntyDataLinkPrior10YearEstimate!$P$140 -> 898 | G28: =CntyDataLinkPrior10YearEstimate!$Q$140 -> 207.8220393 | H28: 0.1830784913 | I28: =CntyDataLinkPrior5YearEstimates!$P$140 -> 672 | J28: =CntyDataLinkPrior5YearEstimates!$Q$140 -> 204.1837408 | K28: 0.129007487 | L28: =CntyDataLink!$P$140 -> 1078 | M28: =CntyDataLink!$Q$140 -> 231.9073091 | N28: 0.2032811616 | P28: =StatisticallySignificantCalcs!$A$50 -> N | Q28: =StatisticallySignificantCalcs!$J$50 -> Y
C29: Elementary school (grades 1-8) | F29: =CntyDataLinkPrior10YearEstimate!$L$140 -> 504 | G29: =CntyDataLinkPrior10YearEstimate!$M$140 -> 143.8401891 | H29: 0.1027522936 | I29: =CntyDataLinkPrior5YearEstimates!$L$140 -> 418 | J29: =CntyDataLinkPrior5YearEstimates!$M$140 -> 176.3008792 | K29: 0.08024572855 | L29: =CntyDataLink!$L$140 -> 684 | M29: =CntyDataLink!$M$140 -> 176.0113633 | N29: 0.1289835942 | P29: =StatisticallySignificantCalcs!$A$51 -> N | Q29: =StatisticallySignificantCalcs!$J$51 -> Y
C30: High school (grades 9-12) | F30: =CntyDataLinkPrior10YearEstimate!$N$140 -> 394 | G30: =CntyDataLinkPrior10YearEstimate!$O$140 -> 150 | H30: 0.08032619776 | I30: =CntyDataLinkPrior5YearEstimates!$N$140 -> 254 | J30: =CntyDataLinkPrior5YearEstimates!$O$140 -> 103 | K30: 0.04876175849 | L30: =CntyDataLink!$N$140 -> 394 | M30: =CntyDataLink!$O$140 -> 151 | N30: 0.07429756741 | P30: =StatisticallySignificantCalcs!$A$52 -> N | Q30: =StatisticallySignificantCalcs!$J$52 -> N
C31: College or Graduate School | F31: =CntyDataLinkPrior10YearEstimate!$R$140 -> 152 | G31: =CntyDataLinkPrior10YearEstimate!$S$140 -> 89.18520057 | H31: 0.03098878695 | I31: =CntyDataLinkPrior5YearEstimates!$R$140 -> 316 | J31: =CntyDataLinkPrior5YearEstimates!$S$140 -> 152.7776162 | K31: 0.06066423498 | L31: =CntyDataLink!$R$140 -> 232 | M31: =CntyDataLink!$S$140 -> 123.458495 | N31: 0.04374882142 | P31: =StatisticallySignificantCalcs!$A$53 -> N | Q31: =StatisticallySignificantCalcs!$J$53 -> N
C33: ="Source: "&F21&", "& I21&" and "&L21&" American Community Survey Table B14001" -> Source: 2005-2009, 2010-2014 and 2015-2019 American Community Survey Table B14001
C50: Educational Attainment | F50: 2005-2009 | I50: 2010-2014 | L50: 2015.-2019 | P50: Statistically Significant Change
F51: Estimate | G51: Margin of Error | H51: Percent of Population | I51: Estimate | J51: Margin of Error | K51: Percent of Population | L51: Estimate | M51: Margin of Error | N51: Percent of Population | P51: 2009-2019 | Q51: 2014-2019
C52: Population 25 years and over | F52: =CntyDataLinkPrior10YearEstimate!$V$140 -> 3658 | G52: =CntyDataLinkPrior10YearEstimate!$W$140 -> 171 | I52: =CntyDataLinkPrior5YearEstimates!$V$140 -> 3797 | J52: =CntyDataLinkPrior5YearEstimates!$W$140 -> 234 | L52: =CntyDataLink!$V$140 -> 3891 | M52: =CntyDataLink!$W$140 -> 188 | P52: =StatisticallySignificantCalcs!A54 -> N | Q52: =StatisticallySignificantCalcs!$J$54 -> N
C53: Less than 9th Grade | F53: =CntyDataLinkPrior10YearEstimate!$X$140 -> 98 | G53: =CntyDataLinkPrior10YearEstimate!$Y$140 -> 208.8276802 | H53: =F53/$F$52 -> 0.02679059595 | I53: =CntyDataLinkPrior5YearEstimates!$X$140 -> 0 | J53: =CntyDataLinkPrior5YearEstimates!$Y$140 -> 36.74234614 | K53: =I53/$I$52 -> 0 | L53: =CntyDataLink!$X$140 -> 0 | M53: =CntyDataLink!$Y$140 -> 39.19183588 | N53: =L53/$L$52 -> 0 | P53: =StatisticallySignificantCalcs!A55 -> N | Q53: =StatisticallySignificantCalcs!$J$55 -> N
C54: 9th to 12th Grade, no Diploma | F54: =CntyDataLinkPrior10YearEstimate!$Z$140 -> 312 | G54: =CntyDataLinkPrior10YearEstimate!$AA$140 -> 197.2485741 | H54: =F54/$F$52 -> 0.08529250957 | I54: =CntyDataLinkPrior5YearEstimates!$Z$140 -> 157 | J54: =CntyDataLinkPrior5YearEstimates!$AA$140 -> 95.7810002 | K54: 0.04134843297 | L54: =CntyDataLink!$Z$140 -> 263 | M54: =CntyDataLink!$AA$140 -> 140.271166 | N54: 0.06759187869 | P54: =StatisticallySignificantCalcs!A56 -> N | Q54: =StatisticallySignificantCalcs!$J$56 -> N
C55: High School Graduate | F55: =CntyDataLinkPrior10YearEstimate!$AB$140 -> 1107 | G55: =CntyDataLinkPrior10YearEstimate!$AC$140 -> 216.4162656 | H55: 0.3026243849 | I55: =CntyDataLinkPrior5YearEstimates!$AB$140 -> 927 | J55: =CntyDataLinkPrior5YearEstimates!$AC$140 -> 225.3042388 | K55: 0.2441401106 | L55: =CntyDataLink!$AB$140 -> 836 | M55: =CntyDataLink!$AC$140 -> 185.0432382 | N55: 0.2148547931 | P55: =StatisticallySignificantCalcs!A57 -> N | Q55: =StatisticallySignificantCalcs!$J$57 -> N
C56: Some College, No Degree | F56: =CntyDataLinkPrior10YearEstimate!$AD$140 -> 798 | G56: =CntyDataLinkPrior10YearEstimate!$AE$140 -> 228.4075305 | H56: 0.2181519956 | I56: =CntyDataLinkPrior5YearEstimates!$AD$140 -> 920 | J56: =CntyDataLinkPrior5YearEstimates!$AE$140 -> 225.6213642 | K56: 0.2422965499 | L56: =CntyDataLink!$AD$140 -> 879 | M56: =CntyDataLink!$AE$140 -> 215.6153983 | N56: 0.2259059368 | P56: =StatisticallySignificantCalcs!A58 -> N | Q56: =StatisticallySignificantCalcs!$J$58 -> N
C57: Associate Degree | F57: =CntyDataLinkPrior10YearEstimate!$AF$140 -> 374 | G57: =CntyDataLinkPrior10YearEstimate!$AG$140 -> 140.2640367 | H57: 0.1022416621 | I57: =CntyDataLinkPrior5YearEstimates!$AF$140 -> 612 | J57: =CntyDataLinkPrior5YearEstimates!$AG$140 -> 166.0120478 | K57: 0.1611798789 | L57: =CntyDataLink!$AF$140 -> 573 | M57: =CntyDataLink!$AG$140 -> 189.4967018 | N57: 0.1472629144 | P57: =StatisticallySignificantCalcs!A59 -> N | Q57: =StatisticallySignificantCalcs!$J$59 -> N
C58: Bachelor's Degree | F58: =CntyDataLinkPrior10YearEstimate!$AH$140 -> 689 | G58: =CntyDataLinkPrior10YearEstimate!$AI$140 -> 177.2822608 | H58: 0.188354292 | I58: =CntyDataLinkPrior5YearEstimates!$AH$140 -> 833 | J58: =CntyDataLinkPrior5YearEstimates!$AI$140 -> 217.1750446 | K58: 0.219383724 | L58: =CntyDataLink!$AH$140 -> 721 | M58: =CntyDataLink!$AI$140 -> 203.7694776 | N58: 0.1852994089 | P58: =StatisticallySignificantCalcs!A60 -> N | Q58: =StatisticallySignificantCalcs!$J$60 -> N
C59: Graduate or Professional Degree | F59: =CntyDataLinkPrior10YearEstimate!$AJ$140 -> 197 | G59: =CntyDataLinkPrior10YearEstimate!$AK$140 -> 95.29428105 | H59: 0.05385456534 | I59: =CntyDataLinkPrior5YearEstimates!$AJ$140 -> 333 | J59: =CntyDataLinkPrior5YearEstimates!$AK$140 -> 142.5973352 | K59: 0.08770081643 | L59: =CntyDataLink!$AJ$140 -> 605 | M59: =CntyDataLink!$AK$140 -> 207.9038239 | N59: 0.1554870213 | P59: =StatisticallySignificantCalcs!A61 -> Y | Q59: =StatisticallySignificantCalcs!$J$61 -> Y
C61: Percent of High School Graduate or Higher | H61: =SUM(F55:F59)/F52 -> 0.8652268999 | K61: =SUM(I55:I59)/I52 -> 0.9547010798 | N61: =SUM(L55:L59)/L52 -> 0.9288100745
C62: Percent of Bachelor's Degree or Higher | H62: =SUM(F58:F59)/F52 -> 0.2422088573 | K62: =SUM(I58:I59)/I52 -> 0.3070845404 | N62: =SUM(L58:L59)/L52 -> 0.3407864302
C64: ="Source: "&F21&", "&I21&" and "&L21&" American Community Survey Table B15002" -> Source: 2005-2009, 2010-2014 and 2015-2019 American Community Survey Table B15002 | H64: Data from the American Community Survey are estimates

Sheet HousingCharacteristics (hidden)
B2: =CntyDataLink!$A35 -> Alton
B4: HOUSING CHARACTERISTICS
D27: ="Source: "& " "&D69&", "&G69&" and "&J69& " American Community Survey Table B25024; B25032" -> Source: 2005-2009, 2010-2014 and 2015-2019 American Community Survey Table B25024; B25032
B28: Units by Tenure & Vacancy
C30: 2005-2009 | F30: 2010-2014 | I30: 2015-2019 | L30: Percent Change | O30: Statistically Significant Change
C31: Estimate | D31: Margin of Error | E31: % | F31: Estimate | G31: Margin of Error | H31: % | I31: Estimate | J31: Margin of Error | K31: % | L31: 2009-2019 | M31: 2014-2019 | O31: 2009-2019 | P31: 2014-2019
B32: Total Units | C32: =CntyDataLinkPrior10YearEstimate!$B$108 -> 3949 | D32: =CntyDataLinkPrior5YearEstimates!$C$108 -> 248 | F32: =CntyDataLinkPrior5YearEstimates!$B$108 -> 4439 | G32: =CntyDataLinkPrior5YearEstimates!$C$108 -> 248 | I32: =CntyDataLink!$B$108 -> 4424 | J32: =CntyDataLink!$C$108 -> 228 | L32: =IF(I32="-","-",(I32-C32)/C32) -> 0.1202836161 | M32: =IF(I32="-","-",(I32-F32)/F32) -> -0.003379139446 | O32: =StatisticallySignificantCalcs!$A62 -> Y | P32: =StatisticallySignificantCalcs!$J62 -> N
B33: Occupied Units | C33: =CntyDataLinkPrior10YearEstimate!$D$108 -> 2042 | D33: =CntyDataLinkPrior5YearEstimates!$E$108 -> 185 | E33: =ROUND(C33/C32,2)*100&"% of Total" -> 52% of Total | F33: =CntyDataLinkPrior5YearEstimates!$D$108 -> 2193 | G33: =CntyDataLinkPrior5YearEstimates!$E$108 -> 185 | H33: =ROUND(F33/F32,2)*100&"% of Total" -> 49% of Total | I33: =CntyDataLink!$D$108 -> 2075 | J33: =CntyDataLink!$E$108 -> 179 | K33: =ROUND(I33/I32,2)*100&"% of Total" -> 47% of Total | L33: =IF(I33="-","-",(I33-C33)/C33) -> 0.01616062684 | M33: -0.05380756954 | O33: =StatisticallySignificantCalcs!$A63 -> N | P33: =StatisticallySignificantCalcs!$J63 -> N
B34: Owner Occupied | C34: =CntyDataLinkPrior10YearEstimate!$F$108 -> 1723 | D34: =CntyDataLinkPrior5YearEstimates!$G$108 -> 235 | E34: =ROUND(C34/C33,2)*100&"% of Occ." -> 84% of Occ. | F34: =CntyDataLinkPrior5YearEstimates!$F$108 -> 1760 | G34: =CntyDataLinkPrior5YearEstimates!$G$108 -> 235 | H34: =ROUND(F34/F33,2)*100&"% of Occ." -> 80% of Occ. | I34: =CntyDataLink!$F$108 -> 1878 | J34: =CntyDataLink!$G$108 -> 179 | K34: =ROUND(I34/I33,2)*100&"% of Occ." -> 91% of Occ. | L34: =IF(I34="-","-",(I34-C34)/C34) -> 0.08995937319 | M34: 0.06704545455 | O34: =StatisticallySignificantCalcs!$A64 -> N | P34: =StatisticallySignificantCalcs!$J64 -> N
B35: Renter Occupied | C35: =CntyDataLinkPrior10YearEstimate!$H$108 -> 319 | D35: =CntyDataLinkPrior5YearEstimates!$I$108 -> 169 | E35: =ROUND(C35/C33,2)*100&"% of Occ." -> 16% of Occ. | F35: =CntyDataLinkPrior5YearEstimates!$H$108 -> 433 | G35: =CntyDataLinkPrior5YearEstimates!$I$108 -> 169 | H35: =ROUND(F35/F33,2)*100&"% of Occ." -> 20% of Occ. | I35: =CntyDataLink!$H$108 -> 197 | J35: =CntyDataLink!$I$108 -> 129 | K35: =ROUND(I35/I33,2)*100&"% of Occ." -> 9% of Occ. | L35: =IF(I35="-","-",(I35-C35)/C35) -> -0.3824451411 | M35: -0.545034642 | O35: =StatisticallySignificantCalcs!$A65 -> N | P35: =StatisticallySignificantCalcs!$J65 -> Y
B36: Vacant Units | C36: =CntyDataLinkPrior10YearEstimate!$J$108 -> 1907 | D36: =CntyDataLinkPrior5YearEstimates!$K$108 -> 234 | E36: =ROUND(C36/C32,2)*100&"% of Total" -> 48% of Total | F36: =CntyDataLinkPrior5YearEstimates!$J$108 -> 2246 | G36: =CntyDataLinkPrior5YearEstimates!$K$108 -> 234 | H36: =ROUND(F36/F32,2)*100&"% of Total" -> 51% of Total | I36: =CntyDataLink!$J$108 -> 2349 | J36: =CntyDataLink!$K$108 -> 257 | K36: =ROUND(I36/I32,2)*100&"% of Total" -> 53% of Total | L36: =IF(I36="-",I36,VALUE((I36-C36)/C36)) -> 0.2317776612 | M36: 0.04585930543 | O36: =StatisticallySignificantCalcs!$A66 -> Y | P36: =StatisticallySignificantCalcs!$J66 -> N
B37: Vacant For Sale | C37: =CntyDataLinkPrior10YearEstimate!$P$108 -> 0 | D37: =CntyDataLinkPrior5YearEstimates!$Q$108 -> 98 | E37: =ROUND(C37/(C34+C37),3)*100&"% Vac." -> 0% Vac. | F37: =CntyDataLinkPrior5YearEstimates!$P$108 -> 97 | G37: =CntyDataLinkPrior5YearEstimates!$Q$108 -> 98 | H37: =ROUND(F37/(F34+F37),3)*100&"% Vac." -> 5.2% Vac. | I37: =CntyDataLink!$P$108 -> 0 | J37: =CntyDataLink!$Q$108 -> 16 | K37: =ROUND(I37/(I34+I37),3)*100&"% Vac." -> 0% Vac. | L37: =IF(I37="-",I37,VALUE((I37-C37)/C37)) ->  | M37: -1 | O37: =StatisticallySignificantCalcs!$A67 -> N | P37: =StatisticallySignificantCalcs!$J67 -> N
B38: Vacant For Rent | C38: =CntyDataLinkPrior10YearEstimate!$L$108 -> 16 | D38: =CntyDataLinkPrior5YearEstimates!$M$108 -> 80 | E38: =ROUND(C38/(C35+C38),3)*100&"% Vac." -> 4.8% Vac. | F38: =CntyDataLinkPrior5YearEstimates!$L$108 -> 71 | G38: =CntyDataLinkPrior5YearEstimates!$M$108 -> 80 | H38: =ROUND(F38/(F35+F38),3)*100&"% Vac." -> 14.1% Vac. | I38: =CntyDataLink!$L$108 -> 0 | J38: =CntyDataLink!$M$108 -> 16 | K38: =ROUND(I38/(I35+I38),3)*100&"% Vac." -> 0% Vac. | L38: =IF(I38="-",I38,VALUE((I38-C38)/C38)) -> -1 | M38: -1 | O38: =StatisticallySignificantCalcs!$A68 -> N | P38: =StatisticallySignificantCalcs!$J68 -> N
B39: Vacant Seasonal | C39: =CntyDataLinkPrior10YearEstimate!$T$108 -> 1861 | D39: =CntyDataLinkPrior5YearEstimates!$U$108 -> 210 | E39: =ROUND(C39/C32,2)*100&"% of Total" -> 47% of Total | F39: =CntyDataLinkPrior5YearEstimates!$T$108 -> 1973 | G39: =CntyDataLinkPrior5YearEstimates!$U$108 -> 210 | H39: =ROUND(F39/F32,2)*100&"% of Total" -> 44% of Total | I39: =CntyDataLink!$T$108 -> 2253 | J39: =CntyDataLink!$U$108 -> 248 | K39: =ROUND(I39/I32,2)*100&"% of Total" -> 51% of Total | L39: =IF(I39="-",I39,VALUE((I39-C39)/C39)) -> 0.2106394412 | M39: 0.1419158642 | O39: =StatisticallySignificantCalcs!$A69 -> Y | P39: =StatisticallySignificantCalcs!$J69 -> N
B41: Data from the American Community Survey are estimates
B44: HOUSING CHARACTERISTICS
D65: ="Source: "& " "&D69&", "&G69&" and "&J69& " American Community Survey Table B25024; B25032" -> Source: 2005-2009, 2010-2014 and 2015-2019 American Community Survey Table B25024; B25032
C67: Units by Type
D69: 2005-2009 | G69: 2010-2014 | J69: 2015-2019 | M69: Percent Change | O69: Statistically Significant Change
D70: Estimate | E70: Margin of Error | F70: % of Total | G70: Estimate | H70: Margin of Error | I70: % of Total | J70: Estimate | K70: Margin of Error | L70: % of Total | M70: 2009-2019 | N70: 2014-2019 | O70: 2009-2019 | P70: 2014-2019
C71: Total Units | D71: =CntyDataLinkPrior10YearEstimate!$B$108 -> 3949 | E71: =CntyDataLinkPrior10YearEstimate!$C$108 -> 217 | G71: =CntyDataLinkPrior5YearEstimates!$B$108 -> 4439 | H71: =CntyDataLinkPrior5YearEstimates!$C$108 -> 248 | J71: =CntyDataLink!$B$108 -> 4424 | K71: =CntyDataLink!$C$108 -> 228 | O71: =StatisticallySignificantCalcs!$A70 -> Y | P71: =StatisticallySignificantCalcs!$J70 -> N
C72: Single Family Units | D72: =CntyDataLinkPrior10YearEstimate!$AT$108 -> 3473 | E72: =CntyDataLinkPrior10YearEstimate!$AU$108 -> 211 | F72: =IF(D72="-","-",($D$72/$D$71)) -> 0.8794631552 | G72: =CntyDataLinkPrior5YearEstimates!$AT$108 -> 3835 | H72: =CntyDataLinkPrior5YearEstimates!$AU$108 -> 258 | I72: =IF(G72="-","-",($G$72/$G$71)) -> 0.8639333183 | J72: =CntyDataLink!$AT$108 -> 3943 | K72: =CntyDataLink!$AU$108 -> 274 | L72: =IF(J72="-","-",($J$72/$J$71)) -> 0.8912748644 | M72: =IF(J72="-","-",($J72-$D72)/$D72) -> 0.1353296862 | N72: =IF(J72="-","-",($J72-$G72)/$G72) -> 0.02816166884 | O72: =StatisticallySignificantCalcs!$A71 -> Y | P72: =StatisticallySignificantCalcs!$J71 -> N
C73: SF Owner Occ. | D73: =CntyDataLinkPrior10YearEstimate!$AF$108 -> 1550 | E73: =CntyDataLinkPrior10YearEstimate!$AG$108 -> 160 | G73: =CntyDataLinkPrior5YearEstimates!$AF$108 -> 1671 | H73: =CntyDataLinkPrior5YearEstimates!$AG$108 -> 230 | J73: =CntyDataLink!$AF$108 -> 1677 | K73: =CntyDataLink!$AG$108 -> 177 | O73: =StatisticallySignificantCalcs!$A72 -> N | P73: =StatisticallySignificantCalcs!$J72 -> N
C74: SF Renter Occ. | D74: =CntyDataLinkPrior10YearEstimate!$AN$108 -> 130 | E74: =CntyDataLinkPrior10YearEstimate!$AO$108 -> 78 | G74: =CntyDataLinkPrior5YearEstimates!$AN$108 -> 216 | H74: =CntyDataLinkPrior5YearEstimates!$AO$108 -> 133 | J74: =CntyDataLink!$AN$108 -> 103 | K74: =CntyDataLink!$AO$108 -> 96 | O74: =StatisticallySignificantCalcs!$A73 -> N | P74: =StatisticallySignificantCalcs!$J73 -> N
C75: Multi-family Units | D75: =CntyDataLinkPrior10YearEstimate!$AV$108 -> 237 | E75: =CntyDataLinkPrior10YearEstimate!$AW$108 -> 199.6747355 | F75: =IF(D75="-","-",$D$75/$D$71) -> 0.06001519372 | G75: =CntyDataLinkPrior5YearEstimates!$AV$108 -> 274 | H75: =CntyDataLinkPrior5YearEstimates!$AW$108 -> 156.9331068 | I75: =IF(G75="-","-",$G$75/$G$71) -> 0.06172561388 | J75: =CntyDataLink!$AV$108 -> 259 | K75: =CntyDataLink!$AW$108 -> 161.0807251 | L75: =IF(J75="-","-",$J$75/$J$71) -> 0.0585443038 | M75: =IF(J75="-","-",($J75-$D75)/$D75) -> 0.09282700422 | N75: =IF(J75="-","-",($J75-$G75)/$G75) -> -0.05474452555 | O75: =StatisticallySignificantCalcs!$A74 -> N | P75: =StatisticallySignificantCalcs!$J74 -> N
C76: MF Owner Occ. | D76: =CntyDataLinkPrior10YearEstimate!$AH$108 -> 61 | E76: =CntyDataLinkPrior10YearEstimate!$AI$108 -> 236.1736649 | G76: =CntyDataLinkPrior5YearEstimates!$AH$108 -> 28 | H76: =CntyDataLinkPrior5YearEstimates!$AI$108 -> 50.05996404 | J76: =CntyDataLink!$AH$108 -> 20 | K76: =CntyDataLink!$AI$108 -> 51.23475383 | O76: =StatisticallySignificantCalcs!$A75 -> N | P76: =StatisticallySignificantCalcs!$J75 -> N
C77: MF Renter Occ. | D77: =CntyDataLinkPrior10YearEstimate!$AP$108 -> 150 | E77: =CntyDataLinkPrior10YearEstimate!$AQ$108 -> 188.7670522 | G77: =CntyDataLinkPrior5YearEstimates!$AP$108 -> 162 | H77: =CntyDataLinkPrior5YearEstimates!$AQ$108 -> 121.6264774 | J77: =CntyDataLink!$AP$108 -> 94 | K77: =CntyDataLink!$AQ$108 -> 105.0380883 | O77: =StatisticallySignificantCalcs!$A76 -> N | P77: =StatisticallySignificantCalcs!$J76 -> N
C78: Mobile Home & Other | D78: =CntyDataLinkPrior10YearEstimate!$AX$108 -> 239 | E78: =CntyDataLinkPrior10YearEstimate!$AY$108 -> 147.122398 | F78: =IF(D78="-","-",($D$78/$D$71)) -> 0.06052165105 | G78: =CntyDataLinkPrior5YearEstimates!$AX$108 -> 330 | H78: =CntyDataLinkPrior5YearEstimates!$AY$108 -> 178.6309044 | I78: =IF(G78="-","-",($G$78/$G$71)) -> 0.07434106781 | J78: =CntyDataLink!$AX$108 -> 222 | K78: =CntyDataLink!$AY$108 -> 128.996124 | L78: =IF(J78="-","-",($J$78/$J$71)) -> 0.05018083183 | M78: =IF(J78="-","-",($J78-$D78)/$D78) -> -0.07112970711 | N78: =IF(J78="-","-",($J78-$G78)/$G78) -> -0.3272727273 | O78: =StatisticallySignificantCalcs!$A77 -> N | P78: =StatisticallySignificantCalcs!$J77 -> N
B80: Data from the American Community Survey are estimates
B83: Units by Number of Bedrooms
D84: ="Source: "& " "&D69&", "&G69&" and "&J69& " American Community Survey Table B25041" -> Source: 2005-2009, 2010-2014 and 2015-2019 American Community Survey Table B25041
C86: 2005-2009 | G86: 2010-2014 | K86: 2015-2019 | O86: Statistically Significant Change
B87: Bedrooms | C87: Estimate | D87: Margin of Error | E87: % of Total | G87: Estimate | H87: Margin of Error | I87: % of Total | K87: Estimate | L87: Margin of Error | M87: % of Total | O87: 2009-2019 | P87: 2014-2019
B88: No Bedrooms | C88: =CntyDataLinkPrior10YearEstimate!$BR$108 -> 75 | D88: =CntyDataLinkPrior10YearEstimate!$BS$108 -> 61 | E88: =C88/SUM($C$88:$C$92) -> 0.01899214991 | G88: =CntyDataLinkPrior5YearEstimates!$BR$108 -> 235 | H88: =CntyDataLinkPrior5YearEstimates!$BS$108 -> 152 | I88: =G88/SUM($G$88:$G$92) -> 0.05293985132 | K88: =CntyDataLink!$BT$108 -> 201 | L88: =CntyDataLink!$BU$108 -> 143 | M88: =K88/SUM($K$88:$K$92) -> 0.04617505169 | O88: =StatisticallySignificantCalcs!$A78 -> N | P88: =StatisticallySignificantCalcs!$J78 -> N
B89: 1 Bedroom | C89: =CntyDataLinkPrior10YearEstimate!$BT$108 -> 166 | D89: =CntyDataLinkPrior10YearEstimate!$BU$108 -> 90 | E89: =C89/SUM($C$88:$C$92) -> 0.04203595847 | G89: =CntyDataLinkPrior5YearEstimates!$BT$108 -> 390 | H89: =CntyDataLinkPrior5YearEstimates!$BU$108 -> 180 | I89: =G89/SUM($G$88:$G$92) -> 0.08785762559 | K89: =CntyDataLink!$BV$108 -> 358 | L89: =CntyDataLink!$BW$108 -> 191 | M89: =K89/SUM($K$88:$K$92) -> 0.08224213186 | O89: =StatisticallySignificantCalcs!$A79 -> Y | P89: =StatisticallySignificantCalcs!$J79 -> N
B90: 2 Bedrooms | C90: =CntyDataLinkPrior10YearEstimate!$BV$108 -> 1191 | D90: =CntyDataLinkPrior10YearEstimate!$BW$108 -> 189 | E90: =C90/SUM($C$88:$C$92) -> 0.3015953406 | G90: =CntyDataLinkPrior5YearEstimates!$BV$108 -> 1094 | H90: =CntyDataLinkPrior5YearEstimates!$BW$108 -> 277 | I90: =G90/SUM($G$88:$G$92) -> 0.2464519036 | K90: =CntyDataLink!$BX$108 -> 1222 | L90: =CntyDataLink!$BY$108 -> 226 | M90: =K90/SUM($K$88:$K$92) -> 0.2807259361 | O90: =StatisticallySignificantCalcs!$A80 -> Y | P90: =StatisticallySignificantCalcs!$J80 -> N
B91: 3 Bedrooms | C91: =CntyDataLinkPrior10YearEstimate!$BX$108 -> 1842 | D91: =CntyDataLinkPrior10YearEstimate!$BY$108 -> 248 | E91: =C91/SUM($C$88:$C$92) -> 0.4664472018 | G91: =CntyDataLinkPrior5YearEstimates!$BX$108 -> 1992 | H91: =CntyDataLinkPrior5YearEstimates!$BY$108 -> 327 | I91: =G91/SUM($G$88:$G$92) -> 0.4487497184 | K91: =CntyDataLink!$BZ$108 -> 1882 | L91: =CntyDataLink!$CA$108 -> 305 | M91: =K91/SUM($K$88:$K$92) -> 0.4323455088 | O91: =StatisticallySignificantCalcs!$A81 -> Y | P91: =StatisticallySignificantCalcs!$J81 -> N
B92: 4+ Bedrooms | C92: =CntyDataLinkPrior10YearEstimate!$BZ$108 -> 675 | D92: =CntyDataLinkPrior10YearEstimate!$CA$108 -> 170.5520448 | E92: =C92/SUM($C$88:$C$92) -> 0.1709293492 | G92: =CntyDataLinkPrior5YearEstimates!$BZ$108 -> 728 | H92: =CntyDataLinkPrior5YearEstimates!$CA$108 -> 221.2057865 | I92: =G92/SUM($G$88:$G$92) -> 0.1640009011 | K92: =CntyDataLink!$CB$108 -> 690 | L92: =CntyDataLink!$CC$108 -> 239.8707986 | M92: =K92/SUM($K$88:$K$92) -> 0.1585113715 | O92: =StatisticallySignificantCalcs!$A82 -> Y | P92: =StatisticallySignificantCalcs!$J82 -> N
B94: As a result of changes in the American Community Survey, direct comparisons between the 2009-2013 and 2015-2019 data should be made with caution.
B95: Data from the American Community Survey are estimates
B97: Units by Year Built
B98: ="Source: "&K86& " American Community Survey Table B25034" -> Source: 2015-2019 American Community Survey Table B25034
D100: Year Built | G100: Units | I100: % of Total | K100: Margin of Error
F101: 2014 or later | G101: =CntyDataLink!$AZ$108 -> 86 | I101: =G101/SUM($G$101:$G$110) -> 0.01943942134 | K101: =CntyDataLink!$BA$108 -> 63
F102: 2010 through 2013 | G102: =CntyDataLink!$BB$108 -> 56 | I102: 0.01265822785 | K102: =CntyDataLink!$BC$108 -> 52
F103: 2000 through 2009 | G103: =CntyDataLink!$BD$108 -> 1030 | I103: 0.2328209765 | K103: =CntyDataLink!$BE$108 -> 284
F104: 1990 through 1999 | G104: =CntyDataLink!$BF$108 -> 462 | I104: 0.1044303797 | K104: =CntyDataLink!$BG$108 -> 183
F105: 1980 through 1989 | G105: =CntyDataLink!$BH$108 -> 734 | I105: 0.1659132007 | K105: =CntyDataLink!$BI$108 -> 231
F106: 1970 through 1979 | G106: =CntyDataLink!$BJ$108 -> 683 | I106: 0.1543851718 | K106: =CntyDataLink!$BK$108 -> 213
F107: 1960 through 1969 | G107: =CntyDataLink!$BL$108 -> 638 | I107: 0.1442133816 | K107: =CntyDataLink!$BM$108 -> 251
F108: 1950 through 1959 | G108: =CntyDataLink!$BN$108 -> 267 | I108: 0.06035262206 | K108: =CntyDataLink!$BO$108 -> 133
F109: 1940 through 1949 | G109: =CntyDataLink!$BP$108 -> 168 | I109: 0.03797468354 | K109: =CntyDataLink!$BQ$108 -> 137
F110: 1939 and earlier | G110: =CntyDataLink!$BR$108 -> 300 | I110: 0.0678119349 | K110: =CntyDataLink!$BS$108 -> 140
B112: Data from the American Community Survey are estimates

Sheet CntyQuery (hidden)
A2: Census 1990 Data - Query Name: DPCnty90Census
A3: NAME | B3: FIPS | C3: COUSUBFP | D3: LandAcres | E3: WaterAcres | F3: HousingUnits90Cen | G3: Persons90Cen | H3: Families90Cen | I3: Households90cen | J3: MalePop90cen | K3: FemalePop90cen | L3: WhitePop | M3: BlackPop | N3: AmerIndianPop | O3: AsianPIPop | P3: OtherRacePop | Q3: HispanicOrPop | R3: AgeUnder15_90cen | S3: Age15to24_90cen | T3: Age25to34_90cen | U3: Age35to44_90cen | V3: Age45to54_90cen | W3: Age55to64_90cen | X3: Age65to74_90cen | Y3: Age75andOver_90cen | Z3: PersonsInHH90cen | AA3: PersonsInFamHH90cen | AB3: PersonsInGC | AC3: PersonsPerHH90cen | AD3: PersonsPerFam90Cen | AE3: SinglePersonHH90cen | AF3: MarriedCoupleHH90cen | AG3: SingleParentHH90cen | AH3: NonFamilyHH90cen | AI3: TotalHousingUnits | AJ3: OccupiedHousingUnits | AK3: VacantHousingUnits | AL3: OwnerOccHU | AM3: RenterOccHU | AN3: VacantForRent90 | AO3: VacantForSale90 | AP3: VacantSeasonalRec | AQ3: SingFamHU90cen | AR3: MultiFamHU90cen | AS3: MobileHom90cen | AT3: SingFamOwnHU90cen | AU3: MultiFamOwnHU90cen | AV3: MobileHomOwnHU90cen | AW3: SingFamRntrHU90cen | AX3: MultiFamRntrHU90cen | AY3: MobileHomRntrHU90cen | AZ3: HU<5yrs90cen | BA3: HU5to20yrs90cen | BB3: HU20to50yrs90cen | BC3: HU>50yrs90cen | BD3: Units0Bedroom90cen | BE3: Units1Bedroom90cen | BF3: Units2Bedroom90cen | BG3: Units3Bedroom90cen | BH3: Units4+Bedroom90cen | BI3: HI<5K | BJ3: HI5Kto10K | BK3: HI10Kto15K | BL3: HI15Kto25K | BM3: HI25Kto35K | BN3: HI35Kto50K | BO3: HI50Kto75K | BP3: HI75Kto100K | BQ3: HI>100K | BR3: MedHI | BS3: HH<25HI<5K | BT3: HH<25HI5Kto10K | BU3: HH<25HI10Kto15K | BV3: HH<25HI15Kto25K | BW3: HH<25HI25Kto35K | BX3: HH<25HI35Kto50K | BY3: HH<25HI50Kto75K | BZ3: HH<25HI75Kto100K | CA3: HH<25HI>100K | CB3: HH25to34HI<5K | CC3: HH25to34HI5Kto10K | CD3: HH25to34HI10Kto15K | CE3: HH25to34HI15Kto25K | CF3: HH25to34HI25Kto35K | CG3: HH25to34HI35Kto50K | CH3: HH25to34HI50Kto75K | CI3: HH25to34HI75Kto100K | CJ3: HH25to34HI>100K | CK3: HH35to44HI<5K | CL3: HH35to44HI5Kto10K | CM3: HH35to44HI10Kto15K | CN3: HH35to44HI15Kto25K | CO3: HH35to44HI25Kto35K | CP3: HH35to44HI35Kto50K | CQ3: HH35to44HI50Kto75K | CR3: HH35to44HI75Kto100K | CS3: HH35to44HI>100K | CT3: HH45to54HI<5K | CU3: HH45to54HI5Kto10K | CV3: HH45to54HI10Kto15K | CW3: HH45to54HI15Kto25K | CX3: HH45to54HI25Kto35K | CY3: HH45to54HI35Kto50K | CZ3: HH45to54HI50Kto75K | DA3: HH45to54HI75Kto100K | DB3: HH45to54HI>100K | DC3: HH55to64HI<5K | DD3: HH55to64HI5Kto10K | DE3: HH55to64HI10Kto15K | DF3: HH55to64HI15Kto25K | DG3: HH55to64HI25Kto35K | DH3: HH55to64HI35Kto50K | DI3: HH55to64HI50Kto75K | DJ3: HH55to64HI75Kto100K | DK3: HH55to64HI>100K | DL3: HH65to74HI<5K | DM3: HH65to74HI5Kto10K | DN3: HH65to74HI10Kto15K | DO3: HH65to74HI15Kto25K | DP3: HH65to74HI25Kto35K | DQ3: HH65to74HI35Kto50K | DR3: HH65to74HI50Kto75K | DS3: HH65to74HI75Kto100K | DT3: HH65to74HI>100K | DU3: HH>75HI<5K | DV3: HH>75HI5Kto10K | DW3: HH>75HI10Kto15K | DX3: HH>75HI15Kto25K | DY3: HH>75HI25Kto35K | DZ3: HH>75HI35Kto50K | EA3: HH>75HI50Kto75K | EB3: HH>75HI75Kto100K | EC3: HH>75HI>100K | ED3: SchoolEnrollment1thru12 | EE3: Pop25andOver | EF3: HSGradorHigher | EG3: CollGradorHigher | EH3: NativePop | EI3: ForeignBornPop | EJ3: BornStateOfRes | EK3: NativePop2 | EL3: ForeignBornPop2 | EM3: DroveAlone | EN3: CarPooled | EO3: PublicTranspt | EP3: Walked | EQ3: OtherMeans | ER3: WorkedAtHome | ES3: HHInc<10K | ET3: HHInc10to15K | EU3: HHInc15to25K | EV3: HHInc25to35K | EW3: HHInc35to50K | EX3: HHInc50to75K | EY3: HHInc75to100K | EZ3: HHInc100to150K | FA3: HHInc>150K | FB3: YearStBlt89to90 | FC3: YearStBlt85to88 | FD3: YearStBlt80to84 | FE3: YearStBlt70to79 | FF3: YearStBlt60to69 | FG3: YearStBlt50to59 | FH3: YearStBlt40to49 | FI3: YearStBlt39earlier | FJ3: PlaceTownIDNumber
A4: CountyName | B4: Cnty_Code | C4: Census_Cnty_Code | D4: LandAcres | E4: WaterAcres | F4: HousingUnits90Cen | G4: Persons90Cen | H4: Families90Cen | I4: Households90cen | J4: MalePop90cen | K4: FemalePop90cen | L4: WhitePop | M4: BlackPop | N4: AmerIndianPop | O4: AsianPIPop | P4: OtherRacePop | Q4: HispanicOrPop | R4: AgeUnder15_90cen | S4: Age15to24_90cen | T4: Age25to34_90cen | U4: Age35to44_90cen | V4: Age45to54_90cen | W4: Age55to64_90cen | X4: Age65to74_90cen | Y4: Age75andOver_90cen | Z4: PersonsInHH90cen | AA4: PersonsInFamHH90cen | AB4: PersonsInGC | AC4: PersonsPerHH90cen | AD4: PersonsPerFam90Cen | AE4: SinglePersonHH90cen | AF4: MarriedCoupleHH90cen | AG4: SingleParentHH90cen | AH4: NonFamilyHH90cen | AI4: TotalHousingUnits | AJ4: OccupiedHousingUnits | AK4: VacantHousingUnits | AL4: OwnerOccHU | AM4: RenterOccHU | AN4: VacantForRent90 | AO4: VacantForSale90 | AP4: VacantSeasonalRec | AQ4: SingFamHU90cen | AR4: MultiFamHU90cen | AS4: MobileHom90cen | AT4: SingFamOwnHU90cen | AU4: MultiFamOwnHU90cen | AV4: MobileHomOwnHU90cen | AW4: SingFamRntrHU90cen | AX4: MultiFamRntrHU90cen | AY4: MobileHomRntrHU90cen | AZ4: HU<5yrs90cen | BA4: HU5to20yrs90cen | BB4: HU20to50yrs90cen | BC4: HU>50yrs90cen | BD4: Units0Bedroom90cen | BE4: Units1Bedroom90cen | BF4: Units2Bedroom90cen | BG4: Units3Bedroom90cen | BH4: Units4+Bedroom90cen | BI4: HI<5K | BJ4: HI5Kto10K | BK4: HI10Kto15K | BL4: HI15Kto25K | BM4: HI25Kto35K | BN4: HI35Kto50K | BO4: HI50Kto75K | BP4: HI75Kto100K | BQ4: HI>100K | BR4: MedHI | BS4: HH<25HI<5K | BT4: HH<25HI5Kto10K | BU4: HH<25HI10Kto15K | BV4: HH<25HI15Kto25K | BW4: HH<25HI25Kto35K | BX4: HH<25HI35Kto50K | BY4: HH<25HI50Kto75K | BZ4: HH<25HI75Kto100K | CA4: HH<25HI>100K | CB4: HH25to34HI<5K | CC4: HH25to34HI5Kto10K | CD4: HH25to34HI10Kto15K | CE4: HH25to34HI15Kto25K | CF4: HH25to34HI25Kto35K | CG4: HH25to34HI35Kto50K | CH4: HH25to34HI50Kto75K | CI4: HH25to34HI75Kto100K | CJ4: HH25to34HI>100K | CK4: HH35to44HI<5K | CL4: HH35to44HI5Kto10K | CM4: HH35to44HI10Kto15K | CN4: HH35to44HI15Kto25K | CO4: HH35to44HI25Kto35K | CP4: HH35to44HI35Kto50K | CQ4: HH35to44HI50Kto75K | CR4: HH35to44HI75Kto100K | CS4: HH35to44HI>100K | CT4: HH45to54HI<5K | CU4: HH45to54HI5Kto10K | CV4: HH45to54HI10Kto15K | CW4: HH45to54HI15Kto25K | CX4: HH45to54HI25Kto35K | CY4: HH45to54HI35Kto50K | CZ4: HH45to54HI50Kto75K | DA4: HH45to54HI75Kto100K | DB4: HH45to54HI>100K | DC4: HH55to64HI<5K | DD4: HH55to64HI5Kto10K | DE4: HH55to64HI10Kto15K | DF4: HH55to64HI15Kto25K | DG4: HH55to64HI25Kto35K | DH4: HH55to64HI35Kto50K | DI4: HH55to64HI50Kto75K | DJ4: HH55to64HI75Kto100K | DK4: HH55to64HI>100K | DL4: HH65to74HI<5K | DM4: HH65to74HI5Kto10K | DN4: HH65to74HI10Kto15K | DO4: HH65to74HI15Kto25K | DP4: HH65to74HI25Kto35K | DQ4: HH65to74HI35Kto50K | DR4: HH65to74HI50Kto75K | DS4: HH65to74HI75Kto100K | DT4: HH65to74HI>100K | DU4: HH>75HI<5K | DV4: HH>75HI5Kto10K | DW4: HH>75HI10Kto15K | DX4: HH>75HI15Kto25K | DY4: HH>75HI25Kto35K | DZ4: HH>75HI35Kto50K | EA4: HH>75HI50Kto75K | EB4: HH>75HI75Kto100K | EC4: HH>75HI>100K | ED4: SchoolEnrollment1thru12 | EE4: Pop25andOver | EF4: HSGradorHigher | EG4: CollGradorHigher | EH4: NativePop | EI4: ForeignBornPop | EJ4: BornStateOfRes | EK4: NativePop2 | EL4: ForeignBornPop2 | EM4: DroveAlone | EN4: CarPooled | EO4: PublicTranspt | EP4: Walked | EQ4: OtherMeans | ER4: WorkedAtHome | ES4: HHInc<10K | ET4: HHInc10to15K | EU4: HHInc15to25K | EV4: HHInc25to35K | EW4: HHInc35to50K | EX4: HHInc50to75K | EY4: HHInc75to100K | EZ4: HHInc100to150K | FA4: HHInc>150K
A5: Alton | B5: 1005 | C5: 01060 | D5: 40906.19 | E5: 12324.31 | F5: 3267 | G5: 3286 | H5: 938 | I5: 1262 | J5: 1667 | K5: 1619 | L5: 3274 | M5: 2 | N5: 5 | O5: 4 | P5: 1 | Q5: 14 | R5: 661 | S5: 367 | T5: 461 | U5: 538 | V5: 356 | W5: 389 | X5: 324 | Y5: 190 | Z5: 3258 | AA5: 2869 | AB5: 28 | AC5: 2.581616482 | AD5: 3.058635394 | AE5: 268 | AF5: 826 | AG5: 112 | AH5: 56 | AI5: 3267 | AJ5: 1262 | AK5: 2005 | AL5: 984 | AM5: 278 | AN5: 25 | AO5: 56 | AP5: 1834 | AQ5: 2769 | AR5: 179 | AS5: 319 | AT5: 851 | AU5: 26 | AV5: 319 | AW5: 131 | AX5: 115 | AY5: 32 | AZ5: 682 | BA5: 1064 | BB5: 579 | BC5: 942 | BD5: 12 | BE5: 107 | BF5: 1297 | BG5: 1231 | BH5: 620 | BI5: 43 | BJ5: 89 | BK5: 88 | BL5: 254 | BM5: 269 | BN5: 290 | BO5: 148 | BP5: 35 | BQ5: 45 | BR5: 31033 | BS5: 0 | BT5: 0 | BU5: 0 | BV5: 7 | BW5: 0 | BX5: 0 | BY5: 0 | BZ5: 9 | CA5: 0 | CB5: 11 | CC5: 17 | CD5: 8 | CE5: 24 | CF5: 107 | CG5: 38 | CH5: 49 | CI5: 0 | CJ5: 0 | CK5: 0 | CL5: 0 | CM5: 18 | CN5: 37 | CO5: 66 | CP5: 87 | CQ5: 41 | CR5: 13 | CS5: 0 | CT5: 0 | CU5: 6 | CV5: 0 | CW5: 26 | CX5: 41 | CY5: 47 | CZ5: 24 | DA5: 7 | DB5: 18 | DC5: 0 | DD5: 7 | DE5: 22 | DF5: 30 | DG5: 36 | DH5: 95 | DI5: 19 | DJ5: 0 | DK5: 19 | DL5: 6 | DM5: 16 | DN5: 10 | DO5: 113 | DP5: 19 | DQ5: 23 | DR5: 15 | DS5: 0 | DT5: 8 | DU5: 26 | DV5: 43 | DW5: 30 | DX5: 17 | DY5: 0 | DZ5: 0 | EA5: 0 | EB5: 6 | EC5: 0 | ED5: 600 | EE5: 2345 | EF5: 1997 | EG5: 425 | EH5: 3251 | EI5: 35 | EJ5: 1486 | EK5: 3251 | EL5: 35 | EM5: 1248 | EN5: 108 | EO5: 6 | EP5: 76 | EQ5: 6 | ER5: 54 | ES5: 132 | ET5: 88 | EU5: 254 | EV5: 269 | EW5: 290 | EX5: 148 | EY5: 35 | EZ5: 27 | FA5: 18 | FB5: 132 | FC5: 550 | FD5: 456 | FE5: 608 | FF5: 220 | FG5: 192 | FH5: 167 | FI5: 942 | FJ5: 101
A6: Barnstead | B6: 1010 | C6: 03220 | D6: 27483.81 | E6: 1274.82 | F6: 1861 | G6: 3100 | H6: 851 | I6: 1096 | J6: 1551 | K6: 1549 | L6: 3081 | M6: 9 | N6: 4 | O6: 6 | P6: 0 | Q6: 17 | R6: 737 | S6: 376 | T6: 589 | U6: 541 | V6: 332 | W6: 224 | X6: 204 | Y6: 97 | Z6: 3100 | AA6: 2755 | AB6: 0 | AC6: 2.828467153 | AD6: 3.237367803 | AE6: 162 | AF6: 742 | AG6: 109 | AH6: 83 | AI6: 1861 | AJ6: 1096 | AK6: 765 | AL6: 934 | AM6: 162 | AN6: 15 | AO6: 13 | AP6: 679 | AQ6: 1672 | AR6: 74 | AS6: 115 | AT6: 859 | AU6: 21 | AV6: 115 | AW6: 108 | AX6: 38 | AY6: 16 | AZ6: 383 | BA6: 695 | BB6: 287 | BC6: 490 | BD6: 16 | BE6: 77 | BF6: 719 | BG6: 785 | BH6: 258 | BI6: 44 | BJ6: 39 | BK6: 99 | BL6: 269 | BM6: 188 | BN6: 290 | BO6: 208 | BP6: 26 | BQ6: 18 | BR6: 32063 | BS6: 0 | BT6: 0 | BU6: 0 | BV6: 6 | BW6: 6 | BX6: 27 | BY6: 0 | BZ6: 0 | CA6: 0 | CB6: 0 | CC6: 11 | CD6: 7 | CE6: 64 | CF6: 7 | CG6: 135 | CH6: 50 | CI6: 8 | CJ6: 0 | CK6: 17 | CL6: 7 | CM6: 13 | CN6: 37 | CO6: 110 | CP6: 50 | CQ6: 57 | CR6: 18 | CS6: 0 | CT6: 0 | CU6: 0 | CV6: 0 | CW6: 34 | CX6: 39 | CY6: 28 | CZ6: 59 | DA6: 0 | DB6: 18 | DC6: 17 | DD6: 0 | DE6: 8 | DF6: 55 | DG6: 16 | DH6: 31 | DI6: 42 | DJ6: 0 | DK6: 0 | DL6: 0 | DM6: 0 | DN6: 38 | DO6: 46 | DP6: 10 | DQ6: 7 | DR6: 0 | DS6: 0 | DT6: 0 | DU6: 10 | DV6: 21 | DW6: 33 | DX6: 27 | DY6: 0 | DZ6: 12 | EA6: 0 | EB6: 0 | EC6: 0 | ED6: 379 | EE6: 2074 | EF6: 1739 | EG6: 514 | EH6: 2958 | EI6: 76 | EJ6: 1529 | EK6: 2958 | EL6: 76 | EM6: 1342 | EN6: 146 | EO6: 0 | EP6: 0 | EQ6: 0 | ER6: 122 | ES6: 83 | ET6: 99 | EU6: 269 | EV6: 188 | EW6: 290 | EX6: 208 | EY6: 26 | EZ6: 18 | FA6: 0 | FB6: 77 | FC6: 306 | FD6: 168 | FE6: 527 | FF6: 237 | FG6: 37 | FH6: 13 | FI6: 490 | FJ6: 102
A7: Belmont | B7: 1015 | C7: 04740 | D7: 19293.73 | E7: 1133.73 | F7: 2869 | G7: 5796 | H7: 1580 | I7: 2146 | J7: 2871 | K7: 2925 | L7: 5738 | M7: 10 | N7: 29 | O7: 18 | P7: 1 | Q7: 24 | R7: 1396 | S7: 683 | T7: 1157 | U7: 1022 | V7: 539 | W7: 446 | X7: 361 | Y7: 192 | Z7: 5784 | AA7: 5038 | AB7: 12 | AC7: 2.695246971 | AD7: 3.188607595 | AE7: 413 | AF7: 1311 | AG7: 269 | AH7: 153 | AI7: 2869 | AJ7: 2146 | AK7: 723 | AL7: 1675 | AM7: 471 | AN7: 77 | AO7: 65 | AP7: 525 | AQ7: 1635 | AR7: 441 | AS7: 793 | AT7: 1142 | AU7: 60 | AV7: 793 | AW7: 105 | AX7: 296 | AY7: 70 | AZ7: 828 | BA7: 1280 | BB7: 393 | BC7: 368 | BD7: 6 | BE7: 254 | BF7: 1218 | BG7: 1151 | BH7: 240 | BI7: 62 | BJ7: 143 | BK7: 149 | BL7: 369 | BM7: 359 | BN7: 629 | BO7: 374 | BP7: 53 | BQ7: 24 | BR7: 34972 | BS7: 7 | BT7: 16 | BU7: 10 | BV7: 27 | BW7: 0 | BX7: 35 | BY7: 11 | BZ7: 0 | CA7: 0 | CB7: 0 | CC7: 30 | CD7: 21 | CE7: 125 | CF7: 113 | CG7: 165 | CH7: 109 | CI7: 0 | CJ7: 0 | CK7: 0 | CL7: 0 | CM7: 22 | CN7: 46 | CO7: 138 | CP7: 214 | CQ7: 143 | CR7: 38 | CS7: 0 | CT7: 9 | CU7: 0 | CV7: 9 | CW7: 56 | CX7: 30 | CY7: 95 | CZ7: 68 | DA7: 5 | DB7: 24 | DC7: 9 | DD7: 42 | DE7: 4 | DF7: 40 | DG7: 34 | DH7: 77 | DI7: 43 | DJ7: 10 | DK7: 0 | DL7: 12 | DM7: 6 | DN7: 39 | DO7: 48 | DP7: 44 | DQ7: 30 | DR7: 0 | DS7: 0 | DT7: 0 | DU7: 25 | DV7: 49 | DW7: 44 | DX7: 27 | DY7: 0 | DZ7: 13 | EA7: 0 | EB7: 0 | EC7: 0 | ED7: 1042 | EE7: 3717 | EF7: 2925 | EG7: 612 | EH7: 5704 | EI7: 92 | EJ7: 3527 | EK7: 5704 | EL7: 92 | EM7: 2219 | EN7: 574 | EO7: 0 | EP7: 47 | EQ7: 52 | ER7: 69 | ES7: 205 | ET7: 149 | EU7: 369 | EV7: 359 | EW7: 629 | EX7: 374 | EY7: 53 | EZ7: 14 | FA7: 10 | FB7: 55 | FC7: 773 | FD7: 602 | FE7: 678 | FF7: 223 | FG7: 135 | FH7: 35 | FI7: 368 | FJ7: 103
A8: Center Harbor | B8: 1020 | C8: 10660 | D8: 8532.56 | E8: 1861.86 | F8: 649 | G8: 996 | H8: 285 | I8: 377 | J8: 471 | K8: 525 | L8: 990 | M8: 3 | N8: 0 | O8: 3 | P8: 0 | Q8: 3 | R8: 202 | S8: 109 | T8: 142 | U8: 173 | V8: 113 | W8: 101 | X8: 103 | Y8: 53 | Z8: 996 | AA8: 873 | AB8: 0 | AC8: 2.641909814 | AD8: 3.063157895 | AE8: 69 | AF8: 250 | AG8: 35 | AH8: 23 | AI8: 649 | AJ8: 377 | AK8: 272 | AL8: 318 | AM8: 59 | AN8: 7 | AO8: 8 | AP8: 239 | AQ8: 527 | AR8: 38 | AS8: 84 | AT8: 282 | AU8: 10 | AV8: 84 | AW8: 31 | AX8: 17 | AY8: 11 | AZ8: 115 | BA8: 189 | BB8: 146 | BC8: 199 | BD8: 5 | BE8: 74 | BF8: 145 | BG8: 312 | BH8: 113 | BI8: 5 | BJ8: 20 | BK8: 36 | BL8: 50 | BM8: 70 | BN8: 84 | BO8: 70 | BP8: 10 | BQ8: 25 | BR8: 35435 | BS8: 0 | BT8: 0 | BU8: 0 | BV8: 4 | BW8: 0 | BX8: 2 | BY8: 1 | BZ8: 0 | CA8: 2 | CB8: 0 | CC8: 0 | CD8: 2 | CE8: 13 | CF8: 21 | CG8: 17 | CH8: 7 | CI8: 0 | CJ8: 0 | CK8: 0 | CL8: 0 | CM8: 0 | CN8: 12 | CO8: 23 | CP8: 25 | CQ8: 22 | CR8: 2 | CS8: 8 | CT8: 0 | CU8: 2 | CV8: 2 | CW8: 0 | CX8: 8 | CY8: 17 | CZ8: 15 | DA8: 3 | DB8: 6 | DC8: 3 | DD8: 5 | DE8: 5 | DF8: 11 | DG8: 9 | DH8: 10 | DI8: 16 | DJ8: 0 | DK8: 4 | DL8: 0 | DM8: 7 | DN8: 12 | DO8: 9 | DP8: 7 | DQ8: 11 | DR8: 5 | DS8: 5 | DT8: 5 | DU8: 2 | DV8: 6 | DW8: 15 | DX8: 1 | DY8: 2 | DZ8: 2 | EA8: 4 | EB8: 0 | EC8: 0 | ED8: 188 | EE8: 687 | EF8: 626 | EG8: 206 | EH8: 980 | EI8: 16 | EJ8: 410 | EK8: 980 | EL8: 16 | EM8: 381 | EN8: 32 | EO8: 0 | EP8: 16 | EQ8: 11 | ER8: 43 | ES8: 25 | ET8: 36 | EU8: 50 | EV8: 70 | EW8: 84 | EX8: 70 | EY8: 10 | EZ8: 16 | FA8: 9 | FB8: 19 | FC8: 96 | FD8: 55 | FE8: 134 | FF8: 115 | FG8: 29 | FH8: 2 | FI8: 199 | FJ8: 104
A9: Gilford | B9: 1025 | C9: 28740 | D9: 24826.75 | E9: 9416.9 | F9: 4397 | G9: 5867 | H9: 1701 | I9: 2298 | J9: 2891 | K9: 2976 | L9: 5830 | M9: 2 | N9: 8 | O9: 26 | P9: 1 | Q9: 29 | R9: 1169 | S9: 632 | T9: 776 | U9: 1066 | V9: 741 | W9: 654 | X9: 547 | Y9: 282 | Z9: 5867 | AA9: 5123 | AB9: 0 | AC9: 2.553089643 | AD9: 3.01175779 | AE9: 467 | AF9: 1487 | AG9: 214 | AH9: 130 | AI9: 4397 | AJ9: 2298 | AK9: 2099 | AL9: 1854 | AM9: 444 | AN9: 134 | AO9: 60 | AP9: 1833 | AQ9: 3076 | AR9: 702 | AS9: 619 | AT9: 1460 | AU9: 63 | AV9: 619 | AW9: 205 | AX9: 192 | AY9: 47 | AZ9: 1162 | BA9: 1898 | BB9: 864 | BC9: 473 | BD9: 34 | BE9: 379 | BF9: 1214 | BG9: 2191 | BH9: 579 | BI9: 67 | BJ9: 163 | BK9: 124 | BL9: 382 | BM9: 315 | BN9: 542 | BO9: 525 | BP9: 103 | BQ9: 94 | BR9: 37048 | BS9: 0 | BT9: 30 | BU9: 7 | BV9: 0 | BW9: 25 | BX9: 11 | BY9: 13 | BZ9: 0 | CA9: 0 | CB9: 24 | CC9: 0 | CD9: 13 | CE9: 55 | CF9: 85 | CG9: 87 | CH9: 57 | CI9: 11 | CJ9: 9 | CK9: 0 | CL9: 0 | CM9: 20 | CN9: 75 | CO9: 80 | CP9: 193 | CQ9: 186 | CR9: 27 | CS9: 6 | CT9: 7 | CU9: 10 | CV9: 23 | CW9: 63 | CX9: 26 | CY9: 52 | CZ9: 139 | DA9: 41 | DB9: 44 | DC9: 14 | DD9: 41 | DE9: 14 | DF9: 52 | DG9: 32 | DH9: 88 | DI9: 85 | DJ9: 14 | DK9: 26 | DL9: 7 | DM9: 37 | DN9: 11 | DO9: 81 | DP9: 61 | DQ9: 93 | DR9: 25 | DS9: 10 | DT9: 9 | DU9: 15 | DV9: 45 | DW9: 36 | DX9: 56 | DY9: 6 | DZ9: 18 | EA9: 20 | EB9: 0 | EC9: 0 | ED9: 1057 | EE9: 4066 | EF9: 3485 | EG9: 1176 | EH9: 5750 | EI9: 117 | EJ9: 2870 | EK9: 5750 | EL9: 117 | EM9: 2508 | EN9: 263 | EO9: 0 | EP9: 76 | EQ9: 8 | ER9: 162 | ES9: 230 | ET9: 124 | EU9: 382 | EV9: 315 | EW9: 542 | EX9: 525 | EY9: 103 | EZ9: 49 | FA9: 45 | FB9: 103 | FC9: 1059 | FD9: 672 | FE9: 1226 | FF9: 448 | FG9: 182 | FH9: 234 | FI9: 473 | FJ9: 105
A10: Gilmanton | B10: 1030 | C10: 28980 | D10: 36891.37 | E10: 1235.77 | F10: 1744 | G10: 2609 | H10: 748 | I10: 914 | J10: 1328 | K10: 1281 | L10: 2597 | M10: 6 | N10: 2 | O10: 4 | P10: 0 | Q10: 7 | R10: 627 | S10: 269 | T10: 497 | U10: 482 | V10: 244 | W10: 216 | X10: 176 | Y10: 98 | Z10: 2609 | AA10: 2392 | AB10: 0 | AC10: 2.854485777 | AD10: 3.197860963 | AE10: 120 | AF10: 667 | AG10: 81 | AH10: 46 | AI10: 1744 | AJ10: 914 | AK10: 830 | AL10: 828 | AM10: 86 | AN10: 7 | AO10: 26 | AP10: 752 | AQ10: 1618 | AR10: 49 | AS10: 77 | AT10: 779 | AU10: 17 | AV10: 77 | AW10: 63 | AX10: 20 | AY10: 3 | AZ10: 366 | BA10: 717 | BB10: 259 | BC10: 432 | BD10: 7 | BE10: 129 | BF10: 648 | BG10: 716 | BH10: 274 | BI10: 13 | BJ10: 56 | BK10: 16 | BL10: 97 | BM10: 243 | BN10: 204 | BO10: 158 | BP10: 62 | BQ10: 39 | BR10: 36397 | BS10: 0 | BT10: 0 | BU10: 0 | BV10: 0 | BW10: 0 | BX10: 5 | BY10: 0 | BZ10: 0 | CA10: 0 | CB10: 0 | CC10: 0 | CD10: 4 | CE10: 21 | CF10: 88 | CG10: 62 | CH10: 53 | CI10: 15 | CJ10: 12 | CK10: 0 | CL10: 9 | CM10: 0 | CN10: 36 | CO10: 63 | CP10: 72 | CQ10: 58 | CR10: 16 | CS10: 21 | CT10: 0 | CU10: 10 | CV10: 0 | CW10: 0 | CX10: 22 | CY10: 28 | CZ10: 21 | DA10: 31 | DB10: 6 | DC10: 0 | DD10: 6 | DE10: 8 | DF10: 12 | DG10: 35 | DH10: 27 | DI10: 16 | DJ10: 0 | DK10: 0 | DL10: 0 | DM10: 19 | DN10: 0 | DO10: 0 | DP10: 28 | DQ10: 10 | DR10: 10 | DS10: 0 | DT10: 0 | DU10: 13 | DV10: 12 | DW10: 4 | DX10: 28 | DY10: 7 | DZ10: 0 | EA10: 0 | EB10: 0 | EC10: 0 | ED10: 552 | EE10: 1751 | EF10: 1470 | EG10: 369 | EH10: 2661 | EI10: 30 | EJ10: 1556 | EK10: 2661 | EL10: 30 | EM10: 1014 | EN10: 277 | EO10: 0 | EP10: 11 | EQ10: 0 | ER10: 18 | ES10: 69 | ET10: 16 | EU10: 97 | EV10: 243 | EW10: 204 | EX10: 158 | EY10: 62 | EZ10: 26 | FA10: 13 | FB10: 81 | FC10: 285 | FD10: 259 | FE10: 458 | FF10: 31 | FG10: 210 | FH10: 18 | FI10: 432 | FJ10: 106
A11: Laconia | B11: 1035 | C11: 40180 | D11: 12860.61 | E11: 3851.61 | F11: 8201 | G11: 15743 | H11: 4032 | I11: 6176 | J11: 7452 | K11: 8291 | L11: 15539 | M11: 20 | N11: 35 | O11: 122 | P11: 27 | Q11: 98 | R11: 3423 | S11: 2064 | T11: 2537 | U11: 2365 | V11: 1575 | W11: 1368 | X11: 1290 | Y11: 1121 | Z11: 15312 | AA11: 12623 | AB11: 431 | AC11: 2.479274611 | AD11: 3.130704365 | AE11: 1721 | AF11: 3144 | AG11: 888 | AH11: 423 | AI11: 8201 | AJ11: 6176 | AK11: 2025 | AL11: 3494 | AM11: 2682 | AN11: 469 | AO11: 148 | AP11: 1216 | AQ11: 3948 | AR11: 4090 | AS11: 163 | AT11: 2854 | AU11: 564 | AV11: 163 | AW11: 298 | AX11: 2327 | AY11: 57 | AZ11: 1092 | BA11: 1898 | BB11: 1895 | BC11: 3316 | BD11: 131 | BE11: 1341 | BF11: 2580 | BG11: 2983 | BH11: 1166 | BI11: 215 | BJ11: 555 | BK11: 589 | BL11: 1257 | BM11: 1013 | BN11: 1051 | BO11: 1042 | BP11: 194 | BQ11: 247 | BR11: 29116 | BS11: 29 | BT11: 32 | BU11: 57 | BV11: 116 | BW11: 66 | BX11: 29 | BY11: 17 | BZ11: 0 | CA11: 0 | CB11: 38 | CC11: 74 | CD11: 78 | CE11: 270 | CF11: 298 | CG11: 237 | CH11: 180 | CI11: 33 | CJ11: 20 | CK11: 14 | CL11: 39 | CM11: 61 | CN11: 260 | CO11: 203 | CP11: 284 | CQ11: 365 | CR11: 42 | CS11: 86 | CT11: 10 | CU11: 18 | CV11: 54 | CW11: 133 | CX11: 125 | CY11: 249 | CZ11: 259 | DA11: 26 | DB11: 71 | DC11: 45 | DD11: 32 | DE11: 90 | DF11: 185 | DG11: 132 | DH11: 117 | DI11: 110 | DJ11: 77 | DK11: 43 | DL11: 45 | DM11: 157 | DN11: 90 | DO11: 156 | DP11: 119 | DQ11: 121 | DR11: 82 | DS11: 16 | DT11: 13 | DU11: 34 | DV11: 203 | DW11: 159 | DX11: 137 | DY11: 70 | DZ11: 14 | EA11: 29 | EB11: 0 | EC11: 14 | ED11: 2499 | EE11: 10256 | EF11: 7899 | EG11: 1784 | EH11: 15257 | EI11: 486 | EJ11: 9455 | EK11: 15257 | EL11: 486 | EM11: 5500 | EN11: 954 | EO11: 50 | EP11: 380 | EQ11: 50 | ER11: 284 | ES11: 770 | ET11: 589 | EU11: 1257 | EV11: 1013 | EW11: 1051 | EX11: 1042 | EY11: 194 | EZ11: 190 | FA11: 57 | FB11: 57 | FC11: 1035 | FD11: 860 | FE11: 1038 | FF11: 587 | FG11: 596 | FH11: 712 | FI11: 3316 | FJ11: 107
A12: Meredith | B12: 1040 | C12: 47140 | D12: 25804.32 | E12: 9115.37 | F12: 3720 | G12: 4837 | H12: 1310 | I12: 1936 | J12: 2296 | K12: 2541 | L12: 4806 | M12: 9 | N12: 8 | O12: 11 | P12: 3 | Q12: 26 | R12: 942 | S12: 592 | T12: 783 | U12: 780 | V12: 520 | W12: 444 | X12: 415 | Y12: 361 | Z12: 4726 | AA12: 3940 | AB12: 111 | AC12: 2.441115702 | AD12: 3.007633588 | AE12: 503 | AF12: 1086 | AG12: 224 | AH12: 123 | AI12: 3720 | AJ12: 1936 | AK12: 1784 | AL12: 1408 | AM12: 528 | AN12: 51 | AO12: 50 | AP12: 1603 | AQ12: 2877 | AR12: 508 | AS12: 335 | AT12: 1119 | AU12: 69 | AV12: 335 | AW12: 157 | AX12: 326 | AY12: 45 | AZ12: 602 | BA12: 1146 | BB12: 980 | BC12: 992 | BD12: 12 | BE12: 372 | BF12: 1223 | BG12: 1531 | BH12: 582 | BI12: 79 | BJ12: 146 | BK12: 155 | BL12: 504 | BM12: 310 | BN12: 377 | BO12: 244 | BP12: 57 | BQ12: 54 | BR12: 27057 | BS12: 0 | BT12: 0 | BU12: 15 | BV12: 46 | BW12: 33 | BX12: 20 | BY12: 0 | BZ12: 0 | CA12: 0 | CB12: 17 | CC12: 5 | CD12: 17 | CE12: 59 | CF12: 58 | CG12: 141 | CH12: 48 | CI12: 5 | CJ12: 0 | CK12: 0 | CL12: 21 | CM12: 22 | CN12: 135 | CO12: 76 | CP12: 127 | CQ12: 75 | CR12: 23 | CS12: 34 | CT12: 15 | CU12: 0 | CV12: 9 | CW12: 61 | CX12: 44 | CY12: 39 | CZ12: 62 | DA12: 10 | DB12: 10 | DC12: 20 | DD12: 5 | DE12: 19 | DF12: 58 | DG12: 62 | DH12: 45 | DI12: 15 | DJ12: 8 | DK12: 3 | DL12: 0 | DM12: 50 | DN12: 61 | DO12: 100 | DP12: 14 | DQ12: 5 | DR12: 38 | DS12: 11 | DT12: 7 | DU12: 27 | DV12: 65 | DW12: 12 | DX12: 45 | DY12: 23 | DZ12: 0 | EA12: 6 | EB12: 0 | EC12: 0 | ED12: 791 | EE12: 3303 | EF12: 2651 | EG12: 808 | EH12: 4732 | EI12: 105 | EJ12: 2690 | EK12: 4732 | EL12: 105 | EM12: 1883 | EN12: 239 | EO12: 12 | EP12: 58 | EQ12: 27 | ER12: 167 | ES12: 225 | ET12: 155 | EU12: 504 | EV12: 310 | EW12: 377 | EX12: 244 | EY12: 57 | EZ12: 22 | FA12: 32 | FB12: 48 | FC12: 554 | FD12: 437 | FE12: 709 | FF12: 600 | FG12: 246 | FH12: 134 | FI12: 992 | FJ12: 108
A13: New Hampton | B13: 1045 | C13: 51540 | D13: 23560.79 | E13: 999.14 | F13: 855 | G13: 1606 | H13: 444 | I13: 590 | J13: 804 | K13: 802 | L13: 1602 | M13: 3 | N13: 0 | O13: 1 | P13: 0 | Q13: 4 | R13: 369 | S13: 174 | T13: 291 | U13: 263 | V13: 176 | W13: 155 | X13: 122 | Y13: 56 | Z13: 1606 | AA13: 1416 | AB13: 0 | AC13: 2.722033898 | AD13: 3.189189189 | AE13: 111 | AF13: 378 | AG13: 66 | AH13: 35 | AI13: 855 | AJ13: 590 | AK13: 265 | AL13: 488 | AM13: 102 | AN13: 37 | AO13: 13 | AP13: 182 | AQ13: 666 | AR13: 48 | AS13: 141 | AT13: 410 | AU13: 9 | AV13: 141 | AW13: 47 | AX13: 20 | AY13: 35 | AZ13: 152 | BA13: 256 | BB13: 147 | BC13: 300 | BD13: 4 | BE13: 119 | BF13: 292 | BG13: 307 | BH13: 133 | BI13: 13 | BJ13: 23 | BK13: 55 | BL13: 108 | BM13: 112 | BN13: 173 | BO13: 77 | BP13: 20 | BQ13: 18 | BR13: 33487 | BS13: 3 | BT13: 3 | BU13: 9 | BV13: 2 | BW13: 2 | BX13: 3 | BY13: 1 | BZ13: 0 | CA13: 0 | CB13: 3 | CC13: 5 | CD13: 5 | CE13: 29 | CF13: 29 | CG13: 38 | CH13: 16 | CI13: 2 | CJ13: 2 | CK13: 2 | CL13: 0 | CM13: 10 | CN13: 21 | CO13: 25 | CP13: 54 | CQ13: 24 | CR13: 4 | CS13: 9 | CT13: 0 | CU13: 0 | CV13: 1 | CW13: 8 | CX13: 25 | CY13: 40 | CZ13: 18 | DA13: 6 | DB13: 0 | DC13: 0 | DD13: 3 | DE13: 8 | DF13: 18 | DG13: 18 | DH13: 24 | DI13: 13 | DJ13: 6 | DK13: 3 | DL13: 5 | DM13: 12 | DN13: 8 | DO13: 14 | DP13: 11 | DQ13: 6 | DR13: 5 | DS13: 2 | DT13: 4 | DU13: 0 | DV13: 0 | DW13: 14 | DX13: 16 | DY13: 2 | DZ13: 8 | EA13: 0 | EB13: 0 | EC13: 0 | ED13: 272 | EE13: 1063 | EF13: 856 | EG13: 272 | EH13: 1583 | EI13: 23 | EJ13: 874 | EK13: 1583 | EL13: 23 | EM13: 544 | EN13: 132 | EO13: 0 | EP13: 58 | EQ13: 7 | ER13: 68 | ES13: 36 | ET13: 55 | EU13: 108 | EV13: 112 | EW13: 173 | EX13: 77 | EY13: 20 | EZ13: 9 | FA13: 9 | FB13: 24 | FC13: 128 | FD13: 107 | FE13: 149 | FF13: 59 | FG13: 61 | FH13: 27 | FI13: 300 | FJ13: 109
A14: Sanbornton | B14: 1050 | C14: 67300 | D14: 30261.92 | E14: 1512.45 | F14: 1131 | G14: 2136 | H14: 613 | I14: 756 | J14: 1088 | K14: 1048 | L14: 2123 | M14: 2 | N14: 2 | O14: 8 | P14: 1 | Q14: 5 | R14: 495 | S14: 242 | T14: 334 | U14: 449 | V14: 224 | W14: 179 | X14: 158 | Y14: 55 | Z14: 2136 | AA14: 1948 | AB14: 0 | AC14: 2.825396825 | AD14: 3.177814029 | AE14: 106 | AF14: 559 | AG14: 54 | AH14: 37 | AI14: 1131 | AJ14: 756 | AK14: 375 | AL14: 650 | AM14: 106 | AN14: 10 | AO14: 19 | AP14: 311 | AQ14: 1032 | AR14: 37 | AS14: 62 | AT14: 613 | AU14: 9 | AV14: 62 | AW14: 74 | AX14: 22 | AY14: 10 | AZ14: 181 | BA14: 401 | BB14: 286 | BC14: 263 | BD14: 17 | BE14: 116 | BF14: 313 | BG14: 486 | BH14: 199 | BI14: 8 | BJ14: 39 | BK14: 81 | BL14: 133 | BM14: 144 | BN14: 170 | BO14: 140 | BP14: 24 | BQ14: 29 | BR14: 33581 | BS14: 0 | BT14: 2 | BU14: 2 | BV14: 2 | BW14: 2 | BX14: 8 | BY14: 1 | BZ14: 0 | CA14: 0 | CB14: 0 | CC14: 5 | CD14: 6 | CE14: 26 | CF14: 32 | CG14: 36 | CH14: 16 | CI14: 4 | CJ14: 7 | CK14: 5 | CL14: 2 | CM14: 19 | CN14: 29 | CO14: 58 | CP14: 66 | CQ14: 55 | CR14: 5 | CS14: 15 | CT14: 3 | CU14: 0 | CV14: 5 | CW14: 16 | CX14: 31 | CY14: 30 | CZ14: 37 | DA14: 8 | DB14: 5 | DC14: 0 | DD14: 6 | DE14: 16 | DF14: 23 | DG14: 2 | DH14: 16 | DI14: 24 | DJ14: 4 | DK14: 2 | DL14: 0 | DM14: 13 | DN14: 23 | DO14: 37 | DP14: 14 | DQ14: 11 | DR14: 5 | DS14: 3 | DT14: 0 | DU14: 0 | DV14: 11 | DW14: 10 | DX14: 0 | DY14: 5 | DZ14: 3 | EA14: 2 | EB14: 0 | EC14: 0 | ED14: 404 | EE14: 1399 | EF14: 1207 | EG14: 328 | EH14: 2088 | EI14: 48 | EJ14: 1115 | EK14: 2088 | EL14: 48 | EM14: 863 | EN14: 114 | EO14: 3 | EP14: 27 | EQ14: 0 | ER14: 73 | ES14: 47 | ET14: 81 | EU14: 133 | EV14: 144 | EW14: 170 | EX14: 140 | EY14: 24 | EZ14: 23 | FA14: 6 | FB14: 59 | FC14: 122 | FD14: 126 | FE14: 275 | FF14: 142 | FG14: 95 | FH14: 49 | FI14: 263 | FJ14: 110
A15: Tilton | B15: 1055 | C15: 77060 | D15: 7304.19 | E15: 333.57 | F15: 1612 | G15: 3240 | H15: 832 | I15: 1288 | J15: 1630 | K15: 1610 | L15: 3208 | M15: 1 | N15: 15 | O15: 13 | P15: 3 | Q15: 18 | R15: 625 | S15: 342 | T15: 562 | U15: 493 | V15: 351 | W15: 329 | X15: 298 | Y15: 240 | Z15: 3122 | AA15: 2534 | AB15: 118 | AC15: 2.423913043 | AD15: 3.045673077 | AE15: 350 | AF15: 696 | AG15: 136 | AH15: 106 | AI15: 1612 | AJ15: 1288 | AK15: 324 | AL15: 842 | AM15: 446 | AN15: 94 | AO15: 51 | AP15: 145 | AQ15: 843 | AR15: 445 | AS15: 324 | AT15: 560 | AU15: 60 | AV15: 324 | AW15: 101 | AX15: 300 | AY15: 45 | AZ15: 190 | BA15: 443 | BB15: 463 | BC15: 492 | BD15: 16 | BE15: 203 | BF15: 721 | BG15: 423 | BH15: 225 | BI15: 63 | BJ15: 191 | BK15: 103 | BL15: 203 | BM15: 264 | BN15: 227 | BO15: 145 | BP15: 41 | BQ15: 20 | BR15: 27446 | BS15: 17 | BT15: 9 | BU15: 0 | BV15: 0 | BW15: 9 | BX15: 13 | BY15: 0 | BZ15: 0 | CA15: 0 | CB15: 5 | CC15: 24 | CD15: 28 | CE15: 53 | CF15: 94 | CG15: 69 | CH15: 22 | CI15: 0 | CJ15: 0 | CK15: 0 | CL15: 10 | CM15: 7 | CN15: 41 | CO15: 51 | CP15: 84 | CQ15: 25 | CR15: 29 | CS15: 0 | CT15: 0 | CU15: 23 | CV15: 17 | CW15: 35 | CX15: 51 | CY15: 25 | CZ15: 31 | DA15: 12 | DB15: 9 | DC15: 0 | DD15: 21 | DE15: 13 | DF15: 15 | DG15: 28 | DH15: 0 | DI15: 46 | DJ15: 0 | DK15: 0 | DL15: 19 | DM15: 71 | DN15: 22 | DO15: 30 | DP15: 31 | DQ15: 36 | DR15: 14 | DS15: 0 | DT15: 0 | DU15: 22 | DV15: 33 | DW15: 16 | DX15: 29 | DY15: 0 | DZ15: 0 | EA15: 7 | EB15: 0 | EC15: 11 | ED15: 579 | EE15: 2148 | EF15: 1517 | EG15: 222 | EH15: 3087 | EI15: 137 | EJ15: 1877 | EK15: 3087 | EL15: 137 | EM15: 1121 | EN15: 156 | EO15: 0 | EP15: 65 | EQ15: 0 | ER15: 65 | ES15: 254 | ET15: 103 | EU15: 203 | EV15: 264 | EW15: 227 | EX15: 145 | EY15: 41 | EZ15: 9 | FA15: 11 | FB15: 25 | FC15: 165 | FD15: 103 | FE15: 340 | FF15: 177 | FG15: 187 | FH15: 99 | FI15: 492 | FJ15: 111
A18: Census 1990 Data - Query Name: CountySTF1Qry1
A19: NAME | B19: COUSUBFP | C19: Census_Cnty_Code | D19: FIPS | E19: LandAcres | F19: WaterAcres | G19: HousingUnits90Cen | H19: P01Persons90Cen | I19: P02Families90Cen | J19: P03Households90cen | K19: P05MalePop90cen | L19: P05FemalePop90cen | M19: P06WhitePop | N19: P06BlackPop | O19: P06AmerIndianPop | P19: P06AsianPIPop | Q19: P06OtherRacePop | R19: P08HispanicOrPop | S19: P11AgeUnder15_90cen | T19: P11Age15to24_90cen | U19: P11Age25to34_90cen | V19: P11Age35to44_90cen | W19: P11Age45to54_90cen | X19: P11Age55to64_90cen | Y19: P11Age65to74_90cen | Z19: P11Age75andOver_90cen | AA19: P15PersonsInHH90cen | AB19: P15PersonsInFamHH90cen | AC19: P15PersonsInGC | AD19: PersonsPerHH90cen | AE19: PersonsPerFam90Cen | AF19: P16SinglePersonHH90cen | AG19: P16MarriedCoupleHH90cen | AH19: P16SingleParentHH90cen | AI19: P16NonFamilyHH90cen | AJ19: H01TotalHousingUnits | AK19: H02OccupiedHousingUnits | AL19: H02VacantHousingUnits | AM19: H03OwnerOccHU | AN19: H03RenterOccHU | AO19: H05VacantForRent90 | AP19: H05VacantForSale90 | AQ19: H05VacantSeasonalRec | AR19: H23OOHUVal<15k | AS19: H23OOHUVal15to19k | AT19: H23OOHUVal20to24k | AU19: H23OOHUVal25to29k | AV19: H23OOHUVal30to34k | AW19: H23OOHUVal35to39k | AX19: H23OOHUVal40to44k | AY19: H23OOHUVal45to49k | AZ19: H23OOHUVal50to59k | BA19: H23OOHUVal60to74k | BB19: H23OOHUVal75to99k | BC19: H23OOHUVal100to124k | BD19: H23OOHUVal125to149k | BE19: H23OOHUVal150to174k | BF19: H23OOHUVal175to199k | BG19: H23OOHUVal200to249k | BH19: H23OOHUVal250to299k | BI19: H23OOHUVal300to399k | BJ19: H23OOHUVal400to499k | BK19: H23OOHUVal500kOrMore | BL19: H23BOOHUMedVal | BM19: H41SingFamHU90cen | BN19: H41MultiFamHU90cen | BO19: H41MobileHom90cen | BP19: H43SingFamOwnHU90cen | BQ19: H43MultiFamOwnHU90cen | BR19: H43MobileHomOwnHU90cen | BS19: H43SingFamRntrHU90cen | BT19: H43MultiFamRntrHU90cen | BU19: H43MobileHomRntrHU90cen | BV19: H41HU1UnitDet | BW19: H41HU1UnitAtt | BX19: H41HU2Unit | BY19: H41HU3to4Unit | BZ19: H41HU5to9Unit | CA19: H41HU10to19Unit | CB19: H41HU20to49Unit | CC19: H41HU50PlusUnit | CD19: H41HUMobilH | CE19: H41HUOther
A20: Alton | B20: 101 | C20: 1005 | D20: 01060 | E20: 40906.19 | F20: 12324.31 | G20: 3267 | H20: 3286 | I20: 938 | J20: 1262 | K20: 1667 | L20: 1619 | M20: 3274 | N20: 2 | O20: 5 | P20: 4 | Q20: 1 | R20: 14 | S20: 661 | T20: 367 | U20: 461 | V20: 538 | W20: 356 | X20: 389 | Y20: 324 | Z20: 190 | AA20: 3258 | AB20: 2869 | AC20: 28 | AD20: 2.581616482 | AE20: 3.058635394 | AF20: 268 | AG20: 826 | AH20: 112 | AI20: 56 | AJ20: 3267 | AK20: 1262 | AL20: 2005 | AM20: 984 | AN20: 278 | AO20: 25 | AP20: 56 | AQ20: 1834 | AR20: 1 | AS20: 0 | AT20: 1 | AU20: 2 | AV20: 0 | AW20: 3 | AX20: 2 | AY20: 3 | AZ20: 12 | BA20: 34 | BB20: 123 | BC20: 144 | BD20: 86 | BE20: 74 | BF20: 40 | BG20: 40 | BH20: 29 | BI20: 46 | BJ20: 9 | BK20: 18 | BL20: 127500 | BM20: 2769 | BN20: 179 | BO20: 319 | BP20: 851 | BQ20: 26 | BR20: 107 | BS20: 131 | BT20: 115 | BU20: 32 | BV20: 2769 | BW20: 27 | BX20: 61 | BY20: 64 | BZ20: 11 | CA20: 16 | CB20: 0 | CC20: 0 | CD20: 279 | CE20: 40
A21: Barnstead | B21: 102 | C21: 1010 | D21: 03220 | E21: 27483.81 | F21: 1274.82 | G21: 1861 | H21: 3100 | I21: 851 | J21: 1096 | K21: 1551 | L21: 1549 | M21: 3081 | N21: 9 | O21: 4 | P21: 6 | Q21: 0 | R21: 17 | S21: 737 | T21: 376 | U21: 589 | V21: 541 | W21: 332 | X21: 224 | Y21: 204 | Z21: 97 | AA21: 3100 | AB21: 2755 | AC21: 0 | AD21: 2.828467153 | AE21: 3.237367803 | AF21: 162 | AG21: 742 | AH21: 109 | AI21: 83 | AJ21: 1861 | AK21: 1096 | AL21: 765 | AM21: 934 | AN21: 162 | AO21: 15 | AP21: 13 | AQ21: 679 | AR21: 1 | AS21: 3 | AT21: 3 | AU21: 1 | AV21: 1 | AW21: 6 | AX21: 9 | AY21: 6 | AZ21: 15 | BA21: 60 | BB21: 244 | BC21: 165 | BD21: 79 | BE21: 41 | BF21: 20 | BG21: 10 | BH21: 5 | BI21: 3 | BJ21: 1 | BK21: 1 | BL21: 98800 | BM21: 1672 | BN21: 74 | BO21: 115 | BP21: 859 | BQ21: 21 | BR21: 54 | BS21: 108 | BT21: 38 | BU21: 16 | BV21: 1672 | BW21: 17 | BX21: 39 | BY21: 16 | BZ21: 2 | CA21: 0 | CB21: 0 | CC21: 0 | CD21: 109 | CE21: 6
A22: Belmont | B22: 103 | C22: 1015 | D22: 04740 | E22: 19293.73 | F22: 1133.73 | G22: 2869 | H22: 5796 | I22: 1580 | J22: 2146 | K22: 2871 | L22: 2925 | M22: 5738 | N22: 10 | O22: 29 | P22: 18 | Q22: 1 | R22: 24 | S22: 1396 | T22: 683 | U22: 1157 | V22: 1022 | W22: 539 | X22: 446 | Y22: 361 | Z22: 192 | AA22: 5784 | AB22: 5038 | AC22: 12 | AD22: 2.695246971 | AE22: 3.188607595 | AF22: 413 | AG22: 1311 | AH22: 269 | AI22: 153 | AJ22: 2869 | AK22: 2146 | AL22: 723 | AM22: 1675 | AN22: 471 | AO22: 77 | AP22: 65 | AQ22: 525 | AR22: 1 | AS22: 2 | AT22: 0 | AU22: 3 | AV22: 1 | AW22: 4 | AX22: 6 | AY22: 5 | AZ22: 22 | BA22: 65 | BB22: 309 | BC22: 252 | BD22: 163 | BE22: 83 | BF22: 29 | BG22: 17 | BH22: 7 | BI22: 6 | BJ22: 0 | BK22: 3 | BL22: 107000 | BM22: 1635 | BN22: 441 | BO22: 793 | BP22: 1142 | BQ22: 60 | BR22: 473 | BS22: 105 | BT22: 296 | BU22: 70 | BV22: 1635 | BW22: 50 | BX22: 117 | BY22: 201 | BZ22: 67 | CA22: 6 | CB22: 0 | CC22: 0 | CD22: 771 | CE22: 22
A23: Center Harbor | B23: 104 | C23: 1020 | D23: 10660 | E23: 8532.56 | F23: 1861.86 | G23: 649 | H23: 996 | I23: 285 | J23: 377 | K23: 471 | L23: 525 | M23: 990 | N23: 3 | O23: 0 | P23: 3 | Q23: 0 | R23: 3 | S23: 202 | T23: 109 | U23: 142 | V23: 173 | W23: 113 | X23: 101 | Y23: 103 | Z23: 53 | AA23: 996 | AB23: 873 | AC23: 0 | AD23: 2.641909814 | AE23: 3.063157895 | AF23: 69 | AG23: 250 | AH23: 35 | AI23: 23 | AJ23: 649 | AK23: 377 | AL23: 272 | AM23: 318 | AN23: 59 | AO23: 7 | AP23: 8 | AQ23: 239 | AR23: 0 | AS23: 1 | AT23: 0 | AU23: 2 | AV23: 1 | AW23: 1 | AX23: 2 | AY23: 1 | AZ23: 6 | BA23: 11 | BB23: 46 | BC23: 31 | BD23: 31 | BE23: 26 | BF23: 19 | BG23: 25 | BH23: 9 | BI23: 6 | BJ23: 5 | BK23: 8 | BL23: 135900 | BM23: 527 | BN23: 38 | BO23: 84 | BP23: 282 | BQ23: 10 | BR23: 26 | BS23: 31 | BT23: 17 | BU23: 11 | BV23: 527 | BW23: 12 | BX23: 7 | BY23: 6 | BZ23: 13 | CA23: 0 | CB23: 0 | CC23: 0 | CD23: 77 | CE23: 7
A24: Gilford | B24: 105 | C24: 1025 | D24: 28740 | E24: 24826.75 | F24: 9416.9 | G24: 4397 | H24: 5867 | I24: 1701 | J24: 2298 | K24: 2891 | L24: 2976 | M24: 5830 | N24: 2 | O24: 8 | P24: 26 | Q24: 1 | R24: 29 | S24: 1169 | T24: 632 | U24: 776 | V24: 1066 | W24: 741 | X24: 654 | Y24: 547 | Z24: 282 | AA24: 5867 | AB24: 5123 | AC24: 0 | AD24: 2.553089643 | AE24: 3.01175779 | AF24: 467 | AG24: 1487 | AH24: 214 | AI24: 130 | AJ24: 4397 | AK24: 2298 | AL24: 2099 | AM24: 1854 | AN24: 444 | AO24: 134 | AP24: 60 | AQ24: 1833 | AR24: 1 | AS24: 1 | AT24: 3 | AU24: 2 | AV24: 2 | AW24: 6 | AX24: 3 | AY24: 4 | AZ24: 13 | BA24: 43 | BB24: 187 | BC24: 281 | BD24: 196 | BE24: 183 | BF24: 119 | BG24: 108 | BH24: 52 | BI24: 55 | BJ24: 26 | BK24: 43 | BL24: 140100 | BM24: 3076 | BN24: 702 | BO24: 619 | BP24: 1460 | BQ24: 63 | BR24: 331 | BS24: 205 | BT24: 192 | BU24: 47 | BV24: 3076 | BW24: 318 | BX24: 75 | BY24: 69 | BZ24: 86 | CA24: 38 | CB24: 116 | CC24: 0 | CD24: 575 | CE24: 44
A25: Gilmanton | B25: 106 | C25: 1030 | D25: 28980 | E25: 36891.37 | F25: 1235.77 | G25: 1744 | H25: 2609 | I25: 748 | J25: 914 | K25: 1328 | L25: 1281 | M25: 2597 | N25: 6 | O25: 2 | P25: 4 | Q25: 0 | R25: 7 | S25: 627 | T25: 269 | U25: 497 | V25: 482 | W25: 244 | X25: 216 | Y25: 176 | Z25: 98 | AA25: 2609 | AB25: 2392 | AC25: 0 | AD25: 2.854485777 | AE25: 3.197860963 | AF25: 120 | AG25: 667 | AH25: 81 | AI25: 46 | AJ25: 1744 | AK25: 914 | AL25: 830 | AM25: 828 | AN25: 86 | AO25: 7 | AP25: 26 | AQ25: 752 | AR25: 3 | AS25: 4 | AT25: 2 | AU25: 3 | AV25: 3 | AW25: 3 | AX25: 7 | AY25: 7 | AZ25: 23 | BA25: 53 | BB25: 136 | BC25: 124 | BD25: 83 | BE25: 43 | BF25: 25 | BG25: 19 | BH25: 10 | BI25: 7 | BJ25: 1 | BK25: 0 | BL25: 106900 | BM25: 1618 | BN25: 49 | BO25: 77 | BP25: 779 | BQ25: 17 | BR25: 32 | BS25: 63 | BT25: 20 | BU25: 3 | BV25: 1618 | BW25: 11 | BX25: 25 | BY25: 13 | BZ25: 0 | CA25: 0 | CB25: 0 | CC25: 0 | CD25: 58 | CE25: 19
A26: Laconia | B26: 107 | C26: 1035 | D26: 40180 | E26: 12860.61 | F26: 3851.61 | G26: 8201 | H26: 15743 | I26: 4032 | J26: 6176 | K26: 7452 | L26: 8291 | M26: 15539 | N26: 20 | O26: 35 | P26: 122 | Q26: 27 | R26: 98 | S26: 3423 | T26: 2064 | U26: 2537 | V26: 2365 | W26: 1575 | X26: 1368 | Y26: 1290 | Z26: 1121 | AA26: 15312 | AB26: 12623 | AC26: 431 | AD26: 2.479274611 | AE26: 3.130704365 | AF26: 1721 | AG26: 3144 | AH26: 888 | AI26: 423 | AJ26: 8201 | AK26: 6176 | AL26: 2025 | AM26: 3494 | AN26: 2682 | AO26: 469 | AP26: 148 | AQ26: 1216 | AR26: 5 | AS26: 1 | AT26: 1 | AU26: 0 | AV26: 8 | AW26: 2 | AX26: 10 | AY26: 9 | AZ26: 43 | BA26: 183 | BB26: 909 | BC26: 568 | BD26: 349 | BE26: 199 | BF26: 122 | BG26: 144 | BH26: 65 | BI26: 49 | BJ26: 34 | BK26: 29 | BL26: 108500 | BM26: 3948 | BN26: 4090 | BO26: 163 | BP26: 2854 | BQ26: 564 | BR26: 76 | BS26: 298 | BT26: 2327 | BU26: 57 | BV26: 3948 | BW26: 543 | BX26: 939 | BY26: 809 | BZ26: 734 | CA26: 505 | CB26: 405 | CC26: 155 | CD26: 65 | CE26: 98
A27: Meredith | B27: 108 | C27: 1040 | D27: 47140 | E27: 25804.32 | F27: 9115.37 | G27: 3720 | H27: 4837 | I27: 1310 | J27: 1936 | K27: 2296 | L27: 2541 | M27: 4806 | N27: 9 | O27: 8 | P27: 11 | Q27: 3 | R27: 26 | S27: 942 | T27: 592 | U27: 783 | V27: 780 | W27: 520 | X27: 444 | Y27: 415 | Z27: 361 | AA27: 4726 | AB27: 3940 | AC27: 111 | AD27: 2.441115702 | AE27: 3.007633588 | AF27: 503 | AG27: 1086 | AH27: 224 | AI27: 123 | AJ27: 3720 | AK27: 1936 | AL27: 1784 | AM27: 1408 | AN27: 528 | AO27: 51 | AP27: 50 | AQ27: 1603 | AR27: 3 | AS27: 2 | AT27: 1 | AU27: 2 | AV27: 6 | AW27: 3 | AX27: 11 | AY27: 9 | AZ27: 39 | BA27: 59 | BB27: 203 | BC27: 154 | BD27: 112 | BE27: 96 | BF27: 76 | BG27: 82 | BH27: 37 | BI27: 38 | BJ27: 12 | BK27: 9 | BL27: 122600 | BM27: 2877 | BN27: 508 | BO27: 335 | BP27: 1119 | BQ27: 69 | BR27: 220 | BS27: 157 | BT27: 326 | BU27: 45 | BV27: 2877 | BW27: 56 | BX27: 144 | BY27: 103 | BZ27: 125 | CA27: 24 | CB27: 56 | CC27: 0 | CD27: 313 | CE27: 22
A28: New Hampton | B28: 109 | C28: 1045 | D28: 51540 | E28: 23560.79 | F28: 999.14 | G28: 855 | H28: 1606 | I28: 444 | J28: 590 | K28: 804 | L28: 802 | M28: 1602 | N28: 3 | O28: 0 | P28: 1 | Q28: 0 | R28: 4 | S28: 369 | T28: 174 | U28: 291 | V28: 263 | W28: 176 | X28: 155 | Y28: 122 | Z28: 56 | AA28: 1606 | AB28: 1416 | AC28: 0 | AD28: 2.722033898 | AE28: 3.189189189 | AF28: 111 | AG28: 378 | AH28: 66 | AI28: 35 | AJ28: 855 | AK28: 590 | AL28: 265 | AM28: 488 | AN28: 102 | AO28: 37 | AP28: 13 | AQ28: 182 | AR28: 3 | AS28: 2 | AT28: 2 | AU28: 3 | AV28: 3 | AW28: 2 | AX28: 6 | AY28: 4 | AZ28: 17 | BA28: 22 | BB28: 65 | BC28: 45 | BD28: 37 | BE28: 27 | BF28: 11 | BG28: 11 | BH28: 6 | BI28: 5 | BJ28: 1 | BK28: 0 | BL28: 103900 | BM28: 666 | BN28: 48 | BO28: 141 | BP28: 410 | BQ28: 9 | BR28: 69 | BS28: 47 | BT28: 20 | BU28: 35 | BV28: 666 | BW28: 4 | BX28: 26 | BY28: 18 | BZ28: 0 | CA28: 0 | CB28: 0 | CC28: 0 | CD28: 111 | CE28: 30
A29: Sanbornton | B29: 110 | C29: 1050 | D29: 67300 | E29: 30261.92 | F29: 1512.45 | G29: 1131 | H29: 2136 | I29: 613 | J29: 756 | K29: 1088 | L29: 1048 | M29: 2123 | N29: 2 | O29: 2 | P29: 8 | Q29: 1 | R29: 5 | S29: 495 | T29: 242 | U29: 334 | V29: 449 | W29: 224 | X29: 179 | Y29: 158 | Z29: 55 | AA29: 2136 | AB29: 1948 | AC29: 0 | AD29: 2.825396825 | AE29: 3.177814029 | AF29: 106 | AG29: 559 | AH29: 54 | AI29: 37 | AJ29: 1131 | AK29: 756 | AL29: 375 | AM29: 650 | AN29: 106 | AO29: 10 | AP29: 19 | AQ29: 311 | AR29: 1 | AS29: 1 | AT29: 3 | AU29: 1 | AV29: 1 | AW29: 1 | AX29: 3 | AY29: 5 | AZ29: 12 | BA29: 21 | BB29: 70 | BC29: 91 | BD29: 91 | BE29: 51 | BF29: 24 | BG29: 16 | BH29: 6 | BI29: 3 | BJ29: 3 | BK29: 2 | BL29: 123100 | BM29: 1032 | BN29: 37 | BO29: 62 | BP29: 613 | BQ29: 9 | BR29: 28 | BS29: 74 | BT29: 22 | BU29: 10 | BV29: 1032 | BW29: 6 | BX29: 27 | BY29: 4 | BZ29: 0 | CA29: 0 | CB29: 0 | CC29: 0 | CD29: 56 | CE29: 6
A30: Tilton | B30: 111 | C30: 1055 | D30: 77060 | E30: 7304.19 | F30: 333.57 | G30: 1612 | H30: 3240 | I30: 832 | J30: 1288 | K30: 1630 | L30: 1610 | M30: 3208 | N30: 1 | O30: 15 | P30: 13 | Q30: 3 | R30: 18 | S30: 625 | T30: 342 | U30: 562 | V30: 493 | W30: 351 | X30: 329 | Y30: 298 | Z30: 240 | AA30: 3122 | AB30: 2534 | AC30: 118 | AD30: 2.423913043 | AE30: 3.045673077 | AF30: 350 | AG30: 696 | AH30: 136 | AI30: 106 | AJ30: 1612 | AK30: 1288 | AL30: 324 | AM30: 842 | AN30: 446 | AO30: 94 | AP30: 51 | AQ30: 145 | AR30: 2 | AS30: 1 | AT30: 3 | AU30: 2 | AV30: 5 | AW30: 2 | AX30: 2 | AY30: 8 | AZ30: 15 | BA30: 49 | BB30: 170 | BC30: 90 | BD30: 58 | BE30: 31 | BF30: 9 | BG30: 9 | BH30: 7 | BI30: 3 | BJ30: 0 | BK30: 0 | BL30: 96200 | BM30: 843 | BN30: 445 | BO30: 324 | BP30: 560 | BQ30: 60 | BR30: 222 | BS30: 101 | BT30: 300 | BU30: 45 | BV30: 843 | BW30: 16 | BX30: 134 | BY30: 131 | BZ30: 67 | CA30: 97 | CB30: 0 | CC30: 0 | CD30: 266 | CE30: 58
A34: Census 1990 Data - Query Name: CountySTF3Qry1
A36: NAME | B36: FIPS | C36: COUSUBFP | D36: LandAcres | E36: WaterAcres | F36: HousingUnits90Cen | G36: P01Persons90Cen | H36: P02Families90Cen | I36: P03Households90cen | J36: H25HU<5yrs90cen | K36: H25HU5to20yrs90cen | L36: H25HU20to50yrs90cen | M36: H25HU>50yrs90cen | N36: H31Units0Bedroom90cen | O36: H31Units1Bedroom90cen | P36: H31Units2Bedroom90cen | Q36: H31Units3Bedroom90cen | R36: H31Units4Bedroom90cen | S36: H31Units5+Bedroom90cen | T36: P80HI<5K | U36: P80HI5Kto10K | V36: P80HI10Kto15K | W36: P80HI15Kto25K | X36: P80HI25Kto35K | Y36: P80HI35Kto50K | Z36: P80HI50Kto75K | AA36: P80HI75Kto100K | AB36: P80HI>100K | AC36: P80AMedHI | AD36: P86HH<25HI<5K | AE36: P86HH<25HI5Kto10K | AF36: P86HH<25HI10Kto15K | AG36: P86HH<25HI15Kto25K | AH36: P86HH<25HI25Kto35K | AI36: P86HH<25HI35Kto50K | AJ36: P86HH<25HI50Kto75K | AK36: P86HH<25HI75Kto100K | AL36: P86HH<25HI>100K | AM36: P86HH25to34HI<5K | AN36: P86HH25to34HI5Kto10K | AO36: P86HH25to34HI10Kto15K | AP36: P86HH25to34HI15Kto25K | AQ36: P86HH25to34HI25Kto35K | AR36: P86HH25to34HI35Kto50K | AS36: P86HH25to34HI50Kto75K | AT36: P86HH25to34HI75Kto100K | AU36: P86HH25to34HI>100K | AV36: P86HH35to44HI<5K | AW36: P86HH35to44HI5Kto10K | AX36: P86HH35to44HI10Kto15K | AY36: P86HH35to44HI15Kto25K | AZ36: P86HH35to44HI25Kto35K | BA36: P86HH35to44HI35Kto50K | BB36: P86HH35to44HI50Kto75K | BC36: P86HH35to44HI75Kto100K | BD36: P86HH35to44HI>100K | BE36: P86HH45to54HI<5K | BF36: P86HH45to54HI5Kto10K | BG36: P86HH45to54HI10Kto15K | BH36: P86HH45to54HI15Kto25K | BI36: P86HH45to54HI25Kto35K | BJ36: P86HH45to54HI35Kto50K | BK36: P86HH45to54HI50Kto75K | BL36: P86HH45to54HI75Kto100K | BM36: P86HH45to54HI>100K | BN36: P86HH55to64HI<5K | BO36: P86HH55to64HI5Kto10K | BP36: P86HH55to64HI10Kto15K | BQ36: P86HH55to64HI15Kto25K | BR36: P86HH55to64HI25Kto35K | BS36: P86HH55to64HI35Kto50K | BT36: P86HH55to64HI50Kto75K | BU36: P86HH55to64HI75Kto100K | BV36: P86HH55to64HI>100K | BW36: P86HH65to74HI<5K | BX36: P86HH65to74HI5Kto10K | BY36: P86HH65to74HI10Kto15K | BZ36: P86HH65to74HI15Kto25K | CA36: P86HH65to74HI25Kto35K | CB36: P86HH65to74HI35Kto50K | CC36: P86HH65to74HI50Kto75K | CD36: P86HH65to74HI75Kto100K | CE36: P86HH65to74HI>100K | CF36: P86HH>75HI<5K | CG36: P86HH>75HI5Kto10K | CH36: P86HH>75HI10Kto15K | CI36: P86HH>75HI15Kto25K | CJ36: P86HH>75HI25Kto35K | CK36: P86HH>75HI35Kto50K | CL36: P86HH>75HI50Kto75K | CM36: P86HH>75HI75Kto100K | CN36: P86HH>75HI>100K | CO36: P54SchlEnrlPrePrim | CP36: P54SchlEnrlElemThrHS | CQ36: P54SchlEnrlCollege | CR36: P54NotEnrlInSch | CS36: P57Pop25andOver | CT36: P57LessThan9thGrade | CU36: P579thto12thNoDip | CV36: P57HSGrad | CW36: P57SomeCollege | CX36: P57AssocDeg | CY36: P57BachelDeg | CZ36: P57GradorProfDeg | DA36: P57HSGradorHigher | DB36: P57CollGradorHigher | DC36: P42NativePop | DD36: P42ForeignBornPop | DE36: P42BornStateOfRes | DF36: P37NativePop2 | DG36: P37ForeignBornPop2 | DH36: P49DroveAlone | DI36: P49CarPooled | DJ36: P49PublicTranspt | DK36: P49Walked | DL36: P49OtherMeans | DM36: P49WorkedAtHome | DN36: P80HHInc<10K | DO36: P80HHInc10to15K | DP36: P80HHInc15to25K | DQ36: P80HHInc25to35K | DR36: P80HHInc35to50K | DS36: P80HHInc50to75K | DT36: P80HHInc75to100K | DU36: P80HHInc100to150K | DV36: P80HHInc>150K | DW36: H25YearStBlt89to90 | DX36: H25YearStBlt85to88 | DY36: H25YearStBlt80to84 | DZ36: H25YearStBlt70to79 | EA36: H25YearStBlt60to69 | EB36: H25YearStBlt50to59 | EC36: H25YearStBlt40to49 | ED36: H25YearStBlt39earlier | EE36: P107FamInc<10K | EF36: P107FamInc10to15K | EG36: P107FamInc15to25K | EH36: P107FamInc25to35K | EI36: P107FamInc35to50K | EJ36: P107FamInc50to75K | EK36: P107FamInc75to100K | EL36: P107FamInc100to150K | EM36: P107FamInc>150K | EN36: P107AMedFamInc | EO36: P110NonFamInc<10K | EP36: P110NonFamInc10to15K | EQ36: P110NonFamInc15to25K | ER36: P110NonFamInc25to35K | ES36: P110NonFamInc35to50K | ET36: P110NonFamInc50to75K | EU36: P110NonFamInc75to100K | EV36: P110NonFamInc100to150K | EW36: P110NonFamInc>150K | EX36: P110AMedNonFamInc | EY36: H16HU1Room | EZ36: H16HU2Room | FA36: H16HU3Room | FB36: H16HU4Room | FC36: H16HU5Room | FD36: H16HU6Room | FE36: H16HU7Room | FF36: H16HU8Room | FG36: H16HU9+Room | FH36: H43GrossRnt<100 | FI36: H43GrossRnt100to149 | FJ36: H43GrossRnt150to199 | FK36: H43GrossRnt200to249 | FL36: H43GrossRnt250to299 | FM36: H43GrossRnt300to349 | FN36: H43GrossRnt350to399 | FO36: H43GrossRnt400to449 | FP36: H43GrossRnt450to499 | FQ36: H43GrossRnt500to549 | FR36: H43GrossRnt550to599 | FS36: H43GrossRnt600to649 | FT36: H43GrossRnt650to699 | FU36: H43GrossRnt700to749 | FV36: H43GrossRnt750to999 | FW36: H43GrossRnt1000Plus | FX36: H43NoCashRent | FY36: H43MedGrossRent | FZ36: H51GrossRnt<20PctHHInc | GA36: H51GrossRnt20to24PctHHInc | GB36: H51GrossRnt25to29PctHHInc | GC36: H51GrossRnt30to34PctHHInc | GD36: H51GrossRnt35PctOrMoreHHInc | GE36: H51GrossRntAsPctHHIncNotComp | GF36: H52HUwMtgMoOwnCst<200 | GG36: H52HUwMtgMoOwnCst200to299 | GH36: H52HUwMtgMoOwnCst300to399 | GI36: H52HUwMtgMoOwnCst400to499 | GJ36: H52HUwMtgMoOwnCst500to599 | GK36: H52HUwMtgMoOwnCst600to699 | GL36: H52HUwMtgMoOwnCst700to799 | GM36: H52HUwMtgMoOwnCst800to899 | GN36: H52HUwMtgMoOwnCst900to999 | GO36: H52HUwMtgMoOwnCst1000to1249 | GP36: H52HUwMtgMoOwnCst1250to1499 | GQ36: H52HUwMtgMoOwnCst1500to1999 | GR36: H52HUwMtgMoOwnCst2000More | GS36: H52HUwNoMtgMoOwnCst<100 | GT36: H52HUwNoMtgMoOwnCst100to149 | GU36: H52HUwNoMtgMoOwnCst150to199 | GV36: H52HUwNoMtgMoOwnCst200to249 | GW36: H52HUwNoMtgMoOwnCst250to299 | GX36: H52HUwNoMtgMoOwnCst300to349 | GY36: H52HUwNoMtgMoOwnCst350to399 | GZ36: H52HUwNoMtgMoOwnCst400More | HA36: H52AMedMoOwnCstWMortg | HB36: H52AMedMoOwnCstWNoMortg | HC36: H58HUwMtgMOC<20pHHInc | HD36: H58HUwMtgMOC20to24pHHInc | HE36: H58HUwMtgMOC25to29pHHInc | HF36: H58HUwMtgMOC30to34pHHInc | HG36: H58wMtgMOC>35pHHInc | HH36: H58HUwMtgMOCNotComp | HI36: H58HUwNoMtgMOC<20pHHInc | HJ36: H58HUwNoMtgMOC20to24pHHInc | HK36: H58HUwNoMtgMOC25to29pHHInc | HL36: H58HUwNoMtgMOC30to34pHHInc | HM36: H58wNoMtgMOC>35pHHInc | HN36: H58HUwNoMtgMOCNotComp | HO36: H61OOHUVal<15k | HP36: H61OOHUVal15to19k | HQ36: H61OOHUVal20to24k | HR36: H61OOHUVal25to29k | HS36: H61OOHUVal30to34k | HT36: H61OOHUVal35to39k | HU36: H61OOHUVal40to44k | HV36: H61OOHUVal45to49k | HW36: H61OOHUVal50to59k | HX36: H61OOHUVal60to74k | HY36: H61OOHUVal75to99k | HZ36: H61OOHUVal100to124k | IA36: H61OOHUVal125to149k | IB36: H61OOHUVal150to174k | IC36: H61OOHUVal175to199k | ID36: H61OOHUVal200to249k | IE36: H61OOHUVal250to299k | IF36: H61OOHUVal300to399k | IG36: H61OOHUVal400to499k | IH36: H61OOHUVal500kOrMore | II36: H61aOOHUMedVal
A52: Other Demo Data - Query Name: QryAllTowns-ACSDemographicSheet | D52: 2020-12-18
A54: TOWN_NAME | B54: FIPS | C54: TOWNCNTY | D54: COUSUB | E54: POP80 | F54: POP90CDCEN | G54: POP2000CEN | H54: POP2010CEN | I54: POP2025-Proj | J54: POP2030-Proj | K54: POP2040-Proj | L54: SF80 | M54: MF80 | N54: MH80 | O54: SF81 | P54: MF81 | Q54: MH81 | R54: SF82 | S54: MF82 | T54: MH82 | U54: SF83 | V54: MF83 | W54: MH83 | X54: SF84_OSP | Y54: MF84_OSP | Z54: MH84_OSP | AA54: SF85_OSP | AB54: MF85_OSP | AC54: MH85_OSP | AD54: SF86_OSP | AE54: MF86_OSP | AF54: MH86_OSP | AG54: SF87_OSP | AH54: MF87_OSP | AI54: MH87_OSP | AJ54: SF88_OSP | AK54: MF88_OSP | AL54: MH88_OSP | AM54: SF89_OSP | AN54: MF89_OSP | AO54: MH89_OSP | AP54: SF90_OSP | AQ54: MF90_OSP | AR54: MH90_OSP | AS54: SF91_OSP | AT54: MF91_OSP | AU54: MH91_OSP | AV54: SF92_OSP | AW54: MF92_OSP | AX54: MH92_OSP | AY54: SF93_OSP | AZ54: MF93_OSP | BA54: MH93_OSP | BB54: SF94_OSP | BC54: MF94_OSP | BD54: MH94_OSP | BE54: SF95_OSP | BF54: MF95_OSP | BG54: MH95_OSP | BH54: SF96_OSP | BI54: MF96_OSP | BJ54: MH96_OSP | BK54: SF97_OSP | BL54: MF97_OSP | BM54: MH97_OSP | BN54: SF98_OSP | BO54: MF98_OSP | BP54: MH98_OSP | BQ54: SF99_OSP | BR54: MF99_OSP | BS54: MH99_OSP | BT54: SF00_OSP | BU54: MF00_OSP | BV54: MH00_OSP | BW54: SF01_OSP | BX54: MF01_OSP | BY54: MH01_OSP | BZ54: SF02_OSP | CA54: MF02_OSP | CB54: MH02_OSP | CC54: SF03_OSP | CD54: MF03_OSP | CE54: MH03_OSP | CF54: SF04_OSP | CG54: MF04_OSP | CH54: MH04_OSP | CI54: SF05_OSP | CJ54: MF05_OSP | CK54: MH05_OSP | CL54: SF06_OSP | CM54: MF06_OSP | CN54: MH06_OSP | CO54: SF07_OSP | CP54: MF07_OSP | CQ54: MH07_OSP | CR54: SF08_OSP | CS54: MF08_OSP | CT54: MH08_OSP | CU54: SF09_OSP | CV54: MF09_OSP | CW54: MH09_OSP | CX54: SF10_OSP | CY54: MF10_OSP | CZ54: MH10_OSP | DA54: SF11_OSP | DB54: MF11_OSP | DC54: MH11_OSP | DD54: SF12_OSP | DE54: MF12_OSP | DF54: MH12_OSP | DG54: SF13_OSP | DH54: MF13_OSP | DI54: MH13_OSP | DJ54: SF14_OSP | DK54: MF14_OSP | DL54: MH14_OSP | DM54: SF15_OSP | DN54: MF15_OSP | DO54: MH15_OSP | DP54: SF16_OSP | DQ54: MF16_OSP | DR54: MH16_OSP | DS54: SF17_OSP | DT54: MF17_OSP | DU54: MH17_OSP | DV54: SF18_OSP | DW54: MF18_OSP | DX54: MH18_OSP | DY54: SF19_OSP | DZ54: MF19_OSP | EA54: MH19_OSP | EB54: COMMENTS | EC54: CNTY_CODE
A55: Alton | B55: 1005 | C55: 101 | D55: 01060 | E55: 2440 | F55: 3286 | G55: 4502 | H55: 5250 | I55: 6112 | J55: 6244 | K55: 6378 | L55: 42 | M55: 0 | N55: 17 | O55: 23 | P55: 0 | Q55: 10 | R55: 27 | S55: 0 | T55: 28 | U55: 31 | V55: 2 | W55: 26 | X55: 23 | Y55: 0 | Z55: 4 | AA55: 21 | AB55: 24 | AC55: 0 | AD55: 64 | AE55: 4 | AF55: 2 | AG55: 105 | AH55: 0 | AI55: 8 | AJ55: 73 | AK55: 0 | AL55: 4 | AM55: 51 | AN55: 1 | AO55: 0 | AP55: 30 | AQ55: 7 | AR55: 6 | AS55: 28 | AT55: 0 | AU55: 1 | AV55: 25 | AW55: 0 | AX55: 0 | AY55: 44 | AZ55: 0 | BA55: 0 | BB55: 41 | BC55: 0 | BD55: 0 | BE55: 26 | BF55: 0 | BG55: 4 | BH55: 35 | BI55: 0 | BJ55: 3 | BK55: 58 | BL55: 0 | BM55: 5 | BN55: 35 | BO55: 0 | BP55: 3 | BQ55: 65 | BR55: 0 | BS55: 4 | BT55: 67 | BU55: 6 | BV55: 5 | BW55: 57 | BX55: 0 | BY55: 1 | BZ55: 80 | CA55: 2 | CB55: 3 | CC55: 100 | CD55: 4 | CE55: 0 | CF55: 106 | CG55: 4 | CH55: 0 | CI55: 86 | CJ55: 1 | CK55: 0 | CL55: 58 | CM55: 0 | CN55: 2 | CO55: 42 | CP55: 0 | CQ55: 0 | CR55: 49 | CS55: 0 | CT55: 4 | CU55: 17 | CV55: 0 | CW55: 1 | CX55: 7 | CY55: 0 | CZ55: 0 | DA55: 15 | DB55: 0 | DC55: 0 | DD55: 6 | DE55: 0 | DF55: 0 | DG55: 11 | DH55: 0 | DI55: 0 | DJ55: 16 | DK55: 0 | DL55: 2 | DM55: 5 | DN55: 0 | DO55: 0 | DP55: 33 | DQ55: 0 | DR55: 0 | DS55: 14 | DT55: 0 | DU55: 0 | DV55: 32 | DW55: 0 | DX55: 0 | DY55: 21 | DZ55: 0 | EA55: 0 | EC55: 1
A56: Barnstead | B56: 1010 | C56: 102 | D56: 03220 | E56: 2292 | F56: 3100 | G56: 3886 | H56: 4593 | I56: 5407 | J56: 5524 | K56: 5643 | L56: 26 | M56: 0 | N56: 2 | O56: 9 | P56: 81 | Q56: 0 | R56: 18 | S56: 0 | T56: 0 | U56: 23 | V56: 0 | W56: 3 | X56: 17 | Y56: 2 | Z56: 1 | AA56: 25 | AB56: 1 | AC56: 3 | AD56: 80 | AE56: 0 | AF56: -1 | AG56: 23 | AH56: 0 | AI56: 3 | AJ56: 63 | AK56: 0 | AL56: 4 | AM56: 55 | AN56: 0 | AO56: 3 | AP56: 27 | AQ56: 2 | AR56: 1 | AS56: 18 | AT56: 0 | AU56: 0 | AV56: 13 | AW56: 0 | AX56: 3 | AY56: 12 | AZ56: 1 | BA56: 4 | BB56: 7 | BC56: 1 | BD56: 0 | BE56: 8 | BF56: 0 | BG56: 1 | BH56: 16 | BI56: 0 | BJ56: 0 | BK56: 17 | BL56: 0 | BM56: 8 | BN56: 28 | BO56: 0 | BP56: 3 | BQ56: 22 | BR56: 2 | BS56: 12 | BT56: 48 | BU56: 4 | BV56: 5 | BW56: 123 | BX56: 4 | BY56: 12 | BZ56: 56 | CA56: 2 | CB56: 19 | CC56: 35 | CD56: 0 | CE56: 2 | CF56: 33 | CG56: 0 | CH56: 0 | CI56: 40 | CJ56: 0 | CK56: 0 | CL56: 34 | CM56: 0 | CN56: 0 | CO56: 25 | CP56: 1 | CQ56: 1 | CR56: 24 | CS56: 0 | CT56: 2 | CU56: 6 | CV56: 0 | CW56: 0 | CX56: 3 | CY56: 0 | CZ56: 1 | DA56: 6 | DB56: 0 | DC56: 3 | DD56: 6 | DE56: 0 | DF56: 1 | DG56: 3 | DH56: 0 | DI56: 1 | DJ56: 5 | DK56: 0 | DL56: 1 | DM56: 14 | DN56: 0 | DO56: 1 | DP56: 14 | DQ56: 0 | DR56: 1 | DS56: 20 | DT56: 0 | DU56: 6 | DV56: 18 | DW56: 0 | DX56: 0 | DY56: 15 | DZ56: 0 | EA56: 0 | EB56: 2000 Did not provide data to OEP. Census data used | EC56: 1
A57: Belmont | B57: 1015 | C57: 103 | D57: 04740 | E57: 4026 | F57: 5796 | G57: 6716 | H57: 7356 | I57: 8096 | J57: 8271 | K57: 8449 | L57: 34 | M57: 34 | N57: 30 | O57: 45 | P57: 3 | Q57: 31 | R57: 46 | S57: 20 | T57: 17 | U57: 54 | V57: 8 | W57: 32 | X57: 56 | Y57: 63 | Z57: 44 | AA57: 85 | AB57: 136 | AC57: 44 | AD57: 102 | AE57: 19 | AF57: 24 | AG57: 94 | AH57: 18 | AI57: 5 | AJ57: 61 | AK57: 54 | AL57: 0 | AM57: 25 | AN57: 4 | AO57: 14 | AP57: 18 | AQ57: 0 | AR57: 8 | AS57: 27 | AT57: 0 | AU57: 3 | AV57: 21 | AW57: 0 | AX57: 11 | AY57: 17 | AZ57: 0 | BA57: 21 | BB57: 12 | BC57: 0 | BD57: 37 | BE57: 6 | BF57: 2 | BG57: 30 | BH57: 9 | BI57: 2 | BJ57: 20 | BK57: 7 | BL57: 40 | BM57: 42 | BN57: 13 | BO57: 2 | BP57: 30 | BQ57: 20 | BR57: 0 | BS57: 7 | BT57: 25 | BU57: 6 | BV57: 22 | BW57: 29 | BX57: 0 | BY57: 22 | BZ57: 37 | CA57: 3 | CB57: 14 | CC57: 43 | CD57: 14 | CE57: 5 | CF57: 40 | CG57: 5 | CH57: 3 | CI57: 23 | CJ57: 2 | CK57: -2 | CL57: 26 | CM57: 12 | CN57: -2 | CO57: 19 | CP57: 2 | CQ57: 0 | CR57: 8 | CS57: 33 | CT57: 1 | CU57: 6 | CV57: 5 | CW57: -1 | CX57: 5 | CY57: -2 | CZ57: 0 | DA57: 4 | DB57: 1 | DC57: 0 | DD57: 6 | DE57: -3 | DF57: -12 | DG57: 2 | DH57: 0 | DI57: 1 | DJ57: 10 | DK57: 0 | DL57: -6 | DM57: 10 | DN57: 0 | DO57: 2 | DP57: 3 | DQ57: 0 | DR57: -2 | DS57: 12 | DT57: 0 | DU57: 6 | DV57: 10 | DW57: 0 | DX57: -2 | DY57: 4 | DZ57: 0 | EA57: 1 | EC57: 1
A58: Center Harbor | B58: 1020 | C58: 104 | D58: 10660 | E58: 808 | F58: 996 | G58: 996 | H58: 1096 | I58: 1212 | J58: 1238 | K58: 1264 | L58: 6 | M58: 0 | N58: 4 | O58: 10 | P58: 0 | Q58: 3 | R58: 4 | S58: 0 | T58: 2 | U58: 8 | V58: 0 | W58: 0 | X58: 6 | Y58: 0 | Z58: 1 | AA58: 9 | AB58: 9 | AC58: 0 | AD58: 12 | AE58: 3 | AF58: 0 | AG58: 17 | AH58: 0 | AI58: 3 | AJ58: 13 | AK58: 0 | AL58: 0 | AM58: 2 | AN58: 0 | AO58: 0 | AP58: 5 | AQ58: 0 | AR58: 2 | AS58: 3 | AT58: 0 | AU58: 1 | AV58: 5 | AW58: 0 | AX58: 2 | AY58: 12 | AZ58: 0 | BA58: 2 | BB58: 2 | BC58: 0 | BD58: 0 | BE58: 9 | BF58: 0 | BG58: 0 | BH58: 7 | BI58: 0 | BJ58: 0 | BK58: 9 | BL58: 0 | BM58: 0 | BN58: 5 | BO58: 0 | BP58: 1 | BQ58: 6 | BR58: 0 | BS58: -1 | BT58: 3 | BU58: 0 | BV58: 2 | BW58: 7 | BX58: 0 | BY58: 0 | BZ58: 6 | CA58: 0 | CB58: 1 | CC58: 15 | CD58: 0 | CE58: 0 | CF58: 19 | CG58: 0 | CH58: 2 | CI58: 12 | CJ58: 0 | CK58: 0 | CL58: 10 | CM58: 0 | CN58: 0 | CO58: 3 | CP58: 0 | CQ58: 0 | CR58: 1 | CS58: 0 | CT58: 0 | CU58: 7 | CV58: 0 | CW58: 0 | CX58: 0 | CY58: 0 | CZ58: 0 | DA58: 0 | DB58: 0 | DC58: 0 | DD58: 0 | DE58: 1 | DF58: -1 | DG58: 3 | DH58: 0 | DI58: 0 | DJ58: 0 | DK58: 0 | DL58: 0 | DM58: 3 | DN58: 0 | DO58: 0 | DP58: 5 | DQ58: 0 | DR58: 0 | DS58: 2 | DT58: 2 | DU58: 0 | DV58: -1 | DW58: 0 | DX58: 0 | DY58: 3 | DZ58: 2 | EA58: 0 | EC58: 1
A59: Gilford | B59: 1025 | C59: 105 | D59: 28740 | E59: 4841 | F59: 5867 | G59: 6803 | H59: 7126 | I59: 7503 | J59: 7665 | K59: 7830 | L59: 53 | M59: 11 | N59: 1 | O59: 94 | P59: 22 | Q59: 6 | R59: 45 | S59: 65 | T59: 10 | U59: 67 | V59: 46 | W59: 0 | X59: 143 | Y59: 6 | Z59: 16 | AA59: 131 | AB59: 5 | AC59: 23 | AD59: 142 | AE59: 79 | AF59: 49 | AG59: 110 | AH59: 4 | AI59: 13 | AJ59: 59 | AK59: 0 | AL59: 14 | AM59: 24 | AN59: 0 | AO59: 2 | AP59: 16 | AQ59: 0 | AR59: 2 | AS59: 20 | AT59: 0 | AU59: 5 | AV59: 21 | AW59: 0 | AX59: 0 | AY59: 14 | AZ59: 0 | BA59: 5 | BB59: 15 | BC59: 0 | BD59: 6 | BE59: 16 | BF59: 0 | BG59: 6 | BH59: 26 | BI59: 0 | BJ59: 7 | BK59: 23 | BL59: 0 | BM59: 10 | BN59: 31 | BO59: 0 | BP59: 3 | BQ59: 28 | BR59: 0 | BS59: 11 | BT59: 51 | BU59: 5 | BV59: 7 | BW59: 62 | BX59: 0 | BY59: -3 | BZ59: 102 | CA59: 8 | CB59: 14 | CC59: 59 | CD59: 7 | CE59: -5 | CF59: 38 | CG59: 0 | CH59: 0 | CI59: 57 | CJ59: 12 | CK59: 6 | CL59: 51 | CM59: 4 | CN59: 11 | CO59: 51 | CP59: 2 | CQ59: 1 | CR59: 23 | CS59: 0 | CT59: 0 | CU59: 12 | CV59: 0 | CW59: 0 | CX59: 17 | CY59: 0 | CZ59: 0 | DA59: 2 | DB59: 0 | DC59: 1 | DD59: 14 | DE59: 0 | DF59: 3 | DG59: 13 | DH59: 0 | DI59: 4 | DJ59: 13 | DK59: 0 | DL59: 0 | DM59: 25 | DN59: 0 | DO59: 0 | DP59: 26 | DQ59: 0 | DR59: 0 | DS59: 23 | DT59: 0 | DU59: 0 | DV59: 13 | DW59: 3 | DX59: 1 | DY59: 16 | DZ59: 0 | EA59: 2 | EC59: 1
A60: Gilmanton | B60: 1030 | C60: 106 | D60: 28980 | E60: 1941 | F60: 2609 | G60: 3060 | H60: 3777 | I60: 4602 | J60: 4701 | K60: 4802 | L60: 15 | M60: 0 | N60: 2 | O60: 18 | P60: 0 | Q60: 3 | R60: 10 | S60: 0 | T60: 0 | U60: 23 | V60: 0 | W60: 0 | X60: 22 | Y60: 1 | Z60: 0 | AA60: 34 | AB60: 0 | AC60: 0 | AD60: 62 | AE60: 2 | AF60: 0 | AG60: 68 | AH60: 0 | AI60: 0 | AJ60: 102 | AK60: 2 | AL60: 0 | AM60: 32 | AN60: 0 | AO60: 1 | AP60: 26 | AQ60: 0 | AR60: 2 | AS60: 18 | AT60: 0 | AU60: 0 | AV60: 13 | AW60: 0 | AX60: 0 | AY60: 20 | AZ60: 0 | BA60: 0 | BB60: 13 | BC60: 0 | BD60: 0 | BE60: 15 | BF60: 2 | BG60: 0 | BH60: 16 | BI60: 0 | BJ60: 0 | BK60: 13 | BL60: 2 | BM60: 0 | BN60: 13 | BO60: 2 | BP60: 0 | BQ60: 24 | BR60: 4 | BS60: 0 | BT60: 45 | BU60: 0 | BV60: 2 | BW60: 43 | BX60: 0 | BY60: 0 | BZ60: 53 | CA60: 2 | CB60: 0 | CC60: 55 | CD60: 0 | CE60: 0 | CF60: 45 | CG60: 2 | CH60: 0 | CI60: 26 | CJ60: 2 | CK60: 0 | CL60: 17 | CM60: 2 | CN60: 0 | CO60: 17 | CP60: 0 | CQ60: 0 | CR60: -1 | CS60: 0 | CT60: 0 | CU60: 5 | CV60: 0 | CW60: 0 | CX60: 1 | CY60: 0 | CZ60: 0 | DA60: 0 | DB60: 0 | DC60: 0 | DD60: 1 | DE60: 0 | DF60: 0 | DG60: 0 | DH60: 0 | DI60: 0 | DJ60: 1 | DK60: 0 | DL60: 0 | DM60: 2 | DN60: 0 | DO60: 0 | DP60: 10 | DQ60: 0 | DR60: 0 | DS60: 16 | DT60: 1 | DU60: 0 | DV60: 14 | DW60: 0 | DX60: 0 | DY60: 2 | DZ60: 2 | EA60: 0 | EC60: 1
A61: Laconia | B61: 1035 | C61: 107 | D61: 40180 | E61: 15575 | F61: 15743 | G61: 16411 | H61: 15951 | I61: 15442 | J61: 15775 | K61: 16115 | L61: 32 | M61: 5 | N61: 1 | O61: 17 | P61: 67 | Q61: 2 | R61: 25 | S61: 148 | T61: 0 | U61: 7 | V61: -11 | W61: 0 | X61: 52 | Y61: 24 | Z61: 3 | AA61: 85 | AB61: 164 | AC61: 0 | AD61: 132 | AE61: 277 | AF61: 0 | AG61: 110 | AH61: 134 | AI61: 0 | AJ61: 95 | AK61: 116 | AL61: 0 | AM61: 27 | AN61: 8 | AO61: 0 | AP61: 19 | AQ61: 12 | AR61: 0 | AS61: 10 | AT61: 0 | AU61: 10 | AV61: 31 | AW61: 29 | AX61: 5 | AY61: 8 | AZ61: 52 | BA61: 27 | BB61: 35 | BC61: 14 | BD61: 20 | BE61: 19 | BF61: 5 | BG61: 19 | BH61: 17 | BI61: -6 | BJ61: 23 | BK61: 26 | BL61: -26 | BM61: 6 | BN61: 34 | BO61: -5 | BP61: 6 | BQ61: 33 | BR61: 0 | BS61: 22 | BT61: 47 | BU61: 8 | BV61: 26 | BW61: 60 | BX61: 4 | BY61: 1 | BZ61: 72 | CA61: 10 | CB61: 0 | CC61: 139 | CD61: 0 | CE61: 1 | CF61: 166 | CG61: 0 | CH61: 0 | CI61: 36 | CJ61: 72 | CK61: 0 | CL61: 57 | CM61: 80 | CN61: 0 | CO61: 51 | CP61: 14 | CQ61: 0 | CR61: 30 | CS61: 47 | CT61: 0 | CU61: 32 | CV61: -3 | CW61: 0 | CX61: 54 | CY61: -4 | CZ61: 0 | DA61: 36 | DB61: 10 | DC61: 0 | DD61: 27 | DE61: 4 | DF61: 0 | DG61: 1 | DH61: 50 | DI61: 0 | DJ61: 34 | DK61: 64 | DL61: 0 | DM61: 32 | DN61: 138 | DO61: 0 | DP61: 26 | DQ61: 10 | DR61: 1 | DS61: 18 | DT61: 5 | DU61: 3 | DV61: 14 | DW61: 9 | DX61: 1 | DY61: 12 | DZ61: 4 | EA61: 0 | EB61: 2002 Did not submit data to OEP. Used Census Data | EC61: 1
A62: Meredith | B62: 1040 | C62: 108 | D62: 47140 | E62: 4646 | F62: 4837 | G62: 5943 | H62: 6241 | I62: 6589 | J62: 6731 | K62: 6876 | L62: 51 | M62: 3 | N62: 1 | O62: 25 | P62: 0 | Q62: 6 | R62: 29 | S62: 0 | T62: 9 | U62: 30 | V62: 2 | W62: 4 | X62: 46 | Y62: 47 | Z62: 9 | AA62: 65 | AB62: 4 | AC62: 18 | AD62: 89 | AE62: 20 | AF62: 6 | AG62: 84 | AH62: 0 | AI62: 6 | AJ62: 55 | AK62: 0 | AL62: 3 | AM62: 34 | AN62: 5 | AO62: 0 | AP62: 21 | AQ62: 1 | AR62: 0 | AS62: 26 | AT62: 2 | AU62: 0 | AV62: 24 | AW62: 1 | AX62: 0 | AY62: 20 | AZ62: 2 | BA62: 0 | BB62: 38 | BC62: 0 | BD62: 4 | BE62: 34 | BF62: 0 | BG62: 2 | BH62: 48 | BI62: 0 | BJ62: 5 | BK62: 35 | BL62: 0 | BM62: 11 | BN62: 45 | BO62: 0 | BP62: 5 | BQ62: 54 | BR62: 0 | BS62: 11 | BT62: 59 | BU62: 0 | BV62: 0 | BW62: 42 | BX62: 0 | BY62: 0 | BZ62: 71 | CA62: 0 | CB62: 4 | CC62: 70 | CD62: 0 | CE62: 1 | CF62: 79 | CG62: 4 | CH62: 5 | CI62: 46 | CJ62: 48 | CK62: 5 | CL62: 23 | CM62: 46 | CN62: 4 | CO62: 27 | CP62: 2 | CQ62: 0 | CR62: 17 | CS62: 0 | CT62: 0 | CU62: -4 | CV62: 0 | CW62: 0 | CX62: 17 | CY62: 0 | CZ62: 0 | DA62: 6 | DB62: 0 | DC62: 0 | DD62: 1 | DE62: 0 | DF62: 0 | DG62: 15 | DH62: 0 | DI62: 0 | DJ62: 19 | DK62: 0 | DL62: 0 | DM62: 12 | DN62: 0 | DO62: 0 | DP62: 15 | DQ62: 5 | DR62: 1 | DS62: 16 | DT62: 2 | DU62: 0 | DV62: 15 | DW62: 6 | DX62: -1 | DY62: 31 | DZ62: 6 | EA62: 3 | EC62: 1
A63: New Hampton | B63: 1045 | C63: 109 | D63: 51540 | E63: 1249 | F63: 1606 | G63: 1950 | H63: 2165 | I63: 2413 | J63: 2466 | K63: 2519 | L63: 0 | M63: 0 | N63: 0 | O63: 2 | P63: 0 | Q63: 4 | R63: 0 | S63: 0 | T63: 0 | U63: 0 | V63: 0 | W63: 0 | X63: 3 | Y63: 0 | Z63: 3 | AA63: 8 | AB63: 0 | AC63: 1 | AD63: 20 | AE63: 1 | AF63: 1 | AG63: 27 | AH63: 0 | AI63: 5 | AJ63: 24 | AK63: 0 | AL63: 2 | AM63: 18 | AN63: 24 | AO63: 6 | AP63: 16 | AQ63: 0 | AR63: 3 | AS63: 13 | AT63: 0 | AU63: 1 | AV63: 8 | AW63: 0 | AX63: 2 | AY63: 10 | AZ63: 0 | BA63: 2 | BB63: 12 | BC63: 0 | BD63: 4 | BE63: 12 | BF63: 1 | BG63: 3 | BH63: 8 | BI63: 1 | BJ63: 3 | BK63: 11 | BL63: 0 | BM63: 4 | BN63: 8 | BO63: 0 | BP63: 2 | BQ63: 7 | BR63: 3 | BS63: 2 | BT63: 21 | BU63: 2 | BV63: 0 | BW63: 13 | BX63: 0 | BY63: 2 | BZ63: 25 | CA63: 1 | CB63: -1 | CC63: 24 | CD63: 1 | CE63: -1 | CF63: 21 | CG63: 0 | CH63: 1 | CI63: 12 | CJ63: 3 | CK63: 0 | CL63: 20 | CM63: 0 | CN63: -1 | CO63: 10 | CP63: 2 | CQ63: 0 | CR63: 9 | CS63: 0 | CT63: 1 | CU63: 3 | CV63: 1 | CW63: 2 | CX63: 4 | CY63: 2 | CZ63: 1 | DA63: 7 | DB63: 0 | DC63: 0 | DD63: 4 | DE63: 1 | DF63: 1 | DG63: 1 | DH63: 5 | DI63: 4 | DJ63: 2 | DK63: 3 | DL63: 2 | DM63: 9 | DN63: 0 | DO63: 5 | DP63: 3 | DQ63: 0 | DR63: 6 | DS63: 2 | DT63: 4 | DU63: 16 | DV63: 0 | DW63: 1 | DX63: 0 | DY63: 1 | DZ63: 1 | EA63: 11 | EC63: 1
A64: Sanbornton | B64: 1050 | C64: 110 | D64: 67300 | E64: 1679 | F64: 2136 | G64: 2581 | H64: 2966 | I64: 3410 | J64: 3483 | K64: 3558 | L64: 16 | M64: 0 | N64: 2 | O64: 14 | P64: 0 | Q64: 2 | R64: 10 | S64: 0 | T64: 0 | U64: -1 | V64: 0 | W64: 0 | X64: 17 | Y64: 0 | Z64: 0 | AA64: 40 | AB64: 0 | AC64: 0 | AD64: 38 | AE64: 0 | AF64: 1 | AG64: 58 | AH64: 0 | AI64: 3 | AJ64: 38 | AK64: 1 | AL64: 1 | AM64: 27 | AN64: 2 | AO64: -1 | AP64: 5 | AQ64: 0 | AR64: 1 | AS64: 8 | AT64: 0 | AU64: 2 | AV64: 16 | AW64: 0 | AX64: 3 | AY64: 12 | AZ64: 0 | BA64: 0 | BB64: 24 | BC64: 0 | BD64: 2 | BE64: 1 | BF64: 0 | BG64: 3 | BH64: 7 | BI64: 1 | BJ64: 1 | BK64: 9 | BL64: 1 | BM64: 2 | BN64: 19 | BO64: 0 | BP64: 0 | BQ64: 25 | BR64: 0 | BS64: 7 | BT64: 36 | BU64: 0 | BV64: 6 | BW64: 19 | BX64: 0 | BY64: 5 | BZ64: 29 | CA64: 0 | CB64: 0 | CC64: 23 | CD64: 0 | CE64: 0 | CF64: 27 | CG64: 0 | CH64: 0 | CI64: 36 | CJ64: 0 | CK64: 1 | CL64: 16 | CM64: 0 | CN64: 2 | CO64: 16 | CP64: 3 | CQ64: 0 | CR64: 8 | CS64: 0 | CT64: 1 | CU64: 6 | CV64: 0 | CW64: 0 | CX64: 0 | CY64: 0 | CZ64: 2 | DA64: 5 | DB64: 0 | DC64: 0 | DD64: 6 | DE64: 0 | DF64: 0 | DG64: 4 | DH64: 0 | DI64: 0 | DJ64: 2 | DK64: 0 | DL64: 0 | DM64: 6 | DN64: 0 | DO64: 0 | DP64: 0 | DQ64: 0 | DR64: 0 | DS64: 3 | DT64: 2 | DU64: 0 | DV64: 6 | DW64: 0 | DX64: 0 | DY64: 3 | DZ64: 3 | EA64: 0 | EC64: 1
A65: Tilton | B65: 1055 | C65: 111 | D65: 77060 | E65: 3387 | F65: 3240 | G65: 3477 | H65: 3567 | I65: 3674 | J65: 3753 | K65: 3834 | L65: 4 | M65: 2 | N65: 0 | O65: 7 | P65: 0 | Q65: 0 | R65: 7 | S65: 4 | T65: 0 | U65: 7 | V65: 1 | W65: 0 | X65: 8 | Y65: 4 | Z65: 3 | AA65: 28 | AB65: 9 | AC65: 6 | AD65: 15 | AE65: 0 | AF65: 6 | AG65: 14 | AH65: 4 | AI65: 8 | AJ65: 12 | AK65: 13 | AL65: -1 | AM65: 2 | AN65: 16 | AO65: -1 | AP65: 3 | AQ65: 11 | AR65: 3 | AS65: 5 | AT65: -3 | AU65: 0 | AV65: 7 | AW65: 0 | AX65: -3 | AY65: 2 | AZ65: 0 | BA65: -2 | BB65: 4 | BC65: 0 | BD65: -2 | BE65: 4 | BF65: 0 | BG65: 0 | BH65: 6 | BI65: 0 | BJ65: 2 | BK65: 4 | BL65: 0 | BM65: 4 | BN65: 2 | BO65: 0 | BP65: 4 | BQ65: 5 | BR65: 0 | BS65: 1 | BT65: 6 | BU65: 2 | BV65: 2 | BW65: -2 | BX65: 0 | BY65: 0 | BZ65: 19 | CA65: 0 | CB65: 13 | CC65: 15 | CD65: 0 | CE65: 10 | CF65: 12 | CG65: 0 | CH65: 7 | CI65: 12 | CJ65: 0 | CK65: 9 | CL65: 10 | CM65: 2 | CN65: 0 | CO65: 4 | CP65: 19 | CQ65: 0 | CR65: 1 | CS65: 0 | CT65: 2 | CU65: 1 | CV65: 0 | CW65: 0 | CX65: -1 | CY65: 10 | CZ65: -1 | DA65: -1 | DB65: 4 | DC65: 0 | DD65: 3 | DE65: 19 | DF65: 1 | DG65: 1 | DH65: 0 | DI65: 14 | DJ65: 4 | DK65: 0 | DL65: 4 | DM65: 2 | DN65: 0 | DO65: 1 | DP65: 1 | DQ65: 0 | DR65: 14 | DS65: 4 | DT65: 5 | DU65: 0 | DV65: 9 | DW65: 0 | DX65: 4 | DY65: 6 | DZ65: 13 | EA65: 0 | EC65: 1
A72: NH Employment Data | B72: Query Name: DPQryEmploymentByCnty-Good-Serv-Total | C72: Updated: | D72: 2020-09-30
A74: AreaName | B74: COUNTYCODE | C74: TOTP & G2001 | D74: TOT2001 | E74: GOODPRO2001 | F74: SERVICEPROMAN2001 | G74: WAGEP & G2001 | H74: WAGETOT2001 | I74: WAGEGOODPRO2001 | J74: WAGESERVICEPRO2001 | K74: TOTP & G2002 | L74: TOT2002 | M74: GOODPRO2002 | N74: SERVICEPROMAN2002 | O74: WAGEP & G2002 | P74: WAGETOT2002 | Q74: WAGEGOODPRO2002 | R74: WAGESERVICEPRO2002 | S74: TOTP & G2003 | T74: TOT2003 | U74: GOODPRO2003 | V74: SERVICEPROMAN2003 | W74: WAGEP & G2003 | X74: WAGETOT2003 | Y74: WAGEGOODPRO2003 | Z74: WAGESERVICEPRO2003 | AA74: TOTP & G2004 | AB74: TOT2004 | AC74: GOODPRO2004 | AD74: SERVICEPROMAN2004 | AE74: WAGEP & G2004 | AF74: WAGETOT2004 | AG74: WAGEGOODPRO2004 | AH74: WAGESERVICEPRO2004 | AI74: TOTP & G2005 | AJ74: TOT2005 | AK74: GOODPRO2005 | AL74: SERVICEPROMAN2005 | AM74: WAGEP & G2005 | AN74: WAGETOT2005 | AO74: WAGEGOODPRO2005 | AP74: WAGESERVICEPRO2005 | AQ74: TOTP & G2006 | AR74: TOT2006 | AS74: GOODPRO2006 | AT74: SERVICEPROMAN2006 | AU74: WAGEP & G2006 | AV74: WAGETOT2006 | AW74: WAGEGOODPRO2006 | AX74: WAGESERVICEPRO2006 | AY74: TOTP & G2007 | AZ74: TOT2007 | BA74: GOODPRO2007 | BB74: SERVICEPROMAN2007 | BC74: WAGEP & G2007 | BD74: WAGETOT2007 | BE74: WAGEGOODPRO2007 | BF74: WAGESERVICEPRO2007 | BG74: TOTP & G2008 | BH74: TOT2008 | BI74: GOODPRO2008 | BJ74: SERVICEPROMAN2008 | BK74: WAGEP & G2008 | BL74: WAGETOT2008 | BM74: WAGEGOODPRO2008 | BN74: WAGESERVICEPRO2008 | BO74: TOTP & G2009 | BP74: TOT2009 | BQ74: GOODPRO2009 | BR74: SERVICEPROMAN2009 | BS74: WAGEP & G2009 | BT74: WAGETOT2009 | BU74: WAGEGOODPRO2009 | BV74: WAGESERVICEPRO2009 | BW74: TOTP & G2010 | BX74: TOT2010 | BY74: GOODPRO2010 | BZ74: SERVICEPROMAN2010 | CA74: WAGEP & G2010 | CB74: WAGETOT2010 | CC74: WAGEGOODPRO2010 | CD74: WAGESERVICEPRO2010 | CE74: TOTP & G2011 | CF74: TOT2011 | CG74: GOODPRO2011 | CH74: SERVICEPROMAN2011 | CI74: WAGEP & G2011 | CJ74: WAGETOT2011 | CK74: WAGEGOODPRO2011 | CL74: WAGESERVICEPRO2011 | CM74: TOTP & G2012 | CN74: TOT2012 | CO74: GOODPRO2012 | CP74: SERVICEPROMAN2012 | CQ74: WAGEP & G2012 | CR74: WAGETOT2012 | CS74: WAGEGOODPRO2012 | CT74: WAGESERVICEPRO2012 | CU74: TOTP & G2013 | CV74: TOT2013 | CW74: GOODPRO2013 | CX74: SERVICEPROMAN2013 | CY74: WAGEP & G2013 | CZ74: WAGETOT2013 | DA74: WAGEGOODPRO2013 | DB74: WAGESERVICEPRO2013 | DC74: TOTP & G2014 | DD74: TOT2014 | DE74: GOODPRO2014 | DF74: SERVICEPROMAN2014 | DG74: WAGEP & G2014 | DH74: WAGETOT2014 | DI74: WAGEGOODPRO2014 | DJ74: WAGESERVICEPRO2014 | DK74: TOTP & G2015 | DL74: TOT2015 | DM74: GOODPRO2015 | DN74: SERVICEPROMAN2015 | DO74: WAGEP & G2015 | DP74: WAGETOT2015 | DQ74: WAGEGOODPRO2015 | DR74: WAGESERVICEPRO2015 | DS74: TOTP & G2016 | DT74: TOT2016 | DU74: GOODPRO2016 | DV74: SERVICEPROMAN2016 | DW74: WAGEP & G2016 | DX74: WAGETOT2016 | DY74: WAGEGOODPRO2016 | DZ74: WAGESERVICEPRO2016 | EA74: TOTP & G2017 | EB74: TOT2017 | EC74: GOODPRO2017 | ED74: SERVICEPROMAN2017 | EE74: WAGEP & G2017 | EF74: WAGETOT2017 | EG74: WAGEGOODPRO2017 | EH74: WAGESERVICEPRO2017 | EI74: TOTP & G2018 | EJ74: TOT2018 | EK74: GOODPRO2018 | EL74: SERVICEPROMAN2018 | EM74: WAGEP & G2018 | EN74: WAGETOT2018 | EO74: WAGEGOODPRO2018 | EP74: WAGESERVICEPRO2018 | EQ74: TOTP & G2019 | ER74: TOT2019 | ES74: TOTGov2019 | ET74: GOODPRO2019 | EU74: SERVICEPROMAN2019 | EV74: WAGEP & G2019 | EW74: WAGETOT2019 | EX74: WAGEGov2019 | EY74: WAGEGOODPRO2019 | EZ74: WAGESERVICEPRO2019
A75: Alton | B75: 1 | C75: 793 | D75: 605 | E75: 58 | F75: 547 | G75: 378.55 | H75: 349.52 | I75: 639.23 | J75: 318.59 | K75: 800 | L75: 611 | M75: 66 | N75: 545 | O75: 403.77 | P75: 361.16 | Q75: 520.02 | R75: 341.94 | S75: 764 | T75: 562 | U75: 65 | V75: 497 | W75: 476.34 | X75: 451.28 | Y75: 552.1 | Z75: 438.01 | AA75: 858 | AB75: 614 | AC75: 71 | AD75: 543 | AE75: 486.24 | AF75: 469.58 | AG75: 624.64 | AH75: 449.37 | AI75: 912 | AJ75: 627 | AK75: 82 | AL75: 545 | AM75: 569.04 | AN75: 565.94 | AO75: 604.42 | AP75: 560.14 | AQ75: 992 | AR75: 698 | AS75: 91 | AT75: 607 | AU75: 556.22 | AV75: 548.58 | AW75: 704.38 | AX75: 525.35 | AY75: 995 | AZ75: 699 | BA75: 79 | BB75: 620 | BC75: 561.87 | BD75: 535.66 | BE75: 692.01 | BF75: 515.8 | BG75: 1032 | BH75: 719 | BI75: 77 | BJ75: 642 | BK75: 551.27 | BL75: 508.09 | BM75: 805.41 | BN75: 472.21 | BO75: 1021 | BP75: 697 | BQ75: 87 | BR75: 610 | BS75: 558.7 | BT75: 514.45 | BU75: 635.32 | BV75: 497.12 | BW75: 1017 | BX75: 688 | BY75: 78 | BZ75: 610 | CA75: 579.28 | CB75: 534.76 | CC75: 793.48 | CD75: 501.69 | CE75: 1022 | CF75: 702 | CG75: 61 | CH75: 641 | CI75: 548.26 | CJ75: 482.83 | CK75: 708.12 | CL75: 461.45 | CM75: 1005 | CN75: 672 | CO75: 45 | CP75: 627 | CQ75: 540.45 | CR75: 473.98 | CS75: 606.98 | CT75: 464.49 | CU75: 1079 | CV75: 743 | CW75: 61 | CX75: 682 | CY75: 569.93 | CZ75: 513.27 | DA75: 1081.83 | DB75: 462.8 | DC75: 1099 | DD75: 764 | DE75: 46 | DF75: 719 | DG75: 560.63 | DH75: 489.82 | DI75: 626.06 | DJ75: 481.18 | DK75: 1109 | DL75: 769 | DM75: 55 | DN75: 714 | DO75: 598.29 | DP75: 530.28 | DQ75: 655.94 | DR75: 520.66 | DS75: 1099 | DT75: 768 | DU75: 54 | DV75: 714 | DW75: 631.68 | DX75: 568.29 | DY75: 691.3 | DZ75: 559.05 | EA75: 1112 | EB75: 789 | EC75: 59 | ED75: 731 | EE75: 632.3 | EF75: 568.43 | EG75: 710.19 | EH75: 557 | EI75: 1142 | EJ75: 821 | EK75: 70 | EL75: 750 | EM75: 654.4 | EN75: 586.46 | EO75: 723.51 | EP75: 573.63 | EQ75: 1174 | ER75: 855 | ES75: 320 | ET75: 74 | EU75: 780 | EV75: 696.93 | EW75: 635.15 | EX75: 862.19 | EY75: 843.53 | EZ75: 615.32
A76: Barnstead | B76: 1 | C76: 445 | D76: 314 | E76: 154 | F76: 160 | G76: 435.57 | H76: 433.61 | I76: 529.67 | J76: 340.66 | K76: 419 | L76: 283 | M76: 134 | N76: 150 | O76: 441.45 | P76: 441.8 | Q76: 568.68 | R76: 328.48 | S76: 413 | T76: 272 | U76: 113 | V76: 160 | W76: 466.42 | X76: 472.81 | Y76: 595.93 | Z76: 386.09 | AA76: 381 | AB76: 226 | AC76: 68 | AD76: 158 | AE76: 444.6 | AF76: 441.13 | AG76: 519.47 | AH76: 407.73 | AI76: 384 | AJ76: 222 | AK76: 56 | AL76: 166 | AM76: 450.03 | AN76: 435.69 | AO76: 569.94 | AP76: 390.26 | AQ76: 397 | AR76: 245 | AS76: 56 | AT76: 190 | AU76: 452.05 | AV76: 392.74 | AW76: 570.88 | AX76: 340.58 | AY76: 392 | AZ76: 243 | BA76: 45 | BB76: 45 | BC76: 504.33 | BD76: 417.16 | BE76: 569.52 | BF76: 569.52 | BG76: 379 | BH76: 220 | BI76: 35 | BJ76: 186 | BK76: 518.02 | BL76: 448.61 | BM76: 525.54 | BN76: 434.29 | BO76: 365 | BP76: 203 | BQ76: 33 | BR76: 170 | BS76: 511.52 | BT76: 440.71 | BU76: 515.86 | BV76: 425.92 | BW76: 356 | BX76: 202 | BY76: 37 | BZ76: 165 | CA76: 507.54 | CB76: 423.46 | CC76: 448.61 | CD76: 417.82 | CE76: 323 | CF76: 172 | CG76: 22 | CH76: 150 | CI76: 599.23 | CJ76: 535.5 | CK76: 448.12 | CL76: 548.55 | CM76: 316 | CN76: 157 | CO76: 19 | CP76: 137 | CQ76: 566.27 | CR76: 472.9 | CS76: 569.21 | CT76: 459.46 | CU76: 324 | CV76: 163 | CW76: 21 | CX76: 143 | CY76: 585.37 | CZ76: 518.47 | DA76: 659.43 | DB76: 497.87 | DC76: 352 | DD76: 183 | DE76: 26 | DF76: 157 | DG76: 666.82 | DH76: 681.82 | DI76: 629.11 | DJ76: 690.62 | DK76: 382 | DL76: 211 | DM76: 34 | DN76: 177 | DO76: 662.62 | DP76: 661.2 | DQ76: 649.05 | DR76: 663.53 | DS76: 417 | DT76: 236 | DU76: 42 | DV76: 193 | DW76: 663.39 | DX76: 661.92 | DY76: 669.78 | DZ76: 660.2 | EA76: 417 | EB76: 228 | EC76: 47 | ED76: 181 | EE76: 660.29 | EF76: 667.21 | EG76: 658.62 | EH76: 669.43 | EI76: 417 | EJ76: 229 | EK76: 54 | EL76: 175 | EM76: 654.12 | EN76: 628.17 | EO76: 670.89 | EP76: 614.9 | EQ76: 398 | ER76: 217 | ES76: 181 | ET76: 57 | EU76: 160 | EV76: 710.25 | EW76: 690.01 | EX76: 734.49 | EY76: 716.61 | EZ76: 680.58
A77: Belmont | B77: 1 | C77: 1933 | D77: 1872 | E77: 616 | F77: 1255 | G77: 642.78 | H77: 641.69 | I77: 823.16 | J77: 552.62 | K77: 2261 | L77: 1995 | M77: 693 | N77: 1302 | O77: 672.34 | P77: 670.56 | Q77: 860.66 | R77: 569.38 | S77: 2261 | T77: 1988 | U77: 563 | V77: 1425 | W77: 663.41 | X77: 655.66 | Y77: 797.56 | Z77: 599.66 | AA77: 2324 | AB77: 2052 | AC77: 559 | AD77: 1493 | AE77: 694.94 | AF77: 691.09 | AG77: 811.66 | AH77: 645.91 | AI77: 2298 | AJ77: 2007 | AK77: 555 | AL77: 1452 | AM77: 715.75 | AN77: 714.11 | AO77: 889.19 | AP77: 647.27 | AQ77: 2593 | AR77: 2289 | AS77: 690 | AT77: 1598 | AU77: 792.15 | AV77: 797.16 | AW77: 1016.39 | AX77: 702.47 | AY77: 2666 | AZ77: 2345 | BA77: 704 | BB77: 1641 | BC77: 810.43 | BD77: 815.99 | BE77: 1076.04 | BF77: 704.37 | BG77: 2649 | BH77: 2324 | BI77: 664 | BJ77: 1660 | BK77: 801.42 | BL77: 801 | BM77: 1072.02 | BN77: 692.62 | BO77: 2406 | BP77: 2080 | BQ77: 570 | BR77: 1509 | BS77: 801.76 | BT77: 797.67 | BU77: 1078.65 | BV77: 691.5 | BW77: 2366 | BX77: 2033 | BY77: 539 | BZ77: 1494 | CA77: 823.08 | CB77: 823.23 | CC77: 1066.68 | CD77: 735.49 | CE77: 2319 | CF77: 1992 | CG77: 506 | CH77: 1485 | CI77: 832.62 | CJ77: 830.21 | CK77: 1109.28 | CL77: 735.06 | CM77: 2330 | CN77: 1982 | CO77: 500 | CP77: 1482 | CQ77: 822.02 | CR77: 825.86 | CS77: 1085.11 | CT77: 738.33 | CU77: 2368 | CV77: 2019 | CW77: 463 | CX77: 1556 | CY77: 821.81 | CZ77: 824.49 | DA77: 1190.01 | DB77: 715.64 | DC77: 2423 | DD77: 2077 | DE77: 446 | DF77: 1632 | DG77: 835.61 | DH77: 834.51 | DI77: 1249.83 | DJ77: 721.02 | DK77: 2412 | DL77: 2071 | DM77: 432 | DN77: 1639 | DO77: 849.65 | DP77: 853.17 | DQ77: 1229.77 | DR77: 753.99 | DS77: 2434 | DT77: 2100 | DU77: 456 | DV77: 1644 | DW77: 889.47 | DX77: 892.25 | DY77: 1238.92 | DZ77: 796.13 | EA77: 2441 | EB77: 2097 | EC77: 454 | ED77: 1644 | EE77: 941.12 | EF77: 952.9 | EG77: 1524.1 | EH77: 795.33 | EI77: 2360 | EJ77: 2021 | EK77: 491 | EL77: 1530 | EM77: 986.02 | EN77: 1001.79 | EO77: 1281.11 | EP77: 912.06 | EQ77: 2383 | ER77: 2035 | ES77: 348 | ET77: 514 | EU77: 1521 | EV77: 1009 | EW77: 1029.53 | EX77: 889.01 | EY77: 1308.83 | EZ77: 935.07
A78: Center Harbor | B78: 1 | C78: 492 | D78: 476 | E78: 42 | F78: 434 | G78: 410.04 | H78: 400.87 | I78: 1184.78 | J78: 324.83 | K78: 415 | L78: 399 | M78: 42 | N78: 358 | O78: 466.04 | P78: 455.73 | Q78: 1158.4 | R78: 374.02 | S78: 461 | T78: 445 | U78: 59 | V78: 387 | W78: 445.41 | X78: 435.81 | Y78: 1024.15 | Z78: 346.76 | AA78: 543 | AB78: 529 | AC78: 82 | AD78: 447 | AE78: 474.25 | AF78: 463.11 | AG78: 889.7 | AH78: 384.91 | AI78: 521 | AJ78: 507 | AK78: 72 | AL78: 435 | AM78: 504.74 | AN78: 496.19 | AO78: 932.31 | AP78: 424.51 | AQ78: 548 | AR78: 527 | AS78: 65 | AT78: 462 | AU78: 553.91 | AV78: 552.8 | AW78: 1003.41 | AX78: 489.71 | AY78: 556 | AZ78: 531 | BA78: 74 | BB78: 457 | BC78: 584.74 | BD78: 581.72 | BE78: 1019.05 | BF78: 511.05 | BG78: 470 | BH78: 446 | BI78: 60 | BJ78: 386 | BK78: 585.75 | BL78: 578.57 | BM78: 955.5 | BN78: 520.18 | BO78: 379 | BP78: 355 | BQ78: 48 | BR78: 307 | BS78: 618.67 | BT78: 610.3 | BU78: 1059.21 | BV78: 540.27 | BW78: 361 | BX78: 334 | BY78: 47 | BZ78: 287 | CA78: 638.49 | CB78: 637.52 | CC78: 1106.11 | CD78: 560.37 | CE78: 315 | CF78: 290 | CG78: 15 | CH78: 275 | CI78: 493.01 | CJ78: 473.33 | CK78: 552.12 | CL78: 469.11 | CM78: 318 | CN78: 293 | CO78: 19 | CP78: 275 | CQ78: 520.69 | CR78: 503.91 | CS78: 592.75 | CT78: 497.84 | CU78: 368 | CV78: 345 | CW78: 23 | CX78: 322 | CY78: 465.67 | CZ78: 446.87 | DA78: 666.18 | DB78: 431.32 | DC78: 356 | DD78: 331 | DE78: 24 | DF78: 308 | DG78: 503.47 | DH78: 486.5 | DI78: 750.33 | DJ78: 466.28 | DK78: 327 | DL78: 300 | DM78: 22 | DN78: 278 | DO78: 541.35 | DP78: 521.49 | DQ78: 753.43 | DR78: 503.14 | DS78: 304 | DT78: 270 | DU78: 21 | DV78: 250 | DW78: 491.66 | DX78: 478.09 | DY78: 818.23 | DZ78: 450.16 | EA78: 296 | EB78: 263 | EC78: 15 | ED78: 248 | EE78: 501.02 | EF78: 479.61 | EG78: 724.55 | EH78: 464.44 | EI78: 296 | EJ78: 263 | EK78: 14 | EL78: 248 | EM78: 524.72 | EN78: 511.09 | EO78: 816.9 | EP78: 493.43 | EQ78: 289 | ER78: 253 | ES78: 36 | ET78: 18 | EU78: 235 | EV78: 577.56 | EW78: 558.6 | EX78: 712.14 | EY78: 812.87 | EZ78: 538.64
A79: Gilford | B79: 1 | C79: 3321 | D79: 2792 | E79: 625 | F79: 2167 | G79: 499.75 | H79: 500.22 | I79: 655.96 | J79: 455.32 | K79: 3357 | L79: 2836 | M79: 545 | N79: 2291 | O79: 502.31 | P79: 498.51 | Q79: 648.17 | R79: 462.9 | S79: 3464 | T79: 2910 | U79: 591 | V79: 2319 | W79: 529.78 | X79: 519.38 | Y79: 684.73 | Z79: 477.24 | AA79: 3362 | AB79: 2840 | AC79: 599 | AD79: 2242 | AE79: 557.6 | AF79: 550.18 | AG79: 678 | AH79: 516.04 | AI79: 3254 | AJ79: 2693 | AK79: 545 | AL79: 2148 | AM79: 584.44 | AN79: 580.36 | AO79: 712.39 | AP79: 546.85 | AQ79: 3178 | AR79: 2652 | AS79: 485 | AT79: 2167 | AU79: 606.57 | AV79: 601.64 | AW79: 762.87 | AX79: 565.57 | AY79: 3081 | AZ79: 2558 | BA79: 374 | BB79: 2184 | BC79: 620.57 | BD79: 607.79 | BE79: 825.96 | BF79: 570.4 | BG79: 3070 | BH79: 2519 | BI79: 332 | BJ79: 2187 | BK79: 623.85 | BL79: 610.59 | BM79: 857.38 | BN79: 573.08 | BO79: 3040 | BP79: 2471 | BQ79: 294 | BR79: 2176 | BS79: 650.87 | BT79: 643.37 | BU79: 867.68 | BV79: 613.02 | BW79: 2940 | BX79: 2372 | BY79: 279 | BZ79: 2093 | CA79: 661.34 | CB79: 657.61 | CC79: 826.98 | CD79: 635.04 | CE79: 3080 | CF79: 2427 | CG79: 279 | CH79: 2148 | CI79: 657.46 | CJ79: 656.1 | CK79: 863.17 | CL79: 629.19 | CM79: 3006 | CN79: 2356 | CO79: 269 | CP79: 2087 | CQ79: 668.78 | CR79: 677.65 | CS79: 833.85 | CT79: 657.54 | CU79: 3121 | CV79: 2453 | CW79: 286 | CX79: 2167 | CY79: 677.04 | CZ79: 690.62 | DA79: 868.13 | DB79: 667.19 | DC79: 3207 | DD79: 2527 | DE79: 289 | DF79: 2238 | DG79: 687.88 | DH79: 706.06 | DI79: 955.86 | DJ79: 673.83 | DK79: 3296 | DL79: 2645 | DM79: 329 | DN79: 2316 | DO79: 722.4 | DP79: 734.96 | DQ79: 964.25 | DR79: 702.36 | DS79: 3374 | DT79: 2714 | DU79: 335 | DV79: 2379 | DW79: 744.59 | DX79: 763.33 | DY79: 1048.76 | DZ79: 723.15 | EA79: 3296 | EB79: 2666 | EC79: 323 | ED79: 2343 | EE79: 778.42 | EF79: 794.22 | EG79: 1135.5 | EH79: 747.23 | EI79: 3263 | EJ79: 2636 | EK79: 330 | EL79: 2307 | EM79: 830.64 | EN79: 855.7 | EO79: 1196.73 | EP79: 806.98 | EQ79: 3307 | ER79: 2670 | ES79: 8 | ET79: 315 | EU79: 2355 | EV79: 806.54 | EW79: 821.86 | EX79: 797.88 | EY79: 1219.89 | EZ79: 768.64
A80: Gilmanton | B80: 1 | C80: 305 | D80: 189 | E80: 55 | F80: 134 | G80: 458.11 | H80: 466.44 | I80: 650.97 | J80: 390.81 | K80: 259 | L80: 137 | M80: 54 | N80: 84 | O80: 491.81 | P80: 517.18 | Q80: 690.78 | R80: 406 | S80: 272 | T80: 151 | U80: 66 | V80: 85 | W80: 545.93 | X80: 563.35 | Y80: 673.72 | Z80: 477.95 | AA80: 307 | AB80: 185 | AC80: 78 | AD80: 107 | AE80: 550.98 | AF80: 567.82 | AG80: 656.31 | AH80: 503.22 | AI80: 316 | AJ80: 187 | AK80: 71 | AL80: 116 | AM80: 540.11 | AN80: 545.2 | AO80: 752.22 | AP80: 418.73 | AQ80: 301 | AR80: 164 | AS80: 70 | AT80: 94 | AU80: 623.52 | AV80: 706.23 | AW80: 774.05 | AX80: 655.26 | AY80: 310 | AZ80: 174 | BA80: 69 | BB80: 105 | BC80: 631.09 | BD80: 681.99 | BE80: 751.05 | BF80: 636.77 | BG80: 333 | BH80: 203 | BI80: 81 | BJ80: 122 | BK80: 622.88 | BL80: 623.24 | BM80: 778.7 | BN80: 520.73 | BO80: 308 | BP80: 181 | BQ80: 61 | BR80: 120 | BS80: 660.06 | BT80: 671.56 | BU80: 866.81 | BV80: 571.43 | BW80: 275 | BX80: 145 | BY80: 45 | BZ80: 100 | CA80: 648.6 | CB80: 668.17 | CC80: 937.83 | CD80: 547.03 | CE80: 269 | CF80: 146 | CG80: 44 | CH80: 102 | CI80: 625.38 | CJ80: 591.66 | CK80: 890.29 | CL80: 463.33 | CM80: 274 | CN80: 144 | CO80: 46 | CP80: 98 | CQ80: 690.07 | CR80: 710.68 | CS80: 1005.65 | CT80: 570.62 | CU80: 282 | CV80: 148 | CW80: 48 | CX80: 100 | CY80: 695.91 | CZ80: 731.63 | DA80: 995.95 | DB80: 604.2 | DC80: 299 | DD80: 171 | DE80: 55 | DF80: 115 | DG80: 707.17 | DH80: 702.77 | DI80: 965.85 | DJ80: 576.55 | DK80: 304 | DL80: 175 | DM80: 53 | DN80: 122 | DO80: 783.85 | DP80: 840.59 | DQ80: 1120.95 | DR80: 719.26 | DS80: 298 | DT80: 167 | DU80: 51 | DV80: 116 | DW80: 831.67 | DX80: 932.16 | DY80: 1251.23 | DZ80: 790.34 | EA80: 304 | EB80: 171 | EC80: 58 | ED80: 114 | EE80: 772.42 | EF80: 825.87 | EG80: 1196.82 | EH80: 638.35 | EI80: 322 | EJ80: 191 | EK80: 57 | EL80: 134 | EM80: 824.33 | EN80: 872.46 | EO80: 1121.55 | EP80: 766.1 | EQ80: 307 | ER80: 185 | ES80: 122 | ET80: 56 | EU80: 129 | EV80: 820.48 | EW80: 820.02 | EX80: 821.16 | EY80: 1205.25 | EZ80: 652.93
A81: Laconia | B81: 1 | C81: 11173 | D81: 9667 | E81: 2988 | F81: 6679 | G81: 588.17 | H81: 582.5 | I81: 683.4 | J81: 537.37 | K81: 10794 | L81: 9255 | M81: 2508 | N81: 6747 | O81: 605.79 | P81: 597.81 | Q81: 729.18 | R81: 548.97 | S81: 10672 | T81: 9075 | U81: 2328 | V81: 6748 | W81: 623.02 | X81: 613.75 | Y81: 749.5 | Z81: 566.92 | AA81: 10694 | AB81: 9162 | AC81: 2515 | AD81: 6647 | AE81: 666.65 | AF81: 650.61 | AG81: 786.16 | AH81: 599.33 | AI81: 10662 | AJ81: 9108 | AK81: 2644 | AL81: 6465 | AM81: 679.56 | AN81: 673.11 | AO81: 791.83 | AP81: 624.56 | AQ81: 10638 | AR81: 9046 | AS81: 2562 | AT81: 6484 | AU81: 705.37 | AV81: 698.97 | AW81: 841.62 | AX81: 642.6 | AY81: 10367 | AZ81: 8841 | BA81: 2334 | BB81: 6507 | BC81: 723.77 | BD81: 713.96 | BE81: 864.73 | BF81: 659.87 | BG81: 10043 | BH81: 8522 | BI81: 2183 | BJ81: 6339 | BK81: 757.94 | BL81: 746.94 | BM81: 908.64 | BN81: 691.25 | BO81: 9545 | BP81: 8047 | BQ81: 1829 | BR81: 6218 | BS81: 763.23 | BT81: 751.21 | BU81: 893.63 | BV81: 709.32 | BW81: 9322 | BX81: 7924 | BY81: 1619 | BZ81: 6304 | CA81: 771.69 | CB81: 765.42 | CC81: 920.17 | CD81: 725.67 | CE81: 9357 | CF81: 8006 | CG81: 1625 | CH81: 6380 | CI81: 788.52 | CJ81: 784.83 | CK81: 932.15 | CL81: 747.31 | CM81: 9542 | CN81: 8242 | CO81: 1661 | CP81: 6581 | CQ81: 797.33 | CR81: 796.43 | CS81: 933.69 | CT81: 761.79 | CU81: 9506 | CV81: 8240 | CW81: 1776 | CX81: 6464 | CY81: 814.31 | CZ81: 815.1 | DA81: 934.46 | DB81: 782.3 | DC81: 9327 | DD81: 8056 | DE81: 1776 | DF81: 6280 | DG81: 854.39 | DH81: 858.23 | DI81: 956.72 | DJ81: 830.37 | DK81: 9378 | DL81: 8123 | DM81: 1758 | DN81: 6364 | DO81: 879.19 | DP81: 884.84 | DQ81: 1006.54 | DR81: 851.22 | DS81: 9226 | DT81: 7976 | DU81: 1753 | DV81: 6223 | DW81: 906.63 | DX81: 913.75 | DY81: 1022.5 | DZ81: 883.12 | EA81: 9253 | EB81: 8010 | EC81: 1805 | ED81: 6205 | EE81: 934.56 | EF81: 944.33 | EG81: 1038.98 | EH81: 997.89 | EI81: 9224 | EJ81: 7964 | EK81: 1838 | EL81: 6126 | EM81: 961.3 | EN81: 971.79 | EO81: 1141.86 | EP81: 920.76 | EQ81: 9270 | ER81: 8033 | ES81: 1237 | ET81: 1876 | EU81: 6157 | EV81: 954.52 | EW81: 958.29 | EX81: 930.07 | EY81: 1122.25 | EZ81: 908.33
A82: Meredith | B82: 1 | C82: 3098 | D82: 2729 | E82: 838 | F82: 1891 | G82: 518.01 | H82: 517.79 | I82: 646.34 | J82: 460.83 | K82: 2998 | L82: 2642 | M82: 708 | N82: 1934 | O82: 552.47 | P82: 549.1 | Q82: 701.24 | R82: 493.37 | S82: 3035 | T82: 2661 | U82: 726 | V82: 1935 | W82: 577.31 | X82: 572.45 | Y82: 781.74 | Z82: 493.98 | AA82: 3067 | AB82: 2712 | AC82: 717 | AD82: 1994 | AE82: 597.21 | AF82: 590.33 | AG82: 793.67 | AH82: 517.18 | AI82: 3153 | AJ82: 2814 | AK82: 721 | AL82: 2093 | AM82: 648.77 | AN82: 641 | AO82: 912.21 | AP82: 547.55 | AQ82: 3133 | AR82: 2775 | AS82: 656 | AT82: 2119 | AU82: 691.65 | AV82: 688.53 | AW82: 922.4 | AX82: 616.18 | AY82: 3181 | AZ82: 2798 | BA82: 650 | BB82: 2148 | BC82: 717.83 | BD82: 716.5 | BE82: 1027.02 | BF82: 622.47 | BG82: 3156 | BH82: 2799 | BI82: 697 | BJ82: 2102 | BK82: 738.81 | BL82: 728.54 | BM82: 990.04 | BN82: 641.76 | BO82: 3059 | BP82: 2700 | BQ82: 627 | BR82: 2074 | BS82: 718.77 | BT82: 703.34 | BU82: 1025.46 | BV82: 605.95 | BW82: 2965 | BX82: 2575 | BY82: 591 | BZ82: 1985 | CA82: 723.07 | CB82: 715.81 | CC82: 1014.65 | CD82: 626.87 | CE82: 2979 | CF82: 2625 | CG82: 592 | CH82: 2033 | CI82: 723.08 | CJ82: 704.99 | CK82: 1032.88 | CL82: 609.55 | CM82: 3015 | CN82: 2651 | CO82: 584 | CP82: 2067 | CQ82: 724.33 | CR82: 708.34 | CS82: 1096.02 | CT82: 598.75 | CU82: 3015 | CV82: 2651 | CW82: 584 | CX82: 2067 | CY82: 724.33 | CZ82: 708.34 | DA82: 1096.02 | DB82: 598.75 | DC82: 3066 | DD82: 2714 | DE82: 627 | DF82: 2087 | DG82: 777.53 | DH82: 759.87 | DI82: 1229.38 | DJ82: 618.89 | DK82: 3074 | DL82: 2726 | DM82: 653 | DN82: 2073 | DO82: 818.87 | DP82: 798.88 | DQ82: 1230.89 | DR82: 662.82 | DS82: 3137 | DT82: 2781 | DU82: 656 | DV82: 2125 | DW82: 836.83 | DX82: 823.11 | DY82: 1234.65 | DZ82: 696.04 | EA82: 3215 | EB82: 2862 | EC82: 644 | ED82: 2218 | EE82: 858.94 | EF82: 844.34 | EG82: 1259.33 | EH82: 723.89 | EI82: 3293 | EJ82: 2934 | EK82: 658 | EL82: 2276 | EM82: 868.05 | EN82: 852.56 | EO82: 1231.13 | EP82: 743.04 | EQ82: 3338 | ER82: 2978 | ES82: 360 | ET82: 658 | EU82: 2320 | EV82: 893.67 | EW82: 876.11 | EX82: 1039.04 | EY82: 1287.34 | EZ82: 759.46
A83: New Hampton | B83: 1 | C83: 470 | D83: 380 | E83: 73 | F83: 307 | G83: 511.53 | H83: 511.92 | I83: 529.43 | J83: 507.75 | K83: 460 | L83: 361 | M83: 54 | N83: 307 | O83: 511.67 | P83: 520.48 | Q83: 602.47 | R83: 506.04 | S83: 557 | T83: 453 | U83: 84 | V83: 369 | W83: 488.94 | X83: 483.09 | Y83: 488.82 | Z83: 481.77 | AA83: 662 | AB83: 559 | AC83: 93 | AD83: 466 | AE83: 547.81 | AF83: 555.64 | AG83: 558.38 | AH83: 555.1 | AI83: 622 | AJ83: 526 | AK83: 82 | AL83: 444 | AM83: 636.03 | AN83: 648.41 | AO83: 586.53 | AP83: 659.85 | AQ83: 584 | AR83: 492 | AS83: 50 | AT83: 442 | AU83: 649.38 | AV83: 648.8 | AW83: 762.14 | AX83: 635.98 | AY83: 641 | AZ83: 539 | BA83: 99 | BB83: 440 | BC83: 688.1 | BD83: 702.55 | BE83: 815.98 | BF83: 676.95 | BG83: 613 | BH83: 513 | BI83: 83 | BJ83: 431 | BK83: 717.88 | BL83: 729.75 | BM83: 865.36 | BN83: 703.77 | BO83: 559 | BP83: 457 | BQ83: 74 | BR83: 383 | BS83: 747.75 | BT83: 768.12 | BU83: 841.4 | BV83: 754.04 | BW83: 538 | BX83: 425 | BY83: 29 | BZ83: 397 | CA83: 701.06 | CB83: 722.16 | CC83: 1011.08 | CD83: 701.28 | CE83: 522 | CF83: 407 | CG83: 29 | CH83: 379 | CI83: 675.35 | CJ83: 688.52 | CK83: 767.04 | CL83: 682.6 | CM83: 493 | CN83: 379 | CO83: 26 | CP83: 353 | CQ83: 674.82 | CR83: 692.04 | CS83: 770.19 | CT83: 686.28 | CU83: 493 | CV83: 379 | CW83: 26 | CX83: 353 | CY83: 674.82 | CZ83: 692.04 | DA83: 770.19 | DB83: 686.28 | DC83: 562 | DD83: 450 | DE83: 33 | DF83: 417 | DG83: 688.81 | DH83: 694.09 | DI83: 878.59 | DJ83: 679.64 | DK83: 554 | DL83: 440 | DM83: 37 | DN83: 403 | DO83: 746.61 | DP83: 775.85 | DQ83: 874.36 | DR83: 766.83 | DS83: 571 | DT83: 454 | DU83: 44 | DV83: 411 | DW83: 723.37 | DX83: 739.92 | DY83: 857.91 | DZ83: 727.4 | EA83: 567 | EB83: 457 | EC83: 41 | ED83: 416 | EE83: 730.28 | EF83: 736.51 | EG83: 888.45 | EH83: 721.49 | EI83: 586 | EJ83: 473 | EK83: 42 | EL83: 431 | EM83: 732.33 | EN83: 743.65 | EO83: 958.14 | EP83: 722.61 | EQ83: 614 | ER83: 500 | ES83: 114 | ET83: 38 | EU83: 462 | EV83: 698.94 | EW83: 699.18 | EX83: 697.91 | EY83: 941.02 | EZ83: 679.03
A84: Sanbornton | B84: 1 | C84: 328 | D84: 247 | E84: 87 | F84: 160 | G84: 602.56 | H84: 675.25 | I84: 523.06 | J84: 758.38 | K84: 283 | L84: 214 | M84: 96 | N84: 117 | O84: 683.43 | P84: 758.42 | Q84: 500.88 | R84: 970.21 | S84: 297 | T84: 228 | U84: 106 | V84: 123 | W84: 736.57 | X84: 799.39 | Y84: 558.69 | Z84: 1006.9 | AA84: 313 | AB84: 239 | AC84: 105 | AD84: 134 | AE84: 746.23 | AF84: 819.35 | AG84: 554.62 | AH84: 1026.12 | AI84: 287 | AJ84: 208 | AK84: 62 | AL84: 146 | AM84: 803.73 | AN84: 919.32 | AO84: 587.66 | AP84: 1059.09 | AQ84: 316 | AR84: 234 | AS84: 72 | AT84: 162 | AU84: 777.54 | AV84: 862.28 | AW84: 695.51 | AX84: 935.73 | AY84: 321 | AZ84: 228 | BA84: 60 | BB84: 167 | BC84: 737.04 | BD84: 824.21 | BE84: 670.41 | BF84: 879.71 | BG84: 304 | BH84: 209 | BI84: 62 | BJ84: 146 | BK84: 764.57 | BL84: 864.51 | BM84: 565.13 | BN84: 992.11 | BO84: 275 | BP84: 182 | BQ84: 38 | BR84: 144 | BS84: 820.47 | BT84: 945.23 | BU84: 544.05 | BV84: 1050.45 | BW84: 300 | BX84: 207 | BY84: 50 | BZ84: 157 | CA84: 821.54 | CB84: 939.68 | CC84: 656.74 | CD84: 1029.14 | CE84: 301 | CF84: 215 | CG84: 42 | CH84: 173 | CI84: 840.6 | CJ84: 946.13 | CK84: 672.54 | CL84: 1012.85 | CM84: 297 | CN84: 212 | CO84: 46 | CP84: 166 | CQ84: 853.4 | CR84: 963.94 | CS84: 674.66 | CT84: 1044.41 | CU84: 297 | CV84: 212 | CW84: 46 | CX84: 166 | CY84: 853.4 | CZ84: 963.94 | DA84: 674.66 | DB84: 1044.41 | DC84: 371 | DD84: 279 | DE84: 72 | DF84: 207 | DG84: 694.67 | DH84: 736.71 | DI84: 724.92 | DJ84: 740.83 | DK84: 366 | DL84: 272 | DM84: 76 | DN84: 196 | DO84: 652.82 | DP84: 678.7 | DQ84: 732.15 | DR84: 657.99 | DS84: 359 | DT84: 269 | DU84: 71 | DV84: 198 | DW84: 661.49 | DX84: 684.06 | DY84: 830.06 | DZ84: 631.84 | EA84: 338 | EB84: 250 | EC84: 66 | ED84: 184 | EE84: 721.19 | EF84: 751.43 | EG84: 905.81 | EH84: 695.68 | EI84: 369 | EJ84: 280 | EK84: 55 | EL84: 226 | EM84: 681.58 | EN84: 685.94 | EO84: 922.46 | EP84: 628.86 | EQ84: 367 | ER84: 275 | ES84: 92 | ET84: 37 | EU84: 238 | EV84: 605.68 | EW84: 583.31 | EX84: 672.93 | EY84: 634.64 | EZ84: 575.34
A85: Tilton | B85: 1 | C85: 3814 | D85: 3438 | E85: 154 | F85: 2837 | G85: 474.27 | H85: 464.06 | I85: 740.13 | J85: 405.52 | K85: 4006 | L85: 3601 | M85: 134 | N85: 3093 | O85: 488.94 | P85: 480.61 | Q85: 791.72 | R85: 429.45 | S85: 4090 | T85: 3630 | U85: 113 | V85: 3048 | W85: 514.9 | X85: 510.08 | Y85: 877.44 | Z85: 439.98 | AA85: 4420 | AB85: 3912 | AC85: 68 | AD85: 3368 | AE85: 535.97 | AF85: 531.01 | AG85: 922.15 | AH85: 467.77 | AI85: 4532 | AJ85: 3993 | AK85: 579 | AL85: 3414 | AM85: 564.07 | AN85: 563.14 | AO85: 970.51 | AP85: 494.11 | AQ85: 4559 | AR85: 3922 | AS85: 338 | AT85: 3584 | AU85: 531.13 | AV85: 518.72 | AW85: 862.33 | AX85: 486.31 | AY85: 4758 | AZ85: 4076 | BA85: 331 | BB85: 3745 | BC85: 540.53 | BD85: 524.38 | BE85: 1092.86 | BF85: 474.09 | BG85: 4744 | BH85: 4033 | BI85: 297 | BJ85: 3735 | BK85: 543.38 | BL85: 522.91 | BM85: 1052.36 | BN85: 480.76 | BO85: 4614 | BP85: 3908 | BQ85: 282 | BR85: 3626 | BS85: 539.73 | BT85: 508.58 | BU85: 991.31 | BV85: 471.06 | BW85: 4502 | BX85: 3807 | BY85: 166 | BZ85: 3641 | CA85: 531.57 | CB85: 499 | CC85: 975.08 | CD85: 477.26 | CE85: 4465 | CF85: 3768 | CG85: 196 | CH85: 3573 | CI85: 547.67 | CJ85: 516.91 | CK85: 982.63 | CL85: 491.42 | CM85: 4600 | CN85: 3885 | CO85: 185 | CP85: 3699 | CQ85: 537.94 | CR85: 508.68 | CS85: 871.23 | CT85: 490.53 | CU85: 4559 | CV85: 3854 | CW85: 148 | CX85: 3706 | CY85: 549.56 | CZ85: 521.23 | DA85: 1096.43 | DB85: 498.23 | DC85: 4429 | DD85: 3763 | DE85: 161 | DF85: 3602 | DG85: 588.79 | DH85: 560.41 | DI85: 1130.49 | DJ85: 534.92 | DK85: 4383 | DL85: 3724 | DM85: 149 | DN85: 3575 | DO85: 614.03 | DP85: 580.42 | DQ85: 1291.28 | DR85: 550.83 | DS85: 4489 | DT85: 3842 | DU85: 144 | DV85: 3698 | DW85: 629.95 | DX85: 592.04 | DY85: 1298.05 | DZ85: 564.55 | EA85: 4590 | EB85: 3933 | EC85: 165 | ED85: 3767 | EE85: 646.91 | EF85: 609.84 | EG85: 1193.64 | EH85: 584.21 | EI85: 4625 | EJ85: 3991 | EK85: 164 | EL85: 3827 | EM85: 682.27 | EN85: 646.69 | EO85: 1347.97 | EP85: 616.65 | EQ85: 4633 | ER85: 4008 | ES85: 626 | ET85: 155 | EU85: 3852 | EV85: 690.93 | EW85: 651.83 | EX85: 941.46 | EY85: 1403.1 | EZ85: 621.57
A92: NH Employment Data | B92: Query Name: DPQryEmploymentByCnty-Good-Serv-Total | C92: Updated: | D92: 2020-09-30
A94: AreaName | B94: COUNTYCODE | C94: TOTP & G2001 | D94: TOT2001 | E94: GOODPRO2001 | F94: SERVICEPROMAN2001 | G94: WAGEP & G2001 | H94: WAGETOT2001 | I94: WAGEGOODPRO2001 | J94: WAGESERVICEPRO2001 | K94: TOTP & G2002 | L94: TOT2002 | M94: GOODPRO2002 | N94: SERVICEPROMAN2002 | O94: WAGEP & G2002 | P94: WAGETOT2002 | Q94: WAGEGOODPRO2002 | R94: WAGESERVICEPRO2002 | S94: TOTP & G2003 | T94: TOT2003 | U94: GOODPRO2003 | V94: SERVICEPROMAN2003 | W94: WAGEP & G2003 | X94: WAGETOT2003 | Y94: WAGEGOODPRO2003 | Z94: WAGESERVICEPRO2003 | AA94: TOTP & G2004 | AB94: TOT2004 | AC94: GOODPRO2004 | AD94: SERVICEPROMAN2004 | AE94: WAGEP & G2004 | AF94: WAGETOT2004 | AG94: WAGEGOODPRO2004 | AH94: WAGESERVICEPRO2004 | AI94: TOTP & G2005 | AJ94: TOT2005 | AK94: GOODPRO2005 | AL94: SERVICEPROMAN2005 | AM94: WAGEP & G2005 | AN94: WAGETOT2005 | AO94: WAGEGOODPRO2005 | AP94: WAGESERVICEPRO2005 | AQ94: TOTP & G2006 | AR94: TOT2006 | AS94: GOODPRO2006 | AT94: SERVICEPROMAN2006 | AU94: WAGEP & G2006 | AV94: WAGETOT2006 | AW94: WAGEGOODPRO2006 | AX94: WAGESERVICEPRO2006 | AY94: TOTP & G2007 | AZ94: TOT2007 | BA94: GOODPRO2007 | BB94: SERVICEPROMAN2007 | BC94: WAGEP & G2007 | BD94: WAGETOT2007 | BE94: WAGEGOODPRO2007 | BF94: WAGESERVICEPRO2007 | BG94: TOTP & G2008 | BH94: TOT2008 | BI94: GOODPRO2008 | BJ94: SERVICEPROMAN2008 | BK94: WAGEP & G2008 | BL94: WAGETOT2008 | BM94: WAGEGOODPRO2008 | BN94: WAGESERVICEPRO2008 | BO94: TOTP & G2009 | BP94: TOT2009 | BQ94: GOODPRO2009 | BR94: SERVICEPROMAN2009 | BS94: WAGEP & G2009 | BT94: WAGETOT2009 | BU94: WAGEGOODPRO2009 | BV94: WAGESERVICEPRO2009 | BW94: TOTP & G2010 | BX94: TOT2010 | BY94: GOODPRO2010 | BZ94: SERVICEPROMAN2010 | CA94: WAGEP & G2010 | CB94: WAGETOT2010 | CC94: WAGEGOODPRO2010 | CD94: WAGESERVICEPRO2010 | CE94: TOTP & G2011 | CF94: TOT2011 | CG94: GOODPRO2011 | CH94: SERVICEPROMAN2011 | CI94: WAGEP & G2011 | CJ94: WAGETOT2011 | CK94: WAGEGOODPRO2011 | CL94: WAGESERVICEPRO2011 | CM94: TOTP & G2012 | CN94: TOT2012 | CO94: GOODPRO2012 | CP94: SERVICEPROMAN2012 | CQ94: WAGEP & G2012 | CR94: WAGETOT2012 | CS94: WAGEGOODPRO2012 | CT94: WAGESERVICEPRO2012 | CU94: TOTP & G2013 | CV94: TOT2013 | CW94: GOODPRO2013 | CX94: SERVICEPROMAN2013 | CY94: WAGEP & G2013 | CZ94: WAGETOT2013 | DA94: WAGEGOODPRO2013 | DB94: WAGESERVICEPRO2013 | DC94: TOTP & G2014 | DD94: TOT2014 | DE94: GOODPRO2014 | DF94: SERVICEPROMAN2014 | DG94: WAGEP & G2014 | DH94: WAGETOT2014 | DI94: WAGEGOODPRO2014 | DJ94: WAGESERVICEPRO2014 | DK94: TOTP & G2015 | DL94: TOT2015 | DM94: GOODPRO2015 | DN94: SERVICEPROMAN2015 | DO94: WAGEP & G2015 | DP94: WAGETOT2015 | DQ94: WAGEGOODPRO2015 | DR94: WAGESERVICEPRO2015 | DS94: TOTP & G2016 | DT94: TOT2016 | DU94: GOODPRO2016 | DV94: SERVICEPROMAN2016 | DW94: WAGEP & G2016 | DX94: WAGETOT2016 | DY94: WAGEGOODPRO2016 | DZ94: WAGESERVICEPRO2016 | EA94: TOTP & G2017 | EB94: TOT2017 | EC94: GOODPRO2017 | ED94: SERVICEPROMAN2017 | EE94: WAGEP & G2017 | EF94: WAGETOT2017 | EG94: WAGEGOODPRO2017 | EH94: WAGESERVICEPRO2017 | EI94: TOTP & G2018 | EJ94: TOT2018 | EK94: GOODPRO2018 | EL94: SERVICEPROMAN2018 | EM94: WAGEP & G2018 | EN94: WAGETOT2018 | EO94: WAGEGOODPRO2018 | EP94: WAGESERVICEPRO2018 | EQ94: TOTP & G2019 | ER94: TOT2019 | ES94: TOTGov2019 | ET94: GOODPRO2019 | EU94: SERVICEPROMAN2019 | EV94: WAGEP & G2019 | EW94: WAGETOT2019 | EX94: WAGEGov2019 | EY94: WAGEGOODPRO2019 | EZ94: WAGESERVICEPRO2019
A95: Belknap County | B95: 1 | C95: 26173 | D95: 22708 | E95: 6138 | F95: 16570 | G95: 541.07 | H95: 538.34 | I95: 689.88 | J95: 482.21 | K95: 26052 | L95: 22334 | M95: 5408 | N95: 16926 | O95: 561.11 | P95: 555.84 | Q95: 731.15 | R95: 499.83 | S95: 26286 | T95: 22376 | U95: 5281 | V95: 17095 | W95: 579.91 | X95: 573.04 | Y95: 754.28 | Z95: 517.05 | AA95: 26931 | AB95: 23030 | AC95: 5431 | AD95: 17599 | AE95: 610.04 | AF95: 602.01 | AG95: 777.41 | AH95: 547.89 | AI95: 26940 | AJ95: 22891 | AK95: 5467 | AL95: 17424 | AM95: 636.42 | AN95: 634.14 | AO95: 819.42 | AP95: 576 | AQ95: 27237 | AR95: 23042 | AS95: 5133 | AT95: 17909 | AU95: 657.93 | AV95: 655.07 | AW95: 862.32 | AX95: 595.67 | AY95: 27266 | AZ95: 23032 | BA95: 4820 | BB95: 18212 | BC95: 674.29 | BD95: 668.31 | BE95: 921.91 | BF95: 601.18 | BG95: 26793 | BH95: 22507 | BI95: 4572 | BJ95: 17935 | BK95: 689.74 | BL95: 680.53 | BM95: 938.61 | BN95: 614.74 | BO95: 25570 | BP95: 21280 | BQ95: 3944 | BR95: 17337 | BS95: 692.98 | BT95: 680.87 | BU95: 934.72 | BV95: 623.12 | BW95: 24943 | BX95: 20713 | BY95: 3480 | BZ95: 17234 | CA95: 698.61 | CB95: 690.71 | CC95: 945.91 | CD95: 639.19 | CE95: 24953 | CF95: 20748 | CG95: 3411 | CH95: 17337 | CI95: 706.01 | CJ95: 697.17 | CK95: 959.24 | CL95: 645.61 | CM95: 25196 | CN95: 20972 | CO95: 3400 | CP95: 17572 | CQ95: 708.66 | CR95: 703.81 | CS95: 960.55 | CT95: 654.13 | CU95: 25517 | CV95: 21311 | CW95: 3517 | CX95: 17794 | CY95: 718.36 | CZ95: 714.81 | DA95: 997.67 | DB95: 658.89 | DC95: 25490 | DD95: 21315 | DE95: 3554 | DF95: 17761 | DG95: 748.41 | DH95: 745.98 | DI95: 1036.05 | DJ95: 687.93 | DK95: 25584 | DL95: 21457 | DM95: 3597 | DN95: 17859 | DO95: 776.57 | DP95: 774.35 | DQ95: 1066.24 | DR95: 715.55 | DS95: 25708 | DT95: 21577 | DU95: 3626 | DV95: 17951 | DW95: 797.95 | DX95: 796.89 | DY95: 1088.81 | DZ95: 737.93 | EA95: 25829 | EB95: 21725 | EC95: 3676 | ED95: 18049 | EE95: 823.13 | EF95: 823.31 | EG95: 1139.79 | EH95: 758.85 | EI95: 25898 | EJ95: 21803 | EK95: 3774 | EL95: 18029 | EM95: 851.06 | EN95: 851.82 | EO95: 1167.98 | EP95: 785.64 | EQ95: 26080 | ER95: 22008 | ES95: 4072 | ET95: 3799 | EU95: 18209 | EV95: 854.12 | EW95: 849.87 | EX95: 877.08 | EY95: 1177.3 | EZ95: 781.56
A96: Carroll County | B96: 2 | C96: 19495 | D96: 16938 | E96: 2563 | F96: 14374 | G96: 467.52 | H96: 460.32 | I96: 627.98 | J96: 430.42 | K96: 19756 | L96: 17153 | M96: 2497 | N96: 14656 | O96: 481.01 | P96: 472.65 | Q96: 645.74 | R96: 443.16 | S96: 20167 | T96: 17534 | U96: 2567 | V96: 14967 | W96: 492.28 | X96: 481.72 | Y96: 647.56 | Z96: 453.27 | AA96: 20405 | AB96: 17701 | AC96: 2526 | AD96: 15175 | AE96: 519.72 | AF96: 511.1 | AG96: 687.06 | AH96: 481.81 | AI96: 20205 | AJ96: 17448 | AK96: 2541 | AL96: 14906 | AM96: 533.86 | AN96: 524.08 | AO96: 703.81 | AP96: 493.43 | AQ96: 20294 | AR96: 17504 | AS96: 2588 | AT96: 14916 | AU96: 575.59 | AV96: 568.1 | AW96: 737.84 | AX96: 538.66 | AY96: 20402 | AZ96: 17510 | BA96: 2544 | BB96: 14966 | BC96: 573.3 | BD96: 562.56 | BE96: 760.1 | BF96: 528.99 | BG96: 20584 | BH96: 17636 | BI96: 2552 | BJ96: 15084 | BK96: 584.18 | BL96: 570.32 | BM96: 770.38 | BN96: 536.47 | BO96: 19942 | BP96: 16904 | BQ96: 2265 | BR96: 14639 | BS96: 587.36 | BT96: 570.99 | BU96: 765.31 | BV96: 540.92 | BW96: 19810 | BX96: 16754 | BY96: 2124 | BZ96: 14630 | CA96: 600.19 | CB96: 586.5 | CC96: 775.97 | CD96: 558.99 | CE96: 19997 | CF96: 17005 | CG96: 2189 | CH96: 14816 | CI96: 617.28 | CJ96: 603.42 | CK96: 798.39 | CL96: 574.61 | CM96: 20082 | CN96: 17083 | CO96: 2162 | CP96: 14921 | CQ96: 627.17 | CR96: 615.41 | CS96: 800.29 | CT96: 588.62 | CU96: 19971 | CV96: 16958 | CW96: 2084 | CX96: 14874 | CY96: 645.67 | CZ96: 633.79 | DA96: 805.62 | DB96: 609.71 | DC96: 20015 | DD96: 16952 | DE96: 2024 | DF96: 14928 | DG96: 640.24 | DH96: 627.02 | DI96: 843.7 | DJ96: 597.64 | DK96: 19806 | DL96: 16828 | DM96: 1996 | DN96: 14832 | DO96: 667.3 | DP96: 653.87 | DQ96: 884.26 | DR96: 622.86 | DS96: 19997 | DT96: 17053 | DU96: 2030 | DV96: 15023 | DW96: 686.74 | DX96: 674.21 | DY96: 909.04 | DZ96: 642.48 | EA96: 20005 | EB96: 17047 | EC96: 2057 | ED96: 14991 | EE96: 692.33 | EF96: 677.15 | EG96: 941.62 | EH96: 640.87 | EI96: 20015 | EJ96: 17037 | EK96: 2078 | EL96: 14959 | EM96: 710.33 | EN96: 694.81 | EO96: 905.58 | EP96: 665.54 | EQ96: 20228 | ER96: 17268 | ES96: 2960 | ET96: 2128 | EU96: 15140 | EV96: 735.27 | EW96: 721.26 | EX96: 816.99 | EY96: 942.12 | EZ96: 690.22
A97: Cheshire County | B97: 3 | C97: 32349 | D97: 27819 | E97: n | F97: n | G97: 571.93 | H97: 577.31 | I97: n | J97: n | K97: 32369 | L97: 27595 | M97: 7795 | N97: 19800 | O97: 584.33 | P97: 590.97 | Q97: 743.2 | R97: 531.04 | S97: 32548 | T97: 27626 | U97: 7754 | V97: 19873 | W97: 598.89 | X97: 603.04 | Y97: 763.11 | Z97: 540.59 | AA97: 33075 | AB97: 28132 | AC97: 7648 | AD97: 20484 | AE97: 631.09 | AF97: 634.68 | AG97: 807.42 | AH97: 570.18 | AI97: 33995 | AJ97: 28886 | AK97: 8110 | AL97: 20776 | AM97: 656.03 | AN97: 666.98 | AO97: 828.9 | AP97: 603.78 | AQ97: 34194 | AR97: 29151 | AS97: 7889 | AT97: 21262 | AU97: 723.95 | AV97: 741.43 | AW97: 987.42 | AX97: 650.15 | AY97: 33638 | AZ97: 28601 | BA97: 7473 | BB97: 21128 | BC97: 707.44 | BD97: 717.07 | BE97: 867.3 | BF97: 663.94 | BG97: 33220 | BH97: 28351 | BI97: 7351 | BJ97: 21000 | BK97: 746.75 | BL97: 752.8 | BM97: 902.94 | BN97: 700.24 | BO97: 32207 | BP97: 27212 | BQ97: 6761 | BR97: 20451 | BS97: 742.41 | BT97: 745.7 | BU97: 870.79 | BV97: 704.34 | BW97: 31527 | BX97: 26585 | BY97: 6300 | BZ97: 20286 | CA97: 754.45 | CB97: 756.21 | CC97: 900.6 | CD97: 711.38 | CE97: 31690 | CF97: 26854 | CG97: 6240 | CH97: 20614 | CI97: 768.13 | CJ97: 768.69 | CK97: 935.64 | CL97: 718.15 | CM97: 32021 | CN97: 27158 | CO97: 6245 | CP97: 20914 | CQ97: 790.24 | CR97: 793.9 | CS97: 933.87 | CT97: 752.11 | CU97: 31923 | CV97: 27008 | CW97: 6032 | CX97: 20975 | CY97: 796.52 | CZ97: 797.61 | DA97: 965.3 | DB97: 749.39 | DC97: 31904 | DD97: 26935 | DE97: 6025 | DF97: 20910 | DG97: 810.83 | DH97: 815.88 | DI97: 993.69 | DJ97: 764.64 | DK97: 32067 | DL97: 27097 | DM97: 6073 | DN97: 21024 | DO97: 830.63 | DP97: 834.25 | DQ97: 1010.79 | DR97: 783.25 | DS97: 32005 | DT97: 27109 | DU97: 6177 | DV97: 20932 | DW97: 838.96 | DX97: 843.47 | DY97: 1028.03 | DZ97: 789.01 | EA97: 31743 | EB97: 26953 | EC97: 6194 | ED97: 20759 | EE97: 867.06 | EF97: 873.07 | EG97: 1043.75 | EH97: 822.14 | EI97: 31642 | EJ97: 26825 | EK97: 6445 | EL97: 20380 | EM97: 895.81 | EN97: 907.01 | EO97: 1090.07 | EP97: 849.12 | EQ97: 31737 | ER97: 26923 | ES97: 4814 | ET97: 6652 | EU97: 20272 | EV97: 913.17 | EW97: 927.09 | EX97: 835.36 | EY97: 1100.44 | EZ97: 870.2
A98: Coos County | B98: 4 | C98: 13872 | D98: 11234 | E98: n | F98: n | G98: 489.02 | H98: 487.7 | I98: n | J98: n | K98: 13737 | L98: 11021 | M98: 2332 | N98: 8689 | O98: 490.8 | P98: 484.33 | Q98: 650.88 | R98: 439.63 | S98: 13946 | T98: 11225 | U98: 2578 | V98: 8647 | W98: 525.08 | X98: 519.66 | Y98: 703.37 | Z98: 464.89 | AA98: 14103 | AB98: 11341 | AC98: 2590 | AD98: 8751 | AE98: 542.98 | AF98: 540.59 | AG98: 726.42 | AH98: 485.6 | AI98: 14026 | AJ98: 11222 | AK98: 2533 | AL98: 8689 | AM98: 556.04 | AN98: 552.64 | AO98: 754.89 | AP98: 493.68 | AQ98: 13898 | AR98: 10991 | AS98: 2334 | AT98: 8657 | AU98: 572.86 | AV98: 571.42 | AW98: 766.73 | AX98: 518.76 | AY98: 13876 | AZ98: 11050 | BA98: 2184 | BB98: 8866 | BC98: 583.63 | BD98: 572.31 | BE98: 758.88 | BF98: 526.34 | BG98: 13566 | BH98: 10747 | BI98: 1988 | BJ98: 8759 | BK98: 602.53 | BL98: 587.51 | BM98: 755.51 | BN98: 549.38 | BO98: 13002 | BP98: 10134 | BQ98: 1720 | BR98: 8414 | BS98: 609.68 | BT98: 592.77 | BU98: 751.35 | BV98: 560.36 | BW98: 12832 | BX98: 9977 | BY98: 1593 | BZ98: 8384 | CA98: 608.57 | CB98: 589.54 | CC98: 744.88 | CD98: 560.02 | CE98: 12555 | CF98: 9785 | CG98: 1473 | CH98: 8312 | CI98: 620.23 | CJ98: 600.46 | CK98: 757.95 | CL98: 572.54 | CM98: 12371 | CN98: 9564 | CO98: 1568 | CP98: 7995 | CQ98: 640.94 | CR98: 622.74 | CS98: 825.56 | CT98: 582.97 | CU98: 12515 | CV98: 9564 | CW98: 1649 | CX98: 7915 | CY98: 667.37 | CZ98: 647.75 | DA98: 855.89 | DB98: 604.39 | DC98: 12064 | DD98: 9083 | DE98: 1293 | DF98: 7789 | DG98: 675.59 | DH98: 651.58 | DI98: 777.89 | DJ98: 630.61 | DK98: 11974 | DL98: 9046 | DM98: 1222 | DN98: 7824 | DO98: 694.46 | DP98: 666.94 | DQ98: 788.97 | DR98: 647.89 | DS98: 11990 | DT98: 9038 | DU98: 1167 | DV98: 7870 | DW98: 706.62 | DX98: 682.98 | DY98: 853.55 | DZ98: 657.68 | EA98: 11999 | EB98: 9070 | EC98: 1223 | ED98: 7846 | EE98: 729.45 | EF98: 705.37 | EG98: 867.99 | EH98: 680.02 | EI98: 11970 | EJ98: 9060 | EK98: 1296 | EL98: 7764 | EM98: 749.69 | EN98: 723.06 | EO98: 852.68 | EP98: 701.43 | EQ98: 12083 | ER98: 9226 | ES98: 2857 | ET98: 1304 | EU98: 7921 | EV98: 766.79 | EW98: 735.31 | EX98: 868.44 | EY98: 914.39 | EZ98: 705.82
A99: Grafton County | B99: 5 | C99: 49352 | D99: 43256 | E99: 8085 | F99: 35171 | G99: 617.73 | H99: 624.05 | I99: 672.45 | J99: 612.93 | K99: 49690 | L99: 43362 | M99: 7763 | N99: 35599 | O99: 658.93 | P99: 668.77 | Q99: 701.81 | R99: 661.56 | S99: 50615 | T99: 44009 | U99: 7790 | V99: 36220 | W99: 704.15 | X99: 717.01 | Y99: 753.77 | Z99: 709.11 | AA99: 51355 | AB99: 44704 | AC99: 7636 | AD99: 37069 | AE99: 728.96 | AF99: 740.6 | AG99: 770.78 | AH99: 734.38 | AI99: 51541 | AJ99: 44954 | AK99: 7698 | AL99: 37256 | AM99: 768.82 | AN99: 783.94 | AO99: 809.26 | AP99: 778.7 | AQ99: 52267 | AR99: 45531 | AS99: 7761 | AT99: 37770 | AU99: 803.4 | AV99: 820.96 | AW99: 855.22 | AX99: 813.92 | AY99: 52729 | AZ99: 45992 | BA99: 7672 | BB99: 38320 | BC99: 843.04 | BD99: 860.73 | BE99: 901.98 | BF99: 852.47 | BG99: 52901 | BH99: 46166 | BI99: 7347 | BJ99: 38819 | BK99: 867.61 | BL99: 884.82 | BM99: 928.14 | BN99: 876.62 | BO99: 51401 | BP99: 44646 | BQ99: 6446 | BR99: 38200 | BS99: 879.4 | BT99: 895.26 | BU99: 899.95 | BV99: 894.47 | BW99: 51256 | BX99: 44376 | BY99: 6289 | BZ99: 38086 | CA99: 905.77 | CB99: 925.54 | CC99: 949.83 | CD99: 921.53 | CE99: 51663 | CF99: 44867 | CG99: 6681 | CH99: 38186 | CI99: 926.58 | CJ99: 946.3 | CK99: 981.6 | CL99: 940.12 | CM99: 52026 | CN99: 45246 | CO99: 6818 | CP99: 38428 | CQ99: 950.95 | CR99: 973.52 | CS99: 996.15 | CT99: 969.5 | CU99: 52153 | CV99: 45454 | CW99: 6717 | CX99: 38736 | CY99: 965.05 | CZ99: 986.68 | DA99: 1028.75 | DB99: 979.39 | DC99: 52226 | DD99: 45565 | DE99: 6778 | DF99: 38787 | DG99: 1004.06 | DH99: 1029.15 | DI99: 1069.54 | DJ99: 1022.09 | DK99: 52654 | DL99: 46056 | DM99: 6882 | DN99: 39174 | DO99: 1037.55 | DP99: 1061.83 | DQ99: 1078.89 | DR99: 1058.83 | DS99: 53361 | DT99: 46686 | DU99: 6801 | DV99: 39885 | DW99: 1058.6 | DX99: 1086.92 | DY99: 1082.4 | DZ99: 1087.69 | EA99: 53790 | EB99: 47161 | EC99: 6781 | ED99: 40380 | EE99: 1079.63 | EF99: 1108.61 | EG99: 1125.3 | EH99: 1105.81 | EI99: 54119 | EJ99: 47417 | EK99: 6926 | EL99: 40491 | EM99: 1105.33 | EN99: 1135.81 | EO99: 1167.74 | EP99: 1130.34 | EQ99: 54388 | ER99: 47685 | ES99: 6703 | ET99: 6855 | EU99: 40830 | EV99: 1142.8 | EW99: 1174.8 | EX99: 915.17 | EY99: 1156.02 | EZ99: 1177.95
A100: Hillsborough County | B100: 6 | C100: 192842 | D100: 173003 | E100: 47169 | F100: 125834 | G100: 756.14 | H100: 762.49 | I100: 941.37 | J100: 695.43 | K100: 188573 | L100: 168164 | M100: 42086 | N100: 126078 | O100: 768.52 | P100: 773.3 | Q100: 968.23 | R100: 708.23 | S100: 190864 | T100: 169969 | U100: 41006 | V100: 128962 | W100: 801.91 | X100: 806.79 | Y100: 1014.82 | Z100: 740.64 | AA100: 193543 | AB100: 172567 | AC100: 40910 | AD100: 131656 | AE100: 839.56 | AF100: 844.4 | AG100: 1064.01 | AH100: 776.16 | AI100: 196190 | AJ100: 174854 | AK100: 40181 | AL100: 134673 | AM100: 866.71 | AN100: 873.18 | AO100: 1101.58 | AP100: 805.03 | AQ100: 196502 | AR100: 175094 | AS100: 39123 | AT100: 135971 | AU100: 897.24 | AV100: 904 | AW100: 1171.16 | AX100: 827.13 | AY100: 197183 | AZ100: 175821 | BA100: 38588 | BB100: 137233 | BC100: 946.54 | BD100: 951.14 | BE100: 1248.82 | BF100: 867.44 | BG100: 195976 | BH100: 174253 | BI100: 36628 | BJ100: 137625 | BK100: 973.54 | BL100: 979.17 | BM100: 1267.17 | BN100: 902.52 | BO100: 187240 | BP100: 165260 | BQ100: 33003 | BR100: 132257 | BS100: 959.3 | BT100: 962.96 | BU100: 1236.24 | BV100: 894.76 | BW100: 184628 | BX100: 162829 | BY100: 32117 | BZ100: 130712 | CA100: 980.99 | CB100: 986.25 | CC100: 1287.91 | CD100: 912.12 | CE100: 186437 | CF100: 165030 | CG100: 32694 | CH100: 132336 | CI100: 1013.7 | CJ100: 1018.86 | CK100: 1329.81 | CL100: 942.03 | CM100: 188425 | CN100: 167133 | CO100: 31642 | CP100: 135492 | CQ100: 1029.82 | CR100: 1035.95 | CS100: 1325.69 | CT100: 968.28 | CU100: 190568 | CV100: 169383 | CW100: 30861 | CX100: 138522 | CY100: 1038.74 | CZ100: 1045.24 | DA100: 1365.43 | DB100: 973.9 | DC100: 193565 | DD100: 172574 | DE100: 31422 | DF100: 141152 | DG100: 1092.9 | DH100: 1101.22 | DI100: 1393.55 | DJ100: 1036.15 | DK100: 196842 | DL100: 175848 | DM100: 31842 | DN100: 144005 | DO100: 1099.51 | DP100: 1106.52 | DQ100: 1401.46 | DR100: 1041.3 | DS100: 199729 | DT100: 178867 | DU100: 32654 | DV100: 146213 | DW100: 1118.63 | DX100: 1126.21 | DY100: 1436.51 | DZ100: 1056.91 | EA100: 201740 | EB100: 180839 | EC100: 33513 | ED100: 147327 | EE100: 1147.78 | EF100: 1156.08 | EG100: 1490.14 | EH100: 1080.09 | EI100: 203961 | EJ100: 182874 | EK100: 34296 | EL100: 148577 | EM100: 1182 | EN100: 1189.98 | EO100: 1525.57 | EP100: 1112.51 | EQ100: 205989 | ER100: 184819 | ES100: 21170 | ET100: 35047 | EU100: 149772 | EV100: 1219.73 | EW100: 1229.84 | EX100: 1131.48 | EY100: 1558.29 | EZ100: 1152.98
A101: Merrimack County | B101: 7 | C101: 71543 | D101: 56168 | E101: 12137 | F101: 44031 | G101: 631.86 | H101: 633.93 | I101: 772.48 | J101: 595.74 | K101: 71850 | L101: 56025 | M101: 11403 | N101: 44622 | O101: 653.27 | P101: 655.12 | Q101: 799.93 | R101: 618.12 | S101: 72840 | T101: 56631 | U101: 11036 | V101: 45595 | W101: 667.06 | X101: 666.91 | Y101: 826.68 | Z101: 628.24 | AA101: 72381 | AB101: 56515 | AC101: 10742 | AD101: 45773 | AE101: 690.51 | AF101: 689.4 | AG101: 845.49 | AH101: 652.77 | AI101: 72963 | AJ101: 56979 | AK101: 11012 | AL101: 45967 | AM101: 710.07 | AN101: 710.67 | AO101: 861.87 | AP101: 674.44 | AQ101: 74077 | AR101: 57818 | AS101: 10760 | AT101: 47058 | AU101: 739.28 | AV101: 739.89 | AW101: 906.79 | AX101: 701.73 | AY101: 74070 | AZ101: 57629 | BA101: 10051 | BB101: 47579 | BC101: 774.05 | BD101: 772.96 | BE101: 972.47 | BF101: 730.82 | BG101: 73959 | BH101: 57295 | BI101: 9822 | BJ101: 47472 | BK101: 795.3 | BL101: 789.49 | BM101: 978.78 | BN101: 750.33 | BO101: 72134 | BP101: 55582 | BQ101: 8724 | BR101: 46857 | BS101: 810.16 | BT101: 788.36 | BU101: 966.04 | BV101: 755.28 | BW101: 71882 | BX101: 55306 | BY101: 8662 | BZ101: 46645 | CA101: 821.15 | CB101: 806.64 | CC101: 998.67 | CD101: 770.98 | CE101: 72140 | CF101: 55913 | CG101: 9059 | CH101: 46854 | CI101: 835.3 | CJ101: 821.63 | CK101: 1012.78 | CL101: 784.67 | CM101: 72901 | CN101: 56946 | CO101: 9282 | CP101: 47664 | CQ101: 850.4 | CR101: 842.26 | CS101: 1036.72 | CT101: 804.39 | CU101: 73510 | CV101: 57805 | CW101: 9457 | CX101: 48348 | CY101: 866.04 | CZ101: 857.51 | DA101: 1050.87 | DB101: 819.69 | DC101: 74884 | DD101: 58800 | DE101: 9698 | DF101: 49103 | DG101: 892.44 | DH101: 882.46 | DI101: 1086.78 | DJ101: 842.11 | DK101: 75670 | DL101: 59563 | DM101: 9801 | DN101: 49762 | DO101: 929.04 | DP101: 918.53 | DQ101: 1114.06 | DR101: 880.02 | DS101: 76413 | DT101: 60219 | DU101: 9936 | DV101: 50283 | DW101: 946.35 | DX101: 937.29 | DY101: 1126.38 | DZ101: 899.92 | EA101: 76803 | EB101: 60570 | EC101: 10042 | ED101: 50528 | EE101: 980.03 | EF101: 971.23 | EG101: 1164.72 | EH101: 932.78 | EI101: 77469 | EJ101: 61326 | EK101: 10142 | EL101: 51184 | EM101: 1012.33 | EN101: 1004.39 | EO101: 1186.12 | EP101: 968.39 | EQ101: 77816 | ER101: 61536 | ES101: 16281 | ET101: 10313 | EU101: 51222 | EV101: 1038.63 | EW101: 1030.98 | EX101: 1067.56 | EY101: 1209.32 | EZ101: 995.07
A102: New Hampshire | B102: 1026 | C102: 610446 | D102: 531225 | E102: 127190 | F102: 404035 | G102: 682.38 | H102: 691.51 | I102: 842.11 | J102: 644.1 | K102: 603100 | L102: 521320 | M102: 115244 | N102: 406076 | O102: 695.8 | P102: 703.84 | Q102: 868.13 | R102: 657.22 | S102: 604198 | T102: 520362 | U102: 111472 | V102: 408890 | W102: 717.94 | X102: 724.91 | Y102: 888.81 | Z102: 680.22 | AA102: 613327 | AB102: 529515 | AC102: 111893 | AD102: 417622 | AE102: 753.7 | AF102: 760.58 | AG102: 928.63 | AH102: 715.56 | AI102: 620909 | AJ102: 536173 | AK102: 112033 | AL102: 424140 | AM102: 779.84 | AN102: 788.93 | AO102: 958.48 | AP102: 744.15 | AQ102: 627301 | AR102: 541435 | AS102: 110189 | AT102: 431246 | AU102: 816.3 | AV102: 827.48 | AW102: 1013.11 | AX102: 780.04 | AY102: 630171 | AZ102: 543800 | BA102: 107673 | BB102: 436127 | BC102: 843.46 | BD102: 852.45 | BE102: 1054.16 | BF102: 802.65 | BG102: 628819 | BH102: 541768 | BI102: 104441 | BJ102: 437326 | BK102: 863.66 | BL102: 870.64 | BM102: 1074.6 | BN102: 821.93 | BO102: 604915 | BP102: 517658 | BQ102: 92952 | BR102: 424706 | BS102: 864.05 | BT102: 867.37 | BU102: 1066.42 | BV102: 823.81 | BW102: 600540 | BX102: 513386 | BY102: 89428 | BZ102: 423957 | CA102: 883.88 | CB102: 890.13 | CC102: 1119.47 | CD102: 841.75 | CE102: 605864 | CF102: 520338 | CG102: 90996 | CH102: 429342 | CI102: 909.31 | CJ102: 916.27 | CK102: 1140.95 | CL102: 868.65 | CM102: 612432 | CN102: 527263 | CO102: 90404 | CP102: 436858 | CQ102: 928.33 | CR102: 938.02 | CS102: 1152.07 | CT102: 893.72 | CU102: 618756 | CV102: 534106 | CW102: 90890 | CX102: 443216 | CY102: 941.75 | CZ102: 950.79 | DA102: 1173.11 | DB102: 905.2 | DC102: 626567 | DD102: 541441 | DE102: 92176 | DF102: 449265 | DG102: 983.96 | DH102: 996.35 | DI102: 1200.71 | DJ102: 954.42 | DK102: 636798 | DL102: 552276 | DM102: 93968 | DN102: 458308 | DO102: 1010.64 | DP102: 1021.89 | DQ102: 1224.55 | DR102: 980.34 | DS102: 647375 | DT102: 562836 | DU102: 96138 | DV102: 466699 | DW102: 1030.04 | DX102: 1042.63 | DY102: 1251.03 | DZ102: 999.7 | EA102: 653496 | EB102: 569023 | EC102: 97995 | ED102: 471029 | EE102: 1060.34 | EF102: 1073.99 | EG102: 1294.46 | EH102: 1028.12 | EI102: 658816 | EJ102: 574044 | EK102: 100089 | EL102: 473955 | EM102: 1091.97 | EN102: 1106.44 | EO102: 1317.59 | EP102: 1061.85 | EQ102: 665374 | ER102: 580394 | ES102: 84980 | ET102: 101907 | EU102: 478487 | EV102: 1128.27 | EW102: 1145.04 | EX102: 1013.77 | EY102: 1346.98 | EZ102: 1102.03
A103: Rockingham County | B103: 8 | C103: 130960 | D103: 117604 | E103: 24384 | F103: 93220 | G103: 704.6 | H103: 714.62 | I103: 913.02 | J103: 662.73 | K103: 130242 | L103: 116589 | M103: 22286 | N103: 94302 | O103: 712.56 | P103: 720.57 | Q103: 945.47 | R103: 667.42 | S103: 130329 | T103: 116466 | U103: 21075 | V103: 95392 | W103: 725.68 | X103: 731.51 | Y103: 920.38 | Z103: 689.79 | AA103: 133803 | AB103: 119786 | AC103: 21944 | AD103: 97841 | AE103: 774.11 | AF103: 781.14 | AG103: 964.22 | AH103: 740.08 | AI103: 136154 | AJ103: 122028 | AK103: 22051 | AL103: 99976 | AM103: 796.86 | AN103: 803.2 | AO103: 996.54 | AP103: 760.55 | AQ103: 138063 | AR103: 123549 | AS103: 22274 | AT103: 101275 | AU103: 842.13 | AV103: 851.8 | AW103: 1013.05 | AX103: 816.33 | AY103: 138382 | AZ103: 123679 | BA103: 22407 | BB103: 101273 | BC103: 849.04 | BD103: 856.27 | BE103: 1052.77 | BF103: 812.8 | BG103: 137191 | BH103: 122378 | BI103: 22407 | BJ103: 99970 | BK103: 839.01 | BL103: 841.86 | BM103: 1081.82 | BN103: 788.07 | BO103: 131375 | BP103: 116492 | BQ103: 19644 | BR103: 96848 | BS103: 839.06 | BT103: 840.45 | BU103: 1104.36 | BV103: 786.93 | BW103: 131892 | BX103: 117079 | BY103: 18689 | BZ103: 98391 | CA103: 862.17 | CB103: 865.32 | CC103: 1199.72 | CD103: 801.8 | CE103: 133444 | CF103: 119079 | CG103: 18941 | CH103: 100138 | CI103: 880.6 | CJ103: 883.65 | CK103: 1146.49 | CL103: 833.93 | CM103: 135396 | CN103: 121125 | CO103: 18942 | CP103: 102183 | CQ103: 907.06 | CR103: 912.95 | CS103: 1200.98 | CT103: 859.56 | CU103: 137505 | CV103: 123255 | CW103: 19558 | CX103: 103698 | CY103: 919.22 | CZ103: 924.42 | DA103: 1204.87 | DB103: 871.53 | DC103: 139972 | DD103: 125705 | DE103: 20107 | DF103: 105598 | DG103: 967.99 | DH103: 976.63 | DI103: 1214.6 | DJ103: 931.32 | DK103: 143650 | DL103: 129571 | DM103: 20954 | DN103: 108617 | DO103: 999.45 | DP103: 1007.52 | DQ103: 1260.88 | DR103: 958.65 | DS103: 146926 | DT103: 132843 | DU103: 21711 | DV103: 111132 | DW103: 1008.63 | DX103: 1016.49 | DY103: 1289.12 | DZ103: 963.24 | EA103: 149059 | EB103: 134948 | EC103: 22384 | ED103: 112564 | EE103: 1040.6 | EF103: 1049.82 | EG103: 1335.62 | EH103: 992.99 | EI103: 149817 | EJ103: 135525 | EK103: 22957 | EL103: 112568 | EM103: 1068.69 | EN103: 1079.16 | EO103: 1345.67 | EP103: 1024.8 | EQ103: 151694 | ER103: 137342 | ES103: 14352 | ET103: 23611 | EU103: 113731 | EV103: 1110.28 | EW103: 1122.81 | EX103: 990.42 | EY103: 1388.53 | EZ103: 1067.64
A104: Strafford County | B104: 9 | C104: 43645 | D104: 34821 | E104: 9068 | F104: 25753 | G104: 655.37 | H104: 655.92 | I104: 770.85 | J104: 615.45 | K104: 42874 | L104: 33684 | M104: 7630 | N104: 26054 | O104: 655.35 | P104: 652.99 | Q104: 800.21 | R104: 609.88 | S104: 43046 | T104: 33530 | U104: 7366 | V104: 26164 | W104: 668.52 | X104: 656.47 | Y104: 806.84 | Z104: 614.13 | AA104: 43436 | AB104: 33873 | AC104: 7230 | AD104: 26643 | AE104: 693.72 | AF104: 673.65 | AG104: 820.17 | AH104: 633.9 | AI104: 43773 | AJ104: 34267 | AK104: 7211 | AL104: 27056 | AM104: 709.03 | AN104: 692.76 | AO104: 828.02 | AP104: 656.71 | AQ104: 44557 | AR104: 35064 | AS104: 7140 | AT104: 27925 | AU104: 723.22 | AV104: 705.71 | AW104: 858.22 | AX104: 666.71 | AY104: 45570 | AZ104: 35960 | BA104: 6960 | BB104: 29000 | BC104: 746.96 | BD104: 729.16 | BE104: 880.17 | BF104: 692.91 | BG104: 46580 | BH104: 36991 | BI104: 6754 | BJ104: 30237 | BK104: 803.35 | BL104: 784.14 | BM104: 900.05 | BN104: 758.25 | BO104: 44375 | BP104: 35115 | BQ104: 5981 | BR104: 29133 | BS104: 822.2 | BT104: 798.7 | BU104: 916.04 | BV104: 774.61 | BW104: 44144 | BX104: 34793 | BY104: 5960 | BZ104: 28833 | CA104: 843.68 | CB104: 824.98 | CC104: 964.85 | CD104: 796.07 | CE104: 44154 | CF104: 34870 | CG104: 6008 | CH104: 28863 | CI104: 879.87 | CJ104: 868.02 | CK104: 1098.93 | CL104: 819.95 | CM104: 45017 | CN104: 35667 | CO104: 6036 | CP104: 29631 | CQ104: 875.8 | CR104: 864.35 | CS104: 1039.17 | CT104: 828.73 | CU104: 45379 | CV104: 36187 | CW104: 6365 | CX104: 29822 | CY104: 896.63 | CZ104: 880.93 | DA104: 1050.44 | DB104: 844.76 | DC104: 46249 | DD104: 36899 | DE104: 6431 | DF104: 30469 | DG104: 915.86 | DH104: 906.58 | DI104: 1082.2 | DJ104: 869.52 | DK104: 46826 | DL104: 37517 | DM104: 6657 | DN104: 30860 | DO104: 954.37 | DP104: 941.53 | DQ104: 1121.8 | DR104: 902.65 | DS104: 47632 | DT104: 38313 | DU104: 6879 | DV104: 31434 | DW104: 967.61 | DX104: 953.88 | DY104: 1119.03 | DZ104: 917.74 | EA104: 48165 | EB104: 38780 | EC104: 6935 | ED104: 31845 | EE104: 990.95 | EF104: 980.7 | EG104: 1148.01 | EH104: 944.26 | EI104: 48371 | EJ104: 39036 | EK104: 6997 | EL104: 32039 | EM104: 1004.47 | EN104: 991.1 | EO104: 1131.83 | EP104: 960.36 | EQ104: 48714 | ER104: 39366 | ES104: 9348 | ET104: 7127 | EU104: 32239 | EV104: 1034.79 | EW104: 1028.6 | EX104: 1060.86 | EY104: 1146.21 | EZ104: 1002.6
A105: Sullivan County | B105: 10 | C105: 14086 | D105: 11544 | E105: n | F105: n | G105: 536.78 | H105: 549.33 | I105: n | J105: n | K105: 13793 | L105: 11231 | M105: 4452 | N105: 6779 | O105: 561.15 | P105: 569.74 | Q105: 685.65 | R105: 493.64 | S105: 13370 | T105: 10809 | U105: 4059 | V105: 6750 | W105: 577.41 | X105: 588.45 | Y105: 688.92 | Z105: 528.03 | AA105: 13551 | AB105: 11127 | AC105: 4066 | AD105: 7061 | AE105: 602.7 | AF105: 607.34 | AG105: 721.67 | AH105: 541.5 | AI105: 13862 | AJ105: 11386 | AK105: 4086 | AL105: 7300 | AM105: 615.79 | AN105: 621.85 | AO105: 741.34 | AP105: 554.98 | AQ105: 13826 | AR105: 11306 | AS105: 3928 | AT105: 7377 | AU105: 642.61 | AV105: 650.96 | AW105: 800.27 | AX105: 571.45 | AY105: 13873 | AZ105: 11351 | BA105: 3958 | BB105: 7393 | BC105: 676.8 | BD105: 687.32 | BE105: 843.22 | BF105: 603.85 | BG105: 13799 | BH105: 11227 | BI105: 3909 | BJ105: 7318 | BK105: 687.34 | BL105: 698.53 | BM105: 866.24 | BN105: 608.95 | BO105: 13185 | BP105: 10586 | BQ105: 3466 | BR105: 7121 | BS105: 698.02 | BT105: 705.82 | BU105: 887.35 | BV105: 617.47 | BW105: 13076 | BX105: 10479 | BY105: 3303 | BZ105: 7176 | CA105: 714.38 | CB105: 723.66 | CC105: 917.55 | CD105: 634.43 | CE105: 13190 | CF105: 10617 | CG105: 3204 | CH105: 7413 | CI105: 723.57 | CJ105: 732.12 | CK105: 955.94 | CL105: 635.39 | CM105: 13597 | CN105: 11070 | CO105: 3448 | CP105: 7622 | CQ105: 757.15 | CR105: 771.77 | CS105: 1038.84 | CT105: 650.94 | CU105: 13793 | CV105: 11373 | CW105: 3704 | CX105: 7670 | CY105: 768.35 | CZ105: 784.88 | DA105: 1012.65 | DB105: 674.88 | DC105: 13873 | DD105: 11439 | DE105: 3932 | DF105: 7507 | DG105: 795.94 | DH105: 816.28 | DI105: 1039.17 | DJ105: 699.53 | DK105: 14090 | DL105: 11709 | DM105: 3948 | DN105: 7761 | DO105: 803.2 | DP105: 815.31 | DQ105: 1021.57 | DR105: 710.37 | DS105: 14204 | DT105: 11783 | DU105: 4061 | DV105: 7722 | DW105: 810.76 | DX105: 830.28 | DY105: 1066.2 | DZ105: 706.22 | EA105: 13997 | EB105: 11636 | EC105: 4031 | ED105: 7605 | EE105: 821.95 | EF105: 836.22 | EG105: 1048.48 | EH105: 723.72 | EI105: 13966 | EJ105: 11628 | EK105: 3919 | EL105: 7708 | EM105: 836.09 | EN105: 849.04 | EO105: 1063.62 | EP105: 739.94 | EQ105: 13735 | ER105: 11390 | ES105: 2344 | ET105: 3818 | EU105: 7573 | EV105: 854.16 | EW105: 864.16 | EX105: 805.53 | EY105: 1081.23 | EZ105: 754.74

Sheet BuildingPermitsSince2000 (hidden)
B2: =CntyDataLink!A35 -> Alton
B4: HOUSING CHARACTERISTICS
B35: Housing Units Authorized by Permit | F35: Source: New Hampshire Office of Strategic Initiatives
B37: Year | C37: 2000 | D37: =C37+1 -> 2001 | E37: =D37+1 -> 2002 | F37: 2003 | G37: 2004 | H37: 2005 | I37: 2006 | J37: 2007 | K37: 2008 | L37: 2009 | M37: 2010 | N37: 2011 | O37: 2012 | P37: 2013 | Q37: 2014 | R37: 2015 | S37: 2016 | T37: 2017 | U37: 2018 | V37: 2019 | W37: Total
B38: Single Family | C38: =CntyDataLink!$BT$20 -> 67 | D38: =CntyDataLink!$BW$20 -> 57 | E38: =CntyDataLink!$BZ$20 -> 80 | F38: =CntyDataLink!$CC$20 -> 100 | G38: =CntyDataLink!$CF$20 -> 106 | H38: =CntyDataLink!$CI$20 -> 86 | I38: =CntyDataLink!$CL$20 -> 58 | J38: =CntyDataLink!$CO$20 -> 42 | K38: =CntyDataLink!$CR$20 -> 49 | L38: =CntyDataLink!$CU$20 -> 17 | M38: =CntyDataLink!$CX$20 -> 7 | N38: =CntyDataLink!$DA$20 -> 15 | O38: =CntyDataLink!$DD$20 -> 6 | P38: =CntyDataLink!$DG$20 -> 11 | Q38: =CntyDataLink!$DJ$20 -> 16 | R38: =CntyDataLink!$DM$20 -> 5 | S38: =CntyDataLink!$DP$20 -> 33 | T38: =CntyDataLink!$DS$20 -> 14 | U38: =CntyDataLink!$DV$20 -> 32 | V38: =CntyDataLink!$DY$20 -> 21 | W38: =SUM(C38:V38) -> 822
B39: Multi-family | C39: =CntyDataLink!$BU$20 -> 6 | D39: =CntyDataLink!$BX$20 -> 0 | E39: =CntyDataLink!$CA$20 -> 2 | F39: =CntyDataLink!$CD$20 -> 4 | G39: =CntyDataLink!$CG$20 -> 4 | H39: =CntyDataLink!$CJ$20 -> 1 | I39: =CntyDataLink!$CM$20 -> 0 | J39: =CntyDataLink!$CP$20 -> 0 | K39: =CntyDataLink!$CS$20 -> 0 | L39: =CntyDataLink!$CV$20 -> 0 | M39: =CntyDataLink!$CY$20 -> 0 | N39: =CntyDataLink!$DB$20 -> 0 | O39: =CntyDataLink!DE$20 -> 0 | P39: =CntyDataLink!$DH$20 -> 0 | Q39: =CntyDataLink!$DK$20 -> 0 | R39: =CntyDataLink!$DN$20 -> 0 | S39: =CntyDataLink!$DQ$20 -> 0 | T39: =CntyDataLink!$DT$20 -> 0 | U39: =CntyDataLink!$DW$20 -> 0 | V39: =CntyDataLink!$DZ$20 -> 0 | W39: =SUM(C39:V39) -> 17
B40: Mobile Home | C40: =CntyDataLink!$BV$20 -> 5 | D40: =CntyDataLink!$BY$20 -> 1 | E40: =CntyDataLink!$CB$20 -> 3 | F40: =CntyDataLink!$CE$20 -> 0 | G40: =CntyDataLink!$CH$20 -> 0 | H40: =CntyDataLink!$CK$20 -> 0 | I40: =CntyDataLink!$CN$20 -> 2 | J40: =CntyDataLink!$CQ$20 -> 0 | K40: =CntyDataLink!$CT$20 -> 4 | L40: =CntyDataLink!$CW$20 -> 1 | M40: =CntyDataLink!$CZ$20 -> 0 | N40: =CntyDataLink!$DC$20 -> 0 | O40: =CntyDataLink!$DF$20 -> 0 | P40: =CntyDataLink!$DI$20 -> 0 | Q40: =CntyDataLink!$DL$20 -> 2 | R40: =CntyDataLink!$DO$20 -> 0 | S40: =CntyDataLink!$DR$20 -> 0 | T40: =CntyDataLink!$DV$20 -> 32 | U40: =CntyDataLink!$DX$20 -> 0 | V40: =CntyDataLink!$EA$20 -> 0 | W40: =SUM(C40:V40) -> 50
B41: Total | C41: =SUM(C38:C40) -> 78 | D41: =SUM(D38:D40) -> 58 | E41: 85 | F41: 104 | G41: 110 | H41: 87 | I41: 60 | J41: 42 | K41: 53 | L41: 18 | M41: 7 | N41: 15 | O41: 6 | P41: 11 | Q41: =SUM(Q38:Q40) -> 18 | R41: 5 | S41: 33 | T41: 46 | U41: 32 | V41: 21 | W41: 889

Sheet EmpVsHUxCounty (hidden)
A2: =A45 -> Alton
A44: Housing Units
A45: =CntyDataLink!A20 -> Alton
D46: Source: New Hampshire Office of Strategic Initiatives
A47: Units Authorized By Permit | B47: 2008 | C47: =B47+1 -> 2009 | D47: =C47+1 -> 2010 | E47: 2011 | F47: 2012 | G47: 2013 | H47: 2014 | I47: 2015 | J47: 2016 | K47: 2017 | L47: 2018 | M47: 2019
A48: Single Family | B48: =CntyDataLink!$CR$20 -> 49 | C48: =CntyDataLink!$CU$20 -> 17 | D48: =CntyDataLink!$CX$20 -> 7 | E48: =CntyDataLink!$DA$20 -> 15 | F48: =CntyDataLink!$DD$20 -> 6 | G48: =CntyDataLink!$DG$20 -> 11 | H48: =CntyDataLink!$DJ$20 -> 16 | I48: =CntyDataLink!$DM$20 -> 5 | J48: =CntyDataLink!$DP$20 -> 33 | K48: =CntyDataLink!$DS$20 -> 14 | L48: =CntyDataLink!$DV$20 -> 32 | M48: =CntyDataLink!$DY$20 -> 21
A49: Multi-family | B49: =CntyDataLink!$CS$20 -> 0 | C49: =CntyDataLink!$CV$20 -> 0 | D49: =CntyDataLink!$CY$20 -> 0 | E49: =CntyDataLink!$DB$20 -> 0 | F49: =CntyDataLink!$DE$20 -> 0 | G49: =CntyDataLink!$DH$20 -> 0 | H49: =CntyDataLink!$DK$20 -> 0 | I49: =CntyDataLink!$DN$20 -> 0 | J49: =CntyDataLink!$DQ$20 -> 0 | K49: =CntyDataLink!$DT$20 -> 0 | L49: =CntyDataLink!$DW$20 -> 0 | M49: =CntyDataLink!$DZ$20 -> 0
A50: Mobile Home | B50: =CntyDataLink!$CT$20 -> 4 | C50: =CntyDataLink!$CW$20 -> 1 | D50: =CntyDataLink!$CZ$20 -> 0 | E50: =CntyDataLink!$DC$20 -> 0 | F50: =CntyDataLink!$DF$20 -> 0 | G50: =CntyDataLink!$DI$20 -> 0 | H50: =CntyDataLink!$DL$20 -> 2 | I50: =CntyDataLink!$DO$20 -> 0 | J50: =CntyDataLink!$DR$20 -> 0 | K50: =CntyDataLink!$DU$20 -> 0 | L50: =CntyDataLink!$DX$20 -> 0 | M50: =CntyDataLink!$EA$20 -> 0
A51: Total | B51: =SUM(B48:B50) -> 53 | C51: 18 | D51: 7 | E51: 15 | F51: 6 | G51: 11 | H51: 18 | I51: 5 | J51: 33 | K51: 14 | L51: =SUM(L48:L50) -> 32 | M51: =SUM(M48:M50) -> 21
A53: Total Housing Units | B53: 2008 | C53: =B53+1 -> 2009 | D53: 2010 | E53: 2010 Census | F53: 2011 | G53: =F53+1 -> 2012 | H53: 2013 | I53: 2014 | J53: 2015 | K53: 2016 | L53: 2017 | M53: 2018 | N53: 2019 | O53: 2020
A54: Single Family | B54: =CntyDataLink!CF65+CntyDataLink!$BT$20+CntyDataLink!$BW$20+CntyDataLink!$BZ$20+CntyDataLink!$CC$20+CntyDataLink!$CF$20+CntyDataLink!$CI$20+CntyDataLink!$CO$20+CntyDataLink!$CR$20 -> 3696 | C54: =B54+B48 -> 3745 | D54: =C54+C48 -> 3762 | E54: =CntyDataLink!$BA$167 -> 3731 | F54: =D48+E54 -> 3738 | G54: =F54+E48 -> 3753 | H54: 3759 | I54: 3770 | J54: 3786 | K54: 3791 | L54: 3824 | M54: 3838 | N54: 3870 | O54: 3891
A55: Multi Family | B55: =SUM(CntyDataLink!CG65:CM65)+CntyDataLink!$BU$20+CntyDataLink!$BX$20+CntyDataLink!$CA$20+CntyDataLink!$CD$20+CntyDataLink!$CG$20+CntyDataLink!$CJ$20+CntyDataLink!$CP$20+CntyDataLink!$CS$20 -> 234 | C55: =B55+B49 -> 234 | D55: =C55+C49 -> 234 | E55: =CntyDataLink!$BB$167 -> 268 | F55: =D49+E55 -> 268 | G55: 268 | H55: 268 | I55: 268 | J55: 268 | K55: 268 | L55: 268 | M55: 268 | N55: 268 | O55: 268
A56: Mobile Home | B56: =SUM(CntyDataLink!CN65:CO65)+CntyDataLink!$BV$20+CntyDataLink!$BY$20+CntyDataLink!$CB$20+CntyDataLink!$CE$20+CntyDataLink!$CH$20+CntyDataLink!$CK$20+CntyDataLink!$CQ$20+CntyDataLink!$CT$20 -> 209 | C56: 213 | D56: =C56+C50 -> 214 | E56: =CntyDataLink!$BC$167 -> 282 | F56: =D50+E56 -> 282 | G56: 282 | H56: 282 | I56: 282 | J56: 284 | K56: 284 | L56: 284 | M56: 284 | N56: 284 | O56: 284
A57: Total | B57: =SUM(B54:B56) -> 4139 | C57: =SUM(C54:C56) -> 4192 | D57: =C57+C51 -> 4210 | E57: =SUM(E54:E56) -> 4281 | F57: =SUM(F54:F56) -> 4288 | G57: 4303 | H57: 4309 | I57: 4320 | J57: 4338 | K57: 4343 | L57: 4376 | M57: 4390 | N57: 4422 | O57: 4443
A59: Percent Change | C59: 08-09 | D59: 09-10 | E59: 2000-2010 Census | F59: 10-11 | G59: 11-12 | H59: 12-13 | I59: 13-14 | J59: 14-15 | K59: 15-16 | L59: 16-17 | M59: 17-18 | N59: 18-19 | O59: 19-20
A60: Single Family | C60: =(C54-B54)/B54 -> 0.01325757576 | D60: =(D54-C54)/C54 -> 0.004539385848 | E60: =(E54-CntyDataLink!CF$65)/CntyDataLink!CF$65 -> 0.2000643294 | F60: =(F54-E54)/E54 -> 0.001876172608 | G60: 0.004012841091 | H60: 0.001598721023 | I60: 0.002926310189 | J60: 0.00424403183 | K60: 0.001320655045 | L60: 0.008704827222 | M60: 0.003661087866 | N60: 0.008337675873 | O60: 0.005426356589
A61: Multi Family | C61: =(C55-B55)/B55 -> 0 | D61: 0 | E61: =(E55-SUM(CntyDataLink!CG65:CM65))/SUM(CntyDataLink!CG65:CM65) -> 0.2350230415 | F61: 0 | G61: 0 | H61: 0 | I61: 0 | J61: 0 | K61: 0 | L61: 0 | M61: 0 | N61: 0 | O61: 0
A62: Mobile Home | C62: 0.01913875598 | D62: 0.004694835681 | E62: =(E56-SUM(CntyDataLink!CM65:CN65))/SUM(CntyDataLink!CM65:CN65) -> 0.4920634921 | F62: 0 | G62: 0 | H62: 0 | I62: 0 | J62: 0.007092198582 | K62: 0 | L62: 0 | M62: 0 | N62: 0 | O62: 0
A63: Total | C63: 0.01280502537 | D63: 0.00429389313 | E63: =(E57-CntyDataLink!$CE65)/CntyDataLink!$CE65 -> 0.2155025554 | F63: 0.001635131979 | G63: 0.003498134328 | H63: 0.001394376017 | I63: 0.002552796472 | J63: 0.004166666667 | K63: 0.001152604887 | L63: 0.007598434262 | M63: 0.003199268739 | N63: 0.00728929385 | O63: 0.004748982361
A68: Private Employment
A69: =CntyDataLink!A25 -> Alton
C70: 2008 | D70: =C70+1 -> 2009 | E70: 2010 | F70: 2011 | G70: 2012 | H70: 2013 | I70: 2014 | J70: 2015 | K70: 2016 | L70: 2017 | M70: 2018 | N70: 2019
A71: Goods Producing | C71: =IF((CntyDataLink!$BI$25)="n",NA(),IF(VALUE(CntyDataLink!$BI$25)="",NA(),VALUE(CntyDataLink!$BI$25))) -> 77 | D71: =IF((CntyDataLink!$BQ$25)="n",NA(),IF(VALUE(CntyDataLink!$BQ$25)="",NA(),VALUE(CntyDataLink!$BQ$25))) -> 87 | E71: =IF((CntyDataLink!$BY$25)="n",NA(),IF(VALUE(CntyDataLink!$BY$25)="",NA(),VALUE(CntyDataLink!$BY$25))) -> 78 | F71: =IF((CntyDataLink!$CG$25)="n",NA(),IF(VALUE(CntyDataLink!$CG$25)="",NA(),VALUE(CntyDataLink!$CG$25))) -> 61 | G71: =IF((CntyDataLink!$CO$25)="n",NA(),IF(VALUE(CntyDataLink!$CO$25)="",NA(),VALUE(CntyDataLink!$CO$25))) -> 45 | H71: =IF((CntyDataLink!$CW$25)="n",NA(),IF(VALUE(CntyDataLink!$CW$25)="",NA(),VALUE(CntyDataLink!$CW$25))) -> 61 | I71: =IF((CntyDataLink!$DE$25)="n",NA(),IF(VALUE(CntyDataLink!$DE$25)="",NA(),VALUE(CntyDataLink!$DE$25))) -> 46 | J71: =IF((CntyDataLink!$DM$25)="n",NA(),IF(VALUE(CntyDataLink!$DM$25)="",NA(),VALUE(CntyDataLink!$DM$25))) -> 55 | K71: =IF((CntyDataLink!$DU$25)="n",NA(),IF(VALUE(CntyDataLink!$DU$25)="",NA(),VALUE(CntyDataLink!$DU$25))) -> 54 | L71: =IF((CntyDataLink!$EC$25)="n",NA(),IF(VALUE(CntyDataLink!$EC$25)="",NA(),VALUE(CntyDataLink!$EC$25))) -> 59 | M71: =IF((CntyDataLink!$EK$25)="n",NA(),IF(VALUE(CntyDataLink!$EK$25)="",NA(),VALUE(CntyDataLink!$EK$25))) -> 70 | N71: =IF((CntyDataLink!$ET$25)="n",NA(),IF(VALUE(CntyDataLink!$ET$25)="",NA(),VALUE(CntyDataLink!$ET$25))) -> 74
A72: Service Providing | C72: =IF((CntyDataLink!$BJ$25)="n",NA(),IF(VALUE(CntyDataLink!$BJ$25)="",NA(),VALUE(CntyDataLink!$BJ$25))) -> 642 | D72: =IF((CntyDataLink!$BR$25)="n",NA(),IF(VALUE(CntyDataLink!$BR$25)="",NA(),VALUE(CntyDataLink!$BR$25))) -> 610 | E72: =IF((CntyDataLink!$BZ$25)="n",NA(),IF(VALUE(CntyDataLink!$BZ$25)="",NA(),VALUE(CntyDataLink!$BZ$25))) -> 610 | F72: =IF((CntyDataLink!$CH$25)="n",NA(),IF(VALUE(CntyDataLink!$CH$25)="",NA(),VALUE(CntyDataLink!$CH$25))) -> 641 | G72: =IF((CntyDataLink!$CP$25)="n",NA(),IF(VALUE(CntyDataLink!$CP$25)="",NA(),VALUE(CntyDataLink!$CP$25))) -> 627 | H72: =IF((CntyDataLink!$CX$25)="n",NA(),IF(VALUE(CntyDataLink!$CX$25)="",NA(),VALUE(CntyDataLink!$CX$25))) -> 682 | I72: =IF((CntyDataLink!$DF$25)="n",NA(),IF(VALUE(CntyDataLink!$DF$25)="",NA(),VALUE(CntyDataLink!$DF$25))) -> 719 | J72: =IF((CntyDataLink!$DN$25)="n",NA(),IF(VALUE(CntyDataLink!$DN$25)="",NA(),VALUE(CntyDataLink!$DN$25))) -> 714 | K72: =IF((CntyDataLink!$DV$25)="n",NA(),IF(VALUE(CntyDataLink!$DV$25)="",NA(),VALUE(CntyDataLink!$DV$25))) -> 714 | L72: =IF((CntyDataLink!$ED$25)="n",NA(),IF(VALUE(CntyDataLink!$ED$25)="",NA(),VALUE(CntyDataLink!$ED$25))) -> 731 | M72: =IF((CntyDataLink!$EL$25)="n",NA(),IF(VALUE(CntyDataLink!$EL$25)="",NA(),VALUE(CntyDataLink!$EL$25))) -> 750 | N72: =IF((CntyDataLink!$EU$25)="n",NA(),IF(VALUE(CntyDataLink!$EU$25)="",NA(),VALUE(CntyDataLink!$EU$25))) -> 780
A73: Total Private Emp | C73: =IF((CntyDataLink!$BH$25)="n",NA(),IF(VALUE(CntyDataLink!$BH$25)="",NA(),VALUE(CntyDataLink!$BH$25))) -> 719 | D73: =IF((CntyDataLink!$BP$25)="n",NA(),IF(VALUE(CntyDataLink!$BP$25)="",NA(),VALUE(CntyDataLink!$BP$25))) -> 697 | E73: =IF((CntyDataLink!$BX$25)="n",NA(),IF(VALUE(CntyDataLink!$BX$25)="",NA(),VALUE(CntyDataLink!$BX$25))) -> 688 | F73: =IF((CntyDataLink!$CF$25)="n",NA(),IF(VALUE(CntyDataLink!$CF$25)="",NA(),VALUE(CntyDataLink!$CF$25))) -> 702 | G73: =IF((CntyDataLink!$CN$25)="n",NA(),IF(VALUE(CntyDataLink!$CN$25)="",NA(),VALUE(CntyDataLink!$CN$25))) -> 672 | H73: =IF((CntyDataLink!$CV$25)="n",NA(),IF(VALUE(CntyDataLink!$CV$25)="",NA(),VALUE(CntyDataLink!$CV$25))) -> 743 | I73: =IF((CntyDataLink!$DD$25)="n",NA(),IF(VALUE(CntyDataLink!$DD$25)="",NA(),VALUE(CntyDataLink!$DD$25))) -> 764 | J73: =IF((CntyDataLink!$DL$25)="n",NA(),IF(VALUE(CntyDataLink!$DL$25)="",NA(),VALUE(CntyDataLink!$DL$25))) -> 769 | K73: =IF((CntyDataLink!$DT$25)="n",NA(),IF(VALUE(CntyDataLink!$DT$25)="",NA(),VALUE(CntyDataLink!$DT$25))) -> 768 | L73: =IF((CntyDataLink!$EB$25)="n",NA(),IF(VALUE(CntyDataLink!$EB$25)="",NA(),VALUE(CntyDataLink!$EB$25))) -> 789 | M73: =IF((CntyDataLink!$EJ$25)="n",NA(),IF(VALUE(CntyDataLink!$EJ$25)="",NA(),VALUE(CntyDataLink!$EJ$25))) -> 821 | N73: =IF((CntyDataLink!$ER$25)="n",NA(),IF(VALUE(CntyDataLink!$ER$25)="",NA(),VALUE(CntyDataLink!$ER$25))) -> 855
A75: Percent Change | D75: 08-09 | E75: 09-10 | F75: 10-11 | G75: 11-12 | H75: 12-13 | I75: 13-14 | J75: 14-15 | K75: 15-16 | L75: 16-17 | M75: 17-18 | N75: 18-19
A76: Goods Producing | D76: =(D71-C71)/C71 -> 0.1298701299 | E76: -0.1034482759 | F76: -0.2179487179 | G76: -0.262295082 | H76: 0.3555555556 | I76: -0.2459016393 | J76: 0.1956521739 | K76: -0.01818181818 | L76: 0.09259259259 | M76: 0.186440678 | N76: =(N71-M71)/M71 -> 0.05714285714
A77: Service Providing | D77: -0.04984423676 | E77: 0 | F77: 0.05081967213 | G77: -0.02184087363 | H77: 0.08771929825 | I77: 0.05425219941 | J77: -0.006954102921 | K77: 0 | L77: 0.02380952381 | M77: 0.02599179207 | N77: 0.04
A78: Total Private Emp | D78: -0.03059805285 | E78: =(E73-D73)/D73 -> -0.01291248207 | F78: 0.02034883721 | G78: -0.04273504274 | H78: 0.1056547619 | I78: 0.02826379542 | J78: 0.006544502618 | K78: -0.001300390117 | L78: 0.02734375 | M78: 0.04055766793 | N78: =(N73-M73)/M73 -> 0.04141291108
A82: Source: New Hampshire Department of Employment Security
A84: =A2 -> Alton
C120: 2008 | D120: =C120+1 -> 2009 | E120: 2010 | F120: 2011 | G120: 2012 | H120: 2013 | I120: 2014 | J120: 2015 | K120: 2016 | L120: 2017 | M120: 2018 | N120: 2019
A121: Total Housing Units | C121: =B$57 -> 4139 | D121: 4192 | E121: =$E$57 -> 4281 | F121: =F57 -> 4288 | G121: 4303 | H121: 4309 | I121: 4320 | J121: 4338 | K121: 4343 | L121: 4376 | M121: 4390 | N121: 4422
A122: Private & Government Emp. | C122: =VALUE(CntyDataLink!$BG$25) -> 1032 | D122: =VALUE(CntyDataLink!$BO$25) -> 1021 | E122: =VALUE(CntyDataLink!$BW$25) -> 1017 | F122: =VALUE(CntyDataLink!$CE$25) -> 1022 | G122: =VALUE(CntyDataLink!$CM$25) -> 1005 | H122: =VALUE(CntyDataLink!$CU$25) -> 1079 | I122: =VALUE(CntyDataLink!$DC$25) -> 1099 | J122: =VALUE(CntyDataLink!$DK$25) -> 1109 | K122: =VALUE(CntyDataLink!$DS$25) -> 1099 | L122: =VALUE(CntyDataLink!$EA$25) -> 1112 | M122: =VALUE(CntyDataLink!$EI$25) -> 1142 | N122: =VALUE(CntyDataLink!$EQ$25) -> 1174
A124: Source: New Hampshire Department of Employment Security and New Hampshire Office of Strategic Initiatives

Sheet HHIncome-10YearComparison (hidden)
B2: =CntyDataLink!A35 -> Alton
B4: INCOME CHARACTERISTICS
B27: Households By Household Income
E28: 2005-2009 | I28: 2010-2014 | L28: 2015-2019 | P28: Statistically Significant Change
B29: Household Income | E29: Estimate | F29: Margin of Error | I29: Estimate | J29: Margin of Error | L29: Estimate | M29: Margin of Error | P29: 2009-2019 | Q29: 2014-2019
B30: Less than $10,000 | E30: =CntyDataLinkPrior10YearEstimate!$B$120 -> 33 | F30: =CntyDataLinkPrior10YearEstimate!$C$120 -> 39 | G30: =E30/SUM($E$30:$E$39) -> 0.03203883495 | I30: =CntyDataLinkPrior5YearEstimates!$B$120 -> 135 | J30: =CntyDataLinkPrior5YearEstimates!$C$120 -> 116 | K30: =I30/SUM($I$30:$I$39) -> 0.06155950752 | L30: =CntyDataLink!$B$120 -> 0 | M30: =CntyDataLink!$C$120 -> 16 | N30: =L30/SUM($L$30:$L$39) -> 0 | P30: =StatisticallySignificantCalcs!$A$83 -> N | Q30: =StatisticallySignificantCalcs!$J$83 -> N
B31: $10,000 to $14,999 | E31: =CntyDataLinkPrior10YearEstimate!$D$120 -> 41 | F31: =CntyDataLinkPrior10YearEstimate!$E$120 -> 40 | G31: =E31/SUM($E$30:$E$39) -> 0.03980582524 | I31: =CntyDataLinkPrior5YearEstimates!$D$120 -> 100 | J31: =CntyDataLinkPrior5YearEstimates!$E$120 -> 94 | K31: 0.0455996352 | L31: =CntyDataLink!$D$120 -> 0 | M31: =CntyDataLink!$E$120 -> 16 | N31: 0 | P31: =StatisticallySignificantCalcs!$A$84 -> N | Q31: =StatisticallySignificantCalcs!$J$84 -> N
B32: $15,000 to $24,999 | E32: =CntyDataLinkPrior10YearEstimate!$F$120 -> 184 | F32: =CntyDataLinkPrior10YearEstimate!$G$120 -> 112 | G32: 0.1786407767 | I32: =CntyDataLinkPrior5YearEstimates!$F$120 -> 231 | J32: =CntyDataLinkPrior5YearEstimates!$G$120 -> 128.4445406 | K32: 0.1053351573 | L32: =CntyDataLink!$F$120 -> 155 | M32: =CntyDataLink!$G$120 -> 118.2962383 | N32: 0.07469879518 | P32: =StatisticallySignificantCalcs!$A$85 -> N | Q32: =StatisticallySignificantCalcs!$J$85 -> N
B33: $25,000 to $34,999 | E33: =CntyDataLinkPrior10YearEstimate!$H$120 -> 116 | F33: =CntyDataLinkPrior10YearEstimate!$I$120 -> 67 | G33: 0.1126213592 | I33: =CntyDataLinkPrior5YearEstimates!$H$120 -> 142 | J33: =CntyDataLinkPrior5YearEstimates!$I$120 -> 100.895986 | K33: 0.06475148199 | L33: =CntyDataLink!$H$120 -> 202 | M33: =CntyDataLink!$I$120 -> 97.18538985 | N33: 0.09734939759 | P33: =StatisticallySignificantCalcs!$A$86 -> N | Q33: =StatisticallySignificantCalcs!$J$86 -> N
B34: $35,000 to $49,999 | E34: =CntyDataLinkPrior10YearEstimate!$J$120 -> 100 | F34: =CntyDataLinkPrior10YearEstimate!$K$120 -> 75 | G34: 0.09708737864 | I34: =CntyDataLinkPrior5YearEstimates!$J$120 -> 232 | J34: =CntyDataLinkPrior5YearEstimates!$K$120 -> 104.297651 | K34: 0.1057911537 | L34: =CntyDataLink!$J$120 -> 203 | M34: =CntyDataLink!$K$120 -> 124.0644994 | N34: 0.0978313253 | P34: =StatisticallySignificantCalcs!$A$87 -> N | Q34: =StatisticallySignificantCalcs!$J$87 -> Y
B35: $50,000 to $74,999 | E35: =CntyDataLinkPrior10YearEstimate!$L$120 -> 86 | F35: =CntyDataLinkPrior10YearEstimate!$M$120 -> 71 | G35: 0.08349514563 | I35: =CntyDataLinkPrior5YearEstimates!$L$120 -> 387 | J35: =CntyDataLinkPrior5YearEstimates!$M$120 -> 141.4001414 | K35: 0.1764705882 | L35: =CntyDataLink!$L$120 -> 330 | M35: =CntyDataLink!$M$120 -> 146.860478 | N35: 0.1590361446 | P35: =StatisticallySignificantCalcs!$A$88 -> Y | Q35: =StatisticallySignificantCalcs!$J$88 -> Y
B36: $75,000 to $99,999 | E36: =CntyDataLinkPrior10YearEstimate!$N$120 -> 41 | F36: =CntyDataLinkPrior10YearEstimate!$O$120 -> 37 | G36: 0.03980582524 | I36: =CntyDataLinkPrior5YearEstimates!$N$120 -> 317 | J36: =CntyDataLinkPrior5YearEstimates!$O$120 -> 139 | K36: 0.1445508436 | L36: =CntyDataLink!$N$120 -> 485 | M36: =CntyDataLink!$O$120 -> 182 | N36: 0.2337349398 | P36: =StatisticallySignificantCalcs!$A$89 -> Y | Q36: =StatisticallySignificantCalcs!$J$89 -> Y
B37: $100,000 to $149,999 | E37: =CntyDataLinkPrior10YearEstimate!$P$120 -> 114 | F37: =CntyDataLinkPrior10YearEstimate!$Q$120 -> 96 | G37: 0.1106796117 | I37: =CntyDataLinkPrior5YearEstimates!$P$120 -> 474 | J37: =CntyDataLinkPrior5YearEstimates!$Q$120 -> 168.4339633 | K37: 0.2161422709 | L37: =CntyDataLink!$P$120 -> 367 | M37: =CntyDataLink!$Q$120 -> 121.2476804 | N37: 0.1768674699 | P37: =StatisticallySignificantCalcs!$A$90 -> Y | Q37: =StatisticallySignificantCalcs!$J$90 -> Y
B38: $150,000 to $199,999 | E38: =CntyDataLinkPrior10YearEstimate!$R$120 -> 77 | F38: =CntyDataLinkPrior10YearEstimate!$S$120 -> 56 | G38: 0.07475728155 | I38: =CntyDataLinkPrior5YearEstimates!$R$120 -> 152 | J38: =CntyDataLinkPrior5YearEstimates!$S$120 -> 101 | K38: 0.06931144551 | L38: =CntyDataLink!$R$120 -> 201 | M38: =CntyDataLink!$S$120 -> 96 | N38: 0.09686746988 | P38: =StatisticallySignificantCalcs!$A$91 -> Y | Q38: =StatisticallySignificantCalcs!$J$91 -> N
B39: Greater than $200,000 | E39: =CntyDataLinkPrior10YearEstimate!$T$120 -> 238 | F39: =CntyDataLinkPrior10YearEstimate!$U$120 -> 94 | G39: 0.2310679612 | I39: =CntyDataLinkPrior5YearEstimates!$T$120 -> 23 | J39: =CntyDataLinkPrior5YearEstimates!$U$120 -> 27 | K39: 0.0104879161 | L39: =CntyDataLink!$T$120 -> 132 | M39: =CntyDataLink!$U$120 -> 85 | N39: 0.06361445783 | P39: =StatisticallySignificantCalcs!$A$92 -> N | Q39: =StatisticallySignificantCalcs!$J$92 -> Y
E40: 491895 | I40: 491895
C41: Median HH Income | E41: =CntyDataLinkPrior10YearEstimate!$BV$128 -> 59788 | F41: =CntyDataLinkPrior10YearEstimate!$BW$128 -> 7109 | I41: =CntyDataLinkPrior5YearEstimates!$BV$128 -> 66045 | J41: =CntyDataLinkPrior5YearEstimates!$BW$128 -> 13018 | L41: =CntyDataLink!$BV$128 -> 86266 | M41: =CntyDataLink!$BW$128 -> 12914
C42: HH Income in 2019 Dollars | E42: =($E$50)*E41 -> 70549.84 | I42: =($E$49)*I41 -> 70668.15
B44: ="Source: "& " "&E28&", "&I28&" and "&L28& " American Community Survey; Tables B25119; B19001" -> Source: 2005-2009, 2010-2014 and 2015-2019 American Community Survey; Tables B25119; B19001
B46: Data from the American Community Survey are estimates.
B48: CPI Adjustment Factor
B49: 2010-2014 | E49: 1.07
B50: 2005-2009 | E50: 1.18

Sheet HHIncomeByAge (hidden)
C2: =CntyDataLink!A55 -> Alton
C3: INCOME CHARACTERISTICS
C21: =HHIncomeByAge!C2 -> Alton | D21: Household Income in 2019
G22: Households by Age of Householder
D23: Households | E23: Margin of Error Households | G23: Under 25 | H23: Margin of Error Under 25 | J23: 25 to 44 | K23: Margin of Error 25 to 44 | M23: 45 to 64 | N23: Margin of Error 45 to 64 | P23: 65 & Over | Q23: Margin of Error 65 & Over | S23: Family Households | T23: Margin of Error Family HH | U23: Non-Family HH | V23: Margin of Error Non-Family HH
C24: Less Than $10,000 | D24: =CntyDataLink!$D$116 -> 0 | E24: =CntyDataLink!$E$116 -> 16 | G24: =CntyDataLink!$AN$116 -> 0 | H24: =CntyDataLink!$AO$116 -> 16 | J24: =CntyDataLink!$BV$116 -> 0 | K24: =CntyDataLink!$BW$116 -> 16 | M24: =CntyDataLink!$DD$116 -> 0 | N24: =CntyDataLink!$DE$116 -> 16 | P24: =CntyDataLink!$EL$116 -> 0 | Q24: =CntyDataLink!$EM$116 -> 16 | S24: =CntyDataLink!$D$160 -> 0 | T24: =CntyDataLink!$E$160 -> 16 | U24: =CntyDataLink!$AN$160 -> 0 | V24: =CntyDataLink!$AO$160 -> 16
C25: $10,000 to $14,999 | D25: =CntyDataLink!$F$116 -> 0 | E25: =CntyDataLink!$G$116 -> 16 | G25: =CntyDataLink!$AP$116 -> 0 | H25: =CntyDataLink!$AQ$116 -> 16 | J25: =CntyDataLink!$BX$116 -> 0 | K25: =CntyDataLink!$BY$116 -> 16 | M25: =CntyDataLink!$DF$116 -> 0 | N25: =CntyDataLink!$DG$116 -> 16 | P25: =CntyDataLink!$EN$116 -> 0 | Q25: =CntyDataLink!$EO$116 -> 16 | S25: =CntyDataLink!$F$160 -> 0 | T25: =CntyDataLink!$G$160 -> 16 | U25: =CntyDataLink!$AP$160 -> 0 | V25: =CntyDataLink!$AQ$160 -> 16
C26: $15,000 to $19,999 | D26: =CntyDataLink!$H$116 -> 29 | E26: =CntyDataLink!$I$116 -> 35 | G26: =CntyDataLink!$AR$116 -> 0 | H26: =CntyDataLink!$AS$116 -> 16 | J26: =CntyDataLink!$BZ$116 -> 0 | K26: =CntyDataLink!$CA$116 -> 16 | M26: =CntyDataLink!$DH$116 -> 17 | N26: =CntyDataLink!$DI$116 -> 28 | P26: =CntyDataLink!$EP$116 -> 12 | Q26: =CntyDataLink!$EQ$116 -> 19 | S26: =CntyDataLink!$H$160 -> 17 | T26: =CntyDataLink!$I$160 -> 28 | U26: =CntyDataLink!$AR$160 -> 12 | V26: =CntyDataLink!$AS$160 -> 19
C27: $20,000 to $24,999 | D27: =CntyDataLink!$J$116 -> 126 | E27: =CntyDataLink!$K$116 -> 113 | G27: =CntyDataLink!$AT$116 -> 0 | H27: =CntyDataLink!$AU$116 -> 16 | J27: =CntyDataLink!$CB$116 -> 0 | K27: =CntyDataLink!$CC$116 -> 16 | M27: =CntyDataLink!$DJ$116 -> 0 | N27: =CntyDataLink!$DK$116 -> 16 | P27: =CntyDataLink!$ER$116 -> 126 | Q27: =CntyDataLink!$ES$116 -> 113 | S27: =CntyDataLink!$J$160 -> 0 | T27: =CntyDataLink!$K$160 -> 16 | U27: =CntyDataLink!$AT$160 -> 126 | V27: =CntyDataLink!$AU$160 -> 113
C28: $25,000 to $29,999 | D28: =CntyDataLink!$L$116 -> 84 | E28: =CntyDataLink!$M$116 -> 63 | G28: =CntyDataLink!$AV$116 -> 0 | H28: =CntyDataLink!$AW$116 -> 16 | J28: =CntyDataLink!$CD$116 -> 24 | K28: =CntyDataLink!$CE$116 -> 42 | M28: =CntyDataLink!$DL$116 -> 18 | N28: =CntyDataLink!$DM$116 -> 28 | P28: =CntyDataLink!$ET$116 -> 42 | Q28: =CntyDataLink!$EU$116 -> 37 | S28: =CntyDataLink!$L$160 -> 13 | T28: =CntyDataLink!$M$160 -> 20 | U28: =CntyDataLink!$AV$160 -> 71 | V28: =CntyDataLink!$AW$160 -> 59
C29: $30,000 to $34,999 | D29: =CntyDataLink!$N$116 -> 118 | E29: =CntyDataLink!$O$116 -> 74 | G29: =CntyDataLink!$AX$116 -> 0 | H29: =CntyDataLink!$AY$116 -> 16 | J29: =CntyDataLink!$CF$116 -> 0 | K29: =CntyDataLink!$CG$116 -> 16 | M29: =CntyDataLink!$DN$116 -> 62 | N29: =CntyDataLink!$DO$116 -> 60 | P29: =CntyDataLink!$EV$116 -> 56 | Q29: =CntyDataLink!$EW$116 -> 45 | S29: =CntyDataLink!$N$160 -> 102 | T29: =CntyDataLink!$O$160 -> 67 | U29: =CntyDataLink!$AX$160 -> 16 | V29: =CntyDataLink!$AY$160 -> 26
C30: $35,000 to $39,999 | D30: =CntyDataLink!$P$116 -> 67 | E30: =CntyDataLink!$Q$116 -> 52 | G30: =CntyDataLink!$AZ$116 -> 0 | H30: =CntyDataLink!$BA$116 -> 16 | J30: =CntyDataLink!$CH$116 -> 26 | K30: =CntyDataLink!$CI$116 -> 38 | M30: =CntyDataLink!$DP$116 -> 0 | N30: =CntyDataLink!$DQ$116 -> 16 | P30: =CntyDataLink!$EX$116 -> 41 | Q30: =CntyDataLink!$EY$116 -> 39 | S30: =CntyDataLink!$P$160 -> 53 | T30: =CntyDataLink!$Q$160 -> 47 | U30: =CntyDataLink!$AZ$160 -> 14 | V30: =CntyDataLink!$BA$160 -> 22
C31: $40,000 to $44,999 | D31: =CntyDataLink!$R$116 -> 108 | E31: =CntyDataLink!$S$116 -> 108 | G31: =CntyDataLink!$BB$116 -> 0 | H31: =CntyDataLink!$BC$116 -> 16 | J31: =CntyDataLink!$CJ$116 -> 0 | K31: =CntyDataLink!$CK$116 -> 16 | M31: =CntyDataLink!$DR$116 -> 63 | N31: =CntyDataLink!$DS$116 -> 79 | P31: =CntyDataLink!$EZ$116 -> 45 | Q31: =CntyDataLink!$FA$116 -> 43 | S31: =CntyDataLink!$R$160 -> 45 | T31: =CntyDataLink!$S$160 -> 43 | U31: =CntyDataLink!$BB$160 -> 63 | V31: =CntyDataLink!$BC$160 -> 79
C32: $45,000 to $49,999 | D32: =CntyDataLink!$T$116 -> 28 | E32: =CntyDataLink!$U$116 -> 32 | G32: =CntyDataLink!$BD$116 -> 0 | H32: =CntyDataLink!$BE$116 -> 16 | J32: =CntyDataLink!$CL$116 -> 0 | K32: =CntyDataLink!$CM$116 -> 16 | M32: =CntyDataLink!$DT$116 -> 0 | N32: =CntyDataLink!$DU$116 -> 16 | P32: =CntyDataLink!$FB$116 -> 28 | Q32: =CntyDataLink!$FC$116 -> 32 | S32: =CntyDataLink!$T$160 -> 28 | T32: =CntyDataLink!$U$160 -> 32 | U32: =CntyDataLink!$BD$160 -> 0 | V32: =CntyDataLink!$BE$160 -> 16
C33: $50,000 to $59,999 | D33: =CntyDataLink!$V$116 -> 115 | E33: =CntyDataLink!$W$116 -> 72 | G33: =CntyDataLink!$BF$116 -> 0 | H33: =CntyDataLink!$BG$116 -> 16 | J33: =CntyDataLink!$CN$116 -> 26 | K33: =CntyDataLink!$CO$116 -> 39 | M33: =CntyDataLink!$DV$116 -> 15 | N33: =CntyDataLink!$DW$116 -> 24 | P33: =CntyDataLink!$FD$116 -> 74 | Q33: =CntyDataLink!$FE$116 -> 55 | S33: =CntyDataLink!$V$160 -> 84 | T33: =CntyDataLink!$W$160 -> 62 | U33: =CntyDataLink!$BF$160 -> 31 | V33: =CntyDataLink!$BG$160 -> 36
C34: $60,000 to $74,999 | D34: =CntyDataLink!$X$116 -> 215 | E34: =CntyDataLink!$Y$116 -> 128 | G34: =CntyDataLink!$BH$116 -> 0 | H34: =CntyDataLink!$BI$116 -> 16 | J34: =CntyDataLink!$CP$116 -> 106 | K34: =CntyDataLink!$CQ$116 -> 106 | M34: =CntyDataLink!$DX$116 -> 76 | N34: =CntyDataLink!$DY$116 -> 60 | P34: =CntyDataLink!$FF$116 -> 33 | Q34: =CntyDataLink!$FG$116 -> 37 | S34: =CntyDataLink!$X$160 -> 181 | T34: =CntyDataLink!$Y$160 -> 120 | U34: =CntyDataLink!$BH$160 -> 49 | V34: =CntyDataLink!$BI$160 -> 45
C35: $75,000 to $99,999 | D35: =CntyDataLink!$Z$116 -> 485 | E35: =CntyDataLink!$AA$116 -> 182 | G35: =CntyDataLink!$BJ$116 -> 0 | H35: =CntyDataLink!$BK$116 -> 16 | J35: =CntyDataLink!$CR$116 -> 105 | K35: =CntyDataLink!$CS$116 -> 116 | M35: =CntyDataLink!$DZ$116 -> 185 | N35: =CntyDataLink!$EA$116 -> 106 | P35: =CntyDataLink!$FH$116 -> 195 | Q35: =CntyDataLink!$FI$116 -> 133 | S35: =CntyDataLink!$Z$160 -> 453 | T35: =CntyDataLink!$AA$160 -> 179 | U35: =CntyDataLink!$BJ$160 -> 32 | V35: =CntyDataLink!$BK$160 -> 38
C36: $100,000 to $124,999 | D36: =CntyDataLink!$AB$116 -> 118 | E36: =CntyDataLink!$AC$116 -> 70 | G36: =CntyDataLink!$BL$116 -> 0 | H36: =CntyDataLink!$BM$116 -> 16 | J36: =CntyDataLink!$CT$116 -> 41 | K36: =CntyDataLink!$CU$116 -> 48 | M36: =CntyDataLink!$EB$116 -> 19 | N36: =CntyDataLink!$EC$116 -> 30 | P36: =CntyDataLink!$FJ$116 -> 58 | Q36: =CntyDataLink!$FK$116 -> 46 | S36: =CntyDataLink!$AB$160 -> 103 | T36: =CntyDataLink!$AC$160 -> 62 | U36: =CntyDataLink!$BL$160 -> 0 | V36: =CntyDataLink!$BM$160 -> 16
C37: $125,000 to $149,999 | D37: =CntyDataLink!$AD$116 -> 249 | E37: =CntyDataLink!$AE$116 -> 99 | G37: =CntyDataLink!$BN$116 -> 0 | H37: =CntyDataLink!$BO$116 -> 16 | J37: =CntyDataLink!$CV$116 -> 25 | K37: =CntyDataLink!$CW$116 -> 40 | M37: =CntyDataLink!$ED$116 -> 146 | N37: =CntyDataLink!$EE$116 -> 83 | P37: =CntyDataLink!$FL$116 -> 78 | Q37: =CntyDataLink!$FM$116 -> 51 | S37: =CntyDataLink!$AD$160 -> 249 | T37: =CntyDataLink!$AE$160 -> 99 | U37: =CntyDataLink!$BN$160 -> 0 | V37: =CntyDataLink!$BO$160 -> 16
C38: $150,000 to $199,999 | D38: =CntyDataLink!$AF$116 -> 201 | E38: =CntyDataLink!$AG$116 -> 96 | G38: =CntyDataLink!$BP$116 -> 0 | H38: =CntyDataLink!$BQ$116 -> 16 | J38: =CntyDataLink!$CX$116 -> 41 | K38: =CntyDataLink!$CY$116 -> 48 | M38: =CntyDataLink!$EF$116 -> 129 | N38: =CntyDataLink!$EG$116 -> 85 | P38: =CntyDataLink!$FN$116 -> 31 | Q38: =CntyDataLink!$FO$116 -> 35 | S38: =CntyDataLink!$AF$160 -> 201 | T38: =CntyDataLink!$AG$160 -> 96 | U38: =CntyDataLink!$BP$160 -> 0 | V38: =CntyDataLink!$BQ$160 -> 16
C39: $200,000 or More | D39: =CntyDataLink!$AH$116 -> 132 | E39: =CntyDataLink!$AI$116 -> 85 | G39: =CntyDataLink!$BR$116 -> 0 | H39: =CntyDataLink!$BS$116 -> 16 | J39: =CntyDataLink!$CZ$116 -> 24 | K39: =CntyDataLink!$DA$116 -> 40 | M39: =CntyDataLink!$EH$116 -> 108 | N39: =CntyDataLink!$EI$116 -> 68 | P39: =CntyDataLink!$FP$116 -> 0 | Q39: =CntyDataLink!$FQ$116 -> 16 | S39: =CntyDataLink!$AH$160 -> 132 | T39: =CntyDataLink!$AI$160 -> 85 | U39: =CntyDataLink!$BR$160 -> 0 | V39: =CntyDataLink!$BS$160 -> 16
C41: Total Households | D41: =CntyDataLink!$B$116 -> 2075 | E41: =CntyDataLink!$C$116 -> 179 | G41: =CntyDataLink!$AL$116 -> 0 | H41: =CntyDataLink!$AM$116 -> 16 | J41: =CntyDataLink!$BT$116 -> 418 | K41: =CntyDataLink!$BU$116 -> 128 | M41: =CntyDataLink!$DB$116 -> 838 | N41: =CntyDataLink!$DC$116 -> 170 | P41: =CntyDataLink!$EJ$116 -> 819 | Q41: =CntyDataLink!$EK$116 -> 161 | S41: =CntyDataLink!$B$160 -> 1661 | T41: =CntyDataLink!$C$160 -> 130 | U41: =CntyDataLink!$AL$160 -> 414 | V41: =CntyDataLink!$AM$160 -> 155
C42: Median Household Inc | D42: =CntyDataLink!$FR$116 -> 86266 | E42: =CntyDataLink!$FS$116 -> 12914 | G42: =CntyDataLink!$FT$116 -> - | H42: =CntyDataLink!$FU$116 -> ** | J42: =CntyDataLink!$FV$116 -> 97651 | K42: =CntyDataLink!$FW$116 -> 42671 | M42: =CntyDataLink!$FX$116 -> 97412 | N42: =CntyDataLink!$FY$116 -> 57893 | P42: =CntyDataLink!$FZ$116 -> 57734 | Q42: =CntyDataLink!$GA$116 -> 28093 | S42: =CntyDataLink!$AJ$160 -> 97380 | T42: =CntyDataLink!$AK$160 -> 7012 | U42: =CntyDataLink!BT$160 -> 29828 | V42: =CntyDataLink!$BU$160 -> 16910
C44: Source: 2015-2019 American Community Survey Table B19001; B19037; B19101; B19102; B19112; B19113; B19049
C45: Data from the American Community Survey are estimates
C47: =C2 -> Alton
C48: INCOME CHARACTERISTICS
C80: Source: 2015-2019 American Community Survey Table B19001; B19102 | P80: Data from the American Community Survey are estimates

Sheet HHIncomeByTenure (hidden)
D2: =CntyDataLink!A80 -> Alton
D3: INCOME CHARACTERISTICS
D28: =D2 -> Alton
D29: Household Income By Tenure
F30: 2019 Household Income 1 | H30: Occupied Housing Units | I30: MOE Occupied Housing Units | J30: Owner Occupied Housing Units | K30: MOE Owner Occupied Housing Units | L30: Renter Occupied Housing Units | M30: MOE Renter Occupied Housing Units
F32: Total | H32: =CntyDataLink!$B$128 -> 2075 | I32: =CntyDataLink!$C$128 -> 179 | J32: =CntyDataLink!$D$128 -> 1878 | K32: =CntyDataLink!$E$128 -> 179 | L32: =CntyDataLink!$AB$128 -> 197 | M32: =CntyDataLink!$AC$128 -> 129
D33: 4999 | E33: =VALUE(RIGHT(F33,7)) -> 5000 | F33: Less Than $5,000 | H33: =CntyDataLink!$AZ$128 -> 0 | I33: =CntyDataLink!$BA$128 -> 22.627417 | J33: =CntyDataLink!$F$128 -> 0 | K33: =CntyDataLink!$G$128 -> 16 | L33: =CntyDataLink!$AD$128 -> 0 | M33: =CntyDataLink!$AE$128 -> 16
C34: =VALUE(RIGHT($F33,7)) -> 5000 | D34: 4999 | E34: 10000 | F34: $5,000 to $10,000 | H34: =CntyDataLink!$BB$128 -> 0 | I34: =CntyDataLink!$BC$128 -> 22.627417 | J34: =CntyDataLink!$H$128 -> 0 | K34: =CntyDataLink!$I$128 -> 16 | L34: =CntyDataLink!$AF$128 -> 0 | M34: =CntyDataLink!$AG$128 -> 16
C35: 10000 | D35: 4999 | E35: 15000 | F35: $10,000 to $15,000 | H35: =CntyDataLink!$BD$128 -> 0 | I35: =CntyDataLink!$BE$128 -> 22.627417 | J35: =CntyDataLink!$J$128 -> 0 | K35: =CntyDataLink!$K$128 -> 16 | L35: =CntyDataLink!$AH$128 -> 0 | M35: =CntyDataLink!$AI$128 -> 16
C36: 15000 | D36: 4999 | E36: 20000 | F36: $15,000 to $20,000 | H36: =CntyDataLink!$BF$128 -> 29 | I36: =CntyDataLink!$BG$128 -> 33.83784863 | J36: =CntyDataLink!$L$128 -> 17 | K36: =CntyDataLink!$M$128 -> 28 | L36: =CntyDataLink!$AJ$128 -> 12 | M36: =CntyDataLink!$AK$128 -> 19
C37: 20000 | D37: 4999 | E37: 25000 | F37: $20,000 to $25,000 | H37: =CntyDataLink!$BH$128 -> 126 | I37: =CntyDataLink!$BI$128 -> 115.1086443 | J37: =CntyDataLink!$N$128 -> 67 | K37: =CntyDataLink!$O$128 -> 73 | L37: =CntyDataLink!$AL$128 -> 59 | M37: =CntyDataLink!$AM$128 -> 89
C38: 25000 | D38: 9999 | E38: 35000 | F38: $25,000 to $35,000 | H38: =CntyDataLink!$BJ$128 -> 202 | I38: =CntyDataLink!$BK$128 -> 96.5194281 | J38: =CntyDataLink!$P$128 -> 146 | K38: =CntyDataLink!$Q$128 -> 80 | L38: =CntyDataLink!$AN$128 -> 56 | M38: =CntyDataLink!$AO$128 -> 54
C39: 35000 | D39: 14999 | E39: 50000 | F39: $35,000 to $50,000 | H39: =CntyDataLink!$BL$128 -> 203 | I39: =CntyDataLink!$BM$128 -> 121.3424905 | J39: =CntyDataLink!$R$128 -> 192 | K39: =CntyDataLink!$S$128 -> 120 | L39: =CntyDataLink!$AP$128 -> 11 | M39: =CntyDataLink!$AQ$128 -> 18
C40: 50000 | D40: 24999 | E40: 75000 | F40: $50,000 to $75,000 | H40: =CntyDataLink!$BN$128 -> 330 | I40: =CntyDataLink!$BO$128 -> 131.3659012 | J40: =CntyDataLink!$T$128 -> 271 | K40: =CntyDataLink!$U$128 -> 101 | L40: =CntyDataLink!$AR$128 -> 59 | M40: =CntyDataLink!$AS$128 -> 84
C41: 75000 | D41: 24999 | E41: 100000 | F41: $75,000 to $100,000 | H41: =CntyDataLink!$BP$128 -> 485 | I41: =CntyDataLink!$BQ$128 -> 182.7019431 | J41: =CntyDataLink!$V$128 -> 485 | K41: =CntyDataLink!$W$128 -> 182 | L41: =CntyDataLink!$AT$128 -> 0 | M41: =CntyDataLink!$AU$128 -> 16
C42: 100000 | D42: 49999 | E42: 150000 | F42: $100,000 to $150,000 | H42: =CntyDataLink!$BR$128 -> 367 | I42: =CntyDataLink!$BS$128 -> 113.137085 | J42: =CntyDataLink!$X$128 -> 367 | K42: =CntyDataLink!$Y$128 -> 112 | L42: =CntyDataLink!$AV$128 -> 0 | M42: =CntyDataLink!$AW$128 -> 16
C43: 150000 | F43: $150,000 and More | H43: =CntyDataLink!$BT$128 -> 333 | I43: =CntyDataLink!$BU$128 -> 121.0619676 | J43: =CntyDataLink!$Z$128 -> 333 | K43: =CntyDataLink!$AA$128 -> 120 | L43: =CntyDataLink!$AX$128 -> 0 | M43: =CntyDataLink!$AY$128 -> 16
F46: Median Household Income 2 | H46: =CntyDataLink!$BV$128 -> 86266 | I46: =CntyDataLink!$BW$128 -> 12914 | J46: =CntyDataLink!$BX$128 -> 94464 | K46: =CntyDataLink!$BY$128 -> 10061 | L46: =CntyDataLink!$BZ$128 -> 26637 | M46: =CntyDataLink!$CA$128 -> 18645
F49: Data from the American Community Survey are estimates
D51: Source: | E51: 1 | F51: 2015-2019 American Community Survey Table B25118; 2019 Inflation Adjusted dollars
E52: 2 | F52: 2015-2019 American Community Survey Table B25119; 2019 Inflation Adjusted dollars
D56: HOUSEHOLD INCOME IN THE PAST 12 MONTHS BY PERCENT OF MEDIAN THRESHOLD
D59: All Occupied Housing Units | I59: Owner Occupied Households | N59: Renter Occupied Households
D61: HOUSEHOLD INCOME | F61: Estimate | G61: Margin Of Error | I61: HOUSEHOLD INCOME | K61: Estimate | L61: Margin Of Error | N61: HOUSEHOLD INCOME | P61: Estimate | Q61: Margin Of Error
C62: =$H$46*0.3 -> 25879.8 | D62: 30% of Median Household Income | F62: =IF($C$62<$C$36,((($C$62-$C$35)/$D$35)*$H$35)+SUM($H$33:$H$34),IF($C$62<$C$37,((($C$62-$C$36)/$D$36)*$H$36)+SUM($H$33:$H$35),IF($C$62<$C$38,((($C$62-$C$37)/$D$37)*$H$37)+SUM($H$33:$H$36),IF($C$62<$C$39,((($C$62-$C$38)/$D$38)*$H$38)+SUM($H$33:$H$37),IF($C$62<$C$40,((($C$62-$C$39)/$D$39)*$H$39)+SUM($H$33:$H$38),IF($C$62<$C$41,((($C$62-$C$40)/$D$40)*$H$40)+SUM($H$33:$H$39),IF($C$62<$C$42,((($C$62-$C$41)/$D$41)*$H$41)+SUM($H$33:$H$40),"False"))))))) -> 172.7737374 | G62: =IF($C$62<$C$36,((($C$62-$C$35)/$D$35)*$I$35)+SQRT(SUM(($I$33^2),($I$34^2))),IF($C$62<$C$37,((($C$62-$C$36)/$D$36)*$I$36)+SQRT(SUM(($I$33^2),($I$34^2),($I$35^2))),IF($C$62<$C$38,((($C$62-$C$37)/$D$37)*$I$37)+SQRT(SUM(($I$33^2),($I$34^2),($I$35^2),($I$36^2))),IF($C$62<$C$39,((($C$62-$C$38)/$D$38)*$I$38)+SQRT(SUM(($I$33^2),($I$34^2),($I$35^2),($I$36^2),($I$37^2))),IF($C$62<$C$40,((($C$62-$C$39)/$D$39)*$I$39)+SQRT(SUM(($I$33^2),($I$34^2),($I$35^2),($I$36^2),($I$37^2),($I$38^2))),IF($C$62<$C$41,((($C$62-$C$40)/$D$40)*$I$40)+SQRT(SUM(($I$33^2),($I$34^2),($I$35^2),($I$36^2),($I$37^2),($I$38^2),($I$39^2))),IF($C$62<$C$42,((($C$62-$C$41)/$D$41)*$I$41)+SQRT((($I$33^2)+($I$34^2)+($I$35^2)+($I$36^2)+($I$37^2)+($I$38^2)+($I$39^2)+($I$40^2))),"False"))))))) -> 134.7106938 | H62: =$J$46*0.3 -> 28339.2 | I62: 30% of Median Household Income | K62: =IF($H$62<$C$36,((($H$62-$C$35)/$D$35)*$J$35)+SUM($J$33:$J$34),IF($H$62<$C$37,((($H$62-$C$36)/$D$36)*$J$36)+SUM($J$33:$J$35),IF($H$62<$C$38,((($H$62-$C$37)/$D$37)*$J$37)+SUM($J$33:$J$36),IF($H$62<$C$39,((($H$62-$C$38)/$D$38)*$J$38)+SUM($J$33:$J$37),IF($H$62<$C$40,((($H$62-$C$39)/$D$39)*$J$39)+SUM($J$33:$J$38),IF($H$62<$C$41,((($H$62-$C$40)/$D$40)*$J$40)+SUM($J$33:$J$39),IF($H$62<$C$42,((($H$62-$C$41)/$D$41)*$J$41)+SUM($J$33:$J$40),"False"))))))) -> 132.7571957 | L62: =IF($H$62<$C$36,((($H$62-$C$35)/$D$35)*$K$35)+SQRT(SUM(($K$33^2),($K$34^2))),IF($H$62<$C$37,((($H$62-$C$36)/$D$36)*$K$36)+SQRT(SUM(($K$33^2),($K$34^2),($K$35^2))),IF($H$62<$C$38,((($H$62-$C$37)/$D$37)*$K$37)+SQRT(SUM(($K$33^2),($K$34^2),($K$35^2),($K$36^2))),IF($H$62<$C$39,((($H$62-$C$38)/$D$38)*$K$38)+SQRT(SUM(($K$33^2),($K$34^2),($K$35^2),($K$36^2),($K$37^2))),IF($H$62<$C$40,((($H$62-$C$39)/$D$39)*$K$39)+SQRT(SUM(($K$33^2),($K$34^2),($K$35^2),($K$36^2),($K$37^2),($K$38^2))),IF($H$62<$C$41,((($H$62-$C$40)/$D$40)*$K$40)+SQRT(SUM(($K$33^2),($K$34^2),($K$35^2),($K$36^2),($K$37^2),($K$38^2),($K$39^2))),IF($H$62<$C$42,((($H$62-$C$41)/$D$41)*$K$41)+SQRT((($K$33^2)+($K$34^2)+($K$35^2)+($K$36^2)+($K$37^2)+($K$38^2)+($K$39^2)+($K$40^2))),"False"))))))) -> 109.6680649 | M62: =$L$46*0.3 -> 7991.1 | N62: 30% of Median Household Income | P62: =IF($M$62<$C$36,((($M$62-$C$35)/$D$35)*$L$35)+SUM($L$33:$L$34),IF($M$62<$C$37,((($M$62-$C$36)/$D$36)*$L$36)+SUM($L$33:$L$35),IF($M$62<$C$38,((($M$62-$C$37)/$D$37)*$L$37)+SUM($L$33:$L$36),IF($M$62<$C$39,((($M$62-$C$38)/$D$38)*$L$38)+SUM($L$33:$L$37),IF($M$62<$C$40,((($M$62-$C$39)/$D$39)*$L$39)+SUM($L$33:$L$38),IF($M$62<$C$41,((($M$62-$C$40)/$D$40)*$L$40)+SUM($L$33:$L$39),IF($M$62<$C$42,((($M$62-$C$41)/$D$41)*$L$41)+SUM($L$33:$L$40),"False"))))))) -> 0 | Q62: =IF($M$62<$C$36,((($M$62-$C$35)/$D$35)*$M$35)+SQRT(SUM(($M$33^2),($M$34^2))),IF($M$62<$C$37,((($M$62-$C$36)/$D$36)*$M$36)+SQRT(SUM(($M$33^2),($M$34^2),($M$35^2))),IF($M$62<$C$38,((($M$62-$C$37)/$D$37)*$M$37)+SQRT(SUM(($M$33^2),($M$34^2),($M$35^2),($M$36^2))),IF($M$62<$C$39,((($M$62-$C$38)/$D$38)*$M$38)+SQRT(SUM(($M$33^2),($M$34^2),($M$35^2),($M$36^2),($M$37^2))),IF($M$62<$C$40,((($M$62-$C$39)/$D$39)*$M$39)+SQRT(SUM(($M$33^2),($M$34^2),($M$35^2),($M$36^2),($M$37^2),($M$38^2))),IF($M$62<$C$41,((($M$62-$C$40)/$D$40)*$M$40)+SQRT(SUM(($M$33^2),($M$34^2),($M$35^2),($M$36^2),($M$37^2),($M$38^2),($M$39^2))),IF($M$62<$C$42,((($M$62-$C$41)/$D$41)*$M$41)+SQRT((($M$33^2)+($M$34^2)+($M$35^2)+($M$36^2)+($M$37^2)+($M$38^2)+($M$39^2)+($M$40^2))),"False"))))))) -> 16.19765104
A63: 490 | C63: =$H$46*0.5 -> 43133 | D63: 50% of Median Household Income | F63: =IF($C$63<$C$36,((($C$63-$C$35)/$D$35)*$H$35)+SUM($H$33:$H$34),IF($C$63<$C$37,((($C$63-$C$36)/$D$36)*$H$36)+SUM($H$33:$H$35),IF($C$63<$C$38,((($C$63-$C$37)/$D$37)*$H$37)+SUM($H$33:$H$36),IF($C$63<$C$39,((($C$63-$C$38)/$D$38)*$H$38)+SUM($H$33:$H$37),IF($C$63<$C$40,((($C$63-$C$39)/$D$39)*$H$39)+SUM($H$33:$H$38),IF($C$63<$C$41,((($C$63-$C$40)/$D$40)*$H$40)+SUM($H$33:$H$39),IF($C$63<$C$42,((($C$63-$C$41)/$D$41)*$H$41)+SUM($H$33:$H$40),"False"))))))) -> 467.0739383 | G63: =IF($C$63<$C$36,((($C$63-$C$35)/$D$35)*$I$35)+SQRT(SUM(($I$33^2),($I$34^2))),IF($C$63<$C$37,((($C$63-$C$36)/$D$36)*$I$36)+SQRT(SUM(($I$33^2),($I$34^2),($I$35^2))),IF($C$63<$C$38,((($C$63-$C$37)/$D$37)*$I$37)+SQRT(SUM(($I$33^2),($I$34^2),($I$35^2),($I$36^2))),IF($C$63<$C$39,((($C$63-$C$38)/$D$38)*$I$38)+SQRT(SUM(($I$33^2),($I$34^2),($I$35^2),($I$36^2),($I$37^2))),IF($C$63<$C$40,((($C$63-$C$39)/$D$39)*$I$39)+SQRT(SUM(($I$33^2),($I$34^2),($I$35^2),($I$36^2),($I$37^2),($I$38^2))),IF($C$63<$C$41,((($C$63-$C$40)/$D$40)*$I$40)+SQRT(SUM(($I$33^2),($I$34^2),($I$35^2),($I$36^2),($I$37^2),($I$38^2),($I$39^2))),IF($C$63<$C$42,((($C$63-$C$41)/$D$41)*$I$41)+SQRT((($I$33^2)+($I$34^2)+($I$35^2)+($I$36^2)+($I$37^2)+($I$38^2)+($I$39^2)+($I$40^2))),"False"))))))) -> 224.6893306 | H63: =$J$46*0.5 -> 47232 | I63: 50% of Median Household Income | K63: =IF($H$63<$C$36,((($H$63-$C$35)/$D$35)*$J$35)+SUM($J$33:$J$34),IF($H$63<$C$37,((($H$63-$C$36)/$D$36)*$J$36)+SUM($J$33:$J$35),IF($H$63<$C$38,((($H$63-$C$37)/$D$37)*$J$37)+SUM($J$33:$J$36),IF($H$63<$C$39,((($H$63-$C$38)/$D$38)*$J$38)+SUM($J$33:$J$37),IF($H$63<$C$40,((($H$63-$C$39)/$D$39)*$J$39)+SUM($J$33:$J$38),IF($H$63<$C$41,((($H$63-$C$40)/$D$40)*$J$40)+SUM($J$33:$J$39),IF($H$63<$C$42,((($H$63-$C$41)/$D$41)*$J$41)+SUM($J$33:$J$40),"False"))))))) -> 386.5800387 | L63: =IF($H$63<$C$36,((($H$63-$C$35)/$D$35)*$K$35)+SQRT(SUM(($K$33^2),($K$34^2))),IF($H$63<$C$37,((($H$63-$C$36)/$D$36)*$K$36)+SQRT(SUM(($K$33^2),($K$34^2),($K$35^2))),IF($H$63<$C$38,((($H$63-$C$37)/$D$37)*$K$37)+SQRT(SUM(($K$33^2),($K$34^2),($K$35^2),($K$36^2))),IF($H$63<$C$39,((($H$63-$C$38)/$D$38)*$K$38)+SQRT(SUM(($K$33^2),($K$34^2),($K$35^2),($K$36^2),($K$37^2))),IF($H$63<$C$40,((($H$63-$C$39)/$D$39)*$K$39)+SQRT(SUM(($K$33^2),($K$34^2),($K$35^2),($K$36^2),($K$37^2),($K$38^2))),IF($H$63<$C$41,((($H$63-$C$40)/$D$40)*$K$40)+SQRT(SUM(($K$33^2),($K$34^2),($K$35^2),($K$36^2),($K$37^2),($K$38^2),($K$39^2))),IF($H$63<$C$42,((($H$63-$C$41)/$D$41)*$K$41)+SQRT((($K$33^2)+($K$34^2)+($K$35^2)+($K$36^2)+($K$37^2)+($K$38^2)+($K$39^2)+($K$40^2))),"False"))))))) -> 213.1057452 | M63: =$L$46*0.5 -> 13318.5 | N63: 50% of Median Household Income | P63: =IF($M$63<$C$36,((($M$63-$C$35)/$D$35)*$L$35)+SUM($L$33:$L$34),IF($M$63<$C$37,((($M$63-$C$36)/$D$36)*$L$36)+SUM($L$33:$L$35),IF($M$63<$C$38,((($M$63-$C$37)/$D$37)*$L$37)+SUM($L$33:$L$36),IF($M$63<$C$39,((($M$63-$C$38)/$D$38)*$L$38)+SUM($L$33:$L$37),IF($M$63<$C$40,((($M$63-$C$39)/$D$39)*$L$39)+SUM($L$33:$L$38),IF($M$63<$C$41,((($M$63-$C$40)/$D$40)*$L$40)+SUM($L$33:$L$39),IF($M$63<$C$42,((($M$63-$C$41)/$D$41)*$L$41)+SUM($L$33:$L$40),"False"))))))) -> 0 | Q63: =IF($M$63<$C$36,((($M$63-$C$35)/$D$35)*$M$35)+SQRT(SUM(($M$33^2),($M$34^2))),IF($M$63<$C$37,((($M$63-$C$36)/$D$36)*$M$36)+SQRT(SUM(($M$33^2),($M$34^2),($M$35^2))),IF($M$63<$C$38,((($M$63-$C$37)/$D$37)*$M$37)+SQRT(SUM(($M$33^2),($M$34^2),($M$35^2),($M$36^2))),IF($M$63<$C$39,((($M$63-$C$38)/$D$38)*$M$38)+SQRT(SUM(($M$33^2),($M$34^2),($M$35^2),($M$36^2),($M$37^2))),IF($M$63<$C$40,((($M$63-$C$39)/$D$39)*$M$39)+SQRT(SUM(($M$33^2),($M$34^2),($M$35^2),($M$36^2),($M$37^2),($M$38^2))),IF($M$63<$C$41,((($M$63-$C$40)/$D$40)*$M$40)+SQRT(SUM(($M$33^2),($M$34^2),($M$35^2),($M$36^2),($M$37^2),($M$38^2),($M$39^2))),IF($M$63<$C$42,((($M$63-$C$41)/$D$41)*$M$41)+SQRT((($M$33^2)+($M$34^2)+($M$35^2)+($M$36^2)+($M$37^2)+($M$38^2)+($M$39^2)+($M$40^2))),"False"))))))) -> 33.24874126
C64: =$H$46*0.8 -> 69012.8 | D64: 80% of Median Household Income | F64: =IF($C$64<$C$36,((($C$64-$C$35)/$D$35)*$H$35)+SUM($H$33:$H$34),IF($C$64<$C$37,((($C$64-$C$36)/$D$36)*$H$36)+SUM($H$33:$H$35),IF($C$64<$C$38,((($C$64-$C$37)/$D$37)*$H$37)+SUM($H$33:$H$36),IF($C$64<$C$39,((($C$64-$C$38)/$D$38)*$H$38)+SUM($H$33:$H$37),IF($C$64<$C$40,((($C$64-$C$39)/$D$39)*$H$39)+SUM($H$33:$H$38),IF($C$64<$C$41,((($C$64-$C$40)/$D$40)*$H$40)+SUM($H$33:$H$39),IF($C$64<$C$42,((($C$64-$C$41)/$D$41)*$H$41)+SUM($H$33:$H$40),"False"))))))) -> 810.9789992 | G64: =IF($C$64<$C$36,((($C$64-$C$35)/$D$35)*$I$35)+SQRT(SUM(($I$33^2),($I$34^2))),IF($C$64<$C$37,((($C$64-$C$36)/$D$36)*$I$36)+SQRT(SUM(($I$33^2),($I$34^2),($I$35^2))),IF($C$64<$C$38,((($C$64-$C$37)/$D$37)*$I$37)+SQRT(SUM(($I$33^2),($I$34^2),($I$35^2),($I$36^2))),IF($C$64<$C$39,((($C$64-$C$38)/$D$38)*$I$38)+SQRT(SUM(($I$33^2),($I$34^2),($I$35^2),($I$36^2),($I$37^2))),IF($C$64<$C$40,((($C$64-$C$39)/$D$39)*$I$39)+SQRT(SUM(($I$33^2),($I$34^2),($I$35^2),($I$36^2),($I$37^2),($I$38^2))),IF($C$64<$C$41,((($C$64-$C$40)/$D$40)*$I$40)+SQRT(SUM(($I$33^2),($I$34^2),($I$35^2),($I$36^2),($I$37^2),($I$38^2),($I$39^2))),IF($C$64<$C$42,((($C$64-$C$41)/$D$41)*$I$41)+SQRT((($I$33^2)+($I$34^2)+($I$35^2)+($I$36^2)+($I$37^2)+($I$38^2)+($I$39^2)+($I$40^2))),"False"))))))) -> 299.8368275 | H64: =$J$46*0.8 -> 75571.2 | I64: 80% of Median Household Income | K64: =IF($H$64<$C$36,((($H$64-$C$35)/$D$35)*$J$35)+SUM($J$33:$J$34),IF($H$64<$C$37,((($H$64-$C$36)/$D$36)*$J$36)+SUM($J$33:$J$35),IF($H$64<$C$38,((($H$64-$C$37)/$D$37)*$J$37)+SUM($J$33:$J$36),IF($H$64<$C$39,((($H$64-$C$38)/$D$38)*$J$38)+SUM($J$33:$J$37),IF($H$64<$C$40,((($H$64-$C$39)/$D$39)*$J$39)+SUM($J$33:$J$38),IF($H$64<$C$41,((($H$64-$C$40)/$D$40)*$J$40)+SUM($J$33:$J$39),IF($H$64<$C$42,((($H$64-$C$41)/$D$41)*$J$41)+SUM($J$33:$J$40),"False"))))))) -> 704.0817233 | L64: =IF($H$64<$C$36,((($H$64-$C$35)/$D$35)*$K$35)+SQRT(SUM(($K$33^2),($K$34^2))),IF($H$64<$C$37,((($H$64-$C$36)/$D$36)*$K$36)+SQRT(SUM(($K$33^2),($K$34^2),($K$35^2))),IF($H$64<$C$38,((($H$64-$C$37)/$D$37)*$K$37)+SQRT(SUM(($K$33^2),($K$34^2),($K$35^2),($K$36^2))),IF($H$64<$C$39,((($H$64-$C$38)/$D$38)*$K$38)+SQRT(SUM(($K$33^2),($K$34^2),($K$35^2),($K$36^2),($K$37^2))),IF($H$64<$C$40,((($H$64-$C$39)/$D$39)*$K$39)+SQRT(SUM(($K$33^2),($K$34^2),($K$35^2),($K$36^2),($K$37^2),($K$38^2))),IF($H$64<$C$41,((($H$64-$C$40)/$D$40)*$K$40)+SQRT(SUM(($K$33^2),($K$34^2),($K$35^2),($K$36^2),($K$37^2),($K$38^2),($K$39^2))),IF($H$64<$C$42,((($H$64-$C$41)/$D$41)*$K$41)+SQRT((($K$33^2)+($K$34^2)+($K$35^2)+($K$36^2)+($K$37^2)+($K$38^2)+($K$39^2)+($K$40^2))),"False"))))))) -> 198.7914903 | M64: =$L$46*0.8 -> 21309.6 | N64: 80% of Median Household Income | P64: =IF($M$64<$C$36,((($M$64-$C$35)/$D$35)*$L$35)+SUM($L$33:$L$34),IF($M$64<$C$37,((($M$64-$C$36)/$D$36)*$L$36)+SUM($L$33:$L$35),IF($M$64<$C$38,((($M$64-$C$37)/$D$37)*$L$37)+SUM($L$33:$L$36),IF($M$64<$C$39,((($M$64-$C$38)/$D$38)*$L$38)+SUM($L$33:$L$37),IF($M$64<$C$40,((($M$64-$C$39)/$D$39)*$L$39)+SUM($L$33:$L$38),IF($M$64<$C$41,((($M$64-$C$40)/$D$40)*$L$40)+SUM($L$33:$L$39),IF($M$64<$C$42,((($M$64-$C$41)/$D$41)*$L$41)+SUM($L$33:$L$40),"False"))))))) -> 27.45637127 | Q64: =IF($M$64<$C$36,((($M$64-$C$35)/$D$35)*$M$35)+SQRT(SUM(($M$33^2),($M$34^2))),IF($M$64<$C$37,((($M$64-$C$36)/$D$36)*$M$36)+SQRT(SUM(($M$33^2),($M$34^2),($M$35^2))),IF($M$64<$C$38,((($M$64-$C$37)/$D$37)*$M$37)+SQRT(SUM(($M$33^2),($M$34^2),($M$35^2),($M$36^2))),IF($M$64<$C$39,((($M$64-$C$38)/$D$38)*$M$38)+SQRT(SUM(($M$33^2),($M$34^2),($M$35^2),($M$36^2),($M$37^2))),IF($M$64<$C$40,((($M$64-$C$39)/$D$39)*$M$39)+SQRT(SUM(($M$33^2),($M$34^2),($M$35^2),($M$36^2),($M$37^2),($M$38^2))),IF($M$64<$C$41,((($M$64-$C$40)/$D$40)*$M$40)+SQRT(SUM(($M$33^2),($M$34^2),($M$35^2),($M$36^2),($M$37^2),($M$38^2),($M$39^2))),IF($M$64<$C$42,((($M$64-$C$41)/$D$41)*$M$41)+SQRT((($M$33^2)+($M$34^2)+($M$35^2)+($M$36^2)+($M$37^2)+($M$38^2)+($M$39^2)+($M$40^2))),"False"))))))) -> 56.91613834

Sheet ACS_Source_Table_List (hidden)
A2: ACS Table B01001 | B2: x
A3: ACS Table B01002 | B3: x
A4: ACS Table B03002 | B4: x
A5: ACS Table B05002 | B5: x
A6: ACS Table B07003 | B6: x | C6: Replaces C07001
A7: ACS Table B11001 | B7: x
A8: ACS Table B11002 | B8: x
A9: ACS Table B14001 & B15002 | B9: x | C9: Replaces C15002
A10: ACS Table B17001 | B10: x
A11: ACS Table B17010 | B11: x | C11: Replaces C17010 | D11: Poverty Status by family type
A12: ACS Table B17017 | B12: x | C12: Replaces C17017 | D12: Poverty Status by HH type
A13: ACS Table B18001 | C13: Removed Disability Tables
A14: ACS Table C18001 | C14: Removed Disability Tables
A15: ACS Table B18003 | C15: Removed Disability Tables
A16: ACS Table B18004 | C16: Removed Disability Tables
A17: ACS Table B18005 | C17: Removed Disability Tables
A18: ACS Table B18006 | C18: Removed Disability Tables
A19: ACS Table B18007 | C19: Removed Disability Tables
A20: ACS Table B18008 | C20: Removed Disability Tables
A21: ACS Table B19001 | B21: x
A22: ACS Table B19037 | B22: x
A23: ACS Table B19049 | B23: x
A24: ACS Table B19101& B19113 | B24: s
A25: ACS Table B19201 & B19202 | B25: s
A26: ACS Table B25001, B25003 & B25004 | B26: x
A27: ACS Table B25008 | B27: x
A28: ACS Table B25010 | B28: x
A29: ACS Table B25024 | B29: x
A30: ACS Table B25032 | B30: x
A31: ACS Table B25034 & B25041 | B31: x
A32: ACS Table B25063 & B25064 | B32: x
A33: ACS Table B25070 & B25074 | B33: x
A34: ACS Table B25075 & B25077 | B34: x
A35: ACS Table B25088 | B35: x
A36: ACS Table B25091 | B36: x
A37: ACS Table B25118 & B25119 | B37: x
A44: Tables Removed from 5 Year Estimates
A45: ACS Table C19001 | B45: x | C45: May have to consolidate this table from Table B19001. This has already been done. For 5 year estimates remove worksheet.
A46: ACS Table B25094 | B46: x | C46: No Comparison Table for B25094 Removed
A47: ACS Table B25101 | C47: No Comparison Table for B25101 Removed
A48: ACS Table B25104 & B25105 | C48: No Comparison Table for B25104 & B25105 Removed
A49: ACS Table B25106 | B49: x | C49: No Comparison Table for B25106 Removed

Sheet CntyDataLinkPrior5YearEstimates (hidden)
A1: 1 | B1: =A1+1 -> 2 | C1: 3 | D1: 4 | E1: 5 | F1: 6 | G1: 7 | H1: 8 | I1: 9 | J1: 10 | K1: 11 | L1: 12 | M1: 13 | N1: 14 | O1: 15 | P1: 16 | Q1: 17 | R1: 18 | S1: 19 | T1: 20 | U1: 21 | V1: 22 | W1: 23 | X1: 24 | Y1: 25 | Z1: 26 | AA1: 27 | AB1: 28 | AC1: 29 | AD1: 30 | AE1: 31 | AF1: 32 | AG1: 33 | AH1: 34 | AI1: 35 | AJ1: 36 | AK1: 37 | AL1: 38 | AM1: 39 | AN1: 40 | AO1: 41 | AP1: 42 | AQ1: 43 | AR1: 44 | AS1: 45 | AT1: 46 | AU1: 47 | AV1: 48 | AW1: 49 | AX1: 50 | AY1: 51 | AZ1: 52 | BA1: 53 | BB1: 54 | BC1: 55 | BD1: 56 | BE1: 57 | BF1: 58 | BG1: 59 | BH1: 60 | BI1: 61 | BJ1: 62 | BK1: 63 | BL1: 64 | BM1: 65 | BN1: =BM1+1 -> 66 | BO1: 67 | BP1: 68 | BQ1: 69 | BR1: 70 | BS1: 71 | BT1: 72 | BU1: 73 | BV1: 74 | BW1: 75 | BX1: 76 | BY1: 77 | BZ1: 78 | CA1: 79 | CB1: 80 | CC1: 81 | CD1: 82 | CE1: 83 | CF1: 84 | CG1: 85 | CH1: 86 | CI1: 87 | CJ1: 88 | CK1: 89 | CL1: 90 | CM1: 91 | CN1: 92 | CO1: 93 | CP1: 94 | CQ1: 95 | CR1: 96 | CS1: 97 | CT1: 98 | CU1: 99 | CV1: 100 | CW1: 101 | CX1: 102 | CY1: 103 | CZ1: 104 | DA1: 105 | DB1: 106 | DC1: 107 | DD1: 108 | DE1: 109 | DF1: 110 | DG1: 111 | DH1: 112 | DI1: 113 | DJ1: 114 | DK1: 115 | DL1: 116 | DM1: 117 | DN1: 118 | DO1: 119 | DP1: 120 | DQ1: 121 | DR1: 122 | DS1: 123 | DT1: 124 | DU1: 125 | DV1: 126 | DW1: 127 | DX1: 128 | DY1: 129 | DZ1: =DY1+1 -> 130 | EA1: 131 | EB1: 132 | EC1: 133 | ED1: 134 | EE1: 135 | EF1: 136 | EG1: 137 | EH1: 138 | EI1: 139 | EJ1: 140 | EK1: 141 | EL1: 142 | EM1: 143 | EN1: 144 | EO1: 145 | EP1: 146 | EQ1: 147 | ER1: 148 | ES1: 149 | ET1: 150 | EU1: 151 | EV1: 152 | EW1: 153 | EX1: 154 | EY1: 155 | EZ1: 156 | FA1: 157 | FB1: 158 | FC1: 159 | FD1: 160 | FE1: 161 | FF1: 162 | FG1: 163 | FH1: 164 | FI1: 165 | FJ1: 166 | FK1: 167 | FL1: 168 | FM1: 169 | FN1: 170 | FO1: 171 | FP1: 172 | FQ1: 173 | FR1: 174 | FS1: 175 | FT1: 176 | FU1: 177 | FV1: 178 | FW1: 179 | FX1: 180 | FY1: 181 | FZ1: 182 | GA1: 183
A105: ACS | B105: 2 | C105: =B105+1 -> 3 | D105: =C105+1 -> 4 | E105: 5 | F105: 6 | G105: 7 | H105: 8 | I105: 9 | J105: 10 | K105: 11 | L105: =K105+1 -> 12 | M105: 13 | N105: 14 | O105: 15 | P105: =O105+1 -> 16 | Q105: 17 | R105: 18 | S105: 19 | T105: 20 | U105: 21 | V105: 22 | W105: 23 | X105: 24 | Y105: 25 | Z105: 26 | AA105: 27 | AB105: 28 | AC105: 29 | AD105: 30 | AE105: 31 | AF105: 32 | AG105: 33 | AH105: 34 | AI105: 35 | AJ105: 36 | AK105: 37 | AL105: 38 | AM105: 39 | AN105: 40 | AO105: 41 | AP105: 42 | AQ105: 43 | AR105: 44 | AS105: 45 | AT105: 46 | AU105: 47 | AV105: 48 | AW105: 49 | AX105: 50 | AY105: 51 | AZ105: 52 | BA105: 53 | BB105: 54 | BC105: 55 | BD105: 56 | BE105: 57 | BF105: 58 | BG105: 59 | BH105: 60 | BI105: 61 | BJ105: 62 | BK105: 63 | BL105: 64 | BM105: 65 | BN105: 66 | BO105: 67 | BP105: =BO105+1 -> 68 | BQ105: 69 | BR105: 70 | BS105: 71 | BT105: 72 | BU105: 73 | BV105: 74 | BW105: 75 | BX105: 76 | BY105: 77 | BZ105: 78 | CA105: 79 | CB105: 80 | CC105: 81 | CD105: 82 | CE105: 83 | CF105: 84 | CG105: 85 | CH105: 86 | CI105: 87 | CJ105: 88 | CK105: 89 | CL105: 90 | CM105: 91 | CN105: 92 | CO105: 93 | CP105: 94 | CQ105: 95 | CR105: 96 | CS105: 97 | CT105: 98 | CU105: 99 | CV105: 100 | CW105: 101 | CX105: 102 | CY105: 103 | CZ105: 104 | DA105: 105 | DB105: 106 | DC105: 107 | DD105: 108 | DE105: 109 | DF105: 110 | DG105: 111 | DH105: 112 | DI105: 113 | DJ105: 114 | DK105: 115 | DL105: 116 | DM105: 117 | DN105: 118 | DO105: 119 | DP105: 120 | DQ105: 121 | DR105: 122 | DS105: 123 | DT105: 124 | DU105: 125
A106: Househould Data (Housing Unit Type)
A107: NAME | B107: TotalHU | C107: ="MOE "&B107 -> MOE TotalHU | D107: TotalOccHU | E107: ="MOE "&D107 -> MOE TotalOccHU | F107: TotalOwnerOccUn | G107: ="MOE "&F107 -> MOE TotalOwnerOccUn | H107: TotalRenterOccn | I107: ="MOE "&H107 -> MOE TotalRenterOccn | J107: TotalVacantUntis | K107: ="MOE "&J107 -> MOE TotalVacantUntis | L107: VacantUnitsForRent | M107: ="MOE "&L107 -> MOE VacantUnitsForRent | N107: VacantUnitRentedNotOcc | O107: ="MOE "&N107 -> MOE VacantUnitRentedNotOcc | P107: VacantUnitForSale | Q107: ="MOE "&P107 -> MOE VacantUnitForSale | R107: VacantUnitSoldNotOcc | S107: ="MOE "&R107 -> MOE VacantUnitSoldNotOcc | T107: VacantUnitSeasonalRec | U107: ="MOE "&T107 -> MOE VacantUnitSeasonalRec | V107: TotalPopInHousingUnits | W107: ="MOE "&V107 -> MOE TotalPopInHousingUnits | X107: OwnerOccPopHousingUnits | Y107: ="MOE "&X107 -> MOE OwnerOccPopHousingUnits | Z107: RenterOccPopHousingUnits | AA107: ="MOE "&Z107 -> MOE RenterOccPopHousingUnits | AB107: TotalUntis | AC107: ="MOE "&AB107 -> MOE TotalUntis | AD107: TotalOwnerOccUnits | AE107: ="MOE "&AD107 -> MOE TotalOwnerOccUnits | AF107: SigFamOwnerOcc | AG107: ="MOE "&AF107 -> MOE SigFamOwnerOcc | AH107: MultiFamOwnerOcc | AI107: ="MOE "&AH107 -> MOE MultiFamOwnerOcc | AJ107: MobileOwnerOcc | AK107: ="MOE "&AJ107 -> MOE MobileOwnerOcc | AL107: TotalRenterOccUnits | AM107: ="MOE "&AL107 -> MOE TotalRenterOccUnits | AN107: SigFamRenterOcc | AO107: ="MOE "&AN107 -> MOE SigFamRenterOcc | AP107: MultiFamRenterOcc | AQ107: ="MOE "&AP107 -> MOE MultiFamRenterOcc | AR107: MobileRenterOcc | AS107: ="MOE "&AR107 -> MOE MobileRenterOcc | AT107: TotalSigFamilyUnits | AU107: ="MOE "&AT107 -> MOE TotalSigFamilyUnits | AV107: TotalMultiFamilyUnits | AW107: ="MOE "&AV107 -> MOE TotalMultiFamilyUnits | AX107: TotalMobileUnits | AY107: ="MOE "&AX107 -> MOE TotalMobileUnits | AZ107: YrHouseBuilt2005Later | BA107: ="MOE "&AZ107 -> MOE YrHouseBuilt2005Later | BB107: YrHouseBuilt2000-2004 | BC107: ="MOE "&BB107 -> MOE YrHouseBuilt2000-2004 | BD107: YrHouseBuilt1990-1999 | BE107: ="MOE "&BD107 -> MOE YrHouseBuilt1990-1999 | BF107: YrHouseBuilt1980-1989 | BG107: ="MOE "&BF107 -> MOE YrHouseBuilt1980-1989 | BH107: YrHouseBuilt1970-1979 | BI107: ="MOE "&BH107 -> MOE YrHouseBuilt1970-1979 | BJ107: YrHouseBuilt1960-1969 | BK107: ="MOE "&BJ107 -> MOE YrHouseBuilt1960-1969 | BL107: YrHouseBuilt1950-1959 | BM107: ="MOE "&BL107 -> MOE YrHouseBuilt1950-1959 | BN107: YrHouseBuilt1940-1949 | BO107: ="MOE "&BN107 -> MOE YrHouseBuilt1940-1949 | BP107: YrHouseBuilt1939orEarlier | BQ107: ="MOE "&BP107 -> MOE YrHouseBuilt1939orEarlier | BR107: NoBedrooms | BS107: ="MOE "&BR107 -> MOE NoBedrooms | BT107: 1Bedroom | BU107: ="MOE "&BT107 -> MOE 1Bedroom | BV107: 2Bedroom | BW107: ="MOE "&BV107 -> MOE 2Bedroom | BX107: 3Bedroom | BY107: ="MOE "&BX107 -> MOE 3Bedroom | BZ107: 4+Bedroom | CA107: ="MOE "&BZ107 -> MOE 4+Bedroom
A108: =VLOOKUP(DropDownList!$A$19,CntyQuery!$A$53:$DN$64,A$1) -> Alton | B108: 4439 | C108: 248 | D108: 2193 | E108: 185 | F108: 1760 | G108: 235 | H108: 433 | I108: 169 | J108: 2246 | K108: 234 | L108: 71 | M108: 80 | N108: 0 | O108: 15 | P108: 97 | Q108: 98 | R108: 0 | S108: 15 | T108: 1973 | U108: 210 | V108: 5264 | W108: 21 | X108: 4295 | Y108: 454 | Z108: 969 | AA108: 456 | AB108: 2193 | AC108: 185 | AD108: 1760 | AE108: 235 | AF108: 1671 | AG108: 230 | AH108: 28 | AI108: 50.05996404 | AJ108: 61 | AK108: 57.00877125 | AL108: 433 | AM108: 169 | AN108: 216 | AO108: 133 | AP108: 162 | AQ108: 121.6264774 | AR108: 55 | AS108: 60.87692502 | AT108: 3835 | AU108: 258 | AV108: 274 | AW108: 156.9331068 | AX108: 330 | AY108: 178.6309044 | AZ108: 0 | BA108: 15 | BB108: 1034 | BC108: 224 | BD108: 377 | BE108: 167 | BF108: 582 | BG108: 192 | BH108: 531 | BI108: 202 | BJ108: 560 | BK108: 229 | BL108: 363 | BM108: 170 | BN108: 297 | BO108: 148 | BP108: 695 | BQ108: 237 | BR108: 235 | BS108: 152 | BT108: 390 | BU108: 180 | BV108: 1094 | BW108: 277 | BX108: 1992 | BY108: 327 | BZ108: 728 | CA108: 221.2057865
A110: Disability Data
A111: NAME | B111: TotalPop | C111: ="MOE "&B111 -> MOE TotalPop | D111: PopUnder 5 years: | E111: ="MOE "&D111 -> MOE PopUnder 5 years: | F111: =D$111&"-WithDisability" -> PopUnder 5 years:-WithDisability | G111: ="MOE "&F111 -> MOE PopUnder 5 years:-WithDisability | H111: =D111&"-NoDisability" -> PopUnder 5 years:-NoDisability | I111: ="MOE "&H111 -> MOE PopUnder 5 years:-NoDisability | J111: PopUnder 5 to 17years: | K111: ="MOE "&J111 -> MOE PopUnder 5 to 17years: | L111: =J$111&"-WithDisability" -> PopUnder 5 to 17years:-WithDisability | M111: ="MOE "&L111 -> MOE PopUnder 5 to 17years:-WithDisability | N111: =J111&"-NoDisability" -> PopUnder 5 to 17years:-NoDisability | O111: ="MOE "&N111 -> MOE PopUnder 5 to 17years:-NoDisability | P111: PopUnder 18 to 34 years: | Q111: ="MOE "&P111 -> MOE PopUnder 18 to 34 years: | R111: =P$111&"-WithDisability" -> PopUnder 18 to 34 years:-WithDisability | S111: ="MOE "&R111 -> MOE PopUnder 18 to 34 years:-WithDisability | T111: =P111&"-NoDisability" -> PopUnder 18 to 34 years:-NoDisability | U111: ="MOE "&T111 -> MOE PopUnder 18 to 34 years:-NoDisability | V111: Pop 35 years to 64: | W111: ="MOE "&V111 -> MOE Pop 35 years to 64: | X111: =$V$111&"-WithDisability" -> Pop 35 years to 64:-WithDisability | Y111: ="MOE "&X111 -> MOE Pop 35 years to 64:-WithDisability | Z111: =$V$111&"-NoDisability" -> Pop 35 years to 64:-NoDisability | AA111: ="MOE "&Z111 -> MOE Pop 35 years to 64:-NoDisability | AB111: Pop 65 years to 74: | AC111: ="MOE "&AB111 -> MOE Pop 65 years to 74: | AD111: =$AB$111&"-WithDisability" -> Pop 65 years to 74:-WithDisability | AE111: ="MOE "&AD111 -> MOE Pop 65 years to 74:-WithDisability | AF111: =$AB$111&"-NoDisability" -> Pop 65 years to 74:-NoDisability | AG111: ="MOE "&AF111 -> MOE Pop 65 years to 74:-NoDisability | AH111: Pop 75 and older: | AI111: ="MOE "&AH111 -> MOE Pop 75 and older: | AJ111: =$AH$111&"-WithDisability" -> Pop 75 and older:-WithDisability | AK111: ="MOE "&AJ111 -> MOE Pop 75 and older:-WithDisability | AL111: =$AH$111&"-NoDisability" -> Pop 75 and older:-NoDisability | AM111: ="MOE "&AL111 -> MOE Pop 75 and older:-NoDisability | AN111: TotalPopUnder5_HearingDisability | AO111: ="MOE "&AN111 -> MOE TotalPopUnder5_HearingDisability | AP111: TotalUnder5_HearingDisability | AQ111: ="MOE "&AP111 -> MOE TotalUnder5_HearingDisability | AR111: TotalPop18To34_HearingDisability | AS111: ="MOE "&AR111 -> MOE TotalPop18To34_HearingDisability | AT111: TotalPop35To64_HearingDisability | AU111: ="MOE "&AT111 -> MOE TotalPop35To64_HearingDisability | AV111: TotalPop65To74_HearingDisability | AW111: ="MOE "&AV111 -> MOE TotalPop65To74_HearingDisability | AX111: TotalPop75andOlder_HearingDisability | AY111: ="MOE "&AX111 -> MOE TotalPop75andOlder_HearingDisability | AZ111: TotalUnder5_VisionDisability | BA111: ="MOE "&AZ111 -> MOE TotalUnder5_VisionDisability | BB111: Total5To17_VisionDisability | BC111: ="MOE "&BB111 -> MOE Total5To17_VisionDisability | BD111: Total18To34_VisionDisability | BE111: ="MOE "&BD111 -> MOE Total18To34_VisionDisability | BF111: Total35To64_VisionDisability | BG111: ="MOE "&BF111 -> MOE Total35To64_VisionDisability | BH111: Total65To74_VisionDisability | BI111: ="MOE "&BH111 -> MOE Total65To74_VisionDisability | BJ111: Total75andOlder_VisionDisability | BK111: ="MOE "&BJ111 -> MOE Total75andOlder_VisionDisability | BL111: Total5To17_CongnitiveDisability | BM111: ="MOE "&BL111 -> MOE Total5To17_CongnitiveDisability | BN111: Total18To34_CongnitiveDisability | BO111: ="MOE "&BN111 -> MOE Total18To34_CongnitiveDisability | BP111: Total35To64_CongnitiveDisability | BQ111: ="MOE "&BP111 -> MOE Total35To64_CongnitiveDisability | BR111: Total65To74_CongnitiveDisability | BS111: ="MOE "&BR111 -> MOE Total65To74_CongnitiveDisability | BT111: Total75andOlder_CongnitiveDisability | BU111: ="MOE "&BT111 -> MOE Total75andOlder_CongnitiveDisability | BV111: Total5To17_AmbulatoryDisability | BW111: ="MOE "&BV111 -> MOE Total5To17_AmbulatoryDisability | BX111: Total18To34_AmbulatoryDisability | BY111: ="MOE "&BX111 -> MOE Total18To34_AmbulatoryDisability | BZ111: Total35To64_AmbulatoryDisability | CA111: ="MOE "&BZ111 -> MOE Total35To64_AmbulatoryDisability | CB111: Total65To74_AmbulatoryDisability | CC111: ="MOE "&CB111 -> MOE Total65To74_AmbulatoryDisability | CD111: Total75andOlder_AmbulatoryDisability | CE111: ="MOE "&CD111 -> MOE Total75andOlder_AmbulatoryDisability | CF111: Total5To17_SelfCareDisability | CG111: ="MOE "&CF111 -> MOE Total5To17_SelfCareDisability | CH111: Total18To34_SelfCareDisability | CI111: ="MOE "&CH111 -> MOE Total18To34_SelfCareDisability | CJ111: Total35To64_SelfCareDisability | CK111: ="MOE "&CJ111 -> MOE Total35To64_SelfCareDisability | CL111: Total65To74_SelfCareDisability | CM111: ="MOE "&CL111 -> MOE Total65To74_SelfCareDisability | CN111: Total75andOlder_SelfCareDisability | CO111: ="MOE "&CN111 -> MOE Total75andOlder_SelfCareDisability | CP111: Total18To34_IndependantLivingDisability | CQ111: ="MOE "&CP111 -> MOE Total18To34_IndependantLivingDisability | CR111: Total35To64_IndependantLivingDisability | CS111: ="MOE "&CR111 -> MOE Total35To64_IndependantLivingDisability | CT111: Total65To74_IndependantLivingDisability | CU111: ="MOE "&CT111 -> MOE Total65To74_IndependantLivingDisability | CV111: Total75andOlder_IndependantLivingDisability | CW111: ="MOE "&CV111 -> MOE Total75andOlder_IndependantLivingDisability | CX111: TotalUnder18_OneDisability | CY111: ="MOE "&CX111 -> MOE TotalUnder18_OneDisability | CZ111: TotalUnder18_TwoDisability | DA111: ="MOE "&CZ111 -> MOE TotalUnder18_TwoDisability | DB111: 18to6YearWIthOneDisability | DC111: ="MOE "&DB111 -> MOE 18to6YearWIthOneDisability | DD111: 18to64YearWIthTwoOrMoreDisability | DE111: ="MOE "&DD111 -> MOE 18to64YearWIthTwoOrMoreDisability | DF111: Over64YearsWIthOneDisability | DG111: ="MOE "&DF111 -> MOE Over64YearsWIthOneDisability | DH111: Over64YearsWIthTwoOrMoreDisability | DI111: ="MOE "&DH111 -> MOE Over64YearsWIthTwoOrMoreDisability
A112: =VLOOKUP(DropDownList!$A$19,CntyQuery!$A$53:$DN$64,A$1) -> Alton | B112: 5264 | C112: 21 | D112: 267 | E112: 146.2395295 | F112: 0 | G112: 21.21320344 | H112: 267 | I112: 146.2395295 | J112: 661 | K112: 184.9107893 | L112: 11 | M112: 23.43074903 | N112: 650 | O112: 181.0441935 | P112: 973 | Q112: 261.0383114 | R112: 64 | S112: 51.07837116 | T112: 909 | U112: 261.767072 | V112: 2447 | W112: 232.7251598 | X112: 81 | Y112: 61.13100686 | Z112: 2366 | AA112: 234.1815535 | AB112: 556 | AC112: 168.3597339 | AD112: 37 | AE112: 39.92492956 | AF112: 519 | AG112: 164.638999 | AH112: 360 | AI112: 119.503138 | AJ112: 128 | AK112: 66.03029608 | AL112: 232 | AM112: 102.8250942 | AN112: 0 | AO112: 21.21320344 | AP112: 0 | AQ112: 21.21320344 | AR112: 20 | AS112: 34.43835072 | AT112: 43 | AU112: 39.39543121 | AV112: 15 | AW112: 28.3019434 | AX112: 48 | AY112: 39.8246155 | AZ112: 0 | BA112: 21.21320344 | BB112: 11 | BC112: 23.43074903 | BD112: 0 | BE112: 21.21320344 | BF112: 18 | BG112: 32.64965543 | BH112: 11 | BI112: 24.20743687 | BJ112: 14 | BK112: 26.62705391 | BL112: 11 | BM112: 23.43074903 | BN112: 49 | BO112: 45.61797891 | BP112: 12 | BQ112: 24.20743687 | BR112: 11 | BS112: 24.20743687 | BT112: 0 | BU112: 21.21320344 | BV112: 0 | BW112: 21.21320344 | BX112: 0 | BY112: 21.21320344 | BZ112: 57 | CA112: 56.04462508 | CB112: 22 | CC112: 30.88689042 | CD112: 75 | CE112: 50.92150823 | CF112: 0 | CG112: 21.21320344 | CH112: 0 | CI112: 21.21320344 | CJ112: 56 | CK112: 48.38388161 | CL112: 22 | CM112: 30.88689042 | CN112: 14 | CO112: 26.62705391 | CP112: 27 | CQ112: 30.47950131 | CR112: 57 | CS112: 56.04462508 | CT112: 22 | CU112: 30.88689042 | CV112: 60 | CW112: 47.01063709 | CX112: 0 | CY112: 16 | CZ112: 0 | DA112: 16 | DB112: 77 | DC112: 59 | DD112: 111 | DE112: 76 | DF112: 86 | DG112: 56 | DH112: 85 | DI112: 60
A114: Househould Income By Age
A115: NAME | B115: TotalHouseholds | C115: ="MOE "&B115 -> MOE TotalHouseholds | D115: HHInc<10K | E115: ="MOE "&D115 -> MOE HHInc<10K | F115: HHInc10to15K | G115: ="MOE "&F115 -> MOE HHInc10to15K | H115: HHInc15to20K | I115: ="MOE "&H115 -> MOE HHInc15to20K | J115: HHInc20to25K | K115: ="MOE "&J115 -> MOE HHInc20to25K | L115: HHInc25to30K | M115: ="MOE "&L115 -> MOE HHInc25to30K | N115: HHInc30to35K | O115: ="MOE "&N115 -> MOE HHInc30to35K | P115: HHInc35to40K | Q115: ="MOE "&P115 -> MOE HHInc35to40K | R115: HHInc40to45K | S115: ="MOE "&R115 -> MOE HHInc40to45K | T115: HHInc45to50K | U115: ="MOE "&T115 -> MOE HHInc45to50K | V115: HHInc50to60K | W115: ="MOE "&V115 -> MOE HHInc50to60K | X115: HHInc60to75K | Y115: ="MOE "&X115 -> MOE HHInc60to75K | Z115: HHInc75to100K | AA115: ="MOE "&Z115 -> MOE HHInc75to100K | AB115: HHInc100to125K | AC115: ="MOE "&AB115 -> MOE HHInc100to125K | AD115: HHInc125to150K | AE115: ="MOE "&AD115 -> MOE HHInc125to150K | AF115: HHInc150to200K | AG115: ="MOE "&AF115 -> MOE HHInc150to200K | AH115: HHInc>200K | AI115: ="MOE "&AH115 -> MOE HHInc>200K | AJ115: TotalHH | AK115: ="MOE "&AJ115 -> MOE TotalHH | AL115: HHAgeHHUnder25yrs | AM115: ="MOE "&AL115 -> MOE HHAgeHHUnder25yrs | AN115: HHAgeHH<25HHInc<10K | AO115: ="MOE "&AN115 -> MOE HHAgeHH<25HHInc<10K | AP115: HHAgeHH<25HHInc10to15K | AQ115: ="MOE "&AP115 -> MOE HHAgeHH<25HHInc10to15K | AR115: HHAgeHH<25HHInc15to20K | AS115: ="MOE "&AR115 -> MOE HHAgeHH<25HHInc15to20K | AT115: HHAgeHH<25HHInc20to25K | AU115: ="MOE "&AT115 -> MOE HHAgeHH<25HHInc20to25K | AV115: HHAgeHH<25HHInc25to30K | AW115: ="MOE "&AV115 -> MOE HHAgeHH<25HHInc25to30K | AX115: HHAgeHH<25HHInc30to35K | AY115: ="MOE "&AX115 -> MOE HHAgeHH<25HHInc30to35K | AZ115: HHAgeHH<25HHInc35to40K | BA115: ="MOE "&AZ115 -> MOE HHAgeHH<25HHInc35to40K | BB115: HHAgeHH<25HHInc40to45K | BC115: ="MOE "&BB115 -> MOE HHAgeHH<25HHInc40to45K | BD115: HHAgeHH<25HHInc45to50K | BE115: ="MOE "&BD115 -> MOE HHAgeHH<25HHInc45to50K | BF115: HHAgeHH<25HHInc50to60K | BG115: ="MOE "&BF115 -> MOE HHAgeHH<25HHInc50to60K | BH115: HHAgeHH<25HHInc60to75K | BI115: ="MOE "&BH115 -> MOE HHAgeHH<25HHInc60to75K | BJ115: HHAgeHH<25HHInc75to100K | BK115: ="MOE "&BJ115 -> MOE HHAgeHH<25HHInc75to100K | BL115: HHAgeHH<25HHInc100to125K | BM115: ="MOE "&BL115 -> MOE HHAgeHH<25HHInc100to125K | BN115: HHAgeHH<25HHInc125to150K | BO115: ="MOE "&BN115 -> MOE HHAgeHH<25HHInc125to150K | BP115: HHAgeHH<25HHInc150to200K | BQ115: ="MOE "&BP115 -> MOE HHAgeHH<25HHInc150to200K | BR115: HHAge<25HHInc>200K | BS115: ="MOE "&BR115 -> MOE HHAge<25HHInc>200K | BT115: HHAgeHH25to44yrs | BU115: ="MOE "&BT115 -> MOE HHAgeHH25to44yrs | BV115: HHAgeHH25To44yrsHHInc<10K | BW115: ="MOE "&BV115 -> MOE HHAgeHH25To44yrsHHInc<10K | BX115: HHAgeHH25To44yrsHHInc10to15K | BY115: ="MOE "&BX115 -> MOE HHAgeHH25To44yrsHHInc10to15K | BZ115: HHAgeHH25To44yrsHHInc15to20K | CA115: ="MOE "&BZ115 -> MOE HHAgeHH25To44yrsHHInc15to20K | CB115: HHAgeHH25To44yrsHHInc20to25K | CC115: ="MOE "&CB115 -> MOE HHAgeHH25To44yrsHHInc20to25K | CD115: HHAgeHH25To44yrsHHInc25to30K | CE115: ="MOE "&CD115 -> MOE HHAgeHH25To44yrsHHInc25to30K | CF115: HHAgeHH25To44yrsHHInc30to35K | CG115: ="MOE "&CF115 -> MOE HHAgeHH25To44yrsHHInc30to35K | CH115: HHAgeHH25To44yrsHHInc35to40K | CI115: ="MOE "&CH115 -> MOE HHAgeHH25To44yrsHHInc35to40K | CJ115: HHAgeHH25To44yrsHHInc40to45K | CK115: ="MOE "&CJ115 -> MOE HHAgeHH25To44yrsHHInc40to45K | CL115: HHAgeHH25To44yrsHHInc45to50K | CM115: ="MOE "&CL115 -> MOE HHAgeHH25To44yrsHHInc45to50K | CN115: HHAgeHH25To44yrsHHInc50to60K | CO115: ="MOE "&CN115 -> MOE HHAgeHH25To44yrsHHInc50to60K | CP115: HHAgeHH25To44yrsHHInc60to75K | CQ115: ="MOE "&CP115 -> MOE HHAgeHH25To44yrsHHInc60to75K | CR115: HHAgeHH25To44yrsHHInc75to100K | CS115: ="MOE "&CR115 -> MOE HHAgeHH25To44yrsHHInc75to100K | CT115: HHAgeHH25To44yrsHHInc100to125K | CU115: ="MOE "&CT115 -> MOE HHAgeHH25To44yrsHHInc100to125K | CV115: HHAgeHH25To44yrsHHInc125to150K | CW115: ="MOE "&CV115 -> MOE HHAgeHH25To44yrsHHInc125to150K | CX115: HHAgeHH25To44yrsHHInc150to200K | CY115: ="MOE "&CX115 -> MOE HHAgeHH25To44yrsHHInc150to200K | CZ115: HHAge25To44yrsHHInc>200K | DA115: ="MOE "&CZ115 -> MOE HHAge25To44yrsHHInc>200K | DB115: HHAgeHH45To64yrs | DC115: ="MOE "&DB115 -> MOE HHAgeHH45To64yrs | DD115: HHAgeHH45To64yrsHHInc<10K | DE115: ="MOE "&DD115 -> MOE HHAgeHH45To64yrsHHInc<10K | DF115: HHAgeHH45To64yrsHHInc10to15K | DG115: ="MOE "&DF115 -> MOE HHAgeHH45To64yrsHHInc10to15K | DH115: HHAgeHH45To64yrsHHInc15to20K | DI115: ="MOE "&DH115 -> MOE HHAgeHH45To64yrsHHInc15to20K | DJ115: HHAgeHH45To64yrsHHInc20to25K | DK115: ="MOE "&DJ115 -> MOE HHAgeHH45To64yrsHHInc20to25K | DL115: HHAgeHH45To64yrsHHInc25to30K | DM115: ="MOE "&DL115 -> MOE HHAgeHH45To64yrsHHInc25to30K | DN115: HHAgeHH45To64yrsHHInc30to35K | DO115: ="MOE "&DN115 -> MOE HHAgeHH45To64yrsHHInc30to35K | DP115: HHAgeHH45To64yrsHHInc35to40K | DQ115: ="MOE "&DP115 -> MOE HHAgeHH45To64yrsHHInc35to40K | DR115: HHAgeHH45To64yrsHHInc40to45K | DS115: ="MOE "&DR115 -> MOE HHAgeHH45To64yrsHHInc40to45K | DT115: HHAgeHH45To64yrsHHInc45to50K | DU115: ="MOE "&DT115 -> MOE HHAgeHH45To64yrsHHInc45to50K | DV115: HHAgeHH45To64yrsHHInc50to60K | DW115: ="MOE "&DV115 -> MOE HHAgeHH45To64yrsHHInc50to60K | DX115: HHAgeHH45To64yrsHHInc60to75K | DY115: ="MOE "&DX115 -> MOE HHAgeHH45To64yrsHHInc60to75K | DZ115: HHAgeHH45To64yrsHHInc75to100K | EA115: ="MOE "&DZ115 -> MOE HHAgeHH45To64yrsHHInc75to100K | EB115: HHAgeHH45To64yrsHHInc100to125K | EC115: ="MOE "&EB115 -> MOE HHAgeHH45To64yrsHHInc100to125K | ED115: HHAgeHH45To64yrsHHInc125to150K | EE115: ="MOE "&ED115 -> MOE HHAgeHH45To64yrsHHInc125to150K | EF115: HHAgeHH45To64yrsHHInc150to200K | EG115: ="MOE "&EF115 -> MOE HHAgeHH45To64yrsHHInc150to200K | EH115: HHAge45To64yrsHHInc>200K | EI115: ="MOE "&EH115 -> MOE HHAge45To64yrsHHInc>200K | EJ115: HHAgeHH65yrsorOlder | EK115: ="MOE "&EJ115 -> MOE HHAgeHH65yrsorOlder | EL115: HHAgeHH65yrsorOlderHHInc<10K | EM115: ="MOE "&EL115 -> MOE HHAgeHH65yrsorOlderHHInc<10K | EN115: HHAgeHH65yrsorOlderHHInc10to15K | EO115: ="MOE "&EN115 -> MOE HHAgeHH65yrsorOlderHHInc10to15K | EP115: HHAgeHH65yrsorOlderHHInc15to20K | EQ115: ="MOE "&EP115 -> MOE HHAgeHH65yrsorOlderHHInc15to20K | ER115: HHAgeHH65yrsorOlderHHInc20to25K | ES115: ="MOE "&ER115 -> MOE HHAgeHH65yrsorOlderHHInc20to25K | ET115: HHAgeHH65yrsorOlderHHInc25to30K | EU115: ="MOE "&ET115 -> MOE HHAgeHH65yrsorOlderHHInc25to30K | EV115: HHAgeHH65yrsorOlderHHInc30to35K | EW115: ="MOE "&EV115 -> MOE HHAgeHH65yrsorOlderHHInc30to35K | EX115: HHAgeHH65yrsorOlderHHInc35to40K | EY115: ="MOE "&EX115 -> MOE HHAgeHH65yrsorOlderHHInc35to40K | EZ115: HHAgeHH65yrsorOlderHHInc40to45K | FA115: ="MOE "&EZ115 -> MOE HHAgeHH65yrsorOlderHHInc40to45K | FB115: HHAgeHH65yrsorOlderHHInc45to50K | FC115: ="MOE "&FB115 -> MOE HHAgeHH65yrsorOlderHHInc45to50K | FD115: HHAgeHH65yrsorOlderHHInc50to60K | FE115: ="MOE "&FD115 -> MOE HHAgeHH65yrsorOlderHHInc50to60K | FF115: HHAgeHH65yrsorOlderHHInc60to75K | FG115: ="MOE "&FF115 -> MOE HHAgeHH65yrsorOlderHHInc60to75K | FH115: HHAgeHH65yrsorOlderHHInc75to100K | FI115: ="MOE "&FH115 -> MOE HHAgeHH65yrsorOlderHHInc75to100K | FJ115: HHAgeHH65yrsorOlderHHInc100to125K | FK115: ="MOE "&FJ115 -> MOE HHAgeHH65yrsorOlderHHInc100to125K | FL115: HHAgeHH65yrsorOlderHHInc125to150K | FM115: ="MOE "&FL115 -> MOE HHAgeHH65yrsorOlderHHInc125to150K | FN115: HHAgeHH65yrsorOlderHHInc150to200K | FO115: ="MOE "&FN115 -> MOE HHAgeHH65yrsorOlderHHInc150to200K | FP115: HHAge65yrsorOlderHHInc>200K | FQ115: ="MOE "&FP115 -> MOE HHAge65yrsorOlderHHInc>200K | FR115: MedianHHInc | FS115: ="MOE "&FR115 -> MOE MedianHHInc | FT115: HH under 25 years | FU115: ="MOE "&FT115 -> MOE HH under 25 years | FV115: Householder 25 to 44 years | FW115: ="MOE "&FV115 -> MOE Householder 25 to 44 years | FX115: Householder 45 to 64 years | FY115: ="MOE "&FX115 -> MOE Householder 45 to 64 years | FZ115: Householder 65 years and over | GA115: ="MOE "&FZ115 -> MOE Householder 65 years and over
A116: =VLOOKUP(DropDownList!$A$19,CntyQuery!$A$53:$DN$64,A$1) -> Alton | B116: 2193 | C116: 185 | D116: 135 | E116: 116 | F116: 100 | G116: 94 | H116: 32 | I116: 37 | J116: 199 | K116: 123 | L116: 15 | M116: 24 | N116: 127 | O116: 98 | P116: 68 | Q116: 46 | R116: 55 | S116: 29 | T116: 109 | U116: 89 | V116: 180 | W116: 113 | X116: 207 | Y116: 85 | Z116: 317 | AA116: 139 | AB116: 310 | AC116: 143 | AD116: 164 | AE116: 89 | AF116: 152 | AG116: 101 | AH116: 23 | AI116: 27 | AJ116: 2193 | AK116: 185 | AL116: 75 | AM116: 74 | AN116: 0 | AO116: 15 | AP116: 0 | AQ116: 15 | AR116: 0 | AS116: 15 | AT116: 0 | AU116: 15 | AV116: 0 | AW116: 15 | AX116: 0 | AY116: 15 | AZ116: 0 | BA116: 15 | BB116: 0 | BC116: 15 | BD116: 42 | BE116: 66 | BF116: 0 | BG116: 15 | BH116: 16 | BI116: 25 | BJ116: 17 | BK116: 26 | BL116: 0 | BM116: 15 | BN116: 0 | BO116: 15 | BP116: 0 | BQ116: 15 | BR116: 0 | BS116: 15 | BT116: 567 | BU116: 139 | BV116: 0 | BW116: 15 | BX116: 0 | BY116: 15 | BZ116: 0 | CA116: 15 | CB116: 0 | CC116: 15 | CD116: 0 | CE116: 15 | CF116: 14 | CG116: 23 | CH116: 31 | CI116: 37 | CJ116: 9 | CK116: 16 | CL116: 13 | CM116: 21 | CN116: 71 | CO116: 73 | CP116: 106 | CQ116: 61 | CR116: 104 | CS116: 83 | CT116: 97 | CU116: 97 | CV116: 45 | CW116: 51 | CX116: 77 | CY116: 73 | CZ116: 0 | DA116: 15 | DB116: 942 | DC116: 213 | DD116: 90 | DE116: 100 | DF116: 16 | DG116: 26 | DH116: 18 | DI116: 29 | DJ116: 99 | DK116: 106 | DL116: 0 | DM116: 15 | DN116: 53 | DO116: 68 | DP116: 13 | DQ116: 20 | DR116: 15 | DS116: 24 | DT116: 29 | DU116: 33 | DV116: 64 | DW116: 83 | DX116: 38 | DY116: 34 | DZ116: 137 | EA116: 102 | EB116: 187 | EC116: 106 | ED116: 119 | EE116: 78 | EF116: 52 | EG116: 65 | EH116: 12 | EI116: 20 | EJ116: 609 | EK116: 168 | EL116: 45 | EM116: 43 | EN116: 84 | EO116: 90 | EP116: 14 | EQ116: 22 | ER116: 100 | ES116: 68 | ET116: 15 | EU116: 24 | EV116: 60 | EW116: 72 | EX116: 24 | EY116: 28 | EZ116: 31 | FA116: 24 | FB116: 25 | FC116: 20 | FD116: 45 | FE116: 40 | FF116: 47 | FG116: 38 | FH116: 59 | FI116: 40 | FJ116: 26 | FK116: 31 | FL116: 0 | FM116: 15 | FN116: 23 | FO116: 28 | FP116: 11 | FQ116: 19 | FR116: 66045 | FS116: 13018 | FT116: 49732 | FU116: 36682 | FV116: 82057 | FW116: 22169 | FX116: 81837 | FY116: 28362 | FZ116: 34438 | GA116: 8178
A118: Number of Households by Income
A119: NAME | B119: HHIncLessThn10k | C119: ="MOE "&B119 -> MOE HHIncLessThn10k | D119: HHInc10to15K | E119: ="MOE "&D119 -> MOE HHInc10to15K | F119: HHInc15to25K | G119: ="MOE "&F119 -> MOE HHInc15to25K | H119: HHInc25to35K | I119: ="MOE "&H119 -> MOE HHInc25to35K | J119: HHInc35to50K | K119: ="MOE "&J119 -> MOE HHInc35to50K | L119: HHInc50to75K | M119: ="MOE "&L119 -> MOE HHInc50to75K | N119: HHInc75to100K | O119: ="MOE "&N119 -> MOE HHInc75to100K | P119: HHInc100to150K | Q119: ="MOE "&P119 -> MOE HHInc100to150K | R119: HHInc150to200K | S119: ="MOE "&R119 -> MOE HHInc150to200K | T119: HHIncOver200K | U119: ="MOE "&T119 -> MOE HHIncOver200K
A120: =VLOOKUP(DropDownList!$A$19,CntyQuery!$A$53:$DN$64,A$1) -> Alton | B120: 135 | C120: 116 | D120: 100 | E120: 94 | F120: 231 | G120: 128.4445406 | H120: 142 | I120: 100.895986 | J120: 232 | K120: 104.297651 | L120: 387 | M120: 141.4001414 | N120: 317 | O120: 139 | P120: 474 | Q120: 168.4339633 | R120: 152 | S120: 101 | T120: 23 | U120: 27
A122: POVERTY DATA
A123: NAME | B123: TotalPop | C123: ="MOE "&B123 -> MOE TotalPop | D123: Total Individuals living in Poverty | E123: ="MOE "&D123 -> MOE Total Individuals living in Poverty | F123: Under 5 yrs. | G123: ="MOE "&F123 -> MOE Under 5 yrs. | H123: 5 to 17 yrs. | I123: ="MOE "&H123 -> MOE 5 to 17 yrs. | J123: 18 to 64 yrs. | K123: ="MOE "&J123 -> MOE 18 to 64 yrs. | L123: 65 to 74 yrs. | M123: ="MOE "&L123 -> MOE 65 to 74 yrs. | N123: 75 yrs. & Over | O123: ="MOE "&N123 -> MOE 75 yrs. & Over | P123: Total Individuals Not living Poverty | Q123: ="MOE "&P123 -> MOE Total Individuals Not living Poverty | R123: Under 5 yrs. | S123: ="MOE "&R123 -> MOE Under 5 yrs. | T123: 5 to 17 yrs. | U123: ="MOE "&T123 -> MOE 5 to 17 yrs. | V123: 18 to 64 yrs. | W123: ="MOE "&V123 -> MOE 18 to 64 yrs. | X123: 65 to 74 yrs. | Y123: ="MOE "&X123 -> MOE 65 to 74 yrs. | Z123: 75 yrs. & Over | AA123: ="MOE "&Z123 -> MOE 75 yrs. & Over | AB123: Total HH | AC123: ="MOE "&AB123 -> MOE Total HH | AD123: Total Households Below Poverty | AE123: ="MOE "&AD123 -> MOE Total Households Below Poverty | AF123: Family Households in Poverty | AG123: ="MOE "&AF123 -> MOE Family Households in Poverty | AH123: Married Couple Fam HH | AI123: ="MOE "&AH123 -> MOE Married Couple Fam HH | AJ123: Other Family | AK123: ="MOE "&AJ123 -> MOE Other Family | AL123: Male Head of Family HH no spouse | AM123: ="MOE "&AL123 -> MOE Male Head of Family HH no spouse | AN123: Female Head of Family HH no spouse | AO123: ="MOE "&AN123 -> MOE Female Head of Family HH no spouse | AP123: Non-Family HH | AQ123: ="MOE "&AP123 -> MOE Non-Family HH | AR123: Non-Family Male HH | AS123: ="MOE "&AR123 -> MOE Non-Family Male HH | AT123: Non-Family Female HH | AU123: ="MOE "&AT123 -> MOE Non-Family Female HH | AV123: Total Households at or Above Poverty | AW123: ="MOE "&AV123 -> MOE Total Households at or Above Poverty | AX123: Family Households above Poverty | AY123: ="MOE "&AX123 -> MOE Family Households above Poverty | AZ123: Married Couple Fam HH | BA123: ="MOE "&AZ123 -> MOE Married Couple Fam HH | BB123: Other Family | BC123: ="MOE "&BB123 -> MOE Other Family | BD123: Male Head of Family HH no spouse | BE123: ="MOE "&BD123 -> MOE Male Head of Family HH no spouse | BF123: Female Head of Family HH no spouse | BG123: ="MOE "&BF123 -> MOE Female Head of Family HH no spouse | BH123: Non-Family HH | BI123: ="MOE "&BH123 -> MOE Non-Family HH | BJ123: Non-Family Male HH | BK123: ="MOE "&BJ123 -> MOE Non-Family Male HH | BL123: Non-Family Female HH | BM123: ="MOE "&BL123 -> MOE Non-Family Female HH | BN123: Married Couple with Children Below Poverty | BO123: ="MOE "&BN123 -> MOE Married Couple with Children Below Poverty | BP123: Male HH with children below poverty | BQ123: ="MOE "&BP123 -> MOE Male HH with children below poverty | BR123: Female HH with children below poverty | BS123: ="MOE "&BR123 -> MOE Female HH with children below poverty | BT123: Married Couple with Children At or Above Poverty | BU123: ="MOE "&BT123 -> MOE Married Couple with Children At or Above Poverty | BV123: Male HH with children at or above poverty | BW123: ="MOE "&BV123 -> MOE Male HH with children at or above poverty | BX123: Female HH with children at or above poverty | BY123: ="MOE "&BX123 -> MOE Female HH with children at or above poverty
A124: =VLOOKUP(DropDownList!$A$19,CntyQuery!$A$53:$DN$64,A$1) -> Alton | B124: 6262 | C124: 56 | D124: 515 | E124: 223 | F124: 39 | G124: 62.20128616 | H124: 97 | I124: 73.71566998 | J124: 292 | K124: 122.0040983 | L124: 18 | M124: 19.79898987 | N124: 69 | O124: 50.28916384 | P124: 5747 | Q124: 228 | R124: 233 | S124: 131.7269904 | T124: 971 | U124: 214.4084886 | V124: 3096 | W124: 310.1402908 | X124: 936 | Y124: 150.5722418 | Z124: 242 | AA124: 87.4185335 | AB124: 297 | AC124: 124 | AD124: 118 | AE124: 69 | AF124: 9 | AG124: 14 | AH124: 0 | AI124: 11 | AJ124: 109 | AK124: 67 | AL124: 0 | AM124: 15 | AN124: 109 | AO124: 67 | AP124: 179 | AQ124: 97 | AR124: 82 | AS124: 68 | AT124: 97 | AU124: 61 | AV124: 2535 | AW124: 167 | AX124: 1679 | AY124: 151 | AZ124: 1398 | BA124: 150 | BB124: 281 | BC124: 91 | BD124: 72 | BE124: 35 | BF124: 209 | BG124: 93 | BH124: 856 | BI124: 161 | BJ124: 392 | BK124: 117 | BL124: 464 | BM124: 123 | BN124: 0 | BO124: 15 | BP124: 0 | BQ124: 15 | BR124: 86 | BS124: 66 | BT124: 447 | BU124: 92 | BV124: 58 | BW124: 30 | BX124: 152 | BY124: 93
A126: Household Income By Tenure
A127: NAME | B127: TotalOccHU | C127: ="MOE "&B127 -> MOE TotalOccHU | D127: OwnOccHU | E127: ="MOE "&D127 -> MOE OwnOccHU | F127: OOHUInc<5K | G127: ="MOE "&F127 -> MOE OOHUInc<5K | H127: OOHUInc5to10K | I127: ="MOE "&H127 -> MOE OOHUInc5to10K | J127: OOHUInc10to15K | K127: ="MOE "&J127 -> MOE OOHUInc10to15K | L127: OOHUInc15to20K | M127: ="MOE "&L127 -> MOE OOHUInc15to20K | N127: OOHUInc20to25K | O127: ="MOE "&N127 -> MOE OOHUInc20to25K | P127: OOHUInc25to35K | Q127: ="MOE "&P127 -> MOE OOHUInc25to35K | R127: OOHUInc35to50K | S127: ="MOE "&R127 -> MOE OOHUInc35to50K | T127: OOHUInc50to75K | U127: ="MOE "&T127 -> MOE OOHUInc50to75K | V127: OOHUInc75to100K | W127: ="MOE "&V127 -> MOE OOHUInc75to100K | X127: OOHUInc100to150K | Y127: ="MOE "&X127 -> MOE OOHUInc100to150K | Z127: OOHUInc>150K | AA127: ="MOE "&Z127 -> MOE OOHUInc>150K | AB127: RentOccHU | AC127: ="MOE "&AB127 -> MOE RentOccHU | AD127: ROHUInc<5K | AE127: ="MOE "&AD127 -> MOE ROHUInc<5K | AF127: ROHUInc5to10K | AG127: ="MOE "&AF127 -> MOE ROHUInc5to10K | AH127: ROHUInc10to15K | AI127: ="MOE "&AH127 -> MOE ROHUInc10to15K | AJ127: ROHUInc15to20K | AK127: ="MOE "&AJ127 -> MOE ROHUInc15to20K | AL127: ROHUInc20to25K | AM127: ="MOE "&AL127 -> MOE ROHUInc20to25K | AN127: ROHUInc25to35K | AO127: ="MOE "&AN127 -> MOE ROHUInc25to35K | AP127: ROHUInc35to50K | AQ127: ="MOE "&AP127 -> MOE ROHUInc35to50K | AR127: ROHUInc50to75K | AS127: ="MOE "&AR127 -> MOE ROHUInc50to75K | AT127: ROHUInc75to100K | AU127: ="MOE "&AT127 -> MOE ROHUInc75to100K | AV127: ROHUInc100to150K | AW127: ="MOE "&AV127 -> MOE ROHUInc100to150K | AX127: ROHUInc>150K | AY127: ="MOE "&AX127 -> MOE ROHUInc>150K | AZ127: Total OCC HUInc<5K | BA127: ="MOE "&AZ127 -> MOE Total OCC HUInc<5K | BB127: Total OCC HUInc5to10K | BC127: ="MOE "&BB127 -> MOE Total OCC HUInc5to10K | BD127: Total OCC HUInc10to15K | BE127: ="MOE "&BD127 -> MOE Total OCC HUInc10to15K | BF127: Total OCC HUInc15to20K | BG127: ="MOE "&BF127 -> MOE Total OCC HUInc15to20K | BH127: Total OCC HUInc20to25K | BI127: ="MOE "&BH127 -> MOE Total OCC HUInc20to25K | BJ127: Total OCC HUInc25to35K | BK127: ="MOE "&BJ127 -> MOE Total OCC HUInc25to35K | BL127: Total OCC HUInc35to50K | BM127: ="MOE "&BL127 -> MOE Total OCC HUInc35to50K | BN127: Total OCC HUInc50to75K | BO127: ="MOE "&BN127 -> MOE Total OCC HUInc50to75K | BP127: Total OCC HUInc75to100K | BQ127: ="MOE "&BP127 -> MOE Total OCC HUInc75to100K | BR127: Total OCC HUInc100to150K | BS127: ="MOE "&BR127 -> MOE Total OCC HUInc100to150K | BT127: Total OCC HUInc>150K | BU127: ="MOE "&BT127 -> MOE Total OCC HUInc>150K | BV127: MedHHInc | BW127: ="MOE "&BV127 -> MOE MedHHInc | BX127: MedOwnOccHHInc | BY127: ="MOE "&BX127 -> MOE MedOwnOccHHInc | BZ127: MedRentOccHHInc | CA127: ="MOE "&BZ127 -> MOE MedRentOccHHInc
A128: =VLOOKUP(DropDownList!$A$19,CntyQuery!$A$53:$DN$64,A$1) -> Alton | B128: 2193 | C128: 185 | D128: 1760 | E128: 235 | F128: 25 | G128: 28 | H128: 66 | I128: 81 | J128: 49 | K128: 47 | L128: 32 | M128: 37 | N128: 183 | O128: 120 | P128: 99 | Q128: 82 | R128: 127 | S128: 61 | T128: 337 | U128: 134 | V128: 275 | W128: 137 | X128: 392 | Y128: 122 | Z128: 175 | AA128: 107 | AB128: 433 | AC128: 169 | AD128: 0 | AE128: 15 | AF128: 44 | AG128: 70 | AH128: 51 | AI128: 81 | AJ128: 0 | AK128: 15 | AL128: 16 | AM128: 25 | AN128: 43 | AO128: 67 | AP128: 105 | AQ128: 82 | AR128: 50 | AS128: 46 | AT128: 42 | AU128: 37 | AV128: 82 | AW128: 110 | AX128: 0 | AY128: 15 | AZ128: 25 | BA128: 31.76476035 | BB128: 110 | BC128: 107.0560601 | BD128: 100 | BE128: 93.64827815 | BF128: 32 | BG128: 39.92492956 | BH128: 199 | BI128: 122.5765067 | BJ128: 142 | BK128: 105.8914539 | BL128: 232 | BM128: 102.2007828 | BN128: 387 | BO128: 141.675686 | BP128: 317 | BQ128: 141.9084212 | BR128: 474 | BS128: 164.2680736 | BT128: 175 | BU128: 108.0462864 | BV128: 66045 | BW128: 13018 | BX128: 73273 | BY128: 15445 | BZ128: 48068 | CA128: 15749
A130: Population Data
A131: NAME | B131: Total Population | C131: MOE Total Population | D131: Under 15 Years | E131: MOE Under 15 yrs. | F131: 15 to 24 yrs. | G131: MOE 15 to 24 yrs. | H131: 25 to 34 yrs. | I131: MOE 25 to 34 yrs. | J131: 35 to 44 yrs. | K131: MOE 35 to 44 yrs. | L131: 45 to 54 yrs. | M131: MOE 45 to 54 yrs. | N131: 55 to 64 yrs. | O131: MOE 55 to 64 yrs. | P131: 65 to 74 yrs. | Q131: MOE 65 to 74 yrs. | R131: Over 74 yrs. | S131: MOE Over 74 yrs. | T131: TotalHH | U131: MOE TotalHH | V131: FamilyHH | W131: MOE FamilyHH | X131: MarriedFamilyHH | Y131: MOE MarriedFamilyHH | Z131: SingleFamilyHH | AA131: MOE SingleFamilyHH | AB131: Sfamily-MaleHH | AC131: MOE Sfamily-MaleHH | AD131: Sfamily-FemaleHH | AE131: MOE Sfamily-FemaleHH | AF131: NonFamilyHH | AG131: MOE NonFamilyHH | AH131: NonFamilyHH-LivingAlone | AI131: MOE NonFamilyHH-LivingAlone | AJ131: NonFamilyHH-NotLivingAlone | AK131: MOE NonFamilyHH-NotLivingAlone | AL131: PopRaceWhite | AM131: MOE PopRaceWhite | AN131: PopRaceBlack | AO131: MOE PopRaceBlack | AP131: PopRaceAmerican Indian | AQ131: MOE PopRaceAmerican Indian | AR131: PopRaceAsian &Pacific Is. | AS131: MOE PopRaceAsian &Pacific Is. | AT131: PopRaceOther* | AU131: MOE PopRaceOther* | AV131: PopRaceHispanic or Latino: | AW131: MOE PopRaceHispanic or Latino: | AX131: AvgAgeTotalPop | AY131: MOE AvgAgeTotalPop | AZ131: AvgAgeMale | BA131: MOE AvgAgeMale | BB131: AvgAgeFemale | BC131: MOE AvgAgeFemale | BD131: AvgHHSizeTotal | BE131: MOE AvgHHSizeTotal | BF131: AvgHHSizeFamilyHH | BG131: MOE AvgHHSizeFamilyHH | BH131: AvgHHSizeNonFamilyHH | BI131: MOE AvgHHSizeNonFamilyHH
A132: =VLOOKUP(DropDownList!$A$19,CntyQuery!$A$53:$DN$64,A$1) -> Alton | B132: 5270 | C132: 21 | D132: 713 | E132: 225.3242109 | F132: 760 | G132: 227.0770794 | H132: 434 | I132: 153.8700751 | J132: 735 | K132: 182.8523995 | L132: 795 | M132: 209.7212436 | N132: 917 | O132: 253.0276665 | P132: 556 | Q132: 178.2526297 | R132: 360 | S132: 124.0322539 | T132: 2193 | U132: 185 | V132: 1469 | W132: 124 | X132: 1148 | Y132: 173 | Z132: 321 | AA132: 145 | AB132: 188 | AC132: 133 | AD132: 133 | AE132: 92 | AF132: 724 | AG132: 218 | AH132: 585 | AI132: 211 | AJ132: 139 | AK132: 76 | AL132: 4930 | AM132: 200 | AN132: 94 | AO132: 123 | AP132: 76 | AQ132: 104 | AR132: 94 | AS132: 110.0272693 | AT132: 60 | AU132: 61.84658438 | AV132: 16 | AW132: 29 | AX132: 44.8 | AY132: 4.3 | AZ132: 44.5 | BA132: 4.8 | BB132: 45.2 | BC132: 4.8 | BD132: 2.400364797 | BE132: 0.2 | BF132: 2.976174268 | BG132: 0.3065264195 | BH132: 1.232044199 | BI132: 0.5134467518
A134: Nativity and Prior Place of Residence
A135: NAME | B135: TotalPop | C135: ="MOE "&B135 -> MOE TotalPop | D135: Native: | E135: ="MOE "&D135 -> MOE Native: | F135: NatBornInStateOfResidence | G135: ="MOE "&F135 -> MOE NatBornInStateOfResidence | H135: Born in other state in the United States: | I135: ="MOE "&H135 -> MOE Born in other state in the United States: | J135: Northeast | K135: ="MOE "&J135 -> MOE Northeast | L135: Midwest | M135: ="MOE "&L135 -> MOE Midwest | N135: South | O135: ="MOE "&N135 -> MOE South | P135: West | Q135: ="MOE "&P135 -> MOE West | R135: Born outside the United States: | S135: ="MOE "&R135 -> MOE Born outside the United States: | T135: Puerto Rico | U135: ="MOE "&T135 -> MOE Puerto Rico | V135: U.S. Island Areas | W135: ="MOE "&V135 -> MOE U.S. Island Areas | X135: Born abroad of American parent(s) | Y135: ="MOE "&X135 -> MOE Born abroad of American parent(s) | Z135: Foreign born: | AA135: ="MOE "&Z135 -> MOE Foreign born: | AB135: Naturalized U.S. citizen | AC135: ="MOE "&AB135 -> MOE Naturalized U.S. citizen | AD135: Not a U.S. citizen | AE135: ="MOE "&AD135 -> MOE Not a U.S. citizen | AF135: CurrentResideneTotal: | AG135: ="MOE "&AF135 -> MOE CurrentResideneTotal: | AH135: SameHouse: | AI135: ="MOE "&AH135 -> MOE SameHouse: | AJ135: DifferentHouse: | AK135: ="MOE "&AJ135 -> MOE DifferentHouse: | AL135: DiffHouseInNH | AM135: ="MOE "&AL135 -> MOE DiffHouseInNH | AN135: DiffHouseInNHSameCnty | AO135: ="MOE "&AN135 -> MOE DiffHouseInNHSameCnty | AP135: DiffHouseInNHDiffCnty | AQ135: ="MOE "&AP135 -> MOE DiffHouseInNHDiffCnty | AR135: DiffHouseInDiffState | AS135: ="MOE "&AR135 -> MOE DiffHouseInDiffState | AT135: DiffHouseInElsewhere | AU135: ="MOE "&AT135 -> MOE DiffHouseInElsewhere
A136: =VLOOKUP(DropDownList!$A$19,CntyQuery!$A$53:$DN$64,A$1) -> Alton | B136: 16007 | C136: 20 | D136: 15404 | E136: 214 | F136: 9237 | G136: 648 | H136: 6081 | I136: 613 | J136: 4696 | K136: 560 | L136: 411 | M136: 165 | N136: 564 | O136: 214 | P136: 410 | Q136: 154 | R136: 86 | S136: 55 | T136: 20 | U136: 29 | V136: 0 | W136: 17 | X136: 66 | Y136: 46 | Z136: 603 | AA136: 218 | AB136: 312 | AC136: 125 | AD136: 291 | AE136: 177 | AF136: 15829 | AG136: 111 | AH136: 13500 | AI136: 461 | AJ136: 2329 | AK136: 488.6205071 | AL136: 1737 | AM136: 422.8711388 | AN136: 1072 | AO136: 296 | AP136: 665 | AQ136: 302 | AR136: 557 | AS136: 241 | AT136: 35 | AU136: 43 | AV136: 35 | AW136: 43
A138: School Attainment & Enrollment
A139: NAME | B139: Total Pop 3 Years and Older | C139: MOE Total Pop 3 Years and Older | D139: SchEnrlPop3yrOver | E139: ="MOE "&D139 -> MOE SchEnrlPop3yrOver | F139: TotalEnrollNursy&Kinder | G139: ="MOE "&F139 -> MOE TotalEnrollNursy&Kinder | H139: NurserSchEnrl | I139: ="MOE "&H139 -> MOE NurserSchEnrl | J139: KinderSchEnrl | K139: ="MOE "&J139 -> MOE KinderSchEnrl | L139: ElemSchEnrl (1-8) | M139: ="MOE "&L139 -> MOE ElemSchEnrl (1-8) | N139: HighSchEnrl(9-12) | O139: ="MOE "&N139 -> MOE HighSchEnrl(9-12) | P139: TotalElementry&HSEnroll | Q139: ="MOE "&P139 -> MOE TotalElementry&HSEnroll | R139: CollGradSchEnrl | S139: ="MOE "&R139 -> MOE CollGradSchEnrl | T139: PopNotEnrolled | U139: MOE PopNotEnrolled | V139: Pop25yrsOver | W139: ="MOE "&V139 -> MOE Pop25yrsOver | X139: EduAtain<9grd | Y139: ="MOE "&X139 -> MOE EduAtain<9grd | Z139: EduAtainHSnoDip | AA139: ="MOE "&Z139 -> MOE EduAtainHSnoDip | AB139: EduAtainHSgrad | AC139: ="MOE "&AB139 -> MOE EduAtainHSgrad | AD139: EduAtainCollNoDeg | AE139: ="MOE "&AD139 -> MOE EduAtainCollNoDeg | AF139: EduAtainAssocDeg | AG139: ="MOE "&AF139 -> MOE EduAtainAssocDeg | AH139: EduAtainBachDeg | AI139: ="MOE "&AH139 -> MOE EduAtainBachDeg | AJ139: EduAtainGradProfDeg | AK139: ="MOE "&AJ139 -> MOE EduAtainGradProfDeg
A140: =VLOOKUP(DropDownList!$A$19,CntyQuery!$A$53:$DN$64,A$1) -> Alton | B140: 5209 | C140: 54 | D140: 1046 | E140: 228 | F140: 58 | G140: 45.54119015 | H140: 58 | I140: 43 | J140: 0 | K140: 15 | L140: 418 | M140: 176.3008792 | N140: 254 | O140: 103 | P140: 672 | Q140: 204.1837408 | R140: 316 | S140: 152.7776162 | T140: 4163 | U140: 233 | V140: 3797 | W140: 234 | X140: 0 | Y140: 36.74234614 | Z140: 157 | AA140: 95.7810002 | AB140: 927 | AC140: 225.3042388 | AD140: 920 | AE140: 225.6213642 | AF140: 612 | AG140: 166.0120478 | AH140: 833 | AI140: 217.1750446 | AJ140: 333 | AK140: 142.5973352
A142: Occupied Owner Housing Value
A143: NAME | B143: Estimate; Total: | C143: Margin of Error; Total: | D143: Estimate; Total: - Less than $10,000 | E143: Margin of Error; Total: - Less than $10,000 | F143: Estimate; Total: - $10,000 to $14,999 | G143: Margin of Error; Total: - $10,000 to $14,999 | H143: Estimate; Total: - $15,000 to $19,999 | I143: Margin of Error; Total: - $15,000 to $19,999 | J143: Estimate; Total: - $20,000 to $24,999 | K143: Margin of Error; Total: - $20,000 to $24,999 | L143: Estimate; Total: - $25,000 to $29,999 | M143: Margin of Error; Total: - $25,000 to $29,999 | N143: Estimate; Total: - $30,000 to $34,999 | O143: Margin of Error; Total: - $30,000 to $34,999 | P143: Estimate; Total: - $35,000 to $39,999 | Q143: Margin of Error; Total: - $35,000 to $39,999 | R143: Estimate; Total: - $40,000 to $49,999 | S143: Margin of Error; Total: - $40,000 to $49,999 | T143: Estimate; Total: - $50,000 to $59,999 | U143: Margin of Error; Total: - $50,000 to $59,999 | V143: Estimate; Total: - $60,000 to $69,999 | W143: Margin of Error; Total: - $60,000 to $69,999 | X143: Estimate; Total: - $70,000 to $79,999 | Y143: Margin of Error; Total: - $70,000 to $79,999 | Z143: Estimate; Total: - $80,000 to $89,999 | AA143: Margin of Error; Total: - $80,000 to $89,999 | AB143: Estimate; Total: - $90,000 to $99,999 | AC143: Margin of Error; Total: - $90,000 to $99,999 | AD143: Estimate; Total: - $100,000 to $124,999 | AE143: Margin of Error; Total: - $100,000 to $124,999 | AF143: Estimate; Total: - $125,000 to $149,999 | AG143: Margin of Error; Total: - $125,000 to $149,999 | AH143: Estimate; Total: - $150,000 to $174,999 | AI143: Margin of Error; Total: - $150,000 to $174,999 | AJ143: Estimate; Total: - $175,000 to $199,999 | AK143: Margin of Error; Total: - $175,000 to $199,999 | AL143: Estimate; Total: - $200,000 to $249,999 | AM143: Margin of Error; Total: - $200,000 to $249,999 | AN143: Estimate; Total: - $250,000 to $299,999 | AO143: Margin of Error; Total: - $250,000 to $299,999 | AP143: Estimate; Total: - $300,000 to $399,999 | AQ143: Margin of Error; Total: - $300,000 to $399,999 | AR143: Estimate; Total: - $400,000 to $499,999 | AS143: Margin of Error; Total: - $400,000 to $499,999 | AT143: Estimate; Total: - $500,000 to $749,999 | AU143: Margin of Error; Total: - $500,000 to $749,999 | AV143: Estimate; Total: - $750,000 to $999,999 | AW143: Margin of Error; Total: - $750,000 to $999,999 | AX143: Estimate; Total: - $1,000,000 to $1,499,999 | AY143: Margin of Error; Total: - $1,000,000 to $1,499,999 | AZ143: Estimate; Total: - $1,500,000 to $1,999,999 | BA143: Margin of Error; Total: - $1,500,000 to $1,999,999 | BB143: Estimate; Total: - $2,000,000 or more | BC143: Margin of Error; Total: - $2,000,000 or more | BD143: MedianOwnOCCHomeValue | BE143: MOE MedianOwnOCCHomeValue | BF143: OnwerOccHsU | BG143: MOE OnwerOccHsU | BH143: OwnerCosts>20PctHHInc | BI143: MOE OwnerCosts>20PctHHInc | BJ143: OwnerCosts20to29.9PctHHInc | BK143: MOE OwnerCosts20to29.9PctHHInc | BL143: OwnerCosts<30PctHHInc | BM143: MOE OwnerCosts<30PctHHInc | BN143: OwnerCosts>30PctHHInc | BO143: MOE OwnerCosts>30PctHHInc | BP143: OwnerCosts30to34.9PctHHInc | BQ143: MOE OwnerCosts30to34.9PctHHInc | BR143: OwnerCosts<35PctHHInc | BS143: MOE OwnerCosts<35PctHHInc | BT143: OwnerCosts>35PctHHInc | BU143: MOE OwnerCosts>35PctHHInc | BV143: OwnerCosts>50PctHHInc | BW143: MOE OwnerCosts>50PctHHInc | BX143: OwnerCostsPctNotcomputed | BY143: MOE OwnerCostsPctNotcomputed | BZ143: OwnerOHUHhInc<20k | CA143: MOE OwnerOHUHhInc<20k | CB143: OwnerOHUHhInc<20kHCosts<20pct | CC143: MOE OwnerOHUHhInc<20kHCosts<20pct | CD143: OwnerOHUHhInc<20kHCosts20to29pct | CE143: MOE OwnerOHUHhInc<20kHCosts20to29pct | CF143: OwnerOHUHhInc>20kHCosts30pct | CG143: MOE OwnerOHUHhInc>20kHCosts30pct | CH143: OwnerOHUHhInc20kTo34999 | CI143: MOE OwnerOHUHhInc20kTo34999 | CJ143: OwnerOHUHhInc20kTo34999HCosts<20pct | CK143: MOE OwnerOHUHhInc20kTo34999HCosts<20pct | CL143: OwnerOHUHhInc20kTo34999HCosts20to29pct | CM143: MOE OwnerOHUHhInc20kTo34999HCosts20to29pct | CN143: OwnerOHUHhInc20kTo34999HCosts30pct | CO143: MOE OwnerOHUHhInc20kTo34999HCosts30pct | CP143: OwnerOHUHhInc35kTo49999 | CQ143: MOE OwnerOHUHhInc35kTo49999 | CR143: OwnerOHUHhInc35kTo49999HCosts<20pct | CS143: MOE OwnerOHUHhInc35kTo49999HCosts<20pct | CT143: OwnerOHUHhInc35kTo49999HCosts20to29pct | CU143: MOE OwnerOHUHhInc35kTo49999HCosts20to29pct | CV143: OwnerOHUHhInc35kTo49999HCosts30pct | CW143: MOE OwnerOHUHhInc35kTo49999HCosts30pct | CX143: OwnerOHUHhInc50kTo74999 | CY143: MOE OwnerOHUHhInc50kTo74999 | CZ143: OwnerOHUHhInc50kTo74999HCosts<20pct | DA143: MOE OwnerOHUHhInc50kTo74999HCosts<20pct | DB143: OwnerOHUHhInc50kTo74999HCosts20to29pct | DC143: MOE OwnerOHUHhInc50kTo74999HCosts20to29pct | DD143: OwnerOHUHhInc50kTo74999HCosts30pct | DE143: MOE OwnerOHUHhInc50kTo74999HCosts30pct | DF143: OwnerOHUHhInc>75000 | DG143: MOE OwnerOHUHhInc>75000 | DH143: OwnerOHUHhInc>75000HCosts<20pct | DI143: MOE OwnerOHUHhInc>75000HCosts<20pct | DJ143: OwnerOHUHhInc>75000HCosts20to29pct | DK143: MOE OwnerOHUHhInc>75000HCosts20to29pct | DL143: OwnerOHUHhInc>75000HCosts30pct | DM143: MOE OwnerOHUHhInc>75000HCosts30pct | DN143: ZeroOrNegativeIncome | DO143: MOE ZeroOrNegativeIncome
A144: =VLOOKUP(DropDownList!$A$19,CntyQuery!$A$53:$DN$64,A$1) -> Alton | B144: 1355 | C144: 102 | D144: 6 | E144: 10 | F144: 0 | G144: 11 | H144: 0 | I144: 11 | J144: 0 | K144: 11 | L144: 7 | M144: 10 | N144: 0 | O144: 11 | P144: 0 | Q144: 11 | R144: 0 | S144: 11 | T144: 5 | U144: 9 | V144: 13 | W144: 19 | X144: 0 | Y144: 11 | Z144: 27 | AA144: 41 | AB144: 33 | AC144: 48 | AD144: 80 | AE144: 52 | AF144: 68 | AG144: 47 | AH144: 93 | AI144: 47 | AJ144: 93 | AK144: 48 | AL144: 304 | AM144: 90 | AN144: 287 | AO144: 99 | AP144: 216 | AQ144: 102 | AR144: 48 | AS144: 35 | AT144: 35 | AU144: 25 | AV144: 8 | AW144: 12 | AX144: 32 | AY144: 43 | BD144: 241500 | BE144: 16668 | BF144: 1355 | BG144: 102 | BH144: 479 | BI144: 118.8907061 | BJ144: 271 | BK144: 100.5136807 | BL144: 750 | BM144: 155.6855806 | BN144: 573 | BO144: 147.0884088 | BP144: 96 | BQ144: 46.32493929 | BR144: 846 | BS144: 162.431524 | BT144: 477 | BU144: 139.6030086 | BV144: 253 | BW144: 107.54069 | BX144: 32 | BY144: 35.73513677 | BZ144: 115 | CA144: 76 | CB144: 0 | CC144: 11 | CD144: 0 | CE144: 11 | CF144: 115 | CG144: 76 | CH144: 209 | CI144: 97 | CJ144: 7 | CK144: 10 | CL144: 70 | CM144: 57 | CN144: 132 | CO144: 78 | CP144: 104 | CQ144: 68 | CR144: 16 | CS144: 17 | CT144: 24 | CU144: 38 | CV144: 64 | CW144: 51 | CX144: 325 | CY144: 86 | CZ144: 110 | DA144: 47 | DB144: 72 | DC144: 53 | DD144: 143 | DE144: 60 | DF144: 570 | DG144: 91 | DH144: 346 | DI144: 92 | DJ144: 105 | DK144: 51 | DL144: 119 | DM144: 56 | DN144: 32 | DO144: 34
A146: Occupied Rental Housing Value
A147: NAME | B147: RntrOccHU | C147: MOE RntrOccHU | D147: RntrOccHUwRent | E147: MOE RntrOccHUwRent | F147: ROHUGRent<100 | G147: MOE ROHUGRent<100 | H147: ROHUGRent100to149 | I147: MOE ROHUGRent100to149 | J147: ROHUGRent150to199 | K147: MOE ROHUGRent150to199 | L147: ROHUGRent200to249 | M147: MOE ROHUGRent200to249 | N147: ROHUGRent250to299 | O147: MOE ROHUGRent250to299 | P147: ROHUGRent300to349 | Q147: MOE ROHUGRent300to349 | R147: ROHUGRent350to399 | S147: MOE ROHUGRent350to399 | T147: ROHUGRent400to449 | U147: MOE ROHUGRent400to449 | V147: ROHUGRent450to499 | W147: MOE ROHUGRent450to499 | X147: ROHUGRent500to549 | Y147: MOE ROHUGRent500to549 | Z147: ROHUGRent550to599 | AA147: MOE ROHUGRent550to599 | AB147: ROHUGRent600to649 | AC147: MOE ROHUGRent600to649 | AD147: ROHUGRent650to699 | AE147: MOE ROHUGRent650to699 | AF147: ROHUGRent700to749 | AG147: MOE ROHUGRent700to749 | AH147: ROHUGRent750to799 | AI147: MOE ROHUGRent750to799 | AJ147: ROHUGRent800to899 | AK147: MOE ROHUGRent800to899 | AL147: ROHUGRent900to999 | AM147: MOE ROHUGRent900to999 | AN147: ROHUGRent1000to1249 | AO147: MOE ROHUGRent1000to1249 | AP147: ROHUGRent1250to1499 | AQ147: MOE ROHUGRent1250to1499 | AR147: ROHUGRent1500to1999 | AS147: MOE ROHUGRent1500to1999 | AT147: ROHUGRent2000> | AU147: MOE ROHUGRent2000> | AV147: ROHUNoGRent | AW147: MOE ROHUNoGRent | AX147: MedianGrossRnt | AY147: MOE MedianGrossRnt | AZ147: H73RenterOccHU | BA147: MOE H73RenterOccHU | BB147: H73ROHUHhInc<10k | BC147: MOE H73ROHUHhInc<10k | BD147: H73ROHUHhInc<10kRnt<20pct | BE147: MOE H73ROHUHhInc<10kRnt<20pct | BF147: H73ROHUHhInc<10kRnt20to25pct | BG147: MOE H73ROHUHhInc<10kRnt20to25pct | BH147: H73ROHUHhInc<10kRnt25to30pct | BI147: MOE H73ROHUHhInc<10kRnt25to30pct | BJ147: H73ROHUHhInc<10kRnt30to35pct | BK147: MOE H73ROHUHhInc<10kRnt30to35pct | BL147: H73ROHUHhInc<10kRnt35to39.9 | BM147: MOE H73ROHUHhInc<10kRnt35to39.9 | BN147: H73ROHUHhInc<10kRnt40to49.9 | BO147: MOE H73ROHUHhInc<10kRnt40to49.9 | BP147: H73ROHUHhInc<10kRnt>50pct | BQ147: MOE H73ROHUHhInc<10kRnt>50pct | BR147: H73ROHUHhInc<10kPctNotComput | BS147: MOE H73ROHUHhInc<10kPctNotComput | BT147: H73ROHUHhInc10to20k | BU147: MOE H73ROHUHhInc10to20k | BV147: H73ROHUHhInc10to20kRnt<20pct | BW147: MOE H73ROHUHhInc10to20kRnt<20pct | BX147: H73ROHUHhInc10to20kRnt20to25pct | BY147: MOE H73ROHUHhInc10to20kRnt20to25pct | BZ147: H73ROHUHhInc10to20kRnt25to30pct | CA147: MOE H73ROHUHhInc10to20kRnt25to30pct | CB147: H73ROHUHhInc10to20kRnt30to35pct | CC147: MOE H73ROHUHhInc10to20kRnt30to35pct | CD147: H73ROHUHhInc10to20kRnt35to39.9 | CE147: MOE H73ROHUHhInc10to20kRnt35to39.9 | CF147: H73ROHUHhInc10to20kRnt40to49.9 | CG147: MOE H73ROHUHhInc10to20kRnt40to49.9 | CH147: H73ROHUHhInc10to20kRnt>50pct | CI147: MOE H73ROHUHhInc10to20kRnt>50pct | CJ147: H73ROHUHhInc10to20kRntPctNC | CK147: MOE H73ROHUHhInc10to20kRntPctNC | CL147: H73ROHUHhInc20to34.9k | CM147: MOE H73ROHUHhInc20to34.9k | CN147: H73ROHUHhInc20to34.9kRnt<20pct | CO147: MOE H73ROHUHhInc20to34.9kRnt<20pct | CP147: H73ROHUHhInc20to34.9kRnt20to25pct | CQ147: MOE H73ROHUHhInc20to34.9kRnt20to25pct | CR147: H73ROHUHhInc20to34.9kRnt25to30pct | CS147: MOE H73ROHUHhInc20to34.9kRnt25to30pct | CT147: H73ROHUHhInc20to34.9kRnt30to35pct | CU147: MOE H73ROHUHhInc20to34.9kRnt30to35pct | CV147: H73ROHUHhInc20to34.9kRnt35to39.9 | CW147: MOE H73ROHUHhInc20to34.9kRnt35to39.9 | CX147: H73ROHUHhInc20to34.9kRnt40to49.9 | CY147: MOE H73ROHUHhInc20to34.9kRnt40to49.9 | CZ147: H73ROHUHhInc20to34.9kRnt>50pct | DA147: MOE H73ROHUHhInc20to34.9kRnt>50pct | DB147: H73ROHUHhInc20to34.9kRntPctNC | DC147: MOE H73ROHUHhInc20to34.9kRntPctNC | DD147: H73ROHUHhInc35to49.9k | DE147: MOE H73ROHUHhInc35to49.9k | DF147: H73ROHUHhInc35to49.9kRnt<20pct | DG147: MOE H73ROHUHhInc35to49.9kRnt<20pct | DH147: H73ROHUHhInc35to49.9kRnt20to25pct | DI147: MOE H73ROHUHhInc35to49.9kRnt20to25pct | DJ147: H73ROHUHhInc35to49.9kRnt25to30pct | DK147: MOE H73ROHUHhInc35to49.9kRnt25to30pct | DL147: H73ROHUHhInc35to49.9kRnt30to35pct | DM147: MOE H73ROHUHhInc35to49.9kRnt30to35pct | DN147: H73ROHUHhInc35to49.9kRnt35to39.9 | DO147: MOE H73ROHUHhInc35to49.9kRnt35to39.9 | DP147: H73ROHUHhInc35to49.9kRnt40to49.9 | DQ147: MOE H73ROHUHhInc35to49.9kRnt40to49.9 | DR147: H73ROHUHhInc35to49.9kRnt>50pct | DS147: MOE H73ROHUHhInc35to49.9kRnt>50pct | DT147: H73ROHUHhInc35to49.9kRntPctNC | DU147: MOE H73ROHUHhInc35to49.9kRntPctNC | DV147: H73ROHUHhInc50to74.9k | DW147: MOE H73ROHUHhInc50to74.9k | DX147: H73ROHUHhInc50to74.9kRnt<20pct | DY147: MOE H73ROHUHhInc50to74.9kRnt<20pct | DZ147: H73ROHUHhInc50to74.9kRnt20to25pct | EA147: MOE H73ROHUHhInc50to74.9kRnt20to25pct | EB147: H73ROHUHhInc50to74.9kRnt25to30pct | EC147: MOE H73ROHUHhInc50to74.9kRnt25to30pct | ED147: H73ROHUHhInc50to74.9kRnt30to35pct | EE147: MOE H73ROHUHhInc50to74.9kRnt30to35pct | EF147: H73ROHUHhInc50to74.9kRnt35to39.9 | EG147: MOE H73ROHUHhInc50to74.9kRnt35to39.9 | EH147: H73ROHUHhInc50to74.9kRnt40to49.9 | EI147: MOE H73ROHUHhInc50to74.9kRnt40to49.9 | EJ147: H73ROHUHhInc50to74.9kRnt>50pct | EK147: MOE H73ROHUHhInc50to74.9kRnt>50pct | EL147: H73ROHUHhInc50to74.9kRntPctNC | EM147: MOE H73ROHUHhInc50to74.9kRntPctNC | EN147: H73ROHUHhInc75to99.9k | EO147: MOE H73ROHUHhInc75to99.9k | EP147: H73ROHUHhInc75to99.9kRnt<20pct | EQ147: MOE H73ROHUHhInc75to99.9kRnt<20pct | ER147: H73ROHUHhInc75to99.9kRnt20to25pct | ES147: MOE H73ROHUHhInc75to99.9kRnt20to25pct | ET147: H73ROHUHhInc75to99.9kRnt25to30pct | EU147: MOE H73ROHUHhInc75to99.9kRnt25to30pct | EV147: H73ROHUHhInc75to99.9kRnt30to35pct | EW147: MOE H73ROHUHhInc75to99.9kRnt30to35pct | EX147: H73ROHUHhInc75to99.9kRnt35to39.9 | EY147: MOE H73ROHUHhInc75to99.9kRnt35to39.9 | EZ147: H73ROHUHhInc75to99.9kRnt40to49.9 | FA147: MOE H73ROHUHhInc75to99.9kRnt40to49.9 | FB147: H73ROHUHhInc75to99.9kRnt>50pct | FC147: MOE H73ROHUHhInc75to99.9kRnt>50pct | FD147: H73ROHUHhInc75to99.9kRntPctNC | FE147: MOE H73ROHUHhInc75to99.9kRntPctNC | FF147: H73ROHUHhInc>100k | FG147: MOE H73ROHUHhInc>100k | FH147: H73ROHUHhInc>100kRnt<20pct | FI147: MOE H73ROHUHhInc>100kRnt<20pct | FJ147: H73ROHUHhInc>100kRnt20to25pct | FK147: MOE H73ROHUHhInc>100kRnt20to25pct | FL147: H73ROHUHhInc>100kRnt25to30pct | FM147: MOE H73ROHUHhInc>100kRnt25to30pct | FN147: H73ROHUHhInc>100kRnt30to35pct | FO147: MOE H73ROHUHhInc>100kRnt30to35pct | FP147: H73ROHUHhInc>100kRnt35to39.9 | FQ147: MOE H73ROHUHhInc>100kRnt35to39.9 | FR147: H73ROHUHhInc>100kRnt40to49.9 | FS147: MOE H73ROHUHhInc>100kRnt40to49.9 | FT147: H73ROHUHhInc>100kRnt>50pct | FU147: MOE H73ROHUHhInc>100kRnt>50pct | FV147: H73ROHUHhInc>100kRntPctNC | FW147: MOE H73ROHUHhInc>100kRntPctNC
A148: =VLOOKUP(DropDownList!$A$19,CntyQuery!$A$53:$DN$64,A$1) -> Alton | B148: 3001 | C148: 266 | D148: 2901 | E148: 278 | F148: 13 | G148: 22 | H148: 28 | I148: 45 | J148: 28 | K148: 25 | L148: 95 | M148: 66 | N148: 66 | O148: 61 | P148: 12 | Q148: 18 | R148: 89 | S148: 59 | T148: 31 | U148: 33 | V148: 74 | W148: 72 | X148: 43 | Y148: 30 | Z148: 0 | AA148: 17 | AB148: 95 | AC148: 62 | AD148: 151 | AE148: 75 | AF148: 140 | AG148: 94 | AH148: 202 | AI148: 104 | AJ148: 529 | AK148: 147 | AL148: 301 | AM148: 146 | AN148: 579 | AO148: 193 | AP148: 291 | AQ148: 113 | AR148: 103 | AS148: 54 | AT148: 31 | AU148: 30 | AV148: 100 | AW148: 67 | AX148: 872 | AY148: 29 | AZ148: 3001 | BA148: 266 | BB148: 345 | BC148: 130 | BD148: 13 | BE148: 22 | BF148: 0 | BG148: 17 | BH148: 31 | BI148: 23 | BJ148: 0 | BK148: 17 | BL148: 0 | BM148: 17 | BN148: 0 | BO148: 17 | BP148: 170 | BQ148: 84 | BR148: 131 | BS148: 96 | BT148: 699 | BU148: 191 | BV148: 57 | BW148: 54 | BX148: 33 | BY148: 31 | BZ148: 28 | CA148: 28 | CB148: 21 | CC148: 24 | CD148: 28 | CE148: 32 | CF148: 58 | CG148: 49 | CH148: 448 | CI148: 166 | CJ148: 26 | CK148: 26 | CL148: 621 | CM148: 162 | CN148: 70 | CO148: 56 | CP148: 24 | CQ148: 26 | CR148: 65 | CS148: 44 | CT148: 61 | CU148: 56 | CV148: 99 | CW148: 80 | CX148: 89 | CY148: 50 | CZ148: 195 | DA148: 106 | DB148: 18 | DC148: 28 | DD148: 533 | DE148: 149 | DF148: 81 | DG148: 73 | DH148: 197 | DI148: 111 | DJ148: 126 | DK148: 88 | DL148: 44 | DM148: 25 | DN148: 52 | DO148: 51 | DP148: 12 | DQ148: 15 | DR148: 21 | DS148: 27 | DT148: 0 | DU148: 17 | DV148: 508 | DW148: 178 | DX148: 306 | DY148: 157 | DZ148: 60 | EA148: 44 | EB148: 134 | EC148: 73 | ED148: 0 | EE148: 17 | EF148: 0 | EG148: 17 | EH148: 0 | EI148: 17 | EJ148: 0 | EK148: 17 | EL148: 8 | EM148: 12 | EN148: 127 | EO148: 80 | EP148: 92 | EQ148: 70 | ER148: 24 | ES148: 31 | ET148: 0 | EU148: 17 | EV148: 0 | EW148: 17 | EX148: 0 | EY148: 17 | EZ148: 0 | FA148: 17 | FB148: 0 | FC148: 17 | FD148: 11 | FE148: 17 | FF148: 168 | FG148: 97 | FH148: 152 | FI148: 94 | FJ148: 0 | FK148: 17 | FL148: 16 | FM148: 17 | FN148: 0 | FO148: 17 | FP148: 0 | FQ148: 17 | FR148: 0 | FS148: 17 | FT148: 0 | FU148: 17 | FV148: 0 | FW148: 17
A154: Occupied Rental Housing Cost Burdern All Incomes
A155: NAME | B155: RntrOccHU | C155: MOE RntrOccHU | D155: RntrOccHUwRent | E155: MOE RntrOccHUwRent | F155: ROHUGRent<100 | G155: MOE ROHUGRent<100 | H155: ROHUGRent100to149 | I155: MOE ROHUGRent100to149 | J155: ROHUGRent150to199 | K155: MOE ROHUGRent150to199 | L155: ROHUGRent200to249 | M155: MOE ROHUGRent200to249 | N155: ROHUGRent250to299 | O155: MOE ROHUGRent250to299 | P155: ROHUGRent300to349 | Q155: MOE ROHUGRent300to349 | R155: ROHUGRent350to399 | S155: MOE ROHUGRent350to399 | T155: ROHUGRent400to449 | U155: MOE ROHUGRent400to449 | V155: ROHUGRent450to499 | W155: MOE ROHUGRent450to499 | X155: ROHUGRent500to549 | Y155: MOE ROHUGRent500to549 | Z155: ROHUGRent550to599 | AA155: MOE ROHUGRent550to599 | AB155: ROHUGRent600to649 | AC155: MOE ROHUGRent600to649 | AD155: ROHUGRent650to699 | AE155: MOE ROHUGRent650to699 | AF155: ROHUGRent700to749 | AG155: MOE ROHUGRent700to749 | AH155: ROHUGRent750to799 | AI155: MOE ROHUGRent750to799 | AJ155: ROHUGRent800to899 | AK155: MOE ROHUGRent800to899 | AL155: ROHUGRent900to999 | AM155: MOE ROHUGRent900to999 | AN155: ROHUGRent1000to1249 | AO155: MOE ROHUGRent1000to1249 | AP155: ROHUGRent1250to1499 | AQ155: MOE ROHUGRent1250to1499 | AR155: ROHUGRent1500to1999 | AS155: MOE ROHUGRent1500to1999 | AT155: ROHUGRent2000> | AU155: MOE ROHUGRent2000> | AV155: ROHUNoGRent | AW155: MOE ROHUNoGRent | AX155: MedianGrossRnt | AY155: MOE MedianGrossRnt | AZ155: H73RenterOccHU | BA155: MOE H73RenterOccHU | BB155: H73ROHUHhInc<10k | BC155: MOE H73ROHUHhInc<10k | BD155: H73ROHUHhInc<10kRnt<20pct | BE155: MOE H73ROHUHhInc<10kRnt<20pct | BF155: H73ROHUHhInc<10kRnt20to25pct | BG155: MOE H73ROHUHhInc<10kRnt20to25pct | BH155: H73ROHUHhInc<10kRnt25to30pct | BI155: MOE H73ROHUHhInc<10kRnt25to30pct | BJ155: H73ROHUHhInc<10kRnt30to35pct | BK155: MOE H73ROHUHhInc<10kRnt30to35pct | BL155: H73ROHUHhInc<10kRnt35to39.9 | BM155: MOE H73ROHUHhInc<10kRnt35to39.9 | BN155: H73ROHUHhInc<10kRnt40to49.9 | BO155: MOE H73ROHUHhInc<10kRnt40to49.9 | BP155: H73ROHUHhInc<10kRnt>50pct | BQ155: MOE H73ROHUHhInc<10kRnt>50pct | BR155: H73ROHUHhInc<10kPctNotComput | BS155: MOE H73ROHUHhInc<10kPctNotComput | BT155: H73ROHUHhInc10to20k | BU155: MOE H73ROHUHhInc10to20k | BV155: H73ROHUHhInc10to20kRnt<20pct | BW155: MOE H73ROHUHhInc10to20kRnt<20pct | BX155: H73ROHUHhInc10to20kRnt20to25pct | BY155: MOE H73ROHUHhInc10to20kRnt20to25pct | BZ155: H73ROHUHhInc10to20kRnt25to30pct | CA155: MOE H73ROHUHhInc10to20kRnt25to30pct | CB155: H73ROHUHhInc10to20kRnt30to35pct | CC155: MOE H73ROHUHhInc10to20kRnt30to35pct | CD155: H73ROHUHhInc10to20kRnt35to39.9 | CE155: MOE H73ROHUHhInc10to20kRnt35to39.9 | CF155: H73ROHUHhInc10to20kRnt40to49.9 | CG155: MOE H73ROHUHhInc10to20kRnt40to49.9 | CH155: H73ROHUHhInc10to20kRnt>50pct | CI155: MOE H73ROHUHhInc10to20kRnt>50pct | CJ155: H73ROHUHhInc10to20kRntPctNC | CK155: MOE H73ROHUHhInc10to20kRntPctNC | CL155: H73ROHUHhInc20to34.9k | CM155: MOE H73ROHUHhInc20to34.9k | CN155: H73ROHUHhInc20to34.9kRnt<20pct | CO155: MOE H73ROHUHhInc20to34.9kRnt<20pct | CP155: H73ROHUHhInc20to34.9kRnt20to25pct | CQ155: MOE H73ROHUHhInc20to34.9kRnt20to25pct | CR155: H73ROHUHhInc20to34.9kRnt25to30pct | CS155: MOE H73ROHUHhInc20to34.9kRnt25to30pct | CT155: H73ROHUHhInc20to34.9kRnt30to35pct | CU155: MOE H73ROHUHhInc20to34.9kRnt30to35pct | CV155: H73ROHUHhInc20to34.9kRnt35to39.9 | CW155: MOE H73ROHUHhInc20to34.9kRnt35to39.9 | CX155: H73ROHUHhInc20to34.9kRnt40to49.9 | CY155: MOE H73ROHUHhInc20to34.9kRnt40to49.9 | CZ155: H73ROHUHhInc20to34.9kRnt>50pct | DA155: MOE H73ROHUHhInc20to34.9kRnt>50pct | DB155: H73ROHUHhInc20to34.9kRntPctNC | DC155: MOE H73ROHUHhInc20to34.9kRntPctNC | DD155: H73ROHUHhInc35to49.9k | DE155: MOE H73ROHUHhInc35to49.9k | DF155: H73ROHUHhInc35to49.9kRnt<20pct | DG155: MOE H73ROHUHhInc35to49.9kRnt<20pct | DH155: H73ROHUHhInc35to49.9kRnt20to25pct | DI155: MOE H73ROHUHhInc35to49.9kRnt20to25pct | DJ155: H73ROHUHhInc35to49.9kRnt25to30pct | DK155: MOE H73ROHUHhInc35to49.9kRnt25to30pct | DL155: H73ROHUHhInc35to49.9kRnt30to35pct | DM155: MOE H73ROHUHhInc35to49.9kRnt30to35pct | DN155: H73ROHUHhInc35to49.9kRnt35to39.9 | DO155: MOE H73ROHUHhInc35to49.9kRnt35to39.9 | DP155: H73ROHUHhInc35to49.9kRnt40to49.9 | DQ155: MOE H73ROHUHhInc35to49.9kRnt40to49.9 | DR155: H73ROHUHhInc35to49.9kRnt>50pct | DS155: MOE H73ROHUHhInc35to49.9kRnt>50pct | DT155: H73ROHUHhInc35to49.9kRntPctNC | DU155: MOE H73ROHUHhInc35to49.9kRntPctNC | DV155: H73ROHUHhInc50to74.9k | DW155: MOE H73ROHUHhInc50to74.9k | DX155: H73ROHUHhInc50to74.9kRnt<20pct | DY155: MOE H73ROHUHhInc50to74.9kRnt<20pct | DZ155: H73ROHUHhInc50to74.9kRnt20to25pct | EA155: MOE H73ROHUHhInc50to74.9kRnt20to25pct | EB155: H73ROHUHhInc50to74.9kRnt25to30pct | EC155: MOE H73ROHUHhInc50to74.9kRnt25to30pct | ED155: H73ROHUHhInc50to74.9kRnt30to35pct | EE155: MOE H73ROHUHhInc50to74.9kRnt30to35pct | EF155: H73ROHUHhInc50to74.9kRnt35to39.9 | EG155: MOE H73ROHUHhInc50to74.9kRnt35to39.9 | EH155: H73ROHUHhInc50to74.9kRnt40to49.9 | EI155: MOE H73ROHUHhInc50to74.9kRnt40to49.9 | EJ155: H73ROHUHhInc50to74.9kRnt>50pct | EK155: MOE H73ROHUHhInc50to74.9kRnt>50pct | EL155: H73ROHUHhInc50to74.9kRntPctNC | EM155: MOE H73ROHUHhInc50to74.9kRntPctNC | EN155: H73ROHUHhInc75to99.9k | EO155: MOE H73ROHUHhInc75to99.9k | EP155: H73ROHUHhInc75to99.9kRnt<20pct | EQ155: MOE H73ROHUHhInc75to99.9kRnt<20pct | ER155: H73ROHUHhInc75to99.9kRnt20to25pct | ES155: MOE H73ROHUHhInc75to99.9kRnt20to25pct | ET155: H73ROHUHhInc75to99.9kRnt25to30pct | EU155: MOE H73ROHUHhInc75to99.9kRnt25to30pct | EV155: H73ROHUHhInc75to99.9kRnt30to35pct | EW155: MOE H73ROHUHhInc75to99.9kRnt30to35pct | EX155: H73ROHUHhInc75to99.9kRnt35to39.9 | EY155: MOE H73ROHUHhInc75to99.9kRnt35to39.9 | EZ155: H73ROHUHhInc75to99.9kRnt40to49.9 | FA155: MOE H73ROHUHhInc75to99.9kRnt40to49.9 | FB155: H73ROHUHhInc75to99.9kRnt>50pct | FC155: MOE H73ROHUHhInc75to99.9kRnt>50pct | FD155: H73ROHUHhInc75to99.9kRntPctNC | FE155: MOE H73ROHUHhInc75to99.9kRntPctNC | FF155: H73ROHUHhInc>100k | FG155: MOE H73ROHUHhInc>100k | FH155: H73ROHUHhInc>100kRnt<20pct | FI155: MOE H73ROHUHhInc>100kRnt<20pct | FJ155: H73ROHUHhInc>100kRnt20to25pct | FK155: MOE H73ROHUHhInc>100kRnt20to25pct | FL155: H73ROHUHhInc>100kRnt25to30pct | FM155: MOE H73ROHUHhInc>100kRnt25to30pct | FN155: H73ROHUHhInc>100kRnt30to35pct | FO155: MOE H73ROHUHhInc>100kRnt30to35pct | FP155: H73ROHUHhInc>100kRnt35to39.9 | FQ155: MOE H73ROHUHhInc>100kRnt35to39.9 | FR155: H73ROHUHhInc>100kRnt40to49.9 | FS155: MOE H73ROHUHhInc>100kRnt40to49.9 | FT155: H73ROHUHhInc>100kRnt>50pct | FU155: MOE H73ROHUHhInc>100kRnt>50pct | FV155: H73ROHUHhInc>100kRntPctNC | FW155: MOE H73ROHUHhInc>100kRntPctNC
A156: =VLOOKUP(DropDownList!$A$19,CntyQuery!$A$53:$DN$64,A$1) -> Alton | B156: 3001 | C156: 266 | D156: 771 | E156: 233.3109513 | F156: 338 | G156: 120 | H156: 400 | I156: 143 | J156: 1509 | K156: 298.8026104 | L156: 1298 | M156: 251.00996 | N156: 126 | O156: 63 | P156: 1635 | Q156: 305.3719044 | R156: 1172 | S156: 242.9753074 | T156: 834 | U156: 212 | V156: 194 | W156: 106
A158: Income By Household Type and Tenure
A159: NAME | B159: TotalFamilyHouseholds | C159: ="MOE "&B159 -> MOE TotalFamilyHouseholds | D159: FamInc<10K | E159: ="MOE "&D159 -> MOE FamInc<10K | F159: FamInc10to15K | G159: ="MOE "&F159 -> MOE FamInc10to15K | H159: FamInc15to20K | I159: ="MOE "&H159 -> MOE FamInc15to20K | J159: FamInc20to25K | K159: ="MOE "&J159 -> MOE FamInc20to25K | L159: FamInc25to30K | M159: ="MOE "&L159 -> MOE FamInc25to30K | N159: FamInc30to35K | O159: ="MOE "&N159 -> MOE FamInc30to35K | P159: FamInc35to40K | Q159: ="MOE "&P159 -> MOE FamInc35to40K | R159: FamInc40to45K | S159: ="MOE "&R159 -> MOE FamInc40to45K | T159: FamInc45to50K | U159: ="MOE "&T159 -> MOE FamInc45to50K | V159: FamInc50to60K | W159: ="MOE "&V159 -> MOE FamInc50to60K | X159: FamInc60to75K | Y159: ="MOE "&X159 -> MOE FamInc60to75K | Z159: FamInc75to100K | AA159: ="MOE "&Z159 -> MOE FamInc75to100K | AB159: FamInc100to125K | AC159: ="MOE "&AB159 -> MOE FamInc100to125K | AD159: FamInc125to150K | AE159: ="MOE "&AD159 -> MOE FamInc125to150K | AF159: FamInc150to200K | AG159: ="MOE "&AF159 -> MOE FamInc150to200K | AH159: FamInc>200K | AI159: ="MOE "&AH159 -> MOE FamInc>200K | AJ159: MedFamInc | AK159: ="MOE "&AJ159 -> MOE MedFamInc | AL159: TotalNonNonFamilyHouseholds | AM159: ="MOE "&AL159 -> MOE TotalNonNonFamilyHouseholds | AN159: NonFamInc<10K | AO159: ="MOE "&AN159 -> MOE NonFamInc<10K | AP159: NonFamInc10to15K | AQ159: ="MOE "&AP159 -> MOE NonFamInc10to15K | AR159: NonFamInc15to20K | AS159: ="MOE "&AR159 -> MOE NonFamInc15to20K | AT159: NonFamInc20to25K | AU159: ="MOE "&AT159 -> MOE NonFamInc20to25K | AV159: NonFamInc25to30K | AW159: ="MOE "&AV159 -> MOE NonFamInc25to30K | AX159: NonFamInc30to35K | AY159: ="MOE "&AX159 -> MOE NonFamInc30to35K | AZ159: NonFamInc35to40K | BA159: ="MOE "&AZ159 -> MOE NonFamInc35to40K | BB159: NonFamInc40to45K | BC159: ="MOE "&BB159 -> MOE NonFamInc40to45K | BD159: NonFamInc45to50K | BE159: ="MOE "&BD159 -> MOE NonFamInc45to50K | BF159: NonFamInc50to60K | BG159: ="MOE "&BF159 -> MOE NonFamInc50to60K | BH159: NonFamInc60to75K | BI159: ="MOE "&BH159 -> MOE NonFamInc60to75K | BJ159: NonFamInc75to100K | BK159: ="MOE "&BJ159 -> MOE NonFamInc75to100K | BL159: NonFamInc100to125K | BM159: ="MOE "&BL159 -> MOE NonFamInc100to125K | BN159: NonFamInc125to150K | BO159: ="MOE "&BN159 -> MOE NonFamInc125to150K | BP159: NonFamInc150to200K | BQ159: ="MOE "&BP159 -> MOE NonFamInc150to200K | BR159: NonFamInc>200K | BS159: ="MOE "&BR159 -> MOE NonFamInc>200K | BT159: MedNonFamInc | BU159: ="MOE "&BT159 -> MOE MedNonFamInc
A160: =VLOOKUP(DropDownList!$A$19,CntyQuery!$A$53:$DN$64,A$1) -> Alton | B160: 1469 | C160: 124 | D160: 56 | E160: 75 | F160: 0 | G160: 15 | H160: 18 | I160: 29 | J160: 65 | K160: 65 | L160: 12 | M160: 19 | N160: 123 | O160: 101 | P160: 36 | Q160: 29 | R160: 85 | S160: 80 | T160: 39 | U160: 30 | V160: 135 | W160: 106 | X160: 176 | Y160: 95 | Z160: 143 | AA160: 70 | AB160: 267 | AC160: 115 | AD160: 164 | AE160: 89 | AF160: 127 | AG160: 96 | AH160: 23 | AI160: 27 | AJ160: 74390 | AK160: 28077 | AL160: 724 | AM160: 218 | AN160: 79 | AO160: 80 | AP160: 100 | AQ160: 94 | AR160: 14 | AS160: 22 | AT160: 134 | AU160: 113 | AV160: 15 | AW160: 24 | AX160: 59 | AY160: 70 | AZ160: 32 | BA160: 36 | BB160: 31 | BC160: 35 | BD160: 15 | BE160: 24 | BF160: 45 | BG160: 40 | BH160: 62 | BI160: 50 | BJ160: 113 | BK160: 101 | BL160: 0 | BM160: 15 | BN160: 0 | BO160: 15 | BP160: 25 | BQ160: 29 | BR160: 0 | BS160: 15 | BV160: 31163 | BW160: 14510

Sheet CntyDataLinkPrior10YearEstimate (hidden)
A1: 1 | B1: =A1+1 -> 2 | C1: 3 | D1: 4 | E1: 5 | F1: 6 | G1: 7 | H1: 8 | I1: 9 | J1: 10 | K1: 11 | L1: 12 | M1: 13 | N1: 14 | O1: 15 | P1: 16 | Q1: 17 | R1: 18 | S1: 19 | T1: 20 | U1: 21 | V1: 22 | W1: 23 | X1: 24 | Y1: 25 | Z1: 26 | AA1: 27 | AB1: 28 | AC1: 29 | AD1: 30 | AE1: 31 | AF1: 32 | AG1: 33 | AH1: 34 | AI1: 35 | AJ1: 36 | AK1: 37 | AL1: 38 | AM1: 39 | AN1: 40 | AO1: 41 | AP1: 42 | AQ1: 43 | AR1: 44 | AS1: 45 | AT1: 46 | AU1: 47 | AV1: 48 | AW1: 49 | AX1: 50 | AY1: 51 | AZ1: 52 | BA1: 53 | BB1: 54 | BC1: 55 | BD1: 56 | BE1: 57 | BF1: 58 | BG1: 59 | BH1: 60 | BI1: 61 | BJ1: 62 | BK1: 63 | BL1: 64 | BM1: 65 | BN1: =BM1+1 -> 66 | BO1: 67 | BP1: 68 | BQ1: 69 | BR1: 70 | BS1: 71 | BT1: 72 | BU1: 73 | BV1: 74 | BW1: 75 | BX1: 76 | BY1: 77 | BZ1: 78 | CA1: 79 | CB1: 80 | CC1: 81 | CD1: 82 | CE1: 83 | CF1: 84 | CG1: 85 | CH1: 86 | CI1: 87 | CJ1: 88 | CK1: 89 | CL1: 90 | CM1: 91 | CN1: 92 | CO1: 93 | CP1: 94 | CQ1: 95 | CR1: 96 | CS1: 97 | CT1: 98 | CU1: 99 | CV1: 100 | CW1: 101 | CX1: 102 | CY1: 103 | CZ1: 104 | DA1: 105 | DB1: 106 | DC1: 107 | DD1: 108 | DE1: 109 | DF1: 110 | DG1: 111 | DH1: 112 | DI1: 113 | DJ1: 114 | DK1: 115 | DL1: 116 | DM1: 117 | DN1: 118 | DO1: 119 | DP1: 120 | DQ1: 121 | DR1: 122 | DS1: 123 | DT1: 124 | DU1: 125 | DV1: 126 | DW1: 127 | DX1: 128 | DY1: 129 | DZ1: =DY1+1 -> 130 | EA1: 131 | EB1: 132 | EC1: 133 | ED1: 134 | EE1: 135 | EF1: 136 | EG1: 137 | EH1: 138 | EI1: 139 | EJ1: 140 | EK1: 141 | EL1: 142 | EM1: 143 | EN1: 144 | EO1: 145 | EP1: 146 | EQ1: 147 | ER1: 148 | ES1: 149 | ET1: 150 | EU1: 151 | EV1: 152 | EW1: 153 | EX1: 154 | EY1: 155 | EZ1: 156 | FA1: 157 | FB1: 158 | FC1: 159 | FD1: 160 | FE1: 161 | FF1: 162 | FG1: 163 | FH1: 164 | FI1: 165 | FJ1: 166 | FK1: 167 | FL1: 168 | FM1: 169 | FN1: 170 | FO1: 171 | FP1: 172 | FQ1: 173 | FR1: 174 | FS1: 175 | FT1: 176 | FU1: 177 | FV1: 178 | FW1: 179 | FX1: 180 | FY1: 181 | FZ1: 182 | GA1: 183
A105: ACS | B105: 2 | C105: =B105+1 -> 3 | D105: =C105+1 -> 4 | E105: 5 | F105: 6 | G105: 7 | H105: 8 | I105: 9 | J105: 10 | K105: 11 | L105: =K105+1 -> 12 | M105: 13 | N105: 14 | O105: 15 | P105: =O105+1 -> 16 | Q105: 17 | R105: 18 | S105: 19 | T105: 20 | U105: 21 | V105: 22 | W105: 23 | X105: 24 | Y105: 25 | Z105: 26 | AA105: 27 | AB105: 28 | AC105: 29 | AD105: 30 | AE105: 31 | AF105: 32 | AG105: 33 | AH105: 34 | AI105: 35 | AJ105: 36 | AK105: 37 | AL105: 38 | AM105: 39 | AN105: 40 | AO105: 41 | AP105: 42 | AQ105: 43 | AR105: 44 | AS105: 45 | AT105: 46 | AU105: 47 | AV105: 48 | AW105: 49 | AX105: 50 | AY105: 51 | AZ105: 52 | BA105: 53 | BB105: 54 | BC105: 55 | BD105: 56 | BE105: 57 | BF105: 58 | BG105: 59 | BH105: 60 | BI105: 61 | BJ105: 62 | BK105: 63 | BL105: 64 | BM105: 65 | BN105: 66 | BO105: 67 | BP105: =BO105+1 -> 68 | BQ105: 69 | BR105: 70 | BS105: 71 | BT105: 72 | BU105: 73 | BV105: 74 | BW105: 75 | BX105: 76 | BY105: 77 | BZ105: 78 | CA105: 79 | CB105: 80 | CC105: 81 | CD105: 82 | CE105: 83 | CF105: 84 | CG105: 85 | CH105: 86 | CI105: 87 | CJ105: 88 | CK105: 89 | CL105: 90 | CM105: 91 | CN105: 92 | CO105: 93 | CP105: 94 | CQ105: 95 | CR105: 96 | CS105: 97 | CT105: 98 | CU105: 99 | CV105: 100 | CW105: 101 | CX105: 102 | CY105: 103 | CZ105: 104 | DA105: 105 | DB105: 106 | DC105: 107 | DD105: 108 | DE105: 109 | DF105: 110 | DG105: 111 | DH105: 112 | DI105: 113 | DJ105: 114 | DK105: 115 | DL105: 116 | DM105: 117 | DN105: 118 | DO105: 119 | DP105: 120 | DQ105: 121 | DR105: 122 | DS105: 123 | DT105: 124 | DU105: 125
A106: Househould Data (Housing Unit Type)
A107: NAME | B107: TotalHU | C107: ="MOE "&B107 -> MOE TotalHU | D107: TotalOccHU | E107: ="MOE "&D107 -> MOE TotalOccHU | F107: TotalOwnerOccUn | G107: ="MOE "&F107 -> MOE TotalOwnerOccUn | H107: TotalRenterOccn | I107: ="MOE "&H107 -> MOE TotalRenterOccn | J107: TotalVacantUntis | K107: ="MOE "&J107 -> MOE TotalVacantUntis | L107: VacantUnitsForRent | M107: ="MOE "&L107 -> MOE VacantUnitsForRent | N107: VacantUnitRentedNotOcc | O107: ="MOE "&N107 -> MOE VacantUnitRentedNotOcc | P107: VacantUnitForSale | Q107: ="MOE "&P107 -> MOE VacantUnitForSale | R107: VacantUnitSoldNotOcc | S107: ="MOE "&R107 -> MOE VacantUnitSoldNotOcc | T107: VacantUnitSeasonalRec | U107: ="MOE "&T107 -> MOE VacantUnitSeasonalRec | V107: TotalPopInHousingUnits | W107: ="MOE "&V107 -> MOE TotalPopInHousingUnits | X107: OwnerOccPopHousingUnits | Y107: ="MOE "&X107 -> MOE OwnerOccPopHousingUnits | Z107: RenterOccPopHousingUnits | AA107: ="MOE "&Z107 -> MOE RenterOccPopHousingUnits | AB107: TotalUntis | AC107: ="MOE "&AB107 -> MOE TotalUntis | AD107: TotalOwnerOccUnits | AE107: ="MOE "&AD107 -> MOE TotalOwnerOccUnits | AF107: SigFamOwnerOcc | AG107: ="MOE "&AF107 -> MOE SigFamOwnerOcc | AH107: MultiFamOwnerOcc | AI107: ="MOE "&AH107 -> MOE MultiFamOwnerOcc | AJ107: MobileOwnerOcc | AK107: ="MOE "&AJ107 -> MOE MobileOwnerOcc | AL107: TotalRenterOccUnits | AM107: ="MOE "&AL107 -> MOE TotalRenterOccUnits | AN107: SigFamRenterOcc | AO107: ="MOE "&AN107 -> MOE SigFamRenterOcc | AP107: MultiFamRenterOcc | AQ107: ="MOE "&AP107 -> MOE MultiFamRenterOcc | AR107: MobileRenterOcc | AS107: ="MOE "&AR107 -> MOE MobileRenterOcc | AT107: TotalSigFamilyUnits | AU107: ="MOE "&AT107 -> MOE TotalSigFamilyUnits | AV107: TotalMultiFamilyUnits | AW107: ="MOE "&AV107 -> MOE TotalMultiFamilyUnits | AX107: TotalMobileUnits | AY107: ="MOE "&AX107 -> MOE TotalMobileUnits | AZ107: YrHouseBuilt2005Later | BA107: ="MOE "&AZ107 -> MOE YrHouseBuilt2005Later | BB107: YrHouseBuilt2000-2004 | BC107: ="MOE "&BB107 -> MOE YrHouseBuilt2000-2004 | BD107: YrHouseBuilt1990-1999 | BE107: ="MOE "&BD107 -> MOE YrHouseBuilt1990-1999 | BF107: YrHouseBuilt1980-1989 | BG107: ="MOE "&BF107 -> MOE YrHouseBuilt1980-1989 | BH107: YrHouseBuilt1970-1979 | BI107: ="MOE "&BH107 -> MOE YrHouseBuilt1970-1979 | BJ107: YrHouseBuilt1960-1969 | BK107: ="MOE "&BJ107 -> MOE YrHouseBuilt1960-1969 | BL107: YrHouseBuilt1950-1959 | BM107: ="MOE "&BL107 -> MOE YrHouseBuilt1950-1959 | BN107: YrHouseBuilt1940-1949 | BO107: ="MOE "&BN107 -> MOE YrHouseBuilt1940-1949 | BP107: YrHouseBuilt1939orEarlier | BQ107: ="MOE "&BP107 -> MOE YrHouseBuilt1939orEarlier | BR107: NoBedrooms | BS107: ="MOE "&BR107 -> MOE NoBedrooms | BT107: 1Bedroom | BU107: ="MOE "&BT107 -> MOE 1Bedroom | BV107: 2Bedroom | BW107: ="MOE "&BV107 -> MOE 2Bedroom | BX107: 3Bedroom | BY107: ="MOE "&BX107 -> MOE 3Bedroom | BZ107: 4+Bedroom | CA107: ="MOE "&BZ107 -> MOE 4+Bedroom
A108: =VLOOKUP(DropDownList!$A$19,CntyQuery!$A$53:$DN$64,A$1) -> Alton | B108: 3949 | C108: 217 | D108: 2042 | E108: 117 | F108: 1723 | G108: 143 | H108: 319 | I108: 115 | J108: 1907 | K108: 207 | L108: 16 | M108: 27 | N108: 0 | O108: 114 | P108: 0 | Q108: 114 | R108: 0 | S108: 114 | T108: 1861 | U108: 204 | V108: 5065 | W108: 16 | X108: 4521 | Y108: 241 | Z108: 544 | AA108: 240 | AB108: 2042 | AC108: 117 | AD108: 1723 | AE108: 143 | AF108: 1550 | AG108: 160 | AH108: 61 | AI108: 236.1736649 | AJ108: 112 | AK108: 130.2497601 | AL108: 319 | AM108: 115 | AN108: 130 | AO108: 78 | AP108: 150 | AQ108: 188.7670522 | AR108: 39 | AS108: 122.5601893 | AT108: 3473 | AU108: 211 | AV108: 237 | AW108: 199.6747355 | AX108: 239 | AY108: 147.122398 | AZ108: 45 | BA108: 42 | BB108: 444 | BC108: 151 | BD108: 596 | BE108: 163 | BF108: 833 | BG108: 194 | BH108: 379 | BI108: 143 | BJ108: 533 | BK108: 148 | BL108: 256 | BM108: 108 | BN108: 232 | BO108: 125 | BP108: 631 | BQ108: 148 | BR108: 75 | BS108: 61 | BT108: 166 | BU108: 90 | BV108: 1191 | BW108: 189 | BX108: 1842 | BY108: 248 | BZ108: 675 | CA108: 170.5520448
A110: Disability Data
A111: NAME | B111: TotalPop | C111: ="MOE "&B111 -> MOE TotalPop | D111: PopUnder 5 years: | E111: ="MOE "&D111 -> MOE PopUnder 5 years: | F111: =D$111&"-WithDisability" -> PopUnder 5 years:-WithDisability | G111: ="MOE "&F111 -> MOE PopUnder 5 years:-WithDisability | H111: =D111&"-NoDisability" -> PopUnder 5 years:-NoDisability | I111: ="MOE "&H111 -> MOE PopUnder 5 years:-NoDisability | J111: PopUnder 5 to 17years: | K111: ="MOE "&J111 -> MOE PopUnder 5 to 17years: | L111: =J$111&"-WithDisability" -> PopUnder 5 to 17years:-WithDisability | M111: ="MOE "&L111 -> MOE PopUnder 5 to 17years:-WithDisability | N111: =J111&"-NoDisability" -> PopUnder 5 to 17years:-NoDisability | O111: ="MOE "&N111 -> MOE PopUnder 5 to 17years:-NoDisability | P111: PopUnder 18 to 34 years: | Q111: ="MOE "&P111 -> MOE PopUnder 18 to 34 years: | R111: =P$111&"-WithDisability" -> PopUnder 18 to 34 years:-WithDisability | S111: ="MOE "&R111 -> MOE PopUnder 18 to 34 years:-WithDisability | T111: =P111&"-NoDisability" -> PopUnder 18 to 34 years:-NoDisability | U111: ="MOE "&T111 -> MOE PopUnder 18 to 34 years:-NoDisability | V111: Pop 35 years to 64: | W111: ="MOE "&V111 -> MOE Pop 35 years to 64: | X111: =$V$111&"-WithDisability" -> Pop 35 years to 64:-WithDisability | Y111: ="MOE "&X111 -> MOE Pop 35 years to 64:-WithDisability | Z111: =$V$111&"-NoDisability" -> Pop 35 years to 64:-NoDisability | AA111: ="MOE "&Z111 -> MOE Pop 35 years to 64:-NoDisability | AB111: Pop 65 years to 74: | AC111: ="MOE "&AB111 -> MOE Pop 65 years to 74: | AD111: =$AB$111&"-WithDisability" -> Pop 65 years to 74:-WithDisability | AE111: ="MOE "&AD111 -> MOE Pop 65 years to 74:-WithDisability | AF111: =$AB$111&"-NoDisability" -> Pop 65 years to 74:-NoDisability | AG111: ="MOE "&AF111 -> MOE Pop 65 years to 74:-NoDisability | AH111: Pop 75 and older: | AI111: ="MOE "&AH111 -> MOE Pop 75 and older: | AJ111: =$AH$111&"-WithDisability" -> Pop 75 and older:-WithDisability | AK111: ="MOE "&AJ111 -> MOE Pop 75 and older:-WithDisability | AL111: =$AH$111&"-NoDisability" -> Pop 75 and older:-NoDisability | AM111: ="MOE "&AL111 -> MOE Pop 75 and older:-NoDisability | AN111: TotalPopUnder5_HearingDisability | AO111: ="MOE "&AN111 -> MOE TotalPopUnder5_HearingDisability | AP111: TotalPopUnder5_HearingDisability | AQ111: ="MOE "&AP111 -> MOE TotalPopUnder5_HearingDisability | AR111: TotalPop18To34_HearingDisability | AS111: ="MOE "&AR111 -> MOE TotalPop18To34_HearingDisability | AT111: TotalPop35To64_HearingDisability | AU111: ="MOE "&AT111 -> MOE TotalPop35To64_HearingDisability | AV111: TotalPop65To74_HearingDisability | AW111: ="MOE "&AV111 -> MOE TotalPop65To74_HearingDisability | AX111: TotalPop75andOlder_HearingDisability | AY111: ="MOE "&AX111 -> MOE TotalPop75andOlder_HearingDisability | AZ111: TotalPopUnder5_VisionDisability | BA111: ="MOE "&AZ111 -> MOE TotalPopUnder5_VisionDisability | BB111: TotalPop5To17_VisionDisability | BC111: ="MOE "&BB111 -> MOE TotalPop5To17_VisionDisability | BD111: TotalPop18To34_VisionDisability | BE111: ="MOE "&BD111 -> MOE TotalPop18To34_VisionDisability | BF111: TotalPop35To64_VisionDisability | BG111: ="MOE "&BF111 -> MOE TotalPop35To64_VisionDisability | BH111: TotalPop65To74_VisionDisability | BI111: ="MOE "&BH111 -> MOE TotalPop65To74_VisionDisability | BJ111: TotalPop75andOlder_VisionDisability | BK111: ="MOE "&BJ111 -> MOE TotalPop75andOlder_VisionDisability | BL111: TotalPop5To17_CongnitiveDisability | BM111: ="MOE "&BL111 -> MOE TotalPop5To17_CongnitiveDisability | BN111: TotalPop18To34_CongnitiveDisability | BO111: ="MOE "&BN111 -> MOE TotalPop18To34_CongnitiveDisability | BP111: TotalPop35To64_CongnitiveDisability | BQ111: ="MOE "&BP111 -> MOE TotalPop35To64_CongnitiveDisability | BR111: TotalPop65To74_CongnitiveDisability | BS111: ="MOE "&BR111 -> MOE TotalPop65To74_CongnitiveDisability | BT111: TotalPop75andOlder_CongnitiveDisability | BU111: ="MOE "&BT111 -> MOE TotalPop75andOlder_CongnitiveDisability | BV111: TotalPop5To17_AmbulatoryDisability | BW111: ="MOE "&BV111 -> MOE TotalPop5To17_AmbulatoryDisability | BX111: TotalPop18To34_AmbulatoryDisability | BY111: ="MOE "&BX111 -> MOE TotalPop18To34_AmbulatoryDisability | BZ111: TotalPop35To64_AmbulatoryDisability | CA111: ="MOE "&BZ111 -> MOE TotalPop35To64_AmbulatoryDisability | CB111: TotalPop65To74_AmbulatoryDisability | CC111: ="MOE "&CB111 -> MOE TotalPop65To74_AmbulatoryDisability | CD111: TotalPop75andOlder_AmbulatoryDisability | CE111: ="MOE "&CD111 -> MOE TotalPop75andOlder_AmbulatoryDisability | CF111: TotalPop5To17_SelfCareDisability | CG111: ="MOE "&CF111 -> MOE TotalPop5To17_SelfCareDisability | CH111: TotalPop18To34_SelfCareDisability | CI111: ="MOE "&CH111 -> MOE TotalPop18To34_SelfCareDisability | CJ111: TotalPop35To64_SelfCareDisability | CK111: ="MOE "&CJ111 -> MOE TotalPop35To64_SelfCareDisability | CL111: TotalPop65To74_SelfCareDisability | CM111: ="MOE "&CL111 -> MOE TotalPop65To74_SelfCareDisability | CN111: TotalPop75andOlder_SelfCareDisability | CO111: ="MOE "&CN111 -> MOE TotalPop75andOlder_SelfCareDisability | CP111: TotalPop18To34_IndependantLivingDisability | CQ111: ="MOE "&CP111 -> MOE TotalPop18To34_IndependantLivingDisability | CR111: TotalPop35To64_IndependantLivingDisability | CS111: ="MOE "&CR111 -> MOE TotalPop35To64_IndependantLivingDisability | CT111: TotalPop65To74_IndependantLivingDisability | CU111: ="MOE "&CT111 -> MOE TotalPop65To74_IndependantLivingDisability | CV111: TotalPop75andOlder_IndependantLivingDisability | CW111: ="MOE "&CV111 -> MOE TotalPop75andOlder_IndependantLivingDisability | CX111: TotalUnder18 | CY111: ="MOE "&CX111 -> MOE TotalUnder18 | CZ111: Under 18_Total | DA111: ="MOE "&CZ111 -> MOE Under 18_Total | DB111: Under18_OneDisability | DC111: ="MOE "&DB111 -> MOE Under18_OneDisability | DD111: Under18_TwoDisability | DE111: ="MOE "&DD111 -> MOE Under18_TwoDisability | DF111: Under18_NoDisability | DG111: ="MOE "&DF111 -> MOE Under18_NoDisability | DH111: 18-64._Total | DI111: ="MOE "&DH111 -> MOE 18-64._Total | DJ111: 18-64._OneDisability | DK111: ="MOE "&DJ111 -> MOE 18-64._OneDisability | DL111: 18-64_TwoDisability | DM111: ="MOE "&DL111 -> MOE 18-64_TwoDisability | DN111: 18-64_NoDisability | DO111: ="MOE "&DN111 -> MOE 18-64_NoDisability | DP111: 64 and Over_Total | DQ111: ="MOE "&DP111 -> MOE 64 and Over_Total | DR111: 64 and Over_OneDisability | DS111: ="MOE "&DR111 -> MOE 64 and Over_OneDisability | DT111: 64 and Over_TwoDisability | DU111: ="MOE "&DT111 -> MOE 64 and Over_TwoDisability | DV111: 64 and Over_NoDisability | DW111: ="MOE "&DV111 -> MOE 64 and Over_NoDisability
A112: =VLOOKUP(DropDownList!$A$19,CntyQuery!$A$53:$DN$64,A$1) -> Alton
A114: Househould Income By Age
